Workbook

Sheet Chart Index (hidden)
A7: Preview | B7: Sheet (and graph link) | C7: Chart Title | D7: Chart Series
B8: طراحی همه الگوها | C8: رسم دستی چادر2 | D8: انحنا, صاف
B9: طراحی همه الگوها | C9: رسم دستی چادر 3 | D9: انحنا, صاف
B10: طراحی همه الگوها | C10: رسم دستی چادر 5 | D10: انحنا, صاف
B11: طراحی همه الگوها | C11: طراحی چادرها و رسم چادر 4 | D11: شبیه ساز دست خمیده و سر, شبیه ساز دامن, رسم یا طراحی چادر4
B12: طراحی همه الگوها | C12: چادر1 و مقنعه برای پرینت | D12: شبیه ساز دست خمیده و سر, شبیه ساز دامن, چادر 1 با نقطه گذاری
B13: طراحی همه الگوها | C13: شلوار پشت | D13: 1شبیه ساز, 2کمر شلوار, 3وسط شلوار و خط اتو, 4پهلو, 6فاق, 7لبه پایین, 9کمر جدا, اطلاعات اندام در شلوار
B14: طراحی همه الگوها | C14: طراحی پشت یقه | D14: شبیه ساز برش, شبیه ساز انحنا, طراحی یقه گرد
B15: طراحی همه الگوها | C15: طراحی جلو یقه | D15: شبیه ساز اندام, طراحی یقه شکاری
B16: طراحی همه الگوها | C16: شلوار جلو | D16: 1شبیه ساز جلو, 2کمر شلوار, 3وسط شلوار, 4پهلو, 6فاق, 7لبه پایین شلوار, 8زیپ, 9کمر جدا, 10جیب مردانه, 11جیب جین, اطلاعات اندام در شلوار
B17: طراحی همه الگوها | C17: طراحی جلو دامن ترک با کمر پهن | D17: شبیه ساز دامن تنگ, کمر پهن, خط مرکزی جلو کمر, خطوط اصلی دامن ترک, خطوط فرعی دامن ترک, خط اوزمان, پیلی
B18: طراحی همه الگوها | C18: طراحی پشت دامن ترک با کمر پهن | D18: شبیه ساز دامن تنگ, کمر یکسره, خطوط اصلی دامن ترک, خطوط فرعی دامن ترک, پیلی
B19: طراحی همه الگوها | C19: آستین | D19: شبیه ساز آستین, آستین بلند یا کوتاه, مچ آستین بلند یا کوتاه
B20: طراحی همه الگوها | C20: الگو پشت | D20: 0 اطلاعات اندام, 72شبیه ساز بالاتنه بدون ساسون, 2شبیه ساز دامن, 5حلقه آستین بدون ساسون, 6سرشانه بدون ساسون, 10پهلو صاف وپایین لباس, 17یقه گرد , 18خط پشت در پیراهن, 24بدون شیفت ساسون کمر
B21: طراحی همه الگوها | C21: یقه و کلاه | D21: شومیزیه
B22: طراحی همه الگوها | C22: الگو جلو | D22: 0اطلاعات اندام, 1شبیه ساز بالاتنه, 2شبیه ساز دامن, 6حلقه آستین بدون ساسون , 7سرشانه بدون ساسون, 11پهلو صاف , 22یقه گرد چرخیده, 23جادکمه یقه گرد در پیراهن, 29پایین پیراهن بدون ترک, 70ساسون کمر, 76جادکمه متصل به یقه

Sheet محاسبات (hidden)
A1: height_print | B1: 30.73496831
A2: width_print | B2: 30.62378054
A3: charts_resized | K3: محاسبات بافت | NU3: یقه شکاری | OB3: نقشه بافت یقه شکاری | OF3: یقه شومیزیه نوک تیز تا خط جادکمه | OM3: نقشه بافت یقه شومیزیه نوک تیز | OQ3: یقه شومیزیه تا خط جادکمه | OX3: نقشه بافت یقه شومیزیه
A4: print_body_chartS | NU4: بافت انتخابی | OC4: نقشه بافت یقه شکاری | OF4: بافت انتخابی | ON4: نقشه بافت یقه شومیزیه نوک تیز | OQ4: بافت انتخابی | OY4: نقشه بافت یقه شومیزیه
A5: ActiveWindow.Zoom | B5: 15 | E5: متغیرهای ورودی مربوط به ضخامت میل (متناسب با ضخامت نخ) | H5: محاسبه برای بافت بالاتنه ( بافت انتخابی) | J5: میل 2 و 2.5 | K5: میل 3 و 3.5 | L5: میل 4 و 4.5 | P5: متغیرهای ورودی یقه شومیزیه بافت انتخابی | V5: سلول مرجع | NU5: a1 | NV5: =L35 -> 300 | OB5: =NV30 -> -30 | OC5: =NV31 -> 2 | OD5: w1 | OF5: e1 | OG5: =O33 -> 224 | OM5: =OG34 -> -30 | ON5: =OG35 -> 2 | OO5: m1 | OQ5: e1 | OR5: =R33 -> 212 | OX5: =OR34 -> -30 | OY5: =OR35 -> 2 | OZ5: m1
A6: per_font_size_chart | B6: =0.1*'طراحی همه الگوها'!B176 -> 0.8 | E6: (بدون احتساب بافت انتخابی) a'0 ضریب تعداد رج | F6: =IF(F8=2,J6,IF(F8=3,K6,L6)) -> 3.5 | H6: a0 تعداد رج در یک سانت جلو | I6: =F6+0.3*I8*F6 -> 4.242424242 | J6: 3.5 | K6: 2.8 | L6: 2.2 | M6: a''0 | O6: =ROUND(P12*P9,1) -> 2.9 | P6: پهنا (cm)= | T6: تعداد دانه در یک سانت eb0 | U6: ea0 تعداد رج در یک سانت | V6: میزان جمع شوندگی عمودی مدل | W6: میزان جمع شوندگی افقی مدل | X6: ارتفاع رجها به سانتیمتر | Y6: تعداد رج | Z6: پهنا به سانتیمتر | AA6: تعداد دانه | AB6: اسم مدل | AC6: شماره مدل | AE6: متغیرهای ورودی یقه ب ب گرد بافت همه از زیر | AI6: متغیر محاسبه ای یقه انگلیسی | NU6: a2 | NV6: 4 | OA6: باکس نوشتهa1 | OD6: =OA6 -> باکس نوشتهa1 | OF6: e2 | OG6: 7 | OL6: باکس نوشتهe1 | OO6: =OL6 -> باکس نوشتهe1 | OQ6: e2 | OR6: 7 | OW6: باکس نوشتهe1 | OZ6: =OW6 -> باکس نوشتهe1
A7: ChartFieldRange( باید خالی باشد ) | E7: (بدون احتساب بافت انتخابی) b'0 ضریب تعداد دانه | F7: =IF(F8=2,J7,IF(F8=3,K7,L7)) -> 2.5 | H7: تعداد دانه در یک سانت جلوb0 | I7: =F7+0.68*I9*F7 -> 5.714285714 | J7: 2.5 | K7: 2 | L7: 1.5 | M7: b''0 | O7: =ROUND(P13*P9,1) -> 4 | P7: پهنا (cm)= | T7: =AA7/Z7 -> 1.945945946 | U7: =Y7/X7 -> 2.888888889 | V7: =(10/3)*((Y7/X7)*(1/L6)-1) -> 1.043771044 | W7: =(100/68)*((AA7/Z7)*(1/L7)-1) -> 0.4372019078 | X7: 13.5 | Y7: 39 | Z7: 18.5 | AA7: 36 | AB7: ساده | AC7: 1 | AE7: =ROUND(AF12*G167,1) -> 6.5 | AF7: پهنا (cm)= | AI7: d'3 | AJ7: ='متغیرها '!C167*H124 -> 2.6 | NU7: a3 | NV7: 35 | NZ7: متغیرهای ورودی | OB7: =NZ13 -> -30 | OC7: =OA13 -> 2 | OD7: =NY13 -> w1 | OF7: e3 | OG7: 22 | OK7: متغیرهای ورودی | OM7: =OK13 -> -30 | ON7: =OL13 -> 2 | OO7: =OJ13 -> m1 | OQ7: e3 | OR7: 24 | OV7: متغیرهای ورودی | OX7: =OV13 -> -30 | OY7: =OW13 -> 2 | OZ7: =OU13 -> m1
A8: show_temp_print_sheet | B8: 0 | E8: انتخاب ضخامت میل بافتنی f1 | F8: ='متغیرها '!C832 -> 2 | H8: جمع شوندگی عمودی بافت جلو f2 | I8: =OFFSET(V6,I10,0) -> 0.7070707071 | O8: متغیر محاسبه ای شومیزیه | T8: 2.117647059 | U8: 3.777777778 | V8: =(10/3)*((Y8/X8)*(1/L6)-1) -> 2.390572391 | W8: =(100/68)*((AA8/Z8)*(1/L7)-1) -> 0.6055363322 | X8: 13.5 | Y8: 51 | Z8: 17 | AA8: 36 | AB8: همه از زیر | AC8: =AC7+1 -> 2 | AE8: متغیر محاسبه ای یقه ب ب گرد | AI8: d11 | AJ8: =(0.95+1.45*'متغیرها '!C164)*(0.4*G166+0.037*H131) -> 4.592516387 | NU8: a4 | NV8: 69 | NY8: طول باکس نوشته | NZ8: =NV35 -> 4.5 | OA8: h3 | OB8: =NZ18 -> -4.6875 | OC8: =OA18 -> 2 | OD8: =NY18 -> h8 | OF8: e4 | OG8: 41 | OJ8: طول باکس نوشته | OK8: =OG39 -> 4.5 | OL8: h3 | OM8: =OK18 -> 1.07 | ON8: =OL18 -> 2 | OO8: =OJ18 -> h8 | OQ8: e4 | OR8: 49 | OU8: طول باکس نوشته | OV8: =OR39 -> 4.5 | OW8: h3 | OX8: =OV18 -> -0.715 | OY8: =OW18 -> 2 | OZ8: =OU18 -> h8
A9: per_line_size_chart | E9: از آستین رگلان γ9 | F9: =DE542 -> 0.6880143317 | H9: جمع شوندگی افقی بافت جلو f3 | I9: =OFFSET(V6,I10,1) -> 1.890756303 | K9: متغیرهای ورودی یقه شکاری کشباف | O9: e'1 | P9: =(0.4*G166+0.037*H131) -> 1.913548494 | T9: 1.8 | U9: 2.666666667 | V9: =(10/3)*((Y9/X9)*(1/L6)-1) -> 0.7070707071 | W9: =(100/68)*((AA9/Z9)*(1/L7)-1) -> 0.2941176471 | X9: 13.5 | Y9: 36 | Z9: 20 | AA9: 36 | AB9: جودانه | AC9: 3 | AE9: c6 | AF9: =ROUNDUP(1.3*F6*AF10,0) -> 30 | AI9: d'12 | AJ9: =G263-G258 -> 13.55517296 | EN9: رسم دستی چادر 4 | ET9: رسم و طراحی چادر شماره 4 | FF9: رسم چادر شماره 5 | FN9: طراحی چادر شماره 5 | FR9: طراحی چادر شماره 5 | GA9: پروسیجر یافتن راس سوم مثلث با داشتن دو راس و دو ضلع | GG9: پروسیجر چرخش یک نقطه حول نقطه دیگر | GM9: کامل شده | GP9: رسم باکس زیپ دامن- باکس دوطرفه راست و چپ | GQ9: مولفه افقی | GR9: مولفه عمودی | GU9: به دست آوردن راس سوم مثلث وقتی دو راس و دو ضلع را داریم | HA9: جلو(k''5 →k6) | HB9: =SQRT(POWER((#REF!-#REF!),2)+POWER((#REF!-#REF!),2)) ->  | HC9: ضلع راست | HO9: قرینه | NU9: a5 | NV9: 105 | NY9: پهنای باکس نوشته | NZ9: =NV36 -> 0.5 | OA9: h4 | OF9: e5 | OG9: 63 | OJ9: پهنای باکس نوشته | OK9: =OG40 -> 0.5 | OL9: h4 | OQ9: e5 | OR9: 74 | OU9: پهنای باکس نوشته | OV9: =OR40 -> 0.5 | OW9: h4
E10: γ10 از آستین رگلان | F10: =DE543 -> 0.6232668096 | H10: بافت انتخابی جلو | I10: ='متغیرها '!C833 -> 4 | K10: =ROUND(L14*(0.4*G166+0.037*H131),1) -> 3.8 | L10: پهنا (cm)= | O10: e''1 | P10: =P13*P9 -> 4.018451838 | T10: 3.428571429 | U10: 2.666666667 | V10: =(10/3)*((Y10/X10)*(1/L6)-1) -> 0.7070707071 | W10: =(100/68)*((AA10/Z10)*(1/L7)-1) -> 1.890756303 | X10: 13.5 | Y10: 36 | Z10: 10.5 | AA10: 36 | AB10: کشباف (دوتایی) | AC10: 4 | AE10: c'6 | AF10: =AF12*G167 -> 6.486067692 | AI10: d12 | AJ10: =ROUND(F6*AJ9,0) -> 47 | ET10: رسم دستی چادر4 با نقطه گذاری | EY10: خطوط پرینت الگو یا طراحی چادر4 | FB10: رسم دستی چادر 5 (بر حسب سانتیمتر) | FG10: صاف | FK10: انحنا | FN10: اسم نقطه | FO10: مولفه افقی | FP10: مولفه عمودی | FR10: =FO14 -> 5 | FS10: 102.093364 | FT10: s'6 | GC10: اطلاعات ورودی | GG10: رادیان | GH10: =-#REF! ->  | GI10: زاویه چرخش | GJ10: چرخش مخالف عقربه های ساعت | GO10: نقطه ورودی بالا | GP10: b5 | GQ10: =#REF! ->  | GR10: =#REF! ->  | GU10: درجه α1 | GV10: رادیان α1 | GW10: xdp'6 | GX10: ydp'6 | GY10: (dp4→dp'6) | GZ10: (dp4→dp6)-(dp4→dp'6) | HA10: (k6 →45)جلو | HB10: =SQRT(POWER((#REF!-#REF!),2)+POWER((#REF!-#REF!),2)) ->  | HC10: ضلع چپ | HO10: =-HK10+HP9 -> 0 | HP10: =HL10 -> 0 | NU10: a6 | NV10: 6 | OB10: =NZ20 -> -4.6875 | OC10: =OA20 -> 2.25 | OD10: =NY20 -> h10 | OF10: e6 | OG10: 7 | OM10: =OK20 -> 1.07 | ON10: =OL20 -> 2.25 | OO10: =OJ20 -> h10 | OQ10: e6 | OR10: 7 | OX10: =OV20 -> -0.715 | OY10: =OW20 -> 2.25 | OZ10: =OU20 -> h10
E11: (نصف طول دور گردن بعلاوه جادکمه) (b'1)/2+b'2 | F11: =AZ102-BD98+SQRT(POWER((AZ102-AZ145),2)+POWER((BA145-BA102),2))+SQRT(POWER((AZ145-AZ148),2)+POWER((BA145-BA148),2))+SQRT(POWER((AZ148-AZ140),2)+POWER((BA148-BA140),2))+SQRT(POWER((BK138-BK132),2)+POWER((BL138-BL132),2))+SQRT(POWER((BK132-BK135),2)+POWER((BL132-BL135),2))+SQRT(POWER((BK135-BK104),2)+POWER((BL104-BL135),2)) -> 26.59777708 | K11: متغیر محاسبه ای یقه شکاری | P11: متغیرهای ورودی یقه شومیزیه بافت انتخابی | T11: 2.057142857 | U11: 2.962962963 | V11: =(10/3)*((Y11/X11)*(1/L6)-1) -> 1.156004489 | W11: =(100/68)*((AA11/Z11)*(1/L7)-1) -> 0.5462184874 | X11: 13.5 | Y11: 40 | Z11: 17.5 | AA11: 36 | AB11: سبدی (5 تایی) | AC11: 5 | AE11: متغیرهای ورودی یقه ب ب گرد بافت همه از زیر | AI11: d''12 | AJ11: =G264+AX147 -> 6.789267202 | DA11: رسم دستی چادر 2 (بر حسب سانتیمتر) | DD11: رسم چادر شماره 2 | DL11: نقاط ورودی | DP11: طراحی چادر شماره 2 | DX11: طراحی چادر شماره 3 | EB11: رسم دستی چادر 3 (بر حسب سانتیمتر) | EE11: رسم چادر شماره 3 | ET11: =EP29 -> 5 | EU11: =EQ30 -> -5.5 | EV11: 2 | EX11: =EP30 -> -0.8 | EY11: =EQ30 -> -5.5 | EZ11: 3 | FF11: =FF15-'طراحی همه الگوها'!U274 -> 40.1 | FG11: =FG15 -> 53.9 | FH11: خط پهلو | FJ11: =FF30 -> 59 | FK11: =FG30 -> 63.5 | FL11: 13 | FN11: s1 | FO11: =DB400 -> 5 | FP11: =DC400 -> 100.195 | FR11: 9.723731611 | FS11: 100.1316071 | FT11: s''7 | GA11: اسم نقطه | GB11: مولفه افقی | GC11: مولفه عمودی | GG11: مولفه افقی | GH11: مولفه عمودی | GI11: اسم نقطه | GK11: نقطه خروجی چرخیده | GO11: نقطه ورودی پایین | GP11: b6 | GQ11: =#REF! ->  | GR11: =#REF! ->  | GT11: 2 | GU11: -100 | GV11: =RADIANS(GU11) -> -1.745329252 | GW11: =HB13+HB10*COS(GV11) ->  | GX11: =HC13-HB10*SIN(GV11) ->  | GY11: =SQRT(POWER((HB12-GW11),2)+POWER((HC12-GX11),2)) ->  | GZ11: =ABS(HB9-GY11) ->  | HA11: اسم نقطه | HB11: مولفه افقی | HC11: مولفه عمودی | HO11: =-HK11+HP9 -> 0 | HP11: 0 | NU11: a10 | NV11: 300 | OB11: =NZ21 -> -4.6875 | OC11: =OA21 -> 1.75 | OD11: =NY21 -> h11 | OF11: e7 | OG11: 0 | OM11: =OK21 -> 1.07 | ON11: =OL21 -> 1.75 | OO11: =OJ21 -> h11 | OQ11: e7 | OR11: 0 | OX11: =OV21 -> -0.715 | OY11: =OW21 -> 1.75 | OZ11: =OU21 -> h11
E12: ( از خط مرکزی تا خط جادکمه = طول جادکمه) b'2 | F12: =AZ102-BD98 -> 0 | H12: a01 تعداد رج در یک سانت پشت | I12: =F6+0.3*I14*F6 -> 4.242424242 | K12: a7 | L12: =L18*L14*(0.4*G166+0.037*H131) -> 16.23616904 | O12: ضریب پهنای پایه یقه (1 الی 2) | P12: =DH682/DH679 -> 1.5 | T12: 2.571428571 | U12: 2.814814815 | V12: =(10/3)*((Y12/X12)*(1/L6)-1) -> 0.9315375982 | W12: =(100/68)*((AA12/Z12)*(1/L7)-1) -> 1.050420168 | X12: 13.5 | Y12: 38 | Z12: 14 | AA12: 36 | AB12: تمشکی | AC12: 6 | AE12: ضریب پهنای یقه (0.6 الی 1.2) | AF12: =1.9*'متغیرها '!C761 -> 0.95 | AI12: یقه انگلیسی بافت جودانه | CI12: نقاط ورودی | CM12: رسم چادر شماره 1 و مقنعه چانه دار | CQ12: نقاط ورودی | CU12: رسم مقنعه دراپه | DE12: صاف | DI12: انحنا | DL12: اسم نقطه | DM12: مولفه افقی | DN12: مولفه عمودی | DP12: =DM23 -> 5 | DQ12: 102.093364 | DR12: s6 | DT12: طراحی چادر شماره 3 | DX12: =DU14 -> 5 | DY12: 102.093364 | DZ12: s'6 | EF12: صاف | EJ12: انحنا | ET12: =EP29 -> 5 | EU12: =EQ29 -> 106 | EV12: 1 | EX12: =EP32 -> 8.886706487 | EY12: =EQ32 -> -6.007658776 | EZ12: 6 | FJ12: =FJ11+0.45*(FJ15-FJ11) -> 65.075 | FK12: =FK11+0.25*(FK15-FK11) -> 81.65 | FL12: 13' | FN12: s3 | FO12: =DB402 -> 9.7196 | FP12: =DC402 -> 93.89185 | FR12: 17.59661763 | FS12: 86.39930874 | FT12: s''8 | FZ12: راس پایین | GA12: منهای شیفتa50 | GB12: =ER37 -> 51.45038573 | GC12: =ES37 -> 0 | GD12: ضلع پایین | GE12: =EZ25 -> 8 | GG12: =#REF! ->  | GH12: =#REF! ->  | GI12: a40 | GJ12: نقطه مرکزی چرخش | GK12: مولفه افقی | GL12: مولفه عمودی | GM12: اسم نقطه | GO12: متغیر ورودی پهنا | GP12: a20 | GQ12: =#REF! ->  | GR12: (سانتیمتر) | GU12: =GU11+GT11 -> -98 | GV12: -1.710422667 | GW12: =HB13+HB10*COS(GV12) ->  | GX12: =HC13-HB10*SIN(GV12) ->  | GY12: =SQRT(POWER((HB12-GW12),2)+POWER((HC12-GX12),2)) ->  | GZ12: =ABS(HB9-GY12) ->  | HA12: پشتk''5 | HB12: =GQ33 ->  | HC12: =GR33 ->  | HD12: راس راست | HO12: =-HK12+HP9 -> 0 | HP12: 0 | NU12: a11 | NV12: 299 | NY12: نقطه شروع رج(چپ) | NZ12: مولفه افقی | OA12: مولفه عمودی | OF12: e8 | OG12: -4 | OJ12: نقطه شروع رج(چپ) | OK12: مولفه افقی | OL12: مولفه عمودی | OQ12: e8 | OR12: -4 | OU12: نقطه شروع رج(چپ) | OV12: مولفه افقی | OW12: مولفه عمودی
E13: گشادی بالای مچ آستین (cm) b'11 | F13: =ROUND(DY522-DY523,0) -> 26 | H13: تعداد دانه در یک سانت پشتb01 | I13: =F7+0.68*I15*F7 -> 5.714285714 | K13: متغیرهای ورودی یقه شکاری کشباف | O13: ضریب پهنای برگرد یقه (1.5 الی 3) | P13: =DH710/DH707 -> 2.1 | T13: 2.571428571 | U13: 2.814814815 | V13: =(10/3)*((Y13/X13)*(1/L6)-1) -> 0.9315375982 | W13: =(100/68)*((AA13/Z13)*(1/L7)-1) -> 1.050420168 | X13: 13.5 | Y13: 38 | Z13: 14 | AA13: 36 | AB13: کج راه | AC13: 7 | AE13: یقه ب ب گرد | AI13: b'1 نوار باز شده گردن - دور تا دور گردن | AJ13: =DP680+DP681 -> 26.26064156 | CI13: مولفه افقی | CJ13: مولفه عمودی | CK13: اسم نقطه | CM13: مولفه افقی | CN13: مولفه عمودی | CO13: اسم نقطه | CQ13: مولفه افقی | CR13: مولفه عمودی | CS13: اسم نقطه | CU13: مولفه افقی | CV13: مولفه عمودی | CW13: اسم نقطه | DD13: =DB37+'طراحی همه الگوها'!U190 -> 13 | DE13: =DE14 -> 0 | DF13: 5 | DH13: =DD17 -> 13 | DI13: =DE17 -> 23.5 | DJ13: 11 | DL13: s2 | DM13: =DB401 -> 8.30372 | DN13: =DC401 -> 98.6192125 | DP13: 8.61324933 | DQ13: 100.5428552 | DR13: s7 | DT13: اسم نقطه | DU13: مولفه افقی | DV13: مولفه عمودی | DX13: 8.927477713 | DY13: 100.0697352 | DZ13: s'7 | EE13: =DB37 -> 0 | EF13: ='طراحی همه الگوها'!U210+EC35 -> 101 | EG13: 1 | EI13: =EE32 -> 111.5 | EJ13: =EF32 -> 101 | EK13: 11 | FF13: 0 | FG13: =FC42 -> 0 | FH13: 1 | FJ13: =FJ11+0.75*(FJ15-FJ11) -> 69.125 | FK13: =FK11+0.5*(FK15-FK11) -> 99.8 | FL13: 28 | FN13: s5 | FO13: =DB404 -> 5 | FP13: =DC404 -> 86.188 | FR13: 27.04408085 | FS13: 73.84406453 | FT13: s''9 | FZ13: راس بالا | GA13: منهای شیفتe18 | GB13: =FB27-EW21 -> 0 | GC13: =FC27 -> 0 | GD13: ضلع بالا | GE13: =EZ26 -> 0 | GG13: =#REF!-#REF!+#REF! ->  | GH13: =#REF! ->  | GI13: a48-b16+f22 | GJ13: نقطه قبل از چرخش | GK13: =IF(GH13>GH12,IF(GG13>GG12,GG12+SQRT(POWER(GG13-GG12,2)+POWER(GH13-GH12,2))*COS(ATAN((GH13-GH12)/(GG13-GG12+0.000123))+GH10),GG12-SQRT(POWER(GG13-GG12,2)+POWER(GH13-GH12,2))*COS(ATAN((GH13-GH12)/(GG12-GG13+0.000123))-GH10)),IF(GG13>GG12,GG12+SQRT(POWER(GG13-GG12,2)+POWER(GH13-GH12,2))*COS(ATAN((GH12-GH13)/(GG13-GG12+0.000123))-GH10),GG12-SQRT(POWER(GG13-GG12,2)+POWER(GH13-GH12,2))*COS(ATAN((GH12-GH13)/(GG12-GG13+0.000123))+GH10))) ->  | GL13: =IF(GH13>GH12,IF(GG13>GG12,GH12+SQRT(POWER(GG13-GG12,2)+POWER(GH13-GH12,2))*SIN(ATAN((GH13-GH12)/(GG13-GG12+0.000123))+GH10),GH12+SQRT(POWER(GG13-GG12,2)+POWER(GH13-GH12,2))*SIN(ATAN((GH13-GH12)/(GG12-GG13+0.000123))-GH10)),IF(GG13>GG12,GH12-SQRT(POWER(GG13-GG12,2)+POWER(GH13-GH12,2))*SIN(ATAN((GH12-GH13)/(GG13-GG12+0.000123))-GH10),GH12-SQRT(POWER(GG13-GG12,2)+POWER(GH13-GH12,2))*SIN(ATAN((GH12-GH13)/(GG12-GG13+0.000123))+GH10))) ->  | GM13: e52 | GO13: متغیر ورودی طول | GP13: a21 | GQ13: =#REF! ->  | GU13: =GU12+GT11 -> -96 | GV13: -1.675516082 | GW13: =HB13+HB10*COS(GV13) ->  | GX13: =HC13-HB10*SIN(GV13) ->  | GY13: =SQRT(POWER((HB12-GW13),2)+POWER((HC12-GX13),2)) ->  | GZ13: =ABS(HB9-GY13) ->  | HA13: 42پشت | HB13: =GQ35 -> 1 | HC13: =GR35 -> 0 | HD13: راس چپ | HO13: =-HK13+HP9 -> 0 | HP13: 0 | NU13: a25 | NV13: =L43 -> 2 | NY13: w1 | NZ13: =NV30 -> -30 | OA13: =NV31 -> 2 | OB13: =NZ20 -> -4.6875 | OC13: =OA20 -> 2.25 | OD13: =NY20 -> h10 | OF13: e9 | OG13: 19 | OJ13: m1 | OK13: =OG34 -> -30 | OL13: =OG35 -> 2 | OM13: =OK20 -> 1.07 | ON13: =OL20 -> 2.25 | OO13: =OJ20 -> h10 | OQ13: e9 | OR13: 19 | OU13: m1 | OV13: =OR34 -> -30 | OW13: =OR35 -> 2 | OX13: =OV20 -> -0.715 | OY13: =OW20 -> 2.25 | OZ13: =OU20 -> h10
E14: تعداد دانه ها در بالای مچ آستین b'12 | F14: =ROUND(I19*F13,0) -> 149 | H14: جمع شوندگی عمودی بافت پشت f02 | I14: =OFFSET(V6,I16,0) -> 0.7070707071 | K14: ضریب پهنای یقه (1.5 الی 3) | L14: =EF682/EF679 -> 2 | O14: یقه شومیزیه تا خط جادکمه | T14: 2.88 | U14: 3.111111111 | V14: =(10/3)*((Y14/X14)*(1/L6)-1) -> 1.38047138 | W14: =(100/68)*((AA14/Z14)*(1/L7)-1) -> 1.352941176 | X14: 13.5 | Y14: 42 | Z14: 12.5 | AA14: 36 | AB14: تیغ ماهی | AC14: 8 | CI14: =DB406 -> 5 | CJ14: =DC406 -> 101.788 | CK14: شبیه ساز s15 | CM14: =CI39 -> 62.5 | CN14: =CJ39 -> 106 | CO14: j5 | CQ14: =DB404 -> 5 | CR14: =DC404 -> 86.188 | CS14: شبیه ساز s5 | CU14: =CQ27 -> 5 | CV14: =CR27 -> 48.475 | CW14: d6 | DD14: =DB37 -> 0 | DE14: =CR36 -> 0 | DF14: 2 | DH14: ='طراحی همه الگوها'!U190+'طراحی همه الگوها'!U199 -> 24.3 | DI14: =DE14+'طراحی همه الگوها'!U201 -> 25.2 | DJ14: 17 | DL14: s3 | DM14: =DB402 -> 9.7196 | DN14: =DC402 -> 93.89185 | DP14: 17.04416443 | DQ14: 89.17245722 | DR14: s8 | DT14: s'6 | DU14: =DM16 -> 5 | DV14: =1.003*DN16 -> 102.093364 | DX14: 18.09159238 | DY14: 85.90433399 | DZ14: s'8 | EE14: =DB37 -> 0 | EF14: =EF13-'طراحی همه الگوها'!U212 -> 51.6 | EG14: 4 | EI14: =EI15+0.7*(EI13-EI15) -> 111.14 | EJ14: =EJ15+0.4*(EJ13-EJ15) -> 104.66 | EK14: 13' | ET14: =EP31 -> 10.3 | EU14: =EQ31 -> 5 | EV14: 5 | EX14: =EP32 -> 8.886706487 | EY14: =EQ32 -> -6.007658776 | EZ14: 6 | FF14: =FF13+'طراحی همه الگوها'!U249 -> 53.1 | FG14: =FG13 -> 0 | FH14: 2 | FJ14: =FJ11+0.95*(FJ15-FJ11) -> 71.825 | FK14: =FK11+0.8*(FK15-FK11) -> 121.58 | FL14: 13''' | FN14: s'6 | FO14: =DU14 -> 5 | FP14: =DV14 -> 102.093364 | FR14: 36.49154407 | FS14: 62.85822585 | FT14: s''10 | FZ14: c19 | GA14: =ATAN((GB13-GB12)/(GC13-GC12)) ->  | GC14: محاسبات | GQ14: ماکزیمم متغیر ورودی ضریب طول | GR14: 20 | GU14: =GU13+GT11 -> -94 | GV14: -1.640609497 | GW14: =HB13+HB10*COS(GV14) ->  | GX14: =HC13-HB10*SIN(GV14) ->  | GY14: =SQRT(POWER((HB12-GW14),2)+POWER((HC12-GX14),2)) ->  | GZ14: =ABS(HB9-GY14) ->  | HA14: k6 | HB14: =HB13+HB10*COS(RADIANS(GT24)) ->  | HC14: =HC13-HB10*SIN(RADIANS(GT24)) ->  | HD14: راس سوم | HO14: =-HK14+HP9 -> 0 | HP14: 0 | NU14: خطا | NV14: =L44 ->  | NY14: نقطه پایان رج(راست) | NZ14: مولفه افقی | OA14: مولفه عمودی | OB14: =NZ23 -> -0.1875 | OC14: =OA23 -> 2.25 | OD14: =NY23 -> h13 | OF14: e10 | OG14: 5 | OJ14: نقطه پایان رج(راست) | OK14: مولفه افقی | OL14: مولفه عمودی | OM14: =OK23 -> 5.57 | ON14: =OL23 -> 2.25 | OO14: =OJ23 -> h13 | OQ14: e10 | OR14: 5 | OU14: نقطه پایان رج(راست) | OV14: مولفه افقی | OW14: مولفه عمودی | OX14: =OV23 -> 3.785 | OY14: =OW23 -> 2.25 | OZ14: =OU23 -> h13
E15: تعداد دانه های اضافه شده زیر بغل b8 | F15: =ROUNDUP(I7*(AX119+AX114+BI116),0) -> 17 | H15: جمع شوندگی افقی بافت پشت f03 | I15: =OFFSET(V6,I16,1) -> 1.890756303 | K15: a15 | L15: =EE699-EE697+SQRT(POWER((EE699-EE701),2)+POWER((EF699-EF701),2))+SQRT(POWER((EE701-EE704),2)+POWER((EF701-EF704),2))+SQRT(POWER((EE704-EE705),2)+POWER((EF704-EF705),2))+SQRT(POWER((EE705-EE703),2)+POWER((EF705-EF703),2)) -> 26.26064156 | O15: جمع شوندگی عمودی e9 | P15: =OFFSET(V6,P20,0) -> 2.390572391 | T15: 3.428571429 | U15: 2.666666667 | V15: =(10/3)*((Y15/X15)*(1/L6)-1) -> 0.7070707071 | W15: =(100/68)*((AA15/Z15)*(1/L7)-1) -> 1.890756303 | X15: 13.5 | Y15: 36 | Z15: 10.5 | AA15: 36 | AB15: اسموکینگ | AC15: 9 | CJ15: ='متغیرها '!C52 -> 5 | CK15: شیفت عمودی | CM15: =CI36 -> 5 | CN15: =CJ36 -> 106 | CO15: j1 | CQ15: =CI37 -> 5 | CR15: =CJ37 -> 59 | CS15: j2 | CU15: =CQ25 -> 5 | CV15: =CR25 -> 115.225 | CW15: d3 | DD15: =DB37 -> 0 | DE15: ='طراحی همه الگوها'!U188+CR36 -> 108 | DF15: 1 | DH15: =DD21 -> 35.5 | DI15: =DE21 -> 28.3 | DJ15: 10 | DL15: خط سینه | DM15: =DT400 -> 5 | DN15: =DU400 -> 70.1 | DP15: 26.07728776 | DQ15: 81.41991315 | DR15: s9 | DT15: s'7 | DU15: =DU14+0.12*(DU18-DU14) -> 8.927477713 | DV15: =DV18+0.95*(DV14-DV18) -> 100.0697352 | DX15: 27.91028666 | DY15: 73.76256149 | DZ15: s'9 | EE15: =DB37 -> 0 | EF15: =EC35 -> 0 | EG15: 2 | EI15: =EE31-'طراحی همه الگوها'!U220 -> 110.3 | EJ15: =EF31 -> 107.1 | EK15: 13 | ET15: =EP29 -> 5 | EU15: =EQ31 -> 5 | EV15: 4 | EX15: =EX14+0.3*(EX17-EX14) -> 20.57818461 | EY15: =EY14+0.05*(EY17-EY14) -> -5.217146689 | EZ15: 6'' | FF15: =FF13+'طراحی همه الگوها'!U249 -> 53.1 | FG15: =FG13+'طراحی همه الگوها'!U251 -> 53.9 | FH15: 4 | FJ15: =FF34 -> 72.5 | FK15: =FG34 -> 136.1 | FL15: 15 | FN15: s''7 | FO15: =FO14+0.15*(FO18-FO14) -> 9.723731611 | FP15: =FP18+0.95*(FP14-FP18) -> 100.1316071 | FR15: 41.44129154 | FS15: 57.90847838 | FT15: k4 شبیه ساز | GA15: درجه α | GB15: x | GC15: y | GD15: c21 | GE15: c'17 | GG15: پروسیجر چرخش چند نقطه حول نقطه دیگر | GM15: کامل شده | GO15: m1 | GP15: =ATAN(IF(GQ11>GQ10,1,-1)*(GQ11-GQ10)/(GR10-GR11)) ->  | GQ15: m2 | GR15: =SQRT(POWER(GQ10-GQ11,2)+POWER(GR10-GR11,2)) ->  | GU15: =GU14+GT11 -> -92 | GV15: -1.605702912 | GW15: =HB13+HB10*COS(GV15) ->  | GX15: =HC13-HB10*SIN(GV15) ->  | GY15: =SQRT(POWER((HB12-GW15),2)+POWER((HC12-GX15),2)) ->  | GZ15: =ABS(HB9-GY15) ->  | HA15: رسم مثلث | HO15: =-HK15+HP9 -> 0 | HP15: 0 | NU15: b''1-2*a25 | NV15: =NV17-2*NV13 -> 299 | NY15: w2 | NZ15: =NU49 -> 25.125 | OA15: =NV49 -> 2 | OF15: e11 | OG15: 8 | OJ15: m2 | OK15: =OF60 -> 36.64 | OL15: =OG60 -> 2 | OQ15: e11 | OR15: 8 | OU15: m2 | OV15: =OQ60 -> 33.07 | OW15: =OR60 -> 2
E16: تعداد دانه های سرتاسر آستین در قسمت زیر بغل b20 | F16: =ROUNDUP(F15+I6*F29*COS(0.4*(F9+F10))+G44+0.5*F27,0) -> 120 | H16: بافت انتخابی پشت | I16: ='متغیرها '!C834 -> 4 | K16: یقه شکاری | O16: جمع شوندگی افقی e8 | P16: =OFFSET(V6,P20,1) -> 0.6055363322 | T16: 2.769230769 | U16: 2.814814815 | V16: =(10/3)*((Y16/X16)*(1/L6)-1) -> 0.9315375982 | W16: =(100/68)*((AA16/Z16)*(1/L7)-1) -> 1.244343891 | X16: 13.5 | Y16: 38 | Z16: 13 | AA16: 36 | AB16: زنبوری | AC16: 10 | CI16: دور سر | CJ16: ='متغیرها '!U85 -> 50 | CK16: w12 | CR16: =CJ22 -> 96 | CS16: تمام قد | DD16: =DB37+'طراحی همه الگوها'!U190 -> 13 | DE16: =DE15 -> 108 | DF16: 4 | DH16: ='طراحی همه الگوها'!U190+'طراحی همه الگوها'!U192+'طراحی همه الگوها'!U202 -> 42.1 | DI16: =DE14+'طراحی همه الگوها'!U204 -> 27.3 | DJ16: 20 | DL16: s15 | DM16: =DB406 -> 5 | DN16: =DC406 -> 101.788 | DP16: 35.11041108 | DQ16: 76.25155044 | DR16: s10 | DT16: s'8 | DU16: =DU14+0.4*(DU18-DU14) -> 18.09159238 | DV16: =DV18+0.6*(DV14-DV18) -> 85.90433399 | DX16: 37.72898094 | DY16: 61.62078899 | DZ16: s'10 | EE16: =DB37+'طراحی همه الگوها'!U216 -> 110 | EF16: =EF15 -> 0 | EG16: 8 | ET16: =EP29 -> 5 | EU16: =EQ30 -> -5.5 | EV16: 2 | EX16: =EX14+0.7*(EX17-EX14) -> 36.16682211 | EY16: =EY14+0.4*(EY17-EY14) -> 0.3164379131 | EZ16: 6''' | FF16: =FF13+'طراحی همه الگوها'!U249-'طراحی همه الگوها'!U255 -> 47.9 | FG16: =FG15 -> 53.9 | FH16: 8 | FN16: s''8 | FO16: =FO14+0.4*(FO18-FO14) -> 17.59661763 | FP16: =FP18+0.6*(FP14-FP18) -> 86.39930874 | GA16: 2 | GB16: =GB12+GE12*SIN(RADIANS(GA16)+GA14) ->  | GC16: =GC12+GE12*COS(RADIANS(GA16)+GA14) ->  | GD16: =IF(GB13>GB16,ATAN((GC13-GC16)/(GB13-GB16)),ATAN((GC13-GC16)/(GB16-GB13))) ->  | GE16: =IF(GB13>GB16,(GB13-GB16)/COS(GD16),(GB16-GB13)/COS(GD16)) ->  | GG16: رادیان | GH16: 1 | GI16: زاویه چرخش | GJ16: چرخش مخالف عقربه های ساعت | GO16: نقطه خروجی بالا | GP16: b28 | GQ16: =GQ10+IF(GQ11>GQ10,1,-1)*GQ12*COS(GP15) ->  | GR16: =GR10+GQ12*SIN(GP15) ->  | GU16: =GU15+GT11 -> -90 | GV16: -1.570796327 | GW16: =HB13+HB10*COS(GV16) ->  | GX16: =HC13-HB10*SIN(GV16) ->  | GY16: =SQRT(POWER((HB12-GW16),2)+POWER((HC12-GX16),2)) ->  | GZ16: =ABS(HB9-GY16) ->  | HA16: =HA12 -> پشتk''5 | HO16: =-HK16+HP9 -> 0 | HP16: 0 | NU16: b2 | NV16: =F25 -> 0 | NY16: نقاط خروجی | NZ16: مولفه افقی | OA16: مولفه عمودی | OB16: =NZ21 -> -4.6875 | OC16: =OA21 -> 1.75 | OD16: =NY21 -> h11 | OF16: خطا | OJ16: نقاط خروجی | OK16: مولفه افقی | OL16: مولفه عمودی | OM16: =OK21 -> 1.07 | ON16: =OL21 -> 1.75 | OO16: =OJ21 -> h11 | OQ16: خطا | OU16: نقاط خروجی | OV16: مولفه افقی | OW16: مولفه عمودی | OX16: =OV21 -> -0.715 | OY16: =OW21 -> 1.75 | OZ16: =OU21 -> h11
E17: تعداد دانه های اضافه شده در کنار آستین در هر طرف b21 | F17: =0.5*(F16-F14) -> -14.5 | K17: بافت انتخابی یقه شکاری | O17: ea0 تعداد رج در یک سانت | P17: =F6+0.3*P15*F6 -> 6.01010101 | T17: 3.142857143 | U17: 3.111111111 | V17: =(10/3)*((Y17/X17)*(1/L6)-1) -> 1.38047138 | W17: =(100/68)*((AA17/Z17)*(1/L7)-1) -> 1.610644258 | X17: 13.5 | Y17: 42 | Z17: 7 | AA17: 22 | AB17: پیچ گیسباف | AC17: 11 | CJ17: ='متغیرها '!U76 -> 53 | CK17: t3 | CM17: =CI36 -> 5 | CN17: =CJ36 -> 106 | CO17: j1 | CR17: ='متغیرها '!C52 -> 5 | CS17: شیفت عمودی | CU17: =CQ25 -> 5 | CV17: =CR25 -> 115.225 | CW17: d3 | DD17: =DB37+'طراحی همه الگوها'!U190 -> 13 | DE17: =DE14+'طراحی همه الگوها'!U195 -> 23.5 | DF17: 11 | DH17: =DD25 -> 48.6 | DI17: =DE25 -> 23.436 | DJ17: 7 | DL17: زاویه متوسط سرشانه | DM17: ='متغیرها '!B245 -> 0.3347104009 | DN17: α2 | DT17: s'9 | DU17: =DU14+0.7*(DU18-DU14) -> 27.91028666 | DV17: =DV18+0.3*(DV14-DV18) -> 73.76256149 | EE17: =EE16 -> 110 | EF17: =EF16+'طراحی همه الگوها'!U221 -> 1.2 | EG17: 14 | EI17: =EE15 -> 0 | EJ17: =EF15 -> 0 | EK17: 2 | ET17: =EP30 -> -0.8 | EU17: =EQ30 -> -5.5 | EV17: 3 | EX17: =EP34 -> 47.85830024 | EY17: =EQ34 -> 9.802582946 | EZ17: 8 | FF17: =FF13 -> 0 | FG17: =FG15 -> 53.9 | FH17: 3 | FJ17: =FF32 -> 0 | FK17: =FG32 -> 71 | FL17: 18 | FN17: s''9 | FO17: =FO14+0.7*(FO18-FO14) -> 27.04408085 | FP17: =FP18+0.28*(FP14-FP18) -> 73.84406453 | FR17: =FO19 -> 41.44129154 | FS17: 57.90847838 | FT17: k4 شبیه ساز | GA17: 4 | GB17: =GB12+GE12*SIN(RADIANS(GA17)+GA14) ->  | GC17: =GC12+GE12*COS(RADIANS(GA17)+GA14) ->  | GD17: =IF(GB13>GB17,ATAN((GC13-GC17)/(GB13-GB17)),ATAN((GC13-GC17)/(GB17-GB13))) ->  | GE17: =IF(GB13>GB17,(GB13-GB17)/COS(GD17),(GB17-GB13)/COS(GD17)) ->  | GG17: مولفه افقی | GH17: مولفه عمودی | GI17: اسم نقطه | GK17: نقطه خروجی چرخیده | GO17: نقطه خروجی پایین | GP17: b27 | GQ17: =GQ18+IF(GQ11>GQ10,1,-1)*GQ12*COS(GP15) ->  | GR17: =GR18+GQ12*SIN(GP15) ->  | GU17: =GU16+GT11 -> -88 | GV17: -1.535889742 | GW17: =HB13+HB10*COS(GV17) ->  | GX17: =HC13-HB10*SIN(GV17) ->  | GY17: =SQRT(POWER((HB12-GW17),2)+POWER((HC12-GX17),2)) ->  | GZ17: =ABS(HB9-GY17) ->  | HA17: 42پشت | HB17: 1 | HC17: 0 | HO17: =-HK17+HP9 -> 0 | HP17: 0 | NU17: b''1 | NV17: =G46 -> 303 | NY17: h5 | NZ17: =NZ13+0.5*(NZ15-NZ13) -> -2.4375 | OA17: =OA13 -> 2 | OB17: =NZ22 -> -0.1875 | OC17: =OA22 -> 1.75 | OD17: =NY22 -> h12 | OF17: e12-4*eb0*b'2 | OG17: =ROUND(P19-4*P18*F12,0) -> 188 | OJ17: h5 | OK17: =OK13+0.5*(OK15-OK13) -> 3.32 | OL17: =OL13 -> 2 | OM17: =OK22 -> 5.57 | ON17: =OL22 -> 1.75 | OO17: =OJ22 -> h12 | OQ17: e12-4*eb0*b'2 | OR17: =OG17 -> 188 | OU17: h5 | OV17: =OV13+0.5*(OV15-OV13) -> 1.535 | OW17: =OW13 -> 2 | OX17: =OV22 -> 3.785 | OY17: =OW22 -> 1.75 | OZ17: =OU22 -> h12
E18: طول اضافه شده در کنار آستین در هر طرف b'21 | F18: =F17/I7 -> -2.5375 | H18: a001 تعداد رج در یک سانت آستین | I18: =F6+0.3*I20*F6 -> 4.242424242 | K18: aa0 تعداد رج در یک سانت | L18: =F6+0.3*L21*F6 -> 4.242424242 | O18: تعداد دانه در یک سانت eb0 | P18: =F7+0.68*P16*F7 -> 3.529411765 | T18: 3.272727273 | U18: 2.962962963 | V18: =(10/3)*((Y18/X18)*(1/L6)-1) -> 1.156004489 | W18: =(100/68)*((AA18/Z18)*(1/L7)-1) -> 1.737967914 | X18: 13.5 | Y18: 40 | Z18: 11 | AA18: 36 | AB18: پیچ چپ و راستی | AC18: 12 | AE18: یقه ب ب گرد | AI18: یقه انگلیسی | CJ18: ='متغیرها '!U56 -> 53.9 | CK18: e | CM18: =CI37 -> 5 | CN18: =CJ37 -> 59 | CO18: j2 | CQ18: محاسبات | CU18: =CQ26 -> 61 | CV18: =CR26 -> 59.225 | CW18: d4 | DD18: =DB37+'طراحی همه الگوها'!U190 -> 13 | DE18: =DE14 -> 0 | DF18: 5 | DL18: دست صاف شبیه ساز k4 | DM18: =F406 -> 49.75024604 | DN18: =J406 -> 71.15986778 | DP18: =DM28 -> 30.7085693 | DQ18: =DN28 -> 63.59517699 | DR18: s12 | DT18: s'10 | DU18: =EC41-('متغیرها '!C19*'متغیرها '!U83)*COS(DM17+RADIANS(EC40)) -> 37.72898094 | DV18: =ED41+('متغیرها '!C19*'متغیرها '!U83)*SIN(DM17+RADIANS(EC40)) -> 61.62078899 | DX18: =DU20 -> 30.23364906 | DY18: 54.12545711 | DZ18: s'12 | EE18: =DB37+'طراحی همه الگوها'!U216 -> 110 | EF18: =EF15+'طراحی همه الگوها'!U217 -> 1.5 | EG18: 9 | EI18: =EI17+0.3*(EI20-EI17) -> 12.468 | EJ18: =EJ17+0.15*(EJ20-EJ17) -> 1.98 | EK18: 16' | FF18: =FF13 -> 0 | FG18: =FG17-'طراحی همه الگوها'!U252 -> 46.4 | FH18: 5 | FJ18: =FJ17+'طراحی همه الگوها'!U268 -> 14.2 | FK18: =FG31+'طراحی همه الگوها'!U269 -> 71.5 | FL18: 24 | FN18: s''10 | FO18: =EC41-0.2*'متغیرها '!U83*COS(DM17+RADIANS(EC40)) -> 36.49154407 | FP18: =ED41+0.2*'متغیرها '!U83*SIN(DM17+RADIANS(EC40)) -> 62.85822585 | FR18: 34.51435566 | FS18: 45.83897854 | FT18: s''11 | GA18: 6 | GB18: =GB12+GE12*SIN(RADIANS(GA18)+GA14) ->  | GC18: =GC12+GE12*COS(RADIANS(GA18)+GA14) ->  | GD18: =IF(GB13>GB18,ATAN((GC13-GC18)/(GB13-GB18)),ATAN((GC13-GC18)/(GB18-GB13))) ->  | GE18: =IF(GB13>GB18,(GB13-GB18)/COS(GD18),(GB18-GB13)/COS(GD18)) ->  | GG18: 2 | GH18: 1 | GI18: a40 | GJ18: نقطه مرکزی چرخش | GK18: مولفه افقی | GL18: مولفه عمودی | GM18: اسم نقطه | GO18: نقطه خروجی میانه | GP18: b26 | GQ18: =GQ10+IF(GQ11>GQ10,1,-1)*GQ13*GR15*SIN(GP15)/GR14 ->  | GR18: =GR10-GQ13*GR15*COS(GP15)/GR14 ->  | GU18: =GU17+GT11 -> -86 | GV18: -1.500983157 | GW18: =HB13+HB10*COS(GV18) ->  | GX18: =HC13-HB10*SIN(GV18) ->  | GY18: =SQRT(POWER((HB12-GW18),2)+POWER((HC12-GX18),2)) ->  | GZ18: =ABS(HB9-GY18) ->  | HO18: =-HK18+HP9 -> 0 | HP18: 0 | NU18: نوشته ها یقه شکاری | NY18: h8 | NZ18: =NZ17-0.5*NZ8 -> -4.6875 | OA18: =OA13 -> 2 | OF18: b''1 | OG18: =G46 -> 303 | OJ18: h8 | OK18: =OK17-0.5*OK8 -> 1.07 | OL18: =OL13 -> 2 | OQ18: b''1 | OR18: =OG18 -> 303 | OU18: h8 | OV18: =OV17-0.5*OV8 -> -0.715 | OW18: =OW13 -> 2
E19: هر b11 رج در بافت آستین یکدانه از ابتدا و یکدانه از انتها کم شود | F19: =IF(OR(ROUND(F21/F17,0)>50,ROUND(F21/F17,0)<-50),0,ROUND(F21/F17,0)) -> -2 | H19: تعداد دانه در یک سانت آستینb001 | I19: =F7+0.68*I21*F7 -> 5.714285714 | K19: تعداد دانه در یک سانت ab0 | L19: =F7+0.68*L22*F7 -> 5.714285714 | O19: e12 | P19: =P18*2*F11 -> 187.7490147 | T19: 2.571428571 | U19: 2.444444444 | V19: =(10/3)*((Y19/X19)*(1/L6)-1) -> 0.3703703704 | W19: =(100/68)*((AA19/Z19)*(1/L7)-1) -> 1.050420168 | X19: 13.5 | Y19: 33 | Z19: 14 | AA19: 36 | AB19: کشباف (یکی) | AC19: 13 | AE19: بافت همه از زیر | AI19: بافت جودانه | CJ19: ='متغیرها '!U58 -> 54.1 | CK19: g | CQ19: (d1 → d2) | CR19: =0.45*'متغیرها '!U85 -> 22.5 | DD19: =DD18+'طراحی همه الگوها'!U192 -> 35.5 | DE19: =DE14 -> 0 | DF19: 8 | DH19: =DD18 -> 13 | DI19: =DE18 -> 0 | DJ19: 5 | DL19: شبیه ساز 26 | DM19: =DX388 -> 5 | DN19: =DY388 -> 78.44302981 | DP19: =DP18+0.25*(DP21-DP18) -> 34.80642697 | DQ19: =DQ21+0.5*(DQ18-DQ21) -> 34.2975885 | DR19: s12' | DT19: s'11 | DU19: =DU29-'طراحی همه الگوها'!U226*SIN(DM17+RADIANS(EC40)) -> 34.51164508 | DV19: =DV29-'طراحی همه الگوها'!U226*COS(DM17+RADIANS(EC40)) -> 50.97883193 | DX19: 38.24855434 | DY19: 29.56272855 | DZ19: s''13 | EE19: =EE26 -> 42.3 | EF19: =EF14+'طراحی همه الگوها'!U215 -> 54.3 | EG19: 7 | EI19: =DB37+'طراحی همه الگوها'!U227 -> 24.936 | EJ19: =EJ17+'طراحی همه الگوها'!U228 -> 5.9 | EK19: 22 | ET19: =EP29 -> 5 | EU19: =EQ35 -> 63.20734424 | EV19: 13 | EX19: =EP31 -> 10.3 | EY19: =EQ31 -> 5 | EZ19: 5 | FF19: =FF13 -> 0 | FG19: =FG13 -> 0 | FH19: 1 | FJ19: =FJ17+'طراحی همه الگوها'!U270 -> 28.5 | FK19: =FG31+'طراحی همه الگوها'!U271 -> 73.9 | FL19: 26 | FN19: k4 شبیه ساز | FO19: =K384 -> 41.44129154 | FP19: =L384 -> 57.90847838 | FR19: 20.66048389 | FS19: 36.18337867 | FT19: s'11 | GA19: 8 | GB19: =GB12+GE12*SIN(RADIANS(GA19)+GA14) ->  | GC19: =GC12+GE12*COS(RADIANS(GA19)+GA14) ->  | GD19: =IF(GB13>GB19,ATAN((GC13-GC19)/(GB13-GB19)),ATAN((GC13-GC19)/(GB19-GB13))) ->  | GE19: =IF(GB13>GB19,(GB13-GB19)/COS(GD19),(GB19-GB13)/COS(GD19)) ->  | GG19: 1 | GH19: 2 | GI19: نقطه 1 | GJ19: نقطه قبل از چرخش | GK19: =IF(GH19>GH18,IF(GG19>GG18,GG18+SQRT(POWER(GG19-GG18,2)+POWER(GH19-GH18,2))*COS(ATAN((GH19-GH18)/(GG19-GG18+0.000123))+GH16),GG18-SQRT(POWER(GG19-GG18,2)+POWER(GH19-GH18,2))*COS(ATAN((GH19-GH18)/(GG18-GG19+0.000123))-GH16)),IF(GG19>GG18,GG18+SQRT(POWER(GG19-GG18,2)+POWER(GH19-GH18,2))*COS(ATAN((GH18-GH19)/(GG19-GG18+0.000123))-GH16),GG18-SQRT(POWER(GG19-GG18,2)+POWER(GH19-GH18,2))*COS(ATAN((GH18-GH19)/(GG18-GG19+0.000123))+GH16))) -> 0.6182452327 | GL19: =IF(GH19>GH18,IF(GG19>GG18,GH18+SQRT(POWER(GG19-GG18,2)+POWER(GH19-GH18,2))*SIN(ATAN((GH19-GH18)/(GG19-GG18+0.000123))+GH16),GH18+SQRT(POWER(GG19-GG18,2)+POWER(GH19-GH18,2))*SIN(ATAN((GH19-GH18)/(GG18-GG19+0.000123))-GH16)),IF(GG19>GG18,GH18-SQRT(POWER(GG19-GG18,2)+POWER(GH19-GH18,2))*SIN(ATAN((GH18-GH19)/(GG19-GG18+0.000123))-GH16),GH18-SQRT(POWER(GG19-GG18,2)+POWER(GH19-GH18,2))*SIN(ATAN((GH18-GH19)/(GG18-GG19+0.000123))+GH16))) -> 0.6987463478 | GM19: نقطه چرخیده | GU19: =GU18+GT11 -> -84 | GV19: -1.466076572 | GW19: =HB13+HB10*COS(GV19) ->  | GX19: =HC13-HB10*SIN(GV19) ->  | GY19: =SQRT(POWER((HB12-GW19),2)+POWER((HC12-GX19),2)) ->  | GZ19: =ABS(HB9-GY19) ->  | HA19: =HA13 -> 42پشت | HB19: =HB13 -> 1 | HC19: =HC13 -> 0 | HO19: =-HK19+HP9 -> 0 | HP19: 0 | NU19: a1 | NV19: =TEXT(0,NV5)&" دانه سر می اندازیم" -> 300 دانه سر می اندازیم | NY19: h9 | NZ19: =NZ17+0.5*NZ8 -> -0.1875 | OA19: =OA13 -> 2 | OB19: =NZ22 -> -0.1875 | OC19: =OA22 -> 1.75 | OD19: =NY22 -> h12 | OF19: خطا | OG19: =O45 ->  | OJ19: h9 | OK19: =OK17+0.5*OK8 -> 5.57 | OL19: =OL13 -> 2 | OM19: =OK22 -> 5.57 | ON19: =OL22 -> 1.75 | OO19: =OJ22 -> h12 | OQ19: خطا | OR19: =R45 ->  | OU19: h9 | OV19: =OV17+0.5*OV8 -> 3.785 | OW19: =OW13 -> 2 | OX19: =OV22 -> 3.785 | OY19: =OW22 -> 1.75 | OZ19: =OU22 -> h12
E20: b22 | F20: =SQRT(POWER(F33,2)-POWER(F18,2)) -> 5.437011472 | H20: جمع شوندگی عمودی بافت آستین f002 | I20: =OFFSET(V6,I22,0) -> 0.7070707071 | K20: متغیر ورودی بافت یقه شکاری | O20: بافت انتخابی یقه شومیزیه | P20: ='متغیرها '!C841 -> 2 | T20: 2.571428571 | U20: 2.888888889 | V20: =(10/3)*((Y20/X20)*(1/L6)-1) -> 1.043771044 | W20: =(100/68)*((AA20/Z20)*(1/L7)-1) -> 1.050420168 | X20: 13.5 | Y20: 39 | Z20: 14 | AA20: 36 | AB20: پیچ با فاصله | AC20: 14 | AE20: c1 | AF20: =F26+2*(AF23+1)+1*(AF22+1)-3 -> 159 | AI20: d1 | AJ20: =F45+2*F44+2*ROUND(F7*O238,0)-2*AJ22 -> 125 | CI20: محاسبات | CM20: =CI37 -> 5 | CN20: =CJ37 -> 59 | CO20: j2 | CQ20: (d1 →d4) | CR20: ='طراحی همه الگوها'!U178+'طراحی همه الگوها'!U177 -> 57.5 | CU20: =CQ31 -> 5 | CV20: =CR31 -> 57.13225 | CW20: j'2 | DD20: =DD18+'طراحی همه الگوها'!U192 -> 35.5 | DE20: =DE14+'طراحی همه الگوها'!U193 -> 11.7 | DF20: 9 | DH20: ='طراحی همه الگوها'!U190+'طراحی همه الگوها'!U199 -> 24.3 | DI20: =DE14+'طراحی همه الگوها'!U200 -> 4.1 | DJ20: 16 | DP20: =DP18+0.6*(DP21-DP18) -> 40.54342772 | DQ20: =DQ21+0.2*(DQ18-DQ21) -> 16.7190354 | DR20: s12'' | DT20: s'12 | DU20: =DU18-'طراحی همه الگوها'!U225*SIN(DM17+RADIANS(EC40)) -> 30.23364906 | DV20: =DV18-'طراحی همه الگوها'!U225*COS(DM17+RADIANS(EC40)) -> 54.12545711 | DX20: 44.92764208 | DY20: 17.28136428 | DZ20: s'''13 | EE20: =DB37+'طراحی همه الگوها'!U216 -> 110 | EF20: =EF18+'طراحی همه الگوها'!U218 -> 107.1 | EG20: 10 | EI20: =DB37+'طراحی همه الگوها'!U222 -> 41.56 | EJ20: =EF15+'طراحی همه الگوها'!U223 -> 13.2 | EK20: 16 | ET20: =EP35 -> 28.42055676 | EU20: =EQ35 -> 63.20734424 | EV20: 9 | EX20: =EP33 -> 17.78972151 | EY20: =EQ33 -> 5.392519672 | EZ20: 7 | FJ20: =FF37 -> 35.6 | FK20: =FG37 -> 76.3 | FL20: 17 | FN20: s''11 | FO20: =FO22+0.8*(FO19-FO22) -> 34.51435566 | FP20: =FP22+0.5*(FP19-FP22) -> 45.83897854 | FR20: 6.806612127 | FS20: 33.7694787 | FT20: s11 | GA20: 10 | GB20: =GB12+GE12*SIN(RADIANS(GA20)+GA14) ->  | GC20: =GC12+GE12*COS(RADIANS(GA20)+GA14) ->  | GD20: =IF(GB13>GB20,ATAN((GC13-GC20)/(GB13-GB20)),ATAN((GC13-GC20)/(GB20-GB13))) ->  | GE20: =IF(GB13>GB20,(GB13-GB20)/COS(GD20),(GB20-GB13)/COS(GD20)) ->  | GG20: 1 | GH20: 2 | GI20: نقطه2 | GJ20: نقطه قبل از چرخش | GK20: =IF(GH20>GH18,IF(GG20>GG18,GG18+SQRT(POWER(GG20-GG18,2)+POWER(GH20-GH18,2))*COS(ATAN((GH20-GH18)/(GG20-GG18+0.000123))+GH16),GG18-SQRT(POWER(GG20-GG18,2)+POWER(GH20-GH18,2))*COS(ATAN((GH20-GH18)/(GG18-GG20+0.000123))-GH16)),IF(GG20>GG18,GG18+SQRT(POWER(GG20-GG18,2)+POWER(GH20-GH18,2))*COS(ATAN((GH18-GH20)/(GG20-GG18+0.000123))-GH16),GG18-SQRT(POWER(GG20-GG18,2)+POWER(GH20-GH18,2))*COS(ATAN((GH18-GH20)/(GG18-GG20+0.000123))+GH16))) -> 0.6182452327 | GL20: =IF(GH20>GH18,IF(GG20>GG18,GH18+SQRT(POWER(GG20-GG18,2)+POWER(GH20-GH18,2))*SIN(ATAN((GH20-GH18)/(GG20-GG18+0.000123))+GH16),GH18+SQRT(POWER(GG20-GG18,2)+POWER(GH20-GH18,2))*SIN(ATAN((GH20-GH18)/(GG18-GG20+0.000123))-GH16)),IF(GG20>GG18,GH18-SQRT(POWER(GG20-GG18,2)+POWER(GH20-GH18,2))*SIN(ATAN((GH18-GH20)/(GG20-GG18+0.000123))-GH16),GH18-SQRT(POWER(GG20-GG18,2)+POWER(GH20-GH18,2))*SIN(ATAN((GH18-GH20)/(GG18-GG20+0.000123))+GH16))) -> 0.6987463478 | GM20: نقطه چرخیده | GP20: رسم باکس زیپ دامن- باکس راست | GQ20: مولفه افقی | GR20: مولفه عمودی | GU20: =GU19+GT11 -> -82 | GV20: -1.431169987 | GW20: =HB13+HB10*COS(GV20) ->  | GX20: =HC13-HB10*SIN(GV20) ->  | GY20: =SQRT(POWER((HB12-GW20),2)+POWER((HC12-GX20),2)) ->  | GZ20: =ABS(HB9-GY20) ->  | HA20: =HA14 -> k6 | HB20: =#REF! ->  | HC20: =#REF! ->  | HO20: =-HK20+HP9 -> 0 | HP20: 0 | NU20: a2 | NV20: =TEXT(0,NV6)&" رج بافت انتخابی یقه میبافیم" -> 4 رج بافت انتخابی یقه میبافیم | NY20: h10 | NZ20: =NZ18 -> -4.6875 | OA20: =OA18+0.5*NZ9 -> 2.25 | OB20: =NZ23 -> -0.1875 | OC20: =OA23 -> 2.25 | OD20: =NY23 -> h13 | OF20: نوشته ها یقه شومیزیه نوک تیز | OJ20: h10 | OK20: =OK18 -> 1.07 | OL20: =OL18+0.5*OK9 -> 2.25 | OM20: =OK23 -> 5.57 | ON20: =OL23 -> 2.25 | OO20: =OJ23 -> h13 | OQ20: نوشته ها یقه شومیزیه | OU20: h10 | OV20: =OV18 -> -0.715 | OW20: =OW18+0.5*OV9 -> 2.25 | OX20: =OV23 -> 3.785 | OY20: =OW23 -> 2.25 | OZ20: =OU23 -> h13
E21: b'22 | F21: =F20*I18 -> 23.06610928 | H21: جمع شوندگی افقی بافت آستین f003 | I21: =OFFSET(V6,I22,1) -> 1.890756303 | K21: جمع شوندگی عمودی a9 | L21: =OFFSET(V6,L23,0) -> 0.7070707071 | O21: =ROUND(OF143-OF142-2/OG49,0) -> 56 | P21: =(P18*40*(G46-2*F42)/I7/OG36)/OG49 -> 53.025 | T21: =AA21/Z21 -> 2.857142857 | U21: =Y21/X21 -> 2.888888889 | V21: =(10/3)*((Y21/X21)*(1/L6)-1) -> 1.043771044 | W21: =(100/68)*((AA21/Z21)*(1/L7)-1) -> 1.330532213 | X21: 13.5 | Y21: 39 | Z21: 3.5 | AA21: 10 | AB21: پیچ متراکم | AC21: 15 | AE21: c2 | AF21: =ROUND(0.25*1.3*F6*AF10,0)-1 -> 6 | AI21: d2 | AJ21: =ROUND(F6*AJ7,0) -> 9 | CI21: قد سرشانه تا زمین | CJ21: =0.5*(CJ17+CJ18+CJ19) -> 80.5 | CM21: =CI47 -> 15.5 | CN21: =CJ47 -> 59 | CO21: j13 | CQ21: (d5 →d6) | CR21: =5+0.1*CR20 -> 10.75 | DD21: =DD18+'طراحی همه الگوها'!U192 -> 35.5 | DE21: =DE14+'طراحی همه الگوها'!U194 -> 28.3 | DF21: 10 | DH21: =DD20 -> 35.5 | DI21: =DE20 -> 11.7 | DJ21: 9 | DL21: طراحی چادر شماره 2 | DP21: =DM30 -> 47.1 | DQ21: =DN30 -> 5 | DR21: s13 | DT21: s''13 | DU21: =DU20+0.3*(DU23-DU20) -> 38.24855434 | DV21: =DV23+0.5*(DV20-DV23) -> 29.56272855 | DX21: 56.95 | DY21: 5 | DZ21: s'13 | EE21: =DB37+'طراحی همه الگوها'!U216 -> 110 | EF21: =EF18 -> 1.5 | EG21: 9 | EI21: =EI20+0.5*(EI22-EI20) -> 75.78 | EJ21: =EJ22+0.8*(EJ20-EJ22) -> 10.8 | EK21: 14' | FF21: =FF13+'طراحی همه الگوها'!U249-'طراحی همه الگوها'!U253 -> 35.6 | FG21: =FG15 -> 53.9 | FH21: 6 | FN21: s'11 | FO21: =FO22+0.4*(FO19-FO22) -> 20.66048389 | FP21: =FP22+0.1*(FP19-FP22) -> 36.18337867 | GA21: 12 | GB21: =GB12+GE12*SIN(RADIANS(GA21)+GA14) ->  | GC21: =GC12+GE12*COS(RADIANS(GA21)+GA14) ->  | GD21: =IF(GB13>GB21,ATAN((GC13-GC21)/(GB13-GB21)),ATAN((GC13-GC21)/(GB21-GB13))) ->  | GE21: =IF(GB13>GB21,(GB13-GB21)/COS(GD21),(GB21-GB13)/COS(GD21)) ->  | GG21: 1 | GH21: 2 | GI21: نقطه 3 | GJ21: نقطه قبل از چرخش | GK21: =IF(GH21>GH18,IF(GG21>GG18,GG18+SQRT(POWER(GG21-GG18,2)+POWER(GH21-GH18,2))*COS(ATAN((GH21-GH18)/(GG21-GG18+0.000123))+GH16),GG18-SQRT(POWER(GG21-GG18,2)+POWER(GH21-GH18,2))*COS(ATAN((GH21-GH18)/(GG18-GG21+0.000123))-GH16)),IF(GG21>GG18,GG18+SQRT(POWER(GG21-GG18,2)+POWER(GH21-GH18,2))*COS(ATAN((GH18-GH21)/(GG21-GG18+0.000123))-GH16),GG18-SQRT(POWER(GG21-GG18,2)+POWER(GH21-GH18,2))*COS(ATAN((GH18-GH21)/(GG18-GG21+0.000123))+GH16))) -> 0.6182452327 | GL21: =IF(GH21>GH18,IF(GG21>GG18,GH18+SQRT(POWER(GG21-GG18,2)+POWER(GH21-GH18,2))*SIN(ATAN((GH21-GH18)/(GG21-GG18+0.000123))+GH16),GH18+SQRT(POWER(GG21-GG18,2)+POWER(GH21-GH18,2))*SIN(ATAN((GH21-GH18)/(GG18-GG21+0.000123))-GH16)),IF(GG21>GG18,GH18-SQRT(POWER(GG21-GG18,2)+POWER(GH21-GH18,2))*SIN(ATAN((GH18-GH21)/(GG21-GG18+0.000123))-GH16),GH18-SQRT(POWER(GG21-GG18,2)+POWER(GH21-GH18,2))*SIN(ATAN((GH18-GH21)/(GG18-GG21+0.000123))+GH16))) -> 0.6987463478 | GM21: نقطه چرخیده | GO21: نقطه ورودی بالا | GP21: su3 | GQ21: =#REF! ->  | GR21: =#REF! ->  | GU21: =GU20+GT11 -> -80 | GV21: -1.396263402 | GW21: =HB13+HB10*COS(GV21) ->  | GX21: =HC13-HB10*SIN(GV21) ->  | GY21: =SQRT(POWER((HB12-GW21),2)+POWER((HC12-GX21),2)) ->  | GZ21: =ABS(HB9-GY21) ->  | HO21: =-HK21+HP9 -> 0 | HP21: 0 | NU21: a3 | NV21: =TEXT(0,NV7)&" دانه" -> 35 دانه | NY21: h11 | NZ21: =NZ18 -> -4.6875 | OA21: =OA18-0.5*NZ9 -> 1.75 | OF21: =OF5 -> e1 | OG21: =TEXT(0,OG5)&" دانه سر می اندازیم" -> 224 دانه سر می اندازیم | OJ21: h11 | OK21: =OK18 -> 1.07 | OL21: =OL18-0.5*OK9 -> 1.75 | OQ21: =OQ5 -> e1 | OR21: =TEXT(0,OR5)&" دانه سر می اندازیم" -> 212 دانه سر می اندازیم | OU21: h11 | OV21: =OV18 -> -0.715 | OW21: =OW18-0.5*OV9 -> 1.75
E22: b12 | F22: =ROUND(F14/((F13-F37)*I19),0) -> -3 | H22: بافت انتخابی آستین | I22: ='متغیرها '!C835 -> 4 | K22: جمع شوندگی افقی a8 | L22: =OFFSET(V6,L23,1) -> 1.890756303 | O22: پهنای یقه منهای جادکمه روی نقشه بافت | P22: پهنای یقه منهای جادکمه روی بافت | T22: 4 | U22: 2.518518519 | V22: =(10/3)*((Y22/X22)*(1/L6)-1) -> 0.4826038159 | W22: =(100/68)*((AA22/Z22)*(1/L7)-1) -> 2.450980392 | X22: 13.5 | Y22: 34 | Z22: 9 | AA22: 36 | AB22: کشباف سه تایی | AC22: 16 | AE22: c3 | AF22: =ROUND(0.45*1.3*F6*AF10,0)-1 -> 12 | AI22: d3 | AJ22: =ROUND(F7*AJ7,0) -> 7 | CI22: تمام قد | CJ22: =ROUND(CJ21+IF(CJ16>51.5,0.35,IF(CJ16>50.5,0.33,0.31))*CJ16,0) -> 96 | CQ22: نقاط خروجی در مقنعه دراپه | CU22: =CQ24 -> 5 | CV22: =CR24 -> 83.5 | CW22: d2 | DH22: ='طراحی همه الگوها'!U190+'طراحی همه الگوها'!U192+'طراحی همه الگوها'!U202 -> 42.1 | DI22: =DE14+'طراحی همه الگوها'!U203 -> 17 | DJ22: 19 | DL22: اسم نقطه | DM22: مولفه افقی | DN22: مولفه عمودی | DT22: s'''13 | DU22: =DU20+0.55*(DU23-DU20) -> 44.92764208 | DV22: =DV23+0.25*(DV20-DV23) -> 17.28136428 | EI22: =EE16 -> 110 | EJ22: =EF16+'طراحی همه الگوها'!U221 -> 1.2 | EK22: 14 | ET22: =EP29 -> 5 | EU22: =EQ37 -> 52.82557005 | EV22: 12 | EX22: =EP33 -> 17.78972151 | EY22: =EQ33 -> 5.392519672 | EZ22: 7 | FF22: =FF13+'طراحی همه الگوها'!U249-'طراحی همه الگوها'!U253 -> 35.6 | FG22: =FG15-'طراحی همه الگوها'!U254 -> 41.1 | FH22: 7 | FJ22: =FF18 -> 0 | FK22: =FG18 -> 46.4 | FL22: 5 | FN22: s11 | FO22: =0.7*FO15 -> 6.806612127 | FP22: =FP15-'طراحی همه الگوها'!U263+1.2*SQRT(POWER(FO15-FO14,2)+POWER(FP15-FP14,2)) -> 33.7694787 | FR22: =FO28 -> 5 | FS22: =FP28 -> 100.095 | FT22: s''17 | GA22: 14 | GB22: =GB12+GE12*SIN(RADIANS(GA22)+GA14) ->  | GC22: =GC12+GE12*COS(RADIANS(GA22)+GA14) ->  | GD22: =IF(GB13>GB22,ATAN((GC13-GC22)/(GB13-GB22)),ATAN((GC13-GC22)/(GB22-GB13))) ->  | GE22: =IF(GB13>GB22,(GB13-GB22)/COS(GD22),(GB22-GB13)/COS(GD22)) ->  | GG22: 1 | GH22: 2 | GI22: نقطه 4 | GJ22: نقطه قبل از چرخش | GK22: =IF(GH22>GH18,IF(GG22>GG18,GG18+SQRT(POWER(GG22-GG18,2)+POWER(GH22-GH18,2))*COS(ATAN((GH22-GH18)/(GG22-GG18+0.000123))+GH16),GG18-SQRT(POWER(GG22-GG18,2)+POWER(GH22-GH18,2))*COS(ATAN((GH22-GH18)/(GG18-GG22+0.000123))-GH16)),IF(GG22>GG18,GG18+SQRT(POWER(GG22-GG18,2)+POWER(GH22-GH18,2))*COS(ATAN((GH18-GH22)/(GG22-GG18+0.000123))-GH16),GG18-SQRT(POWER(GG22-GG18,2)+POWER(GH22-GH18,2))*COS(ATAN((GH18-GH22)/(GG18-GG22+0.000123))+GH16))) -> 0.6182452327 | GL22: =IF(GH22>GH18,IF(GG22>GG18,GH18+SQRT(POWER(GG22-GG18,2)+POWER(GH22-GH18,2))*SIN(ATAN((GH22-GH18)/(GG22-GG18+0.000123))+GH16),GH18+SQRT(POWER(GG22-GG18,2)+POWER(GH22-GH18,2))*SIN(ATAN((GH22-GH18)/(GG18-GG22+0.000123))-GH16)),IF(GG22>GG18,GH18-SQRT(POWER(GG22-GG18,2)+POWER(GH22-GH18,2))*SIN(ATAN((GH18-GH22)/(GG22-GG18+0.000123))-GH16),GH18-SQRT(POWER(GG22-GG18,2)+POWER(GH22-GH18,2))*SIN(ATAN((GH18-GH22)/(GG18-GG22+0.000123))+GH16))) -> 0.6987463478 | GM22: نقطه چرخیده | GO22: نقطه ورودی پایین | GP22: sd3 | GQ22: =#REF! ->  | GR22: =#REF! ->  | GT22: به روش تخمین | GU22: =GU21+GT11 -> -78 | GV22: -1.361356817 | GW22: =HB13+HB10*COS(GV22) ->  | GX22: =HC13-HB10*SIN(GV22) ->  | GY22: =SQRT(POWER((HB12-GW22),2)+POWER((HC12-GX22),2)) ->  | GZ22: =ABS(HB9-GY22) ->  | HA22: =HA14 -> k6 | HB22: =#REF! ->  | HC22: =#REF! ->  | HO22: =-HK22+HP9 -> 0 | HP22: 0 | NU22: a4 | NV22: =TEXT(0,NV8)&" دانه" -> 69 دانه | NY22: h12 | NZ22: =NZ19 -> -0.1875 | OA22: =OA21 -> 1.75 | OB22: =NZ19 -> -0.1875 | OC22: =OA19 -> 2 | OD22: =NY19 -> h9 | OF22: e2 | OG22: =TEXT(0,OG6)&" رج مثل رج قبل میبافیم" -> 7 رج مثل رج قبل میبافیم | OJ22: h12 | OK22: =OK19 -> 5.57 | OL22: =OL21 -> 1.75 | OM22: =OK19 -> 5.57 | ON22: =OL19 -> 2 | OO22: =OJ19 -> h9 | OQ22: e2 | OR22: =TEXT(0,OR6)&" رج مثل رج قبل میبافیم" -> 7 رج مثل رج قبل میبافیم | OU22: h12 | OV22: =OV19 -> 3.785 | OW22: =OW21 -> 1.75 | OX22: =OV19 -> 3.785 | OY22: =OW19 -> 2 | OZ22: =OU19 -> h9
E23: محاسبات در بافت بالاتنه و آستین (بافت انتخابی) | K23: بافت انتخابی یقه شکاری | L23: ='متغیرها '!C838 -> 4 | N23: محاسبات یقه شومیزیه تا خط جادکمه | U23: 0 | V23: =(10/3)*((Y23/X23)*(1/L6)-1) -> -3.333333333 | W23: =(100/68)*((AA23/Z23)*(1/L7)-1) ->  | X23: 13.5 | AA23: 36 | AC23: 17 | AE23: c4 | AF23: =AF9-AF21-AF22-5 -> 7 | AI23: d4 | AJ23: =IF((ROUND(F6*AJ8,0)-AJ21-4)<0,"خطا - بزرگی پشت یقه زیاد شود",(ROUND(F6*AJ8,0)-AJ21-4)) -> 3 | CI23: j4 | CJ23: =IF('متغیرها '!C5<1,'متغیرها '!C5*'متغیرها '!U59,IF('متغیرها '!C5<2,'متغیرها '!U59+('متغیرها '!C5-1)*('متغیرها '!U60-'متغیرها '!U59),IF('متغیرها '!C5<3,'متغیرها '!U60+('متغیرها '!C5-2)*(I105-'متغیرها '!U60),I105+('متغیرها '!C5-3)*(H127-H126)))) -> 54 | CM23: =CI46 -> 15.5 | CN23: =CJ46 -> 98.5 | CO23: j12 | CQ23: مولفه افقی | CR23: مولفه عمودی | CS23: اسم نقطه | DD23: =DD18+'طراحی همه الگوها'!U192 -> 35.5 | DE23: =DE14 -> 0 | DF23: 8 | DH23: =DD25 -> 48.6 | DI23: =DE25 -> 23.436 | DJ23: 7 | DL23: s6 | DM23: =DM16 -> 5 | DN23: =1.003*DN16 -> 102.093364 | DP23: =DM34 -> 5 | DQ23: =DN34 -> 100.095 | DR23: s17 | DT23: s'13 | DU23: =DM19+0.5*('طراحی همه الگوها'!U216+'طراحی همه الگوها'!U210-'طراحی همه الگوها'!U217-'طراحی همه الگوها'!U218) -> 56.95 | DV23: =EC35+DM44 -> 5 | DX23: =DU27 -> 5 | DY23: =DV27 -> 100.095 | DZ23: s'17 | EE23: =DB37 -> 0 | EF23: =EF14 -> 51.6 | EG23: 4 | ET23: =EP37 -> 42.4766594 | EU23: =EQ37 -> 52.82557005 | EV23: 11 | EX23: =EX22+0.3*(EX25-EX22) -> 26.81029513 | EY23: =MIN(EY22,EY25)+IF(EY25>EY22,0.15,0.9)*ABS(EY25-EY22) -> 6.054029163 | EZ23: 7'' | FJ23: =FJ22+'طراحی همه الگوها'!U264 -> 14.2 | FK23: =FG17-'طراحی همه الگوها'!U265 -> 45.9 | FL23: 20 | FN23: s12 | FO23: =FO24 -> 18 | FP23: =FP24+'طراحی همه الگوها'!U257 -> 61.94082496 | FR23: =FO29 -> 7.3598 | FS23: =FP29 -> 98.234055 | FT23: s''18 | GA23: 16 | GB23: =GB12+GE12*SIN(RADIANS(GA23)+GA14) ->  | GC23: =GC12+GE12*COS(RADIANS(GA23)+GA14) ->  | GD23: =IF(GB13>GB23,ATAN((GC13-GC23)/(GB13-GB23)),ATAN((GC13-GC23)/(GB23-GB13))) ->  | GE23: =IF(GB13>GB23,(GB13-GB23)/COS(GD23),(GB23-GB13)/COS(GD23)) ->  | GG23: 1 | GH23: 2 | GI23: نقطه 5 | GJ23: نقطه قبل از چرخش | GK23: =IF(GH23>GH18,IF(GG23>GG18,GG18+SQRT(POWER(GG23-GG18,2)+POWER(GH23-GH18,2))*COS(ATAN((GH23-GH18)/(GG23-GG18+0.000123))+GH16),GG18-SQRT(POWER(GG23-GG18,2)+POWER(GH23-GH18,2))*COS(ATAN((GH23-GH18)/(GG18-GG23+0.000123))-GH16)),IF(GG23>GG18,GG18+SQRT(POWER(GG23-GG18,2)+POWER(GH23-GH18,2))*COS(ATAN((GH18-GH23)/(GG23-GG18+0.000123))-GH16),GG18-SQRT(POWER(GG23-GG18,2)+POWER(GH23-GH18,2))*COS(ATAN((GH18-GH23)/(GG18-GG23+0.000123))+GH16))) -> 0.6182452327 | GL23: =IF(GH23>GH18,IF(GG23>GG18,GH18+SQRT(POWER(GG23-GG18,2)+POWER(GH23-GH18,2))*SIN(ATAN((GH23-GH18)/(GG23-GG18+0.000123))+GH16),GH18+SQRT(POWER(GG23-GG18,2)+POWER(GH23-GH18,2))*SIN(ATAN((GH23-GH18)/(GG18-GG23+0.000123))-GH16)),IF(GG23>GG18,GH18-SQRT(POWER(GG23-GG18,2)+POWER(GH23-GH18,2))*SIN(ATAN((GH18-GH23)/(GG23-GG18+0.000123))-GH16),GH18-SQRT(POWER(GG23-GG18,2)+POWER(GH23-GH18,2))*SIN(ATAN((GH18-GH23)/(GG18-GG23+0.000123))+GH16))) -> 0.6987463478 | GM23: نقطه چرخیده | GO23: متغیر ورودی پهنا | GP23: a20 | GQ23: =#REF! ->  | GR23: (سانتیمتر) | GT23: بهینه α1 | GU23: =GU22+GT11 -> -76 | GV23: -1.326450232 | GW23: =HB13+HB10*COS(GV23) ->  | GX23: =HC13-HB10*SIN(GV23) ->  | GY23: =SQRT(POWER((HB12-GW23),2)+POWER((HC12-GX23),2)) ->  | GZ23: =ABS(HB9-GY23) ->  | HA23: =HA12 -> پشتk''5 | HB23: =HB12 ->  | HC23: =HC12 ->  | HO23: =-HK23+HP9 -> 0 | HP23: 0 | NU23: a5 | NV23: =TEXT(0,NV9)&" دانه" -> 105 دانه | NY23: h13 | NZ23: =NZ19 -> -0.1875 | OA23: =OA20 -> 2.25 | OB23: =NZ15 -> 25.125 | OC23: =OA15 -> 2 | OD23: =NY15 -> w2 | OF23: e3 | OG23: =TEXT(0,OG7)&" دانه" -> 22 دانه | OJ23: h13 | OK23: =OK19 -> 5.57 | OL23: =OL20 -> 2.25 | OM23: =OK15 -> 36.64 | ON23: =OL15 -> 2 | OO23: =OJ15 -> m2 | OQ23: e3 | OR23: =TEXT(0,OR7)&" دانه" -> 24 دانه | OU23: h13 | OV23: =OV19 -> 3.785 | OW23: =OW20 -> 2.25 | OX23: =OV15 -> 33.07 | OY23: =OW15 -> 2 | OZ23: =OU15 -> m2
E24: تعداد دانه ها دور گردن + دو تا نیمه جادکمه که از خط مرکزی اضافه شده | F24: =F26+2*F25 -> 133 | I24: محاسبات یقه شکاری | N24: e10 | O24: e11 | P24: e22 | Q24: e22 | U24: 0 | V24: =(10/3)*((Y24/X24)*(1/L6)-1) -> -3.333333333 | W24: =(100/68)*((AA24/Z24)*(1/L7)-1) ->  | X24: 13.5 | AA24: 36 | AC24: 18 | AI24: d5 | AJ24: =AJ20+2*AJ22 -> 139 | CI24: رسم دستی چادر 1 یا مقنعه چانه دار(بر حسب سانتیمتر) | CM24: =CI38 -> 15.5 | CN24: =CJ38 -> 106 | CO24: j3 | CQ24: =CQ14 -> 5 | CR24: =CR16+0.1*'متغیرها '!U85-CR19+CR17 -> 83.5 | CS24: d2 | CW24: انحنا | DD24: =DB37+'طراحی همه الگوها'!U189 -> 48.6 | DE24: =DE14 -> 0 | DF24: 6 | DL24: s7 | DM24: =DM23+0.12*(DM27-DM23) -> 8.61324933 | DN24: =DN27+0.94*(DN23-DN27) -> 100.5428552 | DP24: =DM35 -> 7.3598 | DQ24: =DN35 -> 98.234055 | DR24: s18 | DT24: s'14 | DU24: =DM13+DM42*COS(DM40) -> 9.7196 | DV24: =DN13-DM42*SIN(DM40) -> 93.89185 | DX24: =DU28 -> 7.83176 | DY24: =DV28 -> 98.234055 | DZ24: s'18 | EE24: =DB37+'طراحی همه الگوها'!U213 -> 32.1 | EF24: =EF14 -> 51.6 | EG24: 5 | EI24: =EI20 -> 41.56 | EJ24: =EJ20 -> 13.2 | EK24: 16 | EX24: =EX22+0.7*(EX25-EX22) -> 38.83772662 | EY24: =MIN(EY22,EY25)+0.5*ABS(EY25-EY22) -> 7.597551309 | EZ24: 7''' | FF24: =FF15 -> 53.1 | FG24: =FG15 -> 53.9 | FH24: 4 | FJ24: =FJ22+'طراحی همه الگوها'!U266 -> 28.5 | FK24: =FG17-'طراحی همه الگوها'!U267 -> 43.5 | FL24: 22 | FN24: 41 شبیه ساز | FO24: =DT395 -> 18 | FP24: =DU395 -> 59.34082496 | FR24: =FO12 -> 9.7196 | FS24: =FP12 -> 93.89185 | FT24: s3 | GA24: 18 | GB24: =GB12+GE12*SIN(RADIANS(GA24)+GA14) ->  | GC24: =GC12+GE12*COS(RADIANS(GA24)+GA14) ->  | GD24: =IF(GB13>GB24,ATAN((GC13-GC24)/(GB13-GB24)),ATAN((GC13-GC24)/(GB24-GB13))) ->  | GE24: =IF(GB13>GB24,(GB13-GB24)/COS(GD24),(GB24-GB13)/COS(GD24)) ->  | GG24: 1 | GH24: 2 | GI24: نقطه 6 | GJ24: نقطه قبل از چرخش | GK24: =IF(GH24>GH18,IF(GG24>GG18,GG18+SQRT(POWER(GG24-GG18,2)+POWER(GH24-GH18,2))*COS(ATAN((GH24-GH18)/(GG24-GG18+0.000123))+GH16),GG18-SQRT(POWER(GG24-GG18,2)+POWER(GH24-GH18,2))*COS(ATAN((GH24-GH18)/(GG18-GG24+0.000123))-GH16)),IF(GG24>GG18,GG18+SQRT(POWER(GG24-GG18,2)+POWER(GH24-GH18,2))*COS(ATAN((GH18-GH24)/(GG24-GG18+0.000123))-GH16),GG18-SQRT(POWER(GG24-GG18,2)+POWER(GH24-GH18,2))*COS(ATAN((GH18-GH24)/(GG18-GG24+0.000123))+GH16))) -> 0.6182452327 | GL24: =IF(GH24>GH18,IF(GG24>GG18,GH18+SQRT(POWER(GG24-GG18,2)+POWER(GH24-GH18,2))*SIN(ATAN((GH24-GH18)/(GG24-GG18+0.000123))+GH16),GH18+SQRT(POWER(GG24-GG18,2)+POWER(GH24-GH18,2))*SIN(ATAN((GH24-GH18)/(GG18-GG24+0.000123))-GH16)),IF(GG24>GG18,GH18-SQRT(POWER(GG24-GG18,2)+POWER(GH24-GH18,2))*SIN(ATAN((GH18-GH24)/(GG24-GG18+0.000123))-GH16),GH18-SQRT(POWER(GG24-GG18,2)+POWER(GH24-GH18,2))*SIN(ATAN((GH18-GH24)/(GG18-GG24+0.000123))+GH16))) -> 0.6987463478 | GM24: نقطه چرخیده | GO24: متغیر ورودی طول | GP24: a21 | GQ24: 1 | GT24: =IF(GZ12>GZ11,GU11,IF(GZ13>GZ12,GU12,IF(GZ14>GZ13,GU13,IF(GZ15>GZ14,GU14,IF(GZ16>GZ15,GU15,IF(GZ17>GZ16,GU16,IF(GZ18>GZ17,GU17,IF(GZ19>GZ18,GU18,IF(GZ20>GZ19,GU19,IF(GZ21>GZ20,GU20,IF(GZ22>GZ21,GU21,IF(GZ23>GZ22,GU22,IF(GZ24>GZ23,GU23,IF(GZ25>GZ24,GU24,IF(GZ26>GZ25,GU25,IF(GZ27>GZ26,GU26,IF(GZ28>GZ27,GU27,IF(GZ29>GZ28,GU28,IF(GZ30>GZ29,GU29,IF(GZ31>GZ30,GU30,IF(GZ32>GZ31,GU31,IF(GZ33>GZ32,GU32,IF(GZ34>GZ33,GU33,IF(GZ35>GZ34,GU34,IF(GZ36>GZ35,GU35,IF(GZ37>GZ36,GU36,IF(GZ38>GZ37,GU37,IF(GZ39>GZ38,GU38,IF(GZ40>GZ39,GU39,IF(GZ41>GZ40,GU40,IF(GZ42>GZ41,GU41,IF(GZ43>GZ42,GU42,IF(GZ44>GZ43,GU43,IF(GZ45>GZ44,GU44,IF(GZ46>GZ45,GU45,IF(GZ47>GZ46,GU46,IF(GZ48>GZ47,GU47,IF(GZ49>GZ48,GU48,IF(GZ50>GZ49,GU49,IF(GZ51>GZ50,GU50,IF(GZ52>GZ51,GU51,GU52))))))))))))))))))))))))))))))))))))))))) ->  | GU24: =GU23+GT11 -> -74 | GV24: -1.291543646 | GW24: =HB13+HB10*COS(GV24) ->  | GX24: =HC13-HB10*SIN(GV24) ->  | GY24: =SQRT(POWER((HB12-GW24),2)+POWER((HC12-GX24),2)) ->  | GZ24: =ABS(HB9-GY24) ->  | HO24: =-HK24+HP9 -> 0 | HP24: 0 | NU24: a6 | NV24: =TEXT(0,NV10)&" رج مثل رج قبل میبافیم" -> 6 رج مثل رج قبل میبافیم | OF24: e4 | OG24: =TEXT(0,OG8)&" دانه" -> 41 دانه | OQ24: e4 | OR24: =TEXT(0,OR8)&" دانه" -> 49 دانه
E25: b2 تعداد دانه های اضافه شده از خط مرکزی تا خط جادکمه = نیمه جادکمه | F25: =ROUNDUP(F7*(-AX147),0) -> 0 | I25: a10 | J25: a11 | K25: a22 | L25: a22 | N25: =ABS(ROUND(P19/(P19-(G46+0.0001)),0)) -> 2 | O25: =ABS(ROUND(P19/(P19-G46+0.0001),0)-1) -> 3 | P25: =P19-(P19/N25)*(N25-O25)-G46 -> -21.37647801 | Q25: =ROUNDDOWN(ABS(P25),0) -> 21 | U25: 0 | V25: =(10/3)*((Y25/X25)*(1/L6)-1) -> -3.333333333 | W25: =(100/68)*((AA25/Z25)*(1/L7)-1) ->  | X25: 13.5 | AA25: 36 | AC25: 19 | AI25: d6 | AJ25: =F45 -> 31 | CQ25: =CQ24 -> 5 | CR25: =CR24+1.41*CR19 -> 115.225 | CS25: d3 | CU25: =CQ27 -> 5 | CV25: =CR27 -> 48.475 | CW25: d6 | DD25: =DB37+'طراحی همه الگوها'!U189 -> 48.6 | DE25: =DE14+'طراحی همه الگوها'!U191 -> 23.436 | DF25: 7 | DH25: =DD15 -> 0 | DI25: =DE15 -> 108 | DJ25: 1 | DL25: s8 | DM25: =DM23+0.4*(DM27-DM23) -> 17.04416443 | DN25: =DN27+0.5*(DN23-DN27) -> 89.17245722 | DP25: =DM31 -> 9.7196 | DQ25: =DN31 -> 93.89185 | DR25: s14 | DT25: s'16 | DU25: =DM15 -> 5 | DV25: =DN15 -> 70.1 | DX25: =DU24 -> 9.7196 | DY25: =DV24 -> 93.89185 | DZ25: s'14 | EE25: =DB37+'طراحی همه الگوها'!U213+'طراحی همه الگوها'!U214 -> 42.3 | EF25: =EF14 -> 51.6 | EG25: 6 | EI25: =EI20 -> 41.56 | EJ25: =EF15 -> 0 | EK25: 15 | EN25: (3 →6) | EO25: =ROUND(0.2*(EP34-EP30),1) -> 9.7 | ET25: =EP29 -> 5 | EU25: =EQ34 -> 9.802582946 | EV25: 14 | EX25: =EP34 -> 47.85830024 | EY25: =EQ34 -> 9.802582946 | EZ25: 8 | FF25: =FF15 -> 53.1 | FG25: =FG15+'طراحی همه الگوها'!U257 -> 56.5 | FH25: 9 | FJ25: =FF22 -> 35.6 | FK25: =FG22 -> 41.1 | FL25: 7 | FN25: 41' | FO25: =FO24+0.5*(FO27-FO24) -> 24.775 | FP25: =FP27+0.7*(FP24-FP27) -> 43.03857747 | GA25: 20 | GB25: =GB12+GE12*SIN(RADIANS(GA25)+GA14) ->  | GC25: =GC12+GE12*COS(RADIANS(GA25)+GA14) ->  | GD25: =IF(GB13>GB25,ATAN((GC13-GC25)/(GB13-GB25)),ATAN((GC13-GC25)/(GB25-GB13))) ->  | GE25: =IF(GB13>GB25,(GB13-GB25)/COS(GD25),(GB25-GB13)/COS(GD25)) ->  | GG25: 1 | GH25: 2 | GI25: نقطه 7 | GJ25: نقطه قبل از چرخش | GK25: =IF(GH25>GH18,IF(GG25>GG18,GG18+SQRT(POWER(GG25-GG18,2)+POWER(GH25-GH18,2))*COS(ATAN((GH25-GH18)/(GG25-GG18+0.000123))+GH16),GG18-SQRT(POWER(GG25-GG18,2)+POWER(GH25-GH18,2))*COS(ATAN((GH25-GH18)/(GG18-GG25+0.000123))-GH16)),IF(GG25>GG18,GG18+SQRT(POWER(GG25-GG18,2)+POWER(GH25-GH18,2))*COS(ATAN((GH18-GH25)/(GG25-GG18+0.000123))-GH16),GG18-SQRT(POWER(GG25-GG18,2)+POWER(GH25-GH18,2))*COS(ATAN((GH18-GH25)/(GG18-GG25+0.000123))+GH16))) -> 0.6182452327 | GL25: =IF(GH25>GH18,IF(GG25>GG18,GH18+SQRT(POWER(GG25-GG18,2)+POWER(GH25-GH18,2))*SIN(ATAN((GH25-GH18)/(GG25-GG18+0.000123))+GH16),GH18+SQRT(POWER(GG25-GG18,2)+POWER(GH25-GH18,2))*SIN(ATAN((GH25-GH18)/(GG18-GG25+0.000123))-GH16)),IF(GG25>GG18,GH18-SQRT(POWER(GG25-GG18,2)+POWER(GH25-GH18,2))*SIN(ATAN((GH18-GH25)/(GG25-GG18+0.000123))-GH16),GH18-SQRT(POWER(GG25-GG18,2)+POWER(GH25-GH18,2))*SIN(ATAN((GH18-GH25)/(GG18-GG25+0.000123))+GH16))) -> 0.6987463478 | GM25: نقطه چرخیده | GQ25: ماکزیمم متغیر ورودی ضریب طول | GR25: 1 | GU25: =GU24+GT11 -> -72 | GV25: -1.256637061 | GW25: =HB13+HB10*COS(GV25) ->  | GX25: =HC13-HB10*SIN(GV25) ->  | GY25: =SQRT(POWER((HB12-GW25),2)+POWER((HC12-GX25),2)) ->  | GZ25: =ABS(HB9-GY25) ->  | HO25: =-HK25+HP9 -> 0 | HP25: 0 | NU25: a10,a11,b1 | NV25: ="هر"&TEXT(0,NV11)&" دانه را تبدیل به "&TEXT(0,NV12)&" دانه میکنیم تا تعداد دانه ها "&TEXT(0,NV15)&" شود" -> هر300 دانه را تبدیل به 299 دانه میکنیم تا تعداد دانه ها 299 شود | OA25: نقطه وسط باکس جایی برای لیبل نوشته | OB25: =NZ17 -> -2.4375 | OC25: =OA17 -> 2 | OD25: =NY17 -> h5 | OF25: e5 | OG25: =TEXT(0,OG9)&" دانه" -> 63 دانه | OL25: نقطه وسط باکس جایی برای لیبل نوشته | OM25: =OK17 -> 3.32 | ON25: =OL17 -> 2 | OO25: =OJ17 -> h5 | OQ25: e5 | OR25: =TEXT(0,OR9)&" دانه" -> 74 دانه | OW25: نقطه وسط باکس جایی برای لیبل نوشته | OX25: =OV17 -> 1.535 | OY25: =OW17 -> 2 | OZ25: =OU17 -> h5
E26: (بدون اعمال بافت اننتخابی) b1 تعداد دانه ها دور تا دور گردن | F26: =F45+2*F44+2*F43+F42 -> 133 | I26: =ABS(ROUND(L35/(L35-(G46-2*L43+0.001)),0)) -> 300 | J26: =ABS(ROUND(L35/(L35-(G46-2*L43)+0.0001),0)-1) -> 299 | K26: =L35-(L35/I26)*(I26-J26)-(G46-2*L43) -> 0 | L26: =ROUNDDOWN(ABS(K26),0) -> 0 | N26: =ABS(ROUND(2*P19/(P19-(G46)+0.001),0)) -> 3 | O26: =ABS(ROUND(2*(P19/(P19-G46+0.0001)-1),0)) -> 5 | P26: =P19-(P19/N26)*(N26-O26)-G46 -> 9.915024435 | Q26: =ROUNDDOWN(ABS(P26),0) -> 9 | U26: 0 | V26: =(10/3)*((Y26/X26)*(1/L6)-1) -> -3.333333333 | W26: =(100/68)*((AA26/Z26)*(1/L7)-1) ->  | X26: 13.5 | AA26: 36 | AC26: 20 | AI26: d7 | AJ26: =F44 -> 27 | CM26: =CI45 -> 24.5 | CN26: =CJ45 -> 106 | CO26: j11 | CQ26: =0.7*(CR20+CR19)+CQ24 -> 61 | CR26: =CR25-0.7*(CR19+CR20) -> 59.225 | CS26: d4 | CU26: =CQ28 -> 16.2 | CV26: =CR28 -> 48.475 | CW26: d7 | DD26: =DB37+'طراحی همه الگوها'!U189 -> 48.6 | DE26: =DE15-'طراحی همه الگوها'!U198 -> 94.6 | DF26: 14 | DL26: s9 | DM26: =DM23+0.7*(DM27-DM23) -> 26.07728776 | DN26: =DN27+0.2*(DN23-DN27) -> 81.41991315 | DT26: s'15 | DU26: =DU25+0.7*(DU24-DU25) -> 8.30372 | DV26: =DV25+0.5*(DV24-DV25) -> 81.995925 | DX26: =DU26 -> 8.30372 | DY26: =DV26 -> 81.995925 | DZ26: s'15 | EE26: =EE25 -> 42.3 | EF26: =EF19 -> 54.3 | EG26: 7 | EN26: (5 →7) | EO26: =ROUND(0.2*(EP34-EP31),1) -> 7.5 | ET26: =EP34 -> 47.85830024 | EU26: =EQ34 -> 9.802582946 | EV26: 8 | FF26: =FF13+'طراحی همه الگوها'!U249-'طراحی همه الگوها'!U256 -> -23.5 | FG26: =FG25 -> 56.5 | FH26: 10 | FN26: 41'' | FO26: =FO24+0.88*(FO27-FO24) -> 29.924 | FP26: =FP27+0.3*(FP24-FP27) -> 21.30224749 | FR26: =FO12 -> 9.7196 | FS26: =FP12 -> 93.89185 | FT26: s3 | GA26: 22 | GB26: =GB12+GE12*SIN(RADIANS(GA26)+GA14) ->  | GC26: =GC12+GE12*COS(RADIANS(GA26)+GA14) ->  | GD26: =IF(GB13>GB26,ATAN((GC13-GC26)/(GB13-GB26)),ATAN((GC13-GC26)/(GB26-GB13))) ->  | GE26: =IF(GB13>GB26,(GB13-GB26)/COS(GD26),(GB26-GB13)/COS(GD26)) ->  | GG26: 1 | GH26: 2 | GI26: نقطه 8 | GJ26: نقطه قبل از چرخش | GK26: =IF(GH26>GH18,IF(GG26>GG18,GG18+SQRT(POWER(GG26-GG18,2)+POWER(GH26-GH18,2))*COS(ATAN((GH26-GH18)/(GG26-GG18+0.000123))+GH16),GG18-SQRT(POWER(GG26-GG18,2)+POWER(GH26-GH18,2))*COS(ATAN((GH26-GH18)/(GG18-GG26+0.000123))-GH16)),IF(GG26>GG18,GG18+SQRT(POWER(GG26-GG18,2)+POWER(GH26-GH18,2))*COS(ATAN((GH18-GH26)/(GG26-GG18+0.000123))-GH16),GG18-SQRT(POWER(GG26-GG18,2)+POWER(GH26-GH18,2))*COS(ATAN((GH18-GH26)/(GG18-GG26+0.000123))+GH16))) -> 0.6182452327 | GL26: =IF(GH26>GH18,IF(GG26>GG18,GH18+SQRT(POWER(GG26-GG18,2)+POWER(GH26-GH18,2))*SIN(ATAN((GH26-GH18)/(GG26-GG18+0.000123))+GH16),GH18+SQRT(POWER(GG26-GG18,2)+POWER(GH26-GH18,2))*SIN(ATAN((GH26-GH18)/(GG18-GG26+0.000123))-GH16)),IF(GG26>GG18,GH18-SQRT(POWER(GG26-GG18,2)+POWER(GH26-GH18,2))*SIN(ATAN((GH18-GH26)/(GG26-GG18+0.000123))-GH16),GH18-SQRT(POWER(GG26-GG18,2)+POWER(GH26-GH18,2))*SIN(ATAN((GH18-GH26)/(GG18-GG26+0.000123))+GH16))) -> 0.6987463478 | GM26: نقطه چرخیده | GO26: m1 | GP26: =ATAN((GQ22-GQ21)/(GR21-GR22)) ->  | GQ26: m2 | GR26: =SQRT(POWER(GQ21-GQ22,2)+POWER(GR21-GR22,2)) ->  | GU26: =GU25+GT11 -> -70 | GV26: -1.221730476 | GW26: =HB13+HB10*COS(GV26) ->  | GX26: =HC13-HB10*SIN(GV26) ->  | GY26: =SQRT(POWER((HB12-GW26),2)+POWER((HC12-GX26),2)) ->  | GZ26: =ABS(HB9-GY26) ->  | HO26: =-HK26+HP9 -> 0 | HP26: 0 | NU26: a25 | NV26: =TEXT(0,NV13)&"جادکمه" -> 2جادکمه | OF26: e6 | OG26: =TEXT(0,OG10)&" رج مثل رج قبل میبافیم" -> 7 رج مثل رج قبل میبافیم | OQ26: e6 | OR26: =TEXT(0,OR10)&" رج مثل رج قبل میبافیم" -> 7 رج مثل رج قبل میبافیم
E27: تعداد رج دوبل برای ایجاد گودی گردن جلو b13 | F27: =ROUNDDOWN(0.25*I6*((AX129-BI128)),0) -> 7 | I27: =ABS(ROUND(2*L35/(L35-(G46-2*L43)+0.001),0)) -> 599 | J27: =ABS(ROUND(2*(L35/(L35-(G46-2*L43)+0.001)-1),0)) -> 597 | K27: =L35-(L35/I27)*(I27-J27)-(G46-2*L43) -> -0.001669449082 | L27: =ROUNDDOWN(ABS(K27),0) -> 0 | N27: =ABS(ROUND(3*P19/(P19-G46+0.001),0)) -> 5 | O27: =ABS(ROUND(3*(P19/(P19-G46+0.0001)-1),0)) -> 8 | P27: =P19-(P19/N27)*(N27-O27)-G46 -> -2.601576542 | Q27: =ROUNDDOWN(ABS(P27),0) -> 2 | U27: 0 | V27: =(10/3)*((Y27/X27)*(1/L6)-1) -> -3.333333333 | W27: =(100/68)*((AA27/Z27)*(1/L7)-1) ->  | X27: 13.5 | AA27: 36 | AC27: 21 | AI27: d8 | AJ27: =ROUND(F7*O238,0) -> 27 | CM27: =CI46 -> 15.5 | CN27: =CJ46 -> 98.5 | CO27: j12 | CQ27: =CQ24 -> 5 | CR27: =CR26-CR21+'متغیرها '!C6*0.1*'متغیرها '!U85*0.7 -> 48.475 | CS27: d6 | CU27: =CQ30 -> 44.2 | CV27: =CR30 -> 49.55 | CW27: d9 | DD27: =DD29+'طراحی همه الگوها'!U196 -> 64.1 | DE27: =DE15-'طراحی همه الگوها'!U197 -> 96.9 | DF27: 13 | DI27: صاف | DL27: s10 | DM27: =DM18-('طراحی همه الگوها'!U196-'متغیرها '!C13*'متغیرها '!U83)*COS(DM17) -> 35.11041108 | DN27: =DN18+('طراحی همه الگوها'!U196-'متغیرها '!C13*'متغیرها '!U83)*SIN(DM17) -> 76.25155044 | DP27: =DM31 -> 9.7196 | DQ27: =DN31 -> 93.89185 | DR27: s14 | DT27: s'17 | DU27: =DB400 -> 5 | DV27: =IF('متغیرها '!C22=-1,DQ12,IF('متغیرها '!C22=0,DC400-0.1,DC400-0.25*(DC400-DC404))) -> 100.095 | DX27: =DU25 -> 5 | DY27: =DV25 -> 70.1 | DZ27: s'16 | EE27: =EE24 -> 32.1 | EF27: =EF24 -> 51.6 | EG27: 5 | EI27: =EI19 -> 24.936 | EJ27: =EJ17 -> 0 | EK27: 21 | EO27: نقاط در چادر شماره 4 | EX27: =EP29 -> 5 | EY27: =EQ29 -> 106 | EZ27: 1 | FF27: =FF26 -> -23.5 | FG27: =FG17 -> 53.9 | FH27: 11 | FJ27: =FJ23 -> 14.2 | FK27: =FG17 -> 53.9 | FL27: 19 | FN27: s13 | FO27: =FO30+0.5*'طراحی همه الگوها'!U249 -> 31.55 | FP27: =FP30 -> 5 | FR27: =FO33 -> 8.263106064 | FS27: =FP33 -> 69.84290148 | FT27: s'3 | GA27: 24 | GB27: =GB12+GE12*SIN(RADIANS(GA27)+GA14) ->  | GC27: =GC12+GE12*COS(RADIANS(GA27)+GA14) ->  | GD27: =IF(GB13>GB27,ATAN((GC13-GC27)/(GB13-GB27)),ATAN((GC13-GC27)/(GB27-GB13))) ->  | GE27: =IF(GB13>GB27,(GB13-GB27)/COS(GD27),(GB27-GB13)/COS(GD27)) ->  | GG27: 1 | GH27: 2 | GI27: نقطه 9 | GJ27: نقطه قبل از چرخش | GK27: =IF(GH27>GH18,IF(GG27>GG18,GG18+SQRT(POWER(GG27-GG18,2)+POWER(GH27-GH18,2))*COS(ATAN((GH27-GH18)/(GG27-GG18+0.000123))+GH16),GG18-SQRT(POWER(GG27-GG18,2)+POWER(GH27-GH18,2))*COS(ATAN((GH27-GH18)/(GG18-GG27+0.000123))-GH16)),IF(GG27>GG18,GG18+SQRT(POWER(GG27-GG18,2)+POWER(GH27-GH18,2))*COS(ATAN((GH18-GH27)/(GG27-GG18+0.000123))-GH16),GG18-SQRT(POWER(GG27-GG18,2)+POWER(GH27-GH18,2))*COS(ATAN((GH18-GH27)/(GG18-GG27+0.000123))+GH16))) -> 0.6182452327 | GL27: =IF(GH27>GH18,IF(GG27>GG18,GH18+SQRT(POWER(GG27-GG18,2)+POWER(GH27-GH18,2))*SIN(ATAN((GH27-GH18)/(GG27-GG18+0.000123))+GH16),GH18+SQRT(POWER(GG27-GG18,2)+POWER(GH27-GH18,2))*SIN(ATAN((GH27-GH18)/(GG18-GG27+0.000123))-GH16)),IF(GG27>GG18,GH18-SQRT(POWER(GG27-GG18,2)+POWER(GH27-GH18,2))*SIN(ATAN((GH18-GH27)/(GG27-GG18+0.000123))-GH16),GH18-SQRT(POWER(GG27-GG18,2)+POWER(GH27-GH18,2))*SIN(ATAN((GH18-GH27)/(GG18-GG27+0.000123))+GH16))) -> 0.6987463478 | GM27: نقطه چرخیده | GO27: نقطه خروجی بالا | GP27: su9 | GQ27: =GQ21+GQ23*COS(GP26) ->  | GR27: =GR21+GQ23*SIN(GP26) ->  | GU27: =GU26+GT11 -> -68 | GV27: -1.186823891 | GW27: =HB13+HB10*COS(GV27) ->  | GX27: =HC13-HB10*SIN(GV27) ->  | GY27: =SQRT(POWER((HB12-GW27),2)+POWER((HC12-GX27),2)) ->  | GZ27: =ABS(HB9-GY27) ->  | HC27: به دست آوردن نقطه تقاطع دو خط | HD27: مولفه افقی | HE27: مولفه عمودی | HO27: =-HK27+HP9 -> 0 | HP27: 0 | NU27: b''1 | NV27: ="تعداد دانه ها "&TEXT(0,NV17)&" - تقسیم بندی بالاتنه و آستین " -> تعداد دانه ها 303 - تقسیم بندی بالاتنه و آستین | NY27: زاویه فلش | NZ27: =NV38 -> 0.5 | OA27: f5 | OD27: فلش به سمت راست | OG27: ="در اینجا تعداد دانه ها "&TEXT(0,OG17)&" میباشد " -> در اینجا تعداد دانه ها 188 میباشد | OJ27: زاویه فلش | OK27: =OG42 -> 0.5 | OL27: f5 | OO27: فلش به سمت راست | OR27: ="در اینجا تعداد دانه ها "&TEXT(0,OR17)&" میباشد " -> در اینجا تعداد دانه ها 188 میباشد | OU27: زاویه فلش | OV27: =OR42 -> 0.5 | OW27: f5 | OZ27: فلش به سمت راست
E28: تعداد رج سوبل برای ایجاد گودی گردن جلو b'''13 | F28: =ROUND((1/8)*I6*((AX129-BI128)),0) -> 4 | I28: =ABS(ROUND(3*L35/(L35-(G46-2*L43)+0.001),0)) -> 899 | J28: =ABS(ROUND(3*(L35/(L35-(G46-2*L43)+0.001)-1),0)) -> 896 | K28: =L35-(L35/I28)*(I28-J28)-(G46-2*L43) -> -0.001112347052 | L28: =ROUNDDOWN(ABS(K28),0) -> 0 | N28: =ABS(ROUND(4*P19/(P19-G46+0.001),0)) -> 7 | O28: =ABS(ROUND(4*(P19/(P19-G46+0.0001)-1),0)) -> 11 | P28: =P19-(P19/N28)*(N28-O28)-G46 -> -7.965834104 | Q28: =ROUNDDOWN(ABS(P28),0) -> 7 | U28: 0 | V28: =(10/3)*((Y28/X28)*(1/L6)-1) -> -3.333333333 | W28: =(100/68)*((AA28/Z28)*(1/L7)-1) ->  | X28: 13.5 | AA28: 36 | AC28: 22 | AI28: d9 | AJ28: =ROUND((F6*AJ9)/(F7*AJ11),0) -> 3 | CQ28: =0.2*(CQ26-CQ24)+CQ24 -> 16.2 | CR28: =CR27 -> 48.475 | CS28: d7 | CU28: =CQ29 -> 55.4 | CV28: =CR29 -> 53.85 | CW28: d8 | DD28: =DD29+'طراحی همه الگوها'!U196 -> 64.1 | DE28: =DE15 -> 108 | DF28: 12 | DH28: =DH20 -> 24.3 | DI28: =DE14 -> 0 | DJ28: 15 | DL28: s12 | DM28: =DM27-'طراحی همه الگوها'!U198*SIN(DM17) -> 30.7085693 | DN28: =DN27-'طراحی همه الگوها'!U198*COS(DM17) -> 63.59517699 | DP28: =DM33 -> 8.30372 | DQ28: =DN33 -> 81.995925 | DR28: s15 | DT28: s'18 | DU28: =DU27+0.6*(DU24-DU27) -> 7.83176 | DV28: =DV27-0.3*(DV27-DV24) -> 98.234055 | EI28: =EI19 -> 24.936 | EJ28: =EJ19 -> 5.9 | EK28: 22 | EN28: افقی شبیه ساز | EO28: اسم نقطه | EP28: مولفه افقی | EQ28: مولفه عمودی | ER28: عمودی شبیه ساز | ET28: =ER43 -> 28 | EU28: =ER44 -> 40.975 | EV28: 15 | EX28: =EP36 -> 50.32554467 | EY28: =EQ36 -> 60.67445533 | EZ28: 10 | FF28: =FF16 -> 47.9 | FG28: =FG16 -> 53.9 | FH28: 8 | FJ28: =FJ23 -> 14.2 | FK28: =FK23 -> 45.9 | FL28: 20 | FN28: s''17 | FO28: =FO11 -> 5 | FP28: =IF('متغیرها '!C40=-1,FP14,IF('متغیرها '!C40=0,FP11-0.1,FP11-0.25*(FP11-FP13))) -> 100.095 | FR28: =FO22 -> 6.806612127 | FS28: =FP22 -> 33.7694787 | FT28: s11 | GA28: 26 | GB28: =GB12+GE12*SIN(RADIANS(GA28)+GA14) ->  | GC28: =GC12+GE12*COS(RADIANS(GA28)+GA14) ->  | GD28: =IF(GB13>GB28,ATAN((GC13-GC28)/(GB13-GB28)),ATAN((GC13-GC28)/(GB28-GB13))) ->  | GE28: =IF(GB13>GB28,(GB13-GB28)/COS(GD28),(GB28-GB13)/COS(GD28)) ->  | GG28: 1 | GH28: 2 | GI28: نقطه 10 | GJ28: نقطه قبل از چرخش | GK28: =IF(GH28>GH18,IF(GG28>GG18,GG18+SQRT(POWER(GG28-GG18,2)+POWER(GH28-GH18,2))*COS(ATAN((GH28-GH18)/(GG28-GG18+0.000123))+GH16),GG18-SQRT(POWER(GG28-GG18,2)+POWER(GH28-GH18,2))*COS(ATAN((GH28-GH18)/(GG18-GG28+0.000123))-GH16)),IF(GG28>GG18,GG18+SQRT(POWER(GG28-GG18,2)+POWER(GH28-GH18,2))*COS(ATAN((GH18-GH28)/(GG28-GG18+0.000123))-GH16),GG18-SQRT(POWER(GG28-GG18,2)+POWER(GH28-GH18,2))*COS(ATAN((GH18-GH28)/(GG18-GG28+0.000123))+GH16))) -> 0.6182452327 | GL28: =IF(GH28>GH18,IF(GG28>GG18,GH18+SQRT(POWER(GG28-GG18,2)+POWER(GH28-GH18,2))*SIN(ATAN((GH28-GH18)/(GG28-GG18+0.000123))+GH16),GH18+SQRT(POWER(GG28-GG18,2)+POWER(GH28-GH18,2))*SIN(ATAN((GH28-GH18)/(GG18-GG28+0.000123))-GH16)),IF(GG28>GG18,GH18-SQRT(POWER(GG28-GG18,2)+POWER(GH28-GH18,2))*SIN(ATAN((GH18-GH28)/(GG28-GG18+0.000123))-GH16),GH18-SQRT(POWER(GG28-GG18,2)+POWER(GH28-GH18,2))*SIN(ATAN((GH18-GH28)/(GG18-GG28+0.000123))+GH16))) -> 0.6987463478 | GM28: نقطه چرخیده | GO28: نقطه خروجی پایین | GP28: sd8 | GQ28: =GQ29+GQ23*COS(GP26) ->  | GR28: =GR29+GQ23*SIN(GP26) ->  | GU28: =GU27+GT11 -> -66 | GV28: -1.151917306 | GW28: =HB13+HB10*COS(GV28) ->  | GX28: =HC13-HB10*SIN(GV28) ->  | GY28: =SQRT(POWER((HB12-GW28),2)+POWER((HC12-GX28),2)) ->  | GZ28: =ABS(HB9-GY28) ->  | HB28: نقطه اول از خط اول | HC28: f5 | HD28: =#REF! ->  | HE28: =#REF! ->  | HO28: =-HK28+HP9 -> 0 | HP28: 0 | NV28: ="نقشه بافت یقه شکاری با میل "&TEXT(0,NV41)&" بافت انتخابی شماره "&TEXT(0,NV42) -> نقشه بافت یقه شکاری با میل 2 بافت انتخابی شماره 4 | NY28: بزرگی فلش | NZ28: =NV46 -> 0.3535714286 | OA28: f4 | OB28: =NZ30 -> -24.4875 | OC28: =OA30 -> 2 | OD28: =NY30 -> w6 | OF28: =OF11 -> e7 | OG28: =TEXT(0,OG11)&" رج مثل رج قبل میبافیم" -> 0 رج مثل رج قبل میبافیم | OJ28: بزرگی فلش | OK28: =OG50 -> 0.2495798319 | OL28: f4 | OM28: =OK30 -> -23.336 | ON28: =OL30 -> 2 | OO28: =OJ30 -> m3 | OQ28: =OQ11 -> e7 | OR28: =TEXT(0,OR11)&" رج مثل رج قبل میبافیم" -> 0 رج مثل رج قبل میبافیم | OU28: بزرگی فلش | OV28: =OR50 -> 0.2495798319 | OW28: f4 | OX28: =OV30 -> -23.693 | OY28: =OW30 -> 2 | OZ28: =OU30 -> m3
E29: فاصله گردن تا محل جدا شدن آستین در قسمت جلو (cm) b7 | F29: =ROUNDUP(SQRT(POWER(CI103-CI121,2)+POWER(CJ103-CJ121,2)),0) -> 10 | I29: =ABS(ROUND(4*L35/(L35-(G46-2*L43)+0.001),0)) -> 1199 | J29: =ABS(ROUND(4*(L35/(L35-(G46-2*L43)+0.001)-1),0)) -> 1195 | K29: =L35-(L35/I29)*(I29-J29)-(G46-2*L43) -> -0.000834028357 | L29: =ROUNDDOWN(ABS(K29),0) -> 0 | N29: =ABS(ROUND(5*P19/(P19-G46+0.001),0)) -> 8 | O29: =ABS(ROUND(5*(P19/(P19-G46+0.0001)-1),0)) -> 13 | P29: =P19-(P19/N29)*(N29-O29)-G46 -> 2.092148824 | Q29: =ROUNDDOWN(ABS(P29),0) -> 2 | U29: 0 | V29: =(10/3)*((Y29/X29)*(1/L6)-1) -> -3.333333333 | W29: =(100/68)*((AA29/Z29)*(1/L7)-1) ->  | X29: 13.5 | AA29: 36 | AC29: 23 | AI29: d10 | AJ29: =IF(ROUND((F6*(G259-G258))/(F7*G260),0)>40,"----",ROUND((F6*(G259-G258))/(F7*G260),0)) -> 10 | CM29: =CI40 -> 10 | CN29: =CJ40 -> 106 | CO29: j6 | CQ29: =0.9*(CQ26-CQ24)+CQ24 -> 55.4 | CR29: =CR27+0.5*(CR26-CR27) -> 53.85 | CS29: d8 | CU29: =CQ26 -> 61 | CV29: =CR26 -> 59.225 | CW29: d4 | DD29: =DB37+'طراحی همه الگوها'!U189 -> 48.6 | DE29: =DE15 -> 108 | DF29: 3 | DH29: =DH20 -> 24.3 | DI29: =DI20 -> 4.1 | DJ29: 16 | DL29: s11 | DM29: =DM36-'طراحی همه الگوها'!U197*SIN(DM17) -> 46.10394426 | DN29: =DN36-'طراحی همه الگوها'!U197*COS(DM17) -> 60.67585693 | DP29: =DM32 -> 5 | DQ29: =DN32 -> 70.1 | DR29: s16 | DT29: s'19 | DU29: =EC41+('متغیرها '!C20*'متغیرها '!U83)*COS(DM17+RADIANS(EC40)) -> 41.44129154 | DV29: =ED41-('متغیرها '!C20*'متغیرها '!U83)*SIN(DM17+RADIANS(EC40)) -> 57.90847838 | DX29: =DU18 -> 37.72898094 | DY29: =DV18 -> 61.62078899 | DZ29: s'10 | EE29: =DB37+'طراحی همه الگوها'!U216 -> 110 | EF29: =EF20 -> 107.1 | EG29: 10 | EO29: 1 | EP29: =DM19 -> 5 | EQ29: ='طراحی همه الگوها'!U233+ER39+DM44 -> 106 | ET29: =ET28+'طراحی همه الگوها'!U242 -> 31.6 | EU29: =EU28 -> 40.975 | EV29: 16 | FN29: s''18 | FO29: =FO28+0.5*(FO12-FO28) -> 7.3598 | FP29: =FP28-0.3*(FP28-FP12) -> 98.234055 | GA29: 28 | GB29: =GB12+GE12*SIN(RADIANS(GA29)+GA14) ->  | GC29: =GC12+GE12*COS(RADIANS(GA29)+GA14) ->  | GD29: =IF(GB13>GB29,ATAN((GC13-GC29)/(GB13-GB29)),ATAN((GC13-GC29)/(GB29-GB13))) ->  | GE29: =IF(GB13>GB29,(GB13-GB29)/COS(GD29),(GB29-GB13)/COS(GD29)) ->  | GG29: 1 | GH29: 2 | GI29: نقطه 11 | GJ29: نقطه قبل از چرخش | GK29: =IF(GH29>GH18,IF(GG29>GG18,GG18+SQRT(POWER(GG29-GG18,2)+POWER(GH29-GH18,2))*COS(ATAN((GH29-GH18)/(GG29-GG18+0.000123))+GH16),GG18-SQRT(POWER(GG29-GG18,2)+POWER(GH29-GH18,2))*COS(ATAN((GH29-GH18)/(GG18-GG29+0.000123))-GH16)),IF(GG29>GG18,GG18+SQRT(POWER(GG29-GG18,2)+POWER(GH29-GH18,2))*COS(ATAN((GH18-GH29)/(GG29-GG18+0.000123))-GH16),GG18-SQRT(POWER(GG29-GG18,2)+POWER(GH29-GH18,2))*COS(ATAN((GH18-GH29)/(GG18-GG29+0.000123))+GH16))) -> 0.6182452327 | GL29: =IF(GH29>GH18,IF(GG29>GG18,GH18+SQRT(POWER(GG29-GG18,2)+POWER(GH29-GH18,2))*SIN(ATAN((GH29-GH18)/(GG29-GG18+0.000123))+GH16),GH18+SQRT(POWER(GG29-GG18,2)+POWER(GH29-GH18,2))*SIN(ATAN((GH29-GH18)/(GG18-GG29+0.000123))-GH16)),IF(GG29>GG18,GH18-SQRT(POWER(GG29-GG18,2)+POWER(GH29-GH18,2))*SIN(ATAN((GH18-GH29)/(GG29-GG18+0.000123))-GH16),GH18-SQRT(POWER(GG29-GG18,2)+POWER(GH29-GH18,2))*SIN(ATAN((GH18-GH29)/(GG18-GG29+0.000123))+GH16))) -> 0.6987463478 | GM29: نقطه چرخیده | GO29: نقطه خروجی میانه | GQ29: =GQ21+GQ24*GR26*SIN(GP26)/GR25 ->  | GR29: =GR21-GQ24*GR26*COS(GP26)/GR25 ->  | GU29: =GU28+GT11 -> -64 | GV29: -1.117010721 | GW29: =HB13+HB10*COS(GV29) ->  | GX29: =HC13-HB10*SIN(GV29) ->  | GY29: =SQRT(POWER((HB12-GW29),2)+POWER((HC12-GX29),2)) ->  | GZ29: =ABS(HB9-GY29) ->  | HB29: نقطه دوم از خط اول | HC29: f6 | HD29: =#REF! ->  | HE29: =#REF! ->  | HO29: =-HK29+HP9 -> 0 | HP29: 0 | NU29: متغیرهای ورودی | NY29: نقطه ورودی سر فلش | NZ29: مولفه افقی | OA29: مولفه عمودی | OB29: =NZ32 -> -24.84107143 | OC29: =OA32 -> 2.176785714 | OD29: =NY32 -> f3 | OF29: =OF12 -> e8 | OG29: =TEXT(0,OG12)&" رج مثل رج قبل میبافیم" -> -4 رج مثل رج قبل میبافیم | OJ29: نقطه ورودی سر فلش | OK29: مولفه افقی | OL29: مولفه عمودی | OM29: =OK32 -> -23.58557983 | ON29: =OL32 -> 2.124789916 | OO29: =OJ32 -> f3 | OQ29: =OQ12 -> e8 | OR29: =TEXT(0,OR12)&" رج مثل رج قبل میبافیم" -> -4 رج مثل رج قبل میبافیم | OU29: نقطه ورودی سر فلش | OV29: مولفه افقی | OW29: مولفه عمودی | OX29: =OV32 -> -23.94257983 | OY29: =OW32 -> 2.124789916 | OZ29: =OU32 -> f3
E30: تعداد دانه های اضافه شده زیر بغل b8 | F30: =F15 -> 17 | I30: =ABS(ROUND(5*L35/(L35-(G46-2*L43)+0.001),0)) -> 1499 | J30: =ABS(ROUND(5*(L35/(L35-(G46-F412*L43)+0.001)-1),0)) -> 36 | K30: =L35-(L35/I30)*(I30-J30)-(G46-2*L43) -> -291.7951968 | L30: =ROUNDDOWN(ABS(K30),0) -> 291 | N30: =IF(P19=G46,1,IF(Q25<=2,N25,IF(Q26<=2,N26,IF(Q27<=2,N27,IF(Q28<=2,N28,N29))))) -> 5 | O30: =IF(P19=G46,1,IF(Q25<=2,O25,IF(Q26<=2,O26,IF(Q27<=2,O27,IF(Q28<=2,O28,O29))))) -> 8 | U30: 0 | V30: =(10/3)*((Y30/X30)*(1/L6)-1) -> -3.333333333 | W30: =(100/68)*((AA30/Z30)*(1/L7)-1) ->  | X30: 13.5 | AA30: 36 | AC30: 24 | AI30: d12 | AJ30: =AJ10 -> 47 | CM30: =CI42 -> 7 | CN30: =CJ42 -> 92 | CO30: j8 | CQ30: =0.7*(CQ26-CQ24)+CQ24 -> 44.2 | CR30: =CR27+0.1*(CR26-CR27) -> 49.55 | CS30: d9 | DD30: =DB37+'طراحی همه الگوها'!U189 -> 48.6 | DE30: =DE15-'طراحی همه الگوها'!U198 -> 94.6 | DF30: 14 | DH30: =DH14 -> 24.3 | DI30: =DI14 -> 25.2 | DJ30: 17 | DL30: s13 | DM30: =DM19+'طراحی همه الگوها'!U189-0.5*'طراحی همه الگوها'!U190 -> 47.1 | DN30: =DM45+DM44 -> 5 | DT30: 2' | DU30: =DM19 -> 5 | DV30: =EC35+DM44 -> 5 | DX30: =DU29 -> 41.44129154 | DY30: =DV29 -> 57.90847838 | DZ30: s'19 | EE30: =EI15 -> 110.3 | EF30: =EJ15 -> 107.1 | EG30: 13 | EI30: =DB37 -> 0 | EJ30: =EF13 -> 101 | EK30: 1 | EO30: 3 | EP30: =EP29-'طراحی همه الگوها'!U234 -> -0.8 | EQ30: =EQ29-'طراحی همه الگوها'!U232 -> -5.5 | ET30: =ET28+'طراحی همه الگوها'!U242 -> 31.6 | EU30: =EU28-'طراحی همه الگوها'!U245 -> 29.975 | EV30: 19 | EX30: =EP36 -> 50.32554467 | EY30: =EQ36 -> 60.67445533 | EZ30: 10 | FF30: =FF13+'طراحی همه الگوها'!U260+'طراحی همه الگوها'!U262 -> 59 | FG30: =FG25+FC44 -> 63.5 | FH30: 13 | FJ30: =FJ24 -> 28.5 | FK30: =FG17 -> 53.9 | FL30: 21 | FN30: 2 | FO30: =FO14 -> 5 | FP30: =FC42+DM44 -> 5 | FR30: =FO24 -> 18 | FS30: 59.34082496 | FT30: 41شبیه ساز | GA30: 30 | GB30: =GB12+GE12*SIN(RADIANS(GA30)+GA14) ->  | GC30: =GC12+GE12*COS(RADIANS(GA30)+GA14) ->  | GD30: =IF(GB13>GB30,ATAN((GC13-GC30)/(GB13-GB30)),ATAN((GC13-GC30)/(GB30-GB13))) ->  | GE30: =IF(GB13>GB30,(GB13-GB30)/COS(GD30),(GB30-GB13)/COS(GD30)) ->  | GG30: 1 | GH30: 2 | GI30: نقطه 12 | GJ30: نقطه قبل از چرخش | GK30: =IF(GH30>GH18,IF(GG30>GG18,GG18+SQRT(POWER(GG30-GG18,2)+POWER(GH30-GH18,2))*COS(ATAN((GH30-GH18)/(GG30-GG18+0.000123))+GH16),GG18-SQRT(POWER(GG30-GG18,2)+POWER(GH30-GH18,2))*COS(ATAN((GH30-GH18)/(GG18-GG30+0.000123))-GH16)),IF(GG30>GG18,GG18+SQRT(POWER(GG30-GG18,2)+POWER(GH30-GH18,2))*COS(ATAN((GH18-GH30)/(GG30-GG18+0.000123))-GH16),GG18-SQRT(POWER(GG30-GG18,2)+POWER(GH30-GH18,2))*COS(ATAN((GH18-GH30)/(GG18-GG30+0.000123))+GH16))) -> 0.6182452327 | GL30: =IF(GH30>GH18,IF(GG30>GG18,GH18+SQRT(POWER(GG30-GG18,2)+POWER(GH30-GH18,2))*SIN(ATAN((GH30-GH18)/(GG30-GG18+0.000123))+GH16),GH18+SQRT(POWER(GG30-GG18,2)+POWER(GH30-GH18,2))*SIN(ATAN((GH30-GH18)/(GG18-GG30+0.000123))-GH16)),IF(GG30>GG18,GH18-SQRT(POWER(GG30-GG18,2)+POWER(GH30-GH18,2))*SIN(ATAN((GH18-GH30)/(GG30-GG18+0.000123))-GH16),GH18-SQRT(POWER(GG30-GG18,2)+POWER(GH30-GH18,2))*SIN(ATAN((GH18-GH30)/(GG18-GG30+0.000123))+GH16))) -> 0.6987463478 | GM30: نقطه چرخیده | GU30: =GU29+GT11 -> -62 | GV30: -1.082104136 | GW30: =HB13+HB10*COS(GV30) ->  | GX30: =HC13-HB10*SIN(GV30) ->  | GY30: =SQRT(POWER((HB12-GW30),2)+POWER((HC12-GX30),2)) ->  | GZ30: =ABS(HB9-GY30) ->  | HB30: نقطه اول از خط دوم | HC30: f7 | HD30: =#REF! ->  | HE30: =#REF! ->  | HO30: =-HK30+HP9 -> 0 | HP30: 0 | NU30: Xw1 | NV30: ='متغیرها '!C851-20 -> -30 | NW30: جابجایی افقی کل نقشه | NY30: w6 | NZ30: =NU53 -> -24.4875 | OA30: =NV53 -> 2 | OF30: =OF13 -> e9 | OG30: =TEXT(0,OG13)&" رج مثل رج قبل میبافیم" -> 19 رج مثل رج قبل میبافیم | OJ30: m3 | OK30: =OF61 -> -23.336 | OL30: =OG61 -> 2 | OQ30: =OQ13 -> e9 | OR30: =TEXT(0,OR13)&" رج مثل رج قبل میبافیم" -> 19 رج مثل رج قبل میبافیم | OU30: m3 | OV30: =OQ61 -> -23.693 | OW30: =OR61 -> 2
E31: تعداد دانه های سرتاسر آستین در قسمت زیر بغل b20 | F31: =F16 -> 120 | I31: =IF(L26<=2,I26,IF(L27<=2,I27,IF(L28<=2,I28,IF(L29<=2,I29,I30)))) -> 300 | J31: =IF(L26<=2,J26,IF(L27<=2,J27,IF(L28<=2,J28,IF(L29<=2,J29,J30)))) -> 299 | N31: یقه شومیزیه نوک تیز تا خط جادکمه | Q31: یقه شومیزیه تا خط جادکمه | U31: 0 | V31: =(10/3)*((Y31/X31)*(1/L6)-1) -> -3.333333333 | W31: =(100/68)*((AA31/Z31)*(1/L7)-1) ->  | X31: 13.5 | AA31: 36 | AC31: 25 | CQ31: =CQ24 -> 5 | CR31: =CR15-1-0.013*(CR25-CR27) -> 57.13225 | CS31: j'2 | DL31: s14 | DM31: =DM13+DM42*COS(DM40) -> 9.7196 | DN31: =DN13-DM42*SIN(DM40) -> 93.89185 | DP31: =DP25 -> 9.7196 | DQ31: =DQ25 -> 93.89185 | DR31: s14 | EE31: =DB37+'طراحی همه الگوها'!U211+'طراحی همه الگوها'!U219 -> 111.5 | EF31: =EF20 -> 107.1 | EG31: 12 | EI31: =DB37+'طراحی همه الگوها'!U216 -> 110 | EJ31: =EF33 -> 101 | EK31: 3 | EO31: 5 | EP31: =EP29+'طراحی همه الگوها'!U235 -> 10.3 | EQ31: =EQ29-'طراحی همه الگوها'!U233 -> 5 | EX31: =EP37 -> 42.4766594 | EY31: =EQ37 -> 52.82557005 | EZ31: 11 | FF31: =FF13 -> 0 | FG31: =FG30 -> 63.5 | FH31: 12 | FJ31: =FJ24 -> 28.5 | FK31: =FK24 -> 43.5 | FL31: 22 | FN31: s''12 | FO31: =FO30 -> 5 | FP31: =FP24 -> 59.34082496 | FR31: 24.775 | FS31: 43.03857747 | FT31: 41' | GA31: 32 | GB31: =GB12+GE12*SIN(RADIANS(GA31)+GA14) ->  | GC31: =GC12+GE12*COS(RADIANS(GA31)+GA14) ->  | GD31: =IF(GB13>GB31,ATAN((GC13-GC31)/(GB13-GB31)),ATAN((GC13-GC31)/(GB31-GB13))) ->  | GE31: =IF(GB13>GB31,(GB13-GB31)/COS(GD31),(GB31-GB13)/COS(GD31)) ->  | GG31: 1 | GH31: 2 | GI31: نقطه 13 | GJ31: نقطه قبل از چرخش | GK31: =IF(GH31>GH18,IF(GG31>GG18,GG18+SQRT(POWER(GG31-GG18,2)+POWER(GH31-GH18,2))*COS(ATAN((GH31-GH18)/(GG31-GG18+0.000123))+GH16),GG18-SQRT(POWER(GG31-GG18,2)+POWER(GH31-GH18,2))*COS(ATAN((GH31-GH18)/(GG18-GG31+0.000123))-GH16)),IF(GG31>GG18,GG18+SQRT(POWER(GG31-GG18,2)+POWER(GH31-GH18,2))*COS(ATAN((GH18-GH31)/(GG31-GG18+0.000123))-GH16),GG18-SQRT(POWER(GG31-GG18,2)+POWER(GH31-GH18,2))*COS(ATAN((GH18-GH31)/(GG18-GG31+0.000123))+GH16))) -> 0.6182452327 | GL31: =IF(GH31>GH18,IF(GG31>GG18,GH18+SQRT(POWER(GG31-GG18,2)+POWER(GH31-GH18,2))*SIN(ATAN((GH31-GH18)/(GG31-GG18+0.000123))+GH16),GH18+SQRT(POWER(GG31-GG18,2)+POWER(GH31-GH18,2))*SIN(ATAN((GH31-GH18)/(GG18-GG31+0.000123))-GH16)),IF(GG31>GG18,GH18-SQRT(POWER(GG31-GG18,2)+POWER(GH31-GH18,2))*SIN(ATAN((GH18-GH31)/(GG31-GG18+0.000123))-GH16),GH18-SQRT(POWER(GG31-GG18,2)+POWER(GH31-GH18,2))*SIN(ATAN((GH18-GH31)/(GG18-GG31+0.000123))+GH16))) -> 0.6987463478 | GM31: نقطه چرخیده | GP31: رسم باکس زیپ دامن-باکس چپ | GQ31: مولفه افقی | GR31: مولفه عمودی | GU31: =GU30+GT11 -> -60 | GV31: -1.047197551 | GW31: =HB13+HB10*COS(GV31) ->  | GX31: =HC13-HB10*SIN(GV31) ->  | GY31: =SQRT(POWER((HB12-GW31),2)+POWER((HC12-GX31),2)) ->  | GZ31: =ABS(HB9-GY31) ->  | HB31: نقطه دوم از خط دوم | HC31: f8 | HD31: =#REF! ->  | HE31: =#REF! ->  | HO31: =-HK31+HP9 -> 0 | HP31: 0 | NU31: Yw1 | NV31: ='متغیرها '!C852+5 -> 2 | NW31: جابجایی عمودی کل نقشه | NY31: f2 | NZ31: =NZ30-1*NZ28 -> -24.84107143 | OA31: =OA30-NZ27*NZ28 -> 1.823214286 | OB31: =NZ30 -> -24.4875 | OC31: =OA30 -> 2 | OD31: =NY30 -> w6 | OF31: a10,a11,b1 | OG31: ="هر"&TEXT(0,OG14)&" دانه را تبدیل به "&TEXT(0,OG15)&" دانه میکنیم تا تعداد دانه ها "&TEXT(0,OG18)&" شود" -> هر5 دانه را تبدیل به 8 دانه میکنیم تا تعداد دانه ها 303 شود | OJ31: f2 | OK31: =OK30-1*OK28 -> -23.58557983 | OL31: =OL30-OK27*OK28 -> 1.875210084 | OM31: =OK30 -> -23.336 | ON31: =OL30 -> 2 | OO31: =OJ30 -> m3 | OQ31: a10,a11,b1 | OR31: ="هر"&TEXT(0,OR14)&" دانه را تبدیل به "&TEXT(0,OR15)&" دانه میکنیم تا تعداد دانه ها "&TEXT(0,OR18)&" شود" -> هر5 دانه را تبدیل به 8 دانه میکنیم تا تعداد دانه ها 303 شود | OU31: f2 | OV31: =OV30-1*OV28 -> -23.94257983 | OW31: =OW30-OV27*OV28 -> 1.875210084 | OX31: =OV30 -> -23.693 | OY31: =OW30 -> 2 | OZ31: =OU30 -> m3
E32: فاصله زیر بغل تا پایین لباس (cm) b9 | F32: =ROUND(AX113,0) -> 34 | N32: بافت انتخابی | Q32: بافت انتخابی | U32: 0 | V32: =(10/3)*((Y32/X32)*(1/L6)-1) -> -3.333333333 | W32: =(100/68)*((AA32/Z32)*(1/L7)-1) ->  | X32: 13.5 | AA32: 36 | AC32: 26 | CM32: =CI42 -> 7 | CN32: =CJ42 -> 92 | CO32: j8 | DD32: =DD29 -> 48.6 | DE32: =DE15 -> 108 | DF32: 3 | DH32: =DH22 -> 42.1 | DI32: =DE14 -> 0 | DJ32: 18 | DL32: s16 | DM32: =DM15 -> 5 | DN32: =DN15 -> 70.1 | DP32: =DP31+0.32*(DP34-DP31) -> 17.50302406 | DQ32: =DQ34+0.5*(DQ31-DQ34) -> 83.53687881 | DX32: =DX30 -> 41.44129154 | DY32: =DY30 -> 57.90847838 | DZ32: s'19 | EB32: شیفت افقی مچ | EC32: =EE20+10 -> 120 | EE32: =EE31 -> 111.5 | EF32: =EF13 -> 101 | EG32: 11 | EO32: 6 | EP32: =EP30+EO25*COS(RADIANS('متغیرها '!C26)) -> 8.886706487 | EQ32: =EQ30-EO25*SIN(RADIANS('متغیرها '!C26)) -> -6.007658776 | ET32: =ET28+'طراحی همه الگوها'!U242 -> 31.6 | EU32: =EU28+'طراحی همه الگوها'!U244 -> 51.975 | EV32: 18 | FF32: =FF13 -> 0 | FG32: =FG31+'طراحی همه الگوها'!U258 -> 71 | FH32: 18 | FN32: s'12 | FO32: =FO30 -> 5 | FP32: =FP23 -> 61.94082496 | FR32: 29.924 | FS32: 21.30224749 | FT32: 41'' | GA32: 34 | GB32: =GB12+GE12*SIN(RADIANS(GA32)+GA14) ->  | GC32: =GC12+GE12*COS(RADIANS(GA32)+GA14) ->  | GD32: =IF(GB13>GB32,ATAN((GC13-GC32)/(GB13-GB32)),ATAN((GC13-GC32)/(GB32-GB13))) ->  | GE32: =IF(GB13>GB32,(GB13-GB32)/COS(GD32),(GB32-GB13)/COS(GD32)) ->  | GG32: 1 | GH32: 2 | GI32: نقطه 14 | GJ32: نقطه قبل از چرخش | GK32: =IF(GH32>GH18,IF(GG32>GG18,GG18+SQRT(POWER(GG32-GG18,2)+POWER(GH32-GH18,2))*COS(ATAN((GH32-GH18)/(GG32-GG18+0.000123))+GH16),GG18-SQRT(POWER(GG32-GG18,2)+POWER(GH32-GH18,2))*COS(ATAN((GH32-GH18)/(GG18-GG32+0.000123))-GH16)),IF(GG32>GG18,GG18+SQRT(POWER(GG32-GG18,2)+POWER(GH32-GH18,2))*COS(ATAN((GH18-GH32)/(GG32-GG18+0.000123))-GH16),GG18-SQRT(POWER(GG32-GG18,2)+POWER(GH32-GH18,2))*COS(ATAN((GH18-GH32)/(GG18-GG32+0.000123))+GH16))) -> 0.6182452327 | GL32: =IF(GH32>GH18,IF(GG32>GG18,GH18+SQRT(POWER(GG32-GG18,2)+POWER(GH32-GH18,2))*SIN(ATAN((GH32-GH18)/(GG32-GG18+0.000123))+GH16),GH18+SQRT(POWER(GG32-GG18,2)+POWER(GH32-GH18,2))*SIN(ATAN((GH32-GH18)/(GG18-GG32+0.000123))-GH16)),IF(GG32>GG18,GH18-SQRT(POWER(GG32-GG18,2)+POWER(GH32-GH18,2))*SIN(ATAN((GH18-GH32)/(GG32-GG18+0.000123))-GH16),GH18-SQRT(POWER(GG32-GG18,2)+POWER(GH32-GH18,2))*SIN(ATAN((GH18-GH32)/(GG18-GG32+0.000123))+GH16))) -> 0.6987463478 | GM32: نقطه چرخیده | GO32: نقطه ورودی بالا | GP32: s'u3 | GQ32: =#REF! ->  | GR32: =#REF! ->  | GU32: =GU31+GT11 -> -58 | GV32: -1.012290966 | GW32: =HB13+HB10*COS(GV32) ->  | GX32: =HC13-HB10*SIN(GV32) ->  | GY32: =SQRT(POWER((HB12-GW32),2)+POWER((HC12-GX32),2)) ->  | GZ32: =ABS(HB9-GY32) ->  | HB32: نقطه تقاطع | HC32: f10 | HD32: =(HE30-HE28+HD28*((HE29-HE28)/(HD29-HD28+0.0001))-HD30*((HE31-HE30)/(HD31-HD30+0.0001)))/(((HE29-HE28)/(HD29-HD28+0.0001))-((HE31-HE30)/(HD31-HD30+0.0001))) ->  | HE32: =HE28+(HD32-HD28)*((HE29-HE28)/(HD29-HD28+0.0001)) ->  | HO32: =-HK32+HP9 -> 0 | HP32: 0 | NU32: w'12 | NV32: ='متغیرها '!C853 -> 42 | NW32: نسبت نقشه بافت به سایز واقعی | NY32: f3 | NZ32: =NZ31 -> -24.84107143 | OA32: =OA30+NZ27*NZ28 -> 2.176785714 | OB32: =NZ31 -> -24.84107143 | OC32: =OA31 -> 1.823214286 | OD32: =NY31 -> f2 | OG32: ="نقشه بافت یقه شومیزیه نوک تیز با میل "&TEXT(0,OG57)&" بافت انتخابی شماره "&TEXT(0,OG58) -> نقشه بافت یقه شومیزیه نوک تیز با میل 2 بافت انتخابی شماره 2 | OJ32: f3 | OK32: =OK31 -> -23.58557983 | OL32: =OL30+OK27*OK28 -> 2.124789916 | OM32: =OK31 -> -23.58557983 | ON32: =OL31 -> 1.875210084 | OO32: =OJ31 -> f2 | OR32: ="نقشه بافت یقه شومیزیه معمولی با میل "&TEXT(0,OR57)&" بافت انتخابی شماره "&TEXT(0,OR58) -> نقشه بافت یقه شومیزیه معمولی با میل 2 بافت انتخابی شماره 2 | OU32: f3 | OV32: =OV31 -> -23.94257983 | OW32: =OW30+OV27*OV28 -> 2.124789916 | OX32: =OV31 -> -23.94257983 | OY32: =OW31 -> 1.875210084 | OZ32: =OU31 -> f2
E33: فاصله زیر بغل تا بالای مچ آستین (cm) b10 | F33: =ROUNDUP(SQRT(POWER(DY513-DY520,2)+POWER(DZ513-DZ520,2)),0) -> 6 | K33: یقه شکاری | N33: e1 | O33: =ROUND(P19-4*P18*F12+3*O34+15,0) -> 224 | Q33: e1 | R33: =ROUND(P19-4*P18*F12+1.5*R34+13.5,0) -> 212 | U33: 0 | V33: =(10/3)*((Y33/X33)*(1/L6)-1) -> -3.333333333 | W33: =(100/68)*((AA33/Z33)*(1/L7)-1) ->  | X33: 13.5 | AA33: 36 | AC33: 27 | CM33: =CI41 -> 5 | CN33: =CJ41 -> 92 | CO33: j7 | DD33: =DD16 -> 13 | DE33: =DE15 -> 108 | DF33: 4 | DH33: =DH22 -> 42.1 | DI33: =DI22 -> 17 | DJ33: 19 | DL33: s15 | DM33: =DM32+0.7*(DM31-DM32) -> 8.30372 | DN33: =DN32+0.5*(DN31-DN32) -> 81.995925 | DP33: =DP31+0.67*(DP34-DP31) -> 26.01614413 | DQ33: =DQ34+0.2*(DQ31-DQ34) -> 77.3238961 | DX33: =DU19 -> 34.51164508 | DY33: =DV19 -> 50.97883193 | DZ33: s'11 | EB33: شیفت عمودی مچ | EC33: =EF20-10 -> 97.1 | EE33: =DB37+'طراحی همه الگوها'!U216 -> 110 | EF33: =EF13 -> 101 | EG33: 3 | EI33: =EE21 -> 110 | EJ33: =EF21 -> 1.5 | EK33: 9 | EO33: 7 | EP33: =EP31+EO26*COS(RADIANS('متغیرها '!C26)) -> 17.78972151 | EQ33: =EQ31+EO26*SIN(RADIANS('متغیرها '!C26)) -> 5.392519672 | ET33: =ET28+'طراحی همه الگوها'!U242 -> 31.6 | EU33: =EU28 -> 40.975 | EV33: 16 | EX33: =EP37 -> 42.4766594 | EY33: =EQ37 -> 52.82557005 | EZ33: 11 | FF33: =FF13 -> 0 | FG33: =FG32+'طراحی همه الگوها'!U259 -> 136.1 | FH33: 14 | FJ33: =FJ18 -> 14.2 | FK33: =FG31 -> 63.5 | FL33: 23 | FN33: s'3 | FO33: =FO22+0.5*(FO12-FO22) -> 8.263106064 | FP33: =FP22+0.6*(FP12-FP22) -> 69.84290148 | FR33: 31.55 | FS33: 5 | FT33: s13 | GA33: 36 | GB33: =GB12+GE12*SIN(RADIANS(GA33)+GA14) ->  | GC33: =GC12+GE12*COS(RADIANS(GA33)+GA14) ->  | GD33: =IF(GB13>GB33,ATAN((GC13-GC33)/(GB13-GB33)),ATAN((GC13-GC33)/(GB33-GB13))) ->  | GE33: =IF(GB13>GB33,(GB13-GB33)/COS(GD33),(GB33-GB13)/COS(GD33)) ->  | GG33: 1 | GH33: 2 | GI33: نقطه 15 | GJ33: نقطه قبل از چرخش | GK33: =IF(GH33>GH18,IF(GG33>GG18,GG18+SQRT(POWER(GG33-GG18,2)+POWER(GH33-GH18,2))*COS(ATAN((GH33-GH18)/(GG33-GG18+0.000123))+GH16),GG18-SQRT(POWER(GG33-GG18,2)+POWER(GH33-GH18,2))*COS(ATAN((GH33-GH18)/(GG18-GG33+0.000123))-GH16)),IF(GG33>GG18,GG18+SQRT(POWER(GG33-GG18,2)+POWER(GH33-GH18,2))*COS(ATAN((GH18-GH33)/(GG33-GG18+0.000123))-GH16),GG18-SQRT(POWER(GG33-GG18,2)+POWER(GH33-GH18,2))*COS(ATAN((GH18-GH33)/(GG18-GG33+0.000123))+GH16))) -> 0.6182452327 | GL33: =IF(GH33>GH18,IF(GG33>GG18,GH18+SQRT(POWER(GG33-GG18,2)+POWER(GH33-GH18,2))*SIN(ATAN((GH33-GH18)/(GG33-GG18+0.000123))+GH16),GH18+SQRT(POWER(GG33-GG18,2)+POWER(GH33-GH18,2))*SIN(ATAN((GH33-GH18)/(GG18-GG33+0.000123))-GH16)),IF(GG33>GG18,GH18-SQRT(POWER(GG33-GG18,2)+POWER(GH33-GH18,2))*SIN(ATAN((GH18-GH33)/(GG33-GG18+0.000123))-GH16),GH18-SQRT(POWER(GG33-GG18,2)+POWER(GH33-GH18,2))*SIN(ATAN((GH18-GH33)/(GG18-GG33+0.000123))+GH16))) -> 0.6987463478 | GM33: نقطه چرخیده | GO33: نقطه ورودی پایین | GP33: s'd3 | GQ33: =#REF! ->  | GR33: =#REF! ->  | GU33: =GU32+GT11 -> -56 | GV33: -0.9773843811 | GW33: =HB13+HB10*COS(GV33) ->  | GX33: =HC13-HB10*SIN(GV33) ->  | GY33: =SQRT(POWER((HB12-GW33),2)+POWER((HC12-GX33),2)) ->  | GZ33: =ABS(HB9-GY33) ->  | HO33: =-HK33+HP9 -> 0 | HP33: 0 | NU33: w11 | NV33: ='متغیرها '!C854/NV39 -> 0.5892857143 | NW33: ارتفاع هر رج | OF33: متغیرهای ورودی | OQ33: متغیرهای ورودی
E34: گشادی لبه پایین آستین (cm) b'11 | F34: =F13 -> 26 | K34: بافت انتخابی | N34: e2 | O34: =ROUNDDOWN(0.5*(P17*P10-9),0) -> 7 | Q34: e2 | R34: =O34 -> 7 | U34: 0 | V34: =(10/3)*((Y34/X34)*(1/L6)-1) -> -3.333333333 | W34: =(100/68)*((AA34/Z34)*(1/L7)-1) ->  | X34: 13.5 | AA34: 36 | AC34: 28 | CI34: نقاط خروجی | DF34: نقاب | DH34: =DH16 -> 42.1 | DI34: =DI16 -> 27.3 | DJ34: 20 | DL34: s17 | DM34: =DB400 -> 5 | DN34: =IF('متغیرها '!C14=-1,DQ12,IF('متغیرها '!C14=0,DC400-0.1,DC400-0.25*(DC400-DC404))) -> 100.095 | DP34: =DM37 -> 34.0428002 | DQ34: =DN37 -> 73.18190763 | DR34: s20 | EB34: زاویه گشادی نسبی جلو به پشت | EC34: 33 | EE34: =DB37+'طراحی همه الگوها'!U216 -> 110 | EF34: =EF20 -> 107.1 | EG34: 10 | EI34: =EI22 -> 110 | EJ34: =EJ22 -> 1.2 | EK34: 14 | EO34: 8 | EP34: =EP35+ER41*SIN(RADIANS('متغیرها '!C30)) -> 47.85830024 | EQ34: =EQ35-ER41*COS(RADIANS('متغیرها '!C30)) -> 9.802582946 | ET34: =ET28+'طراحی همه الگوها'!U242+'طراحی همه الگوها'!U243 -> 35.2 | EU34: =EU28 -> 40.975 | EV34: 17 | EX34: =EP35 -> 28.42055676 | EY34: =EQ35 -> 63.20734424 | EZ34: 9 | FF34: =FF13+'طراحی همه الگوها'!U263 -> 72.5 | FG34: =FG33 -> 136.1 | FH34: 15 | FJ34: =FJ18 -> 14.2 | FK34: =FK18 -> 71.5 | FL34: 24 | GA34: 38 | GB34: =GB12+GE12*SIN(RADIANS(GA34)+GA14) ->  | GC34: =GC12+GE12*COS(RADIANS(GA34)+GA14) ->  | GD34: =IF(GB13>GB34,ATAN((GC13-GC34)/(GB13-GB34)),ATAN((GC13-GC34)/(GB34-GB13))) ->  | GE34: =IF(GB13>GB34,(GB13-GB34)/COS(GD34),(GB34-GB13)/COS(GD34)) ->  | GG34: 1 | GH34: 2 | GI34: نقطه 16 | GJ34: نقطه قبل از چرخش | GK34: =IF(GH34>GH18,IF(GG34>GG18,GG18+SQRT(POWER(GG34-GG18,2)+POWER(GH34-GH18,2))*COS(ATAN((GH34-GH18)/(GG34-GG18+0.000123))+GH16),GG18-SQRT(POWER(GG34-GG18,2)+POWER(GH34-GH18,2))*COS(ATAN((GH34-GH18)/(GG18-GG34+0.000123))-GH16)),IF(GG34>GG18,GG18+SQRT(POWER(GG34-GG18,2)+POWER(GH34-GH18,2))*COS(ATAN((GH18-GH34)/(GG34-GG18+0.000123))-GH16),GG18-SQRT(POWER(GG34-GG18,2)+POWER(GH34-GH18,2))*COS(ATAN((GH18-GH34)/(GG18-GG34+0.000123))+GH16))) -> 0.6182452327 | GL34: =IF(GH34>GH18,IF(GG34>GG18,GH18+SQRT(POWER(GG34-GG18,2)+POWER(GH34-GH18,2))*SIN(ATAN((GH34-GH18)/(GG34-GG18+0.000123))+GH16),GH18+SQRT(POWER(GG34-GG18,2)+POWER(GH34-GH18,2))*SIN(ATAN((GH34-GH18)/(GG18-GG34+0.000123))-GH16)),IF(GG34>GG18,GH18-SQRT(POWER(GG34-GG18,2)+POWER(GH34-GH18,2))*SIN(ATAN((GH18-GH34)/(GG34-GG18+0.000123))-GH16),GH18-SQRT(POWER(GG34-GG18,2)+POWER(GH34-GH18,2))*SIN(ATAN((GH18-GH34)/(GG18-GG34+0.000123))+GH16))) -> 0.6987463478 | GM34: نقطه چرخیده | GO34: متغیر ورودی پهنا | GP34: a20 | GQ34: =#REF! ->  | GR34: (سانتیمتر) | GU34: =GU33+GT11 -> -54 | GV34: -0.9424777961 | GW34: =HB13+HB10*COS(GV34) ->  | GX34: =HC13-HB10*SIN(GV34) ->  | GY34: =SQRT(POWER((HB12-GW34),2)+POWER((HC12-GX34),2)) ->  | GZ34: =ABS(HB9-GY34) ->  | HE34: قرینه نقطه نسبت به خط با داشتن دو نقطه از یک خط | HO34: =-HK34+HP9 -> 0 | HP34: 0 | NU34: g9 | NV34: ='متغیرها '!C855 -> 0.25 | NW34: پهنای نیم دایره | OA34: انحنا چپگرد | OD34: =OA34 -> انحنا چپگرد | OF34: Xm1 | OG34: =NV30 -> -30 | OH34: جابجایی افقی کل نقشه | OL34: انحنا چپگرد | OO34: =OL34 -> انحنا چپگرد | OQ34: Xm1 | OR34: =NV30 -> -30 | OS34: جابجایی افقی کل نقشه | OW34: انحنا چپگرد | OZ34: =OW34 -> انحنا چپگرد
E35: تعداد دانه ها در بالای مچ آستین b'12 | F35: =F14 -> 149 | K35: a1 | L35: =ROUND(2*L15*L19,0) -> 300 | N35: e3 | O35: =ROUND(0.35*(O37),0) -> 22 | Q35: e3 | R35: =ROUND(0.33*(R37),0) -> 24 | U35: 0 | V35: =(10/3)*((Y35/X35)*(1/L6)-1) -> -3.333333333 | W35: =(100/68)*((AA35/Z35)*(1/L7)-1) ->  | X35: 13.5 | AA35: 36 | AC35: 29 | CI35: مولفه افقی | CJ35: مولفه عمودی | CK35: اسم نقطه | CM35: =CI42 -> 7 | CN35: =CJ42 -> 92 | CO35: j8 | DD35: =DD15 -> 0 | DE35: =DE15 -> 108 | DF35: 1 | DL35: s18 | DM35: =DM34+0.5*(DM31-DM34) -> 7.3598 | DN35: =DN34-0.3*(DN34-DN31) -> 98.234055 | DX35: =DX33 -> 34.51164508 | DY35: =DY33 -> 50.97883193 | DZ35: s'11 | EB35: j4 | EC35: =IF('متغیرها '!C17<1,'متغیرها '!C17*'متغیرها '!U59,IF('متغیرها '!C17<2,'متغیرها '!U59+('متغیرها '!C17-1)*('متغیرها '!U60-'متغیرها '!U59),IF('متغیرها '!C17<3,'متغیرها '!U60+('متغیرها '!C17-2)*(I105-'متغیرها '!U60),I105+('متغیرها '!C17-3)*(H127-H126)))) -> 0 | ED35: چادر 3 | EN35: =EN37-ER45*SIN(ER46-RADIANS(45)+ER42) -> 21.08469132 | EO35: 9 | EP35: =EP37-ER40*SIN(ER46-RADIANS(45)+ER42) -> 28.42055676 | EQ35: =EQ37+ER40*COS(ER46-RADIANS(45)+ER42) -> 63.20734424 | ER35: =ER37+ER45*COS(ER46-RADIANS(45)+ER42) -> 66.28149171 | FR35: =FO18 -> 36.49154407 | FS35: =FP18 -> 62.85822585 | FT35: s''10 | GA35: 40 | GB35: =GB12+GE12*SIN(RADIANS(GA35)+GA14) ->  | GC35: =GC12+GE12*COS(RADIANS(GA35)+GA14) ->  | GD35: =IF(GB13>GB35,ATAN((GC13-GC35)/(GB13-GB35)),ATAN((GC13-GC35)/(GB35-GB13))) ->  | GE35: =IF(GB13>GB35,(GB13-GB35)/COS(GD35),(GB35-GB13)/COS(GD35)) ->  | GO35: متغیر ورودی طول | GP35: a21 | GQ35: 1 | GU35: =GU34+GT11 -> -52 | GV35: -0.907571211 | GW35: =HB13+HB10*COS(GV35) ->  | GX35: =HC13-HB10*SIN(GV35) ->  | GY35: =SQRT(POWER((HB12-GW35),2)+POWER((HC12-GX35),2)) ->  | GZ35: =ABS(HB9-GY35) ->  | HB35: مولفه افقی | HC35: مولفه عمودی | HD35: اسم نقطه ورودی | HO35: =-HK35+HP9 -> 0 | HP35: 0 | NU35: h3 | NV35: ='متغیرها '!C856 -> 4.5 | NW35: طول باکس نوشته | NY35: ارتفاع نیم دایره | NZ35: =NV44 -> 0.5892857143 | OA35: بزرگی فلش | OB35: =NZ38 -> 25.125 | OC35: =OA38 -> 2 | OD35: =NY38 -> w2 | OF35: Ym1 | OG35: =NV31 -> 2 | OH35: جابجایی عمودی کل نقشه | OJ35: ارتفاع نیم دایره | OK35: =OG48 -> 0.4159663866 | OL35: بزرگی فلش | OM35: =OK38 -> 36.64 | ON35: =OL38 -> 2 | OO35: =OJ38 -> m2 | OQ35: Ym1 | OR35: =NV31 -> 2 | OS35: جابجایی عمودی کل نقشه | OU35: ارتفاع نیم دایره | OV35: =OR48 -> 0.4159663866 | OW35: بزرگی فلش | OX35: =OV38 -> 33.07 | OY35: =OW38 -> 2 | OZ35: =OU38 -> m2
E36: پهنای مچ آستین (cm) b14 | F36: =ROUNDUP(CA513-CA511,0) -> 8 | K36: a2 | L36: =IF((ROUND(0.6*L12,0)-6)<0," خطا ",(ROUND(0.6*L12,0)-6)) -> 4 | N36: e4 | O36: =ROUND(0.65*(O37),0) -> 41 | Q36: e4 | R36: =ROUND(0.66*(R37),0) -> 49 | U36: 0 | V36: =(10/3)*((Y36/X36)*(1/L6)-1) -> -3.333333333 | W36: =(100/68)*((AA36/Z36)*(1/L7)-1) ->  | X36: 13.5 | AA36: 36 | AC36: 30 | CI36: =CI14 -> 5 | CJ36: =CJ23+'طراحی همه الگوها'!U177+CJ15 -> 106 | CK36: j1 | CM36: =CI44 -> 7 | CN36: =CJ44 -> 57 | CO36: j10 | DA36: محاسبات | DD36: =DD15 -> 0 | DE36: =DE15-'طراحی همه الگوها'!U205 -> 103 | DF36: 21 | DL36: s19 | DM36: =DM18+'متغیرها '!C13*'متغیرها '!U83*COS(DM17) -> 49.75024604 | DN36: =DN18-'متغیرها '!C13*'متغیرها '!U83*SIN(DM17) -> 71.15986778 | DP36: =DM27 -> 35.11041108 | DQ36: =DN27 -> 76.25155044 | DR36: s10 | DX36: =DU20 -> 30.23364906 | DY36: =DV20 -> 54.12545711 | DZ36: s'12 | EB36: (1 → 5) | EC36: =DB38-'متغیرها '!C19*'متغیرها '!U83 -> 58.89480433 | EE36: =EC32 -> 120 | EF36: =EC33 -> 97.1 | EG36: 17 | EI36: =EE20 -> 110 | EJ36: =EF20 -> 107.1 | EK36: 10 | EN36: =EP29+DB38*COS(RADIANS(45)) -> 50.35722612 | EO36: 10 | EP36: =EP29+'طراحی همه الگوها'!U236*COS(RADIANS(45)) -> 50.32554467 | EQ36: =EQ29-'طراحی همه الگوها'!U236*SIN(RADIANS(45)) -> 60.67445533 | ER36: =EQ29-DB38*SIN(RADIANS(45)) -> 60.64277388 | ET36: =EP36 -> 50.32554467 | EU36: =EQ36 -> 60.67445533 | EV36: 10 | EX36: =EP35 -> 28.42055676 | EY36: =EQ35 -> 63.20734424 | EZ36: 9 | FF36: =FF31+'طراحی همه الگوها'!U260 -> 35.6 | FG36: =FG31 -> 63.5 | FH36: 16 | FJ36: =FJ19 -> 28.5 | FK36: =FG31 -> 63.5 | FL36: 25 | FR36: =FO19 -> 41.44129154 | FS36: =FP19 -> 57.90847838 | FT36: k4 شبیه ساز | GA36: 42 | GB36: =GB12+GE12*SIN(RADIANS(GA36)+GA14) ->  | GC36: =GC12+GE12*COS(RADIANS(GA36)+GA14) ->  | GD36: =IF(GB13>GB36,ATAN((GC13-GC36)/(GB13-GB36)),ATAN((GC13-GC36)/(GB36-GB13))) ->  | GE36: =IF(GB13>GB36,(GB13-GB36)/COS(GD36),(GB36-GB13)/COS(GD36)) ->  | GQ36: ماکزیمم متغیر ورودی ضریب طول | GR36: 1 | GU36: =GU35+GT11 -> -50 | GV36: -0.872664626 | GW36: =HB13+HB10*COS(GV36) ->  | GX36: =HC13-HB10*SIN(GV36) ->  | GY36: =SQRT(POWER((HB12-GW36),2)+POWER((HC12-GX36),2)) ->  | GZ36: =ABS(HB9-GY36) ->  | HB36: 0 | HC36: 0 | HD36: 1 | HE36: نقطه اول خط تقارن | HF36: نقاط قرینه شده نسبت به خط تقارن | HO36: =-HK36+HP9 -> 0 | HP36: 0 | NU36: h4 | NV36: ='متغیرها '!C857 -> 0.5 | NW36: پهنای باکس نوشته | NY36: پهنای نیم دایره | NZ36: =NV34 -> 0.25 | OA36: =NV46 -> 0.3535714286 | OB36: =NZ42 -> 25.228125 | OC36: =OA42 -> 2.0825 | OD36: =NY42 -> g5 | OF36: w'12 | OG36: =NV32 -> 42 | OH36: نسبت نقشه بافت به سایز واقعی | OJ36: پهنای نیم دایره | OK36: =OG38 -> 0.25 | OL36: =OG50 -> 0.2495798319 | OM36: =OK42 -> 36.71279412 | ON36: =OL42 -> 2.058235294 | OO36: =OJ42 -> g5 | OQ36: w'12 | OR36: =NV32 -> 42 | OS36: نسبت نقشه بافت به سایز واقعی | OU36: پهنای نیم دایره | OV36: =OR38 -> 0.25 | OW36: =OR50 -> 0.2495798319 | OX36: =OV42 -> 33.14279412 | OY36: =OW42 -> 2.058235294 | OZ36: =OU42 -> g5
E37: گشادی مچ جدار در پایین آستین (cm) b15 | F37: =ROUND(BZ520-BZ519,0) -> 35 | K37: a3 | L37: =ROUND(0.33*L39,0) -> 35 | N37: e5 | O37: =ROUND(0.28*(O33),0) -> 63 | Q37: e5 | R37: =ROUND(0.35*(R33),0) -> 74 | U37: 0 | V37: =(10/3)*((Y37/X37)*(1/L6)-1) -> -3.333333333 | W37: =(100/68)*((AA37/Z37)*(1/L7)-1) ->  | X37: 13.5 | AA37: 36 | AC37: 31 | CI37: =CI36 -> 5 | CJ37: =CJ36-'طراحی همه الگوها'!U177 -> 59 | CK37: j2 | DA37: مولفه افقی نقطه 1 | DB37: =0 -> 0 | DD37: =DD16 -> 13 | DE37: =DE16-'طراحی همه الگوها'!U206 -> 104.5 | DF37: 22 | DL37: s20 | DM37: =DM27-0.25*'متغیرها '!U84*SIN(DM17) -> 34.0428002 | DN37: =DN27-0.25*'متغیرها '!U84*COS(DM17) -> 73.18190763 | DP37: =DM36 -> 49.75024604 | DQ37: =DN36 -> 71.15986778 | DR37: s19 | EB37: زاویه مچ | EC37: 15 | EE37: =EC32+'طراحی همه الگوها'!U224 -> 125.3 | EF37: =EC33 -> 97.1 | EG37: 18 | EI37: =EI15 -> 110.3 | EJ37: =EJ15 -> 107.1 | EK37: 13 | EN37: =EN36-'متغیرها '!U84*COS(RADIANS(45)) -> 41.16483796 | EO37: 11 | EP37: =EP36-'طراحی همه الگوها'!U237*COS(RADIANS(45)) -> 42.4766594 | EQ37: =EQ36-'طراحی همه الگوها'!U237*SIN(RADIANS(45)) -> 52.82557005 | ER37: =ER36-'متغیرها '!U84*SIN(RADIANS(45)) -> 51.45038573 | EX37: =EP34 -> 47.85830024 | EY37: =EQ34 -> 9.802582946 | EZ37: 8 | FF37: =FF36 -> 35.6 | FG37: =FG31+'طراحی همه الگوها'!U261 -> 76.3 | FH37: 17 | FJ37: =FJ19 -> 28.5 | FK37: =FK19 -> 73.9 | FL37: 26 | GA37: 44 | GB37: =GB12+GE12*SIN(RADIANS(GA37)+GA14) ->  | GC37: =GC12+GE12*COS(RADIANS(GA37)+GA14) ->  | GD37: =IF(GB13>GB37,ATAN((GC13-GC37)/(GB13-GB37)),ATAN((GC13-GC37)/(GB37-GB13))) ->  | GE37: =IF(GB13>GB37,(GB13-GB37)/COS(GD37),(GB37-GB13)/COS(GD37)) ->  | GO37: m1 | GP37: =ATAN((-GQ33+GQ32)/(GR32-GR33)) ->  | GQ37: m2 | GR37: =SQRT(POWER(GQ32-GQ33,2)+POWER(GR32-GR33,2)) ->  | GU37: =GU36+GT11 -> -48 | GV37: -0.837758041 | GW37: =HB13+HB10*COS(GV37) ->  | GX37: =HC13-HB10*SIN(GV37) ->  | GY37: =SQRT(POWER((HB12-GW37),2)+POWER((HC12-GX37),2)) ->  | GZ37: =ABS(HB9-GY37) ->  | HB37: =HF29 -> 0 | HC37: =HG29 -> 0 | HD37: 2 | HE37: نقطه دوم خط تقارن | HF37: مولفه افقی | HG37: مولفه عمودی | HH37: اسم نقطه | HO37: =-HK37+HP9 -> 0 | HP37: 0 | NU37: f'4 | NV37: ='متغیرها '!C858 -> 0.6 | NW37: بزرگی فلش رج | NY37: نقطه شروع انحنا | NZ37: مولفه افقی | OA37: مولفه عمودی | OB37: =NZ41 -> 25.27232143 | OC37: =OA41 -> 2.294642857 | OD37: =NY41 -> g4 | OF37: w11 | OG37: ='متغیرها '!C854/OG55 -> 0.4159663866 | OH37: ارتفاع هر رج | OJ37: نقطه شروع انحنا | OK37: مولفه افقی | OL37: مولفه عمودی | OM37: =OK41 -> 36.7439916 | ON37: =OL41 -> 2.207983193 | OO37: =OJ41 -> g4 | OQ37: w11 | OR37: ='متغیرها '!C854/OR55 -> 0.4159663866 | OS37: ارتفاع هر رج | OU37: نقطه شروع انحنا | OV37: مولفه افقی | OW37: مولفه عمودی | OX37: =OV41 -> 33.1739916 | OY37: =OW41 -> 2.207983193 | OZ37: =OU41 -> g4
E38: در بالای مچ هر b12 دانه یکی کم شود | F38: =F22 -> -3 | K38: a4 | L38: =ROUND(0.66*L39,0) -> 69 | N38: e6 | O38: =O34 -> 7 | Q38: e6 | R38: =R34 -> 7 | U38: 0 | V38: =(10/3)*((Y38/X38)*(1/L6)-1) -> -3.333333333 | W38: =(100/68)*((AA38/Z38)*(1/L7)-1) ->  | X38: 13.5 | AA38: 36 | AC38: 32 | CI38: =CI36+'طراحی همه الگوها'!U178 -> 15.5 | CJ38: =CJ36 -> 106 | CK38: j3 | CM38: =CI44 -> 7 | CN38: =CJ44 -> 57 | CO38: j10 | DA38: نوک سر تا مچ دست شبیه ساز a3 | DB38: =1.03*(SQRT(POWER(0.5*H168,2)+POWER((0.47*'متغیرها '!U85+H167*SIN('متغیرها '!B245)),2)))+'متغیرها '!U83 -> 64.14480433 | DX38: =DX36 -> 30.23364906 | DY38: =DY36 -> 54.12545711 | DZ38: s'12 | EB38: شبیه سازαk1 | EC38: =F423 -> 1.385321903 | EE38: =EC32+'طراحی همه الگوها'!U224 -> 125.3 | EF38: =EC33-'طراحی همه الگوها'!U226 -> 87.3 | EG38: 20 | FR38: =FO27 -> 31.55 | FS38: =FP27 -> 5 | FT38: s13 | GA38: 46 | GB38: =GB12+GE12*SIN(RADIANS(GA38)+GA14) ->  | GC38: =GC12+GE12*COS(RADIANS(GA38)+GA14) ->  | GD38: =IF(GB13>GB38,ATAN((GC13-GC38)/(GB13-GB38)),ATAN((GC13-GC38)/(GB38-GB13))) ->  | GE38: =IF(GB13>GB38,(GB13-GB38)/COS(GD38),(GB38-GB13)/COS(GD38)) ->  | GO38: نقطه خروجی بالا | GP38: s'u9 | GQ38: =GQ32-GQ34*COS(GP37) ->  | GR38: =GR32+GQ34*SIN(GP37) ->  | GU38: =GU37+GT11 -> -46 | GV38: -0.8028514559 | GW38: =HB13+HB10*COS(GV38) ->  | GX38: =HC13-HB10*SIN(GV38) ->  | GY38: =SQRT(POWER((HB12-GW38),2)+POWER((HC12-GX38),2)) ->  | GZ38: =ABS(HB9-GY38) ->  | HB38: 0 | HC38: 0 | HD38: 3 | HF38: =HB38+2*(SIN(ATAN((HB37-HB36)/(HC37-HC36)))*(HC38-HC36)+COS(ATAN((HB37-HB36)/(HC37-HC36)))*(HB36-HB38))*COS(ATAN((HB37-HB36)/(HC37-HC36))) ->  | HG38: =HC38-2*(SIN(ATAN((HB37-HB36)/(HC37-HC36)))*(HC38-HC36)+COS(ATAN((HB37-HB36)/(HC37-HC36)))*(HB36-HB38))*SIN(ATAN((HB37-HB36)/(HC37-HC36))) ->  | HH38: =HD38 -> 3 | HO38: =-HK38+HP9 -> 0 | HP38: 0 | NU38: f5 | NV38: ='متغیرها '!C859 -> 0.5 | NW38: زاویه فلش رج | NY38: w2 | NZ38: =NU49 -> 25.125 | OA38: =NV49 -> 2 | OB38: =NZ43 -> 25.228125 | OC38: =OA43 -> 2.506785714 | OD38: =NY43 -> g6 | OF38: g9 | OG38: =NV34 -> 0.25 | OH38: پهنای نیم دایره | OJ38: m2 | OK38: =OF60 -> 36.64 | OL38: =OG60 -> 2 | OM38: =OK43 -> 36.71279412 | ON38: =OL43 -> 2.357731092 | OO38: =OJ43 -> g6 | OQ38: g9 | OR38: =NV34 -> 0.25 | OS38: پهنای نیم دایره | OU38: m2 | OV38: =OQ60 -> 33.07 | OW38: =OR60 -> 2 | OX38: =OV43 -> 33.14279412 | OY38: =OW43 -> 2.357731092 | OZ38: =OU43 -> g6
E39: هر b11 رج در بافت آستین یکدانه از ابتدا و یکدانه از انتها کم شود | F39: =F19 -> -2 | K39: a5 | L39: =ROUND(0.35*L35,0) -> 105 | N39: e7 | O39: =ROUND(P18*F12,0) -> 0 | Q39: e7 | R39: =O39 -> 0 | T39: =AA39/Z39 ->  | U39: =Y39/X39 -> 0 | V39: =(10/3)*((Y39/X39)*(1/L6)-1) -> -3.333333333 | W39: =(100/68)*((AA39/Z39)*(1/L7)-1) ->  | X39: 13.5 | AA39: 36 | AC39: 33 | CI39: ='طراحی همه الگوها'!U178+'طراحی همه الگوها'!U177+CI36 -> 62.5 | CJ39: =CJ36 -> 106 | CK39: j5 | CM39: =CI43 -> 5 | CN39: =CJ43 -> 57 | CO39: j9 | DL39: محاسبات طراحی چادر 2 | DP39: =DP37 -> 49.75024604 | DQ39: =DQ37 -> 71.15986778 | DR39: s19 | DX39: =DU18 -> 37.72898094 | DY39: =DV18 -> 61.62078899 | DZ39: s'10 | EB39: (k4 →k5)شبیه ساز | EC39: =F425 -> 6.510708634 | EE39: =EC32 -> 120 | EF39: =EC33-'طراحی همه الگوها'!U225 -> 86.5 | EG39: 19 | EI39: =EE37 -> 125.3 | EJ39: =EF37 -> 97.1 | EK39: 18 | EQ39: j4 | ER39: =IF('متغیرها '!C25<1,'متغیرها '!C25*'متغیرها '!U59,IF('متغیرها '!C25<2,'متغیرها '!U59+('متغیرها '!C25-1)*('متغیرها '!U60-'متغیرها '!U59),IF('متغیرها '!C25<3,'متغیرها '!U60+('متغیرها '!C25-2)*(I105-'متغیرها '!U60),I105+('متغیرها '!C25-3)*(H127-H126)))) -> 0 | EX39: =EP29 -> 5 | EY39: =EQ29 -> 106 | EZ39: 1 | FF39: =FF13 -> 0 | FG39: =FG33-FC43 -> 125.6 | FH39: 19' | FJ39: =FJ13 -> 69.125 | FK39: =FG33 -> 136.1 | FL39: 27 | FR39: =FO30 -> 5 | FS39: =FP30 -> 5 | FT39: 2 | GA39: 48 | GB39: =GB12+GE12*SIN(RADIANS(GA39)+GA14) ->  | GC39: =GC12+GE12*COS(RADIANS(GA39)+GA14) ->  | GD39: =IF(GB13>GB39,ATAN((GC13-GC39)/(GB13-GB39)),ATAN((GC13-GC39)/(GB39-GB13))) ->  | GE39: =IF(GB13>GB39,(GB13-GB39)/COS(GD39),(GB39-GB13)/COS(GD39)) ->  | GO39: نقطه خروجی پایین | GP39: s'd8 | GQ39: =GQ40-GQ34*COS(GP37) ->  | GR39: =GR40+GQ34*SIN(GP37) ->  | GU39: =GU38+GT11 -> -44 | GV39: -0.7679448709 | GW39: =HB13+HB10*COS(GV39) ->  | GX39: =HC13-HB10*SIN(GV39) ->  | GY39: =SQRT(POWER((HB12-GW39),2)+POWER((HC12-GX39),2)) ->  | GZ39: =ABS(HB9-GY39) ->  | HB39: 0 | HC39: 0 | HD39: 4 | HF39: =HB39+2*(SIN(ATAN((HB37-HB36)/(HC37-HC36)))*(HC39-HC36)+COS(ATAN((HB37-HB36)/(HC37-HC36)))*(HB36-HB39))*COS(ATAN((HB37-HB36)/(HC37-HC36))) ->  | HG39: =HC39-2*(SIN(ATAN((HB37-HB36)/(HC37-HC36)))*(HC39-HC36)+COS(ATAN((HB37-HB36)/(HC37-HC36)))*(HB36-HB39))*SIN(ATAN((HB37-HB36)/(HC37-HC36))) ->  | HH39: =HD39 -> 4 | HO39: =-HK39+HP9 -> 0 | HP39: 0 | NV39: =L18 -> 4.242424242 | NW39: aa0 تعداد رج در یک سانت | NY39: نقاط خروجی | NZ39: مولفه افقی | OA39: مولفه عمودی | OB39: =NZ40 -> 25.125 | OC39: =OA40 -> 2.589285714 | OD39: =NY40 -> g2 | OF39: h3 | OG39: =NV35 -> 4.5 | OH39: طول باکس نوشته | OJ39: نقاط خروجی | OK39: مولفه افقی | OL39: مولفه عمودی | OM39: =OK40 -> 36.64 | ON39: =OL40 -> 2.415966387 | OO39: =OJ40 -> g2 | OQ39: h3 | OR39: =NV35 -> 4.5 | OS39: طول باکس نوشته | OU39: نقاط خروجی | OV39: مولفه افقی | OW39: مولفه عمودی | OX39: =OV40 -> 33.07 | OY39: =OW40 -> 2.415966387 | OZ39: =OU40 -> g2
K40: a6 | L40: =ROUND(0.4*L12,0) -> 6 | N40: e8 | O40: =2*O39-4 -> -4 | Q40: e8 | R40: -4 | U40: 0 | V40: =(10/3)*((Y40/X40)*(1/L6)-1) -> -3.333333333 | W40: =(100/68)*((AA40/Z40)*(1/L7)-1) ->  | X40: 13.5 | AA40: 36 | AC40: =AC39+1 -> 34 | CI40: ='طراحی همه الگوها'!U179+CI36 -> 10 | CJ40: =CJ36 -> 106 | CK40: j6 | DL40: αs2 | DM40: =ATAN((DN13-DN14)/(DM14-DM13)) -> 1.27979153 | DP40: =DM29 -> 46.10394426 | DQ40: =DN29 -> 60.67585693 | DR40: s11 | EB40: زاویه خم بودن دست | EC40: =K390 -> 25.82250667 | EE40: =EC32 -> 120 | EF40: =EC33 -> 97.1 | EG40: 17 | EQ40: (9→11) | ER40: ='متغیرها '!C29*ER45+'متغیرها '!C27*'متغیرها '!U83 -> 17.47441721 | EX40: =EP30 -> -0.8 | EY40: =EQ30 -> -5.5 | EZ40: 3 | FJ40: =FJ13 -> 69.125 | FK40: =FK13 -> 99.8 | FL40: 28 | GA40: 50 | GB40: =GB12+GE12*SIN(RADIANS(GA40)+GA14) ->  | GC40: =GC12+GE12*COS(RADIANS(GA40)+GA14) ->  | GD40: =IF(GB13>GB40,ATAN((GC13-GC40)/(GB13-GB40)),ATAN((GC13-GC40)/(GB40-GB13))) ->  | GE40: =IF(GB13>GB40,(GB13-GB40)/COS(GD40),(GB40-GB13)/COS(GD40)) ->  | GO40: نقطه خروجی میانه | GQ40: =GQ32-GQ35*GR37*SIN(GP37)/GR36 ->  | GR40: =GR32-GQ35*GR37*COS(GP37)/GR36 ->  | GU40: =GU39+GT11 -> -42 | GV40: -0.7330382858 | GW40: =HB13+HB10*COS(GV40) ->  | GX40: =HC13-HB10*SIN(GV40) ->  | GY40: =SQRT(POWER((HB12-GW40),2)+POWER((HC12-GX40),2)) ->  | GZ40: =ABS(HB9-GY40) ->  | HB40: =HF30 -> 0 | HC40: =HG30 -> 0 | HD40: 5 | HF40: =HB40+2*(SIN(ATAN((HB37-HB36)/(HC37-HC36)))*(HC40-HC36)+COS(ATAN((HB37-HB36)/(HC37-HC36)))*(HB36-HB40))*COS(ATAN((HB37-HB36)/(HC37-HC36))) ->  | HG40: =HC40-2*(SIN(ATAN((HB37-HB36)/(HC37-HC36)))*(HC40-HC36)+COS(ATAN((HB37-HB36)/(HC37-HC36)))*(HB36-HB40))*SIN(ATAN((HB37-HB36)/(HC37-HC36))) ->  | HH40: =HD40 -> 5 | HO40: =-HK40+HP9 -> 0 | HP40: 0 | NV40: =L19 -> 5.714285714 | NW40: تعداد دانه در یک سانت ab0 | NY40: g2 | NZ40: =NZ38 -> 25.125 | OA40: =OA38+NZ35 -> 2.589285714 | OF40: h4 | OG40: =NV36 -> 0.5 | OH40: پهنای باکس نوشته | OJ40: g2 | OK40: =OK38 -> 36.64 | OL40: =OL38+OK35 -> 2.415966387 | OQ40: h4 | OR40: =NV36 -> 0.5 | OS40: پهنای باکس نوشته | OU40: g2 | OV40: =OV38 -> 33.07 | OW40: =OW38+OV35 -> 2.415966387
E41: تقسیم بندی بالاتنه | F41: تعداد دانه ها (بافت جودانه یا ساده) | G41: تعداد دانه ها (بافت انتخابی) | K41: a10 | L41: =I31 -> 300 | N41: e9 | O41: =IF((ROUNDUP(P12*P17*P9,0)-O39-O40-3)>-1,ROUNDUP(P12*P17*P9,0)-O39-O40-3,"خطا") -> 19 | Q41: e9 | R41: 19 | U41: 0 | V41: =(10/3)*((Y41/X41)*(1/L6)-1) -> -3.333333333 | W41: =(100/68)*((AA41/Z41)*(1/L7)-1) ->  | X41: 13.5 | AA41: 36 | AC41: 35 | CI41: =CI36 -> 5 | CJ41: =CJ42 -> 92 | CK41: j7 | CM41: =CI43 -> 5 | CN41: =CJ43 -> 57 | CO41: j9 | DL41: (s2 →s3) | DM41: =SQRT(POWER((DM14-DM13),2)+POWER((DN13-DN14),2)) -> 4.934842691 | DX41: =DU23 -> 56.95 | DY41: =DV23 -> 5 | DZ41: s'13 | EB41: دست خمیده شبیه ساز k4 | EC41: =K384 -> 41.44129154 | ED41: =L384 -> 57.90847838 | EQ41: (8→9) | ER41: =ER37+'متغیرها '!C29*ER45*COS(ER46-RADIANS(45)+ER42)-EQ31 -> 56.83215992 | FR41: =FR39 -> 5 | FS41: =FS39 -> 5 | FT41: 2 | GA41: 52 | GB41: =GB12+GE12*SIN(RADIANS(GA41)+GA14) ->  | GC41: =GC12+GE12*COS(RADIANS(GA41)+GA14) ->  | GD41: =IF(GB13>GB41,ATAN((GC13-GC41)/(GB13-GB41)),ATAN((GC13-GC41)/(GB41-GB13))) ->  | GE41: =IF(GB13>GB41,(GB13-GB41)/COS(GD41),(GB41-GB13)/COS(GD41)) ->  | GU41: =GU40+GT11 -> -40 | GV41: -0.6981317008 | GW41: =HB13+HB10*COS(GV41) ->  | GX41: =HC13-HB10*SIN(GV41) ->  | GY41: =SQRT(POWER((HB12-GW41),2)+POWER((HC12-GX41),2)) ->  | GZ41: =ABS(HB9-GY41) ->  | HO41: =-HK41+HP9 -> 0 | HP41: 0 | NV41: =F8 -> 2 | NW41: انتخاب ضخامت میل بافتنی f1 | NY41: g4 | NZ41: =NZ38+NZ36*NZ35 -> 25.27232143 | OA41: =OA38+0.5*NZ35 -> 2.294642857 | OB41: =NZ45 -> 24.99460653 | OC41: =OA45 -> 2.07581144 | OD41: =NY45 -> g8 | OF41: f'4 | OG41: =NV37 -> 0.6 | OH41: بزرگی فلش رج | OJ41: g4 | OK41: =OK38+OK36*OK35 -> 36.7439916 | OL41: =OL38+0.5*OK35 -> 2.207983193 | OM41: =OK45 -> 36.5479636 | ON41: =OL45 -> 2.053506279 | OO41: =OJ45 -> g8 | OQ41: f'4 | OR41: =NV37 -> 0.6 | OS41: بزرگی فلش رج | OU41: g4 | OV41: =OV38+OV36*OV35 -> 33.1739916 | OW41: =OW38+0.5*OV35 -> 2.207983193 | OX41: =OV45 -> 32.9779636 | OY41: =OW45 -> 2.053506279 | OZ41: =OU45 -> g8
E42: b6 کل پهنای جادکمه | F42: =2*F25 -> 0 | K42: a11 | L42: =J31 -> 299 | N42: e10 | O42: =N30 -> 5 | Q42: e10 | R42: 5 | U42: 0 | V42: =(10/3)*((Y42/X42)*(1/L6)-1) -> -3.333333333 | W42: =(100/68)*((AA42/Z42)*(1/L7)-1) ->  | X42: 13.5 | AA42: 36 | AC42: 36 | CI42: ='طراحی همه الگوها'!U181+CI36 -> 7 | CJ42: =CJ36-'طراحی همه الگوها'!U180 -> 92 | CK42: j8 | CM42: =CI41 -> 5 | CN42: =CJ41 -> 92 | CO42: j7 | DL42: (s2 →s14) | DM42: =DM41*2*('متغیرها '!C10-0.5) -> 4.934842691 | DP42: =DP40 -> 46.10394426 | DQ42: =DQ40 -> 60.67585693 | DR42: s11 | DX42: =DU30 -> 5 | DY42: =DV30 -> 5 | DZ42: 2' | EQ42: α2 | ER42: ='متغیرها '!B245 -> 0.3347104009 | EX42: =ET28 -> 28 | EY42: =EU28 -> 40.975 | EZ42: 15 | FB42: j4 | FC42: =IF('متغیرها '!C37<1,'متغیرها '!C37*'متغیرها '!U59,IF('متغیرها '!C37<2,'متغیرها '!U59+('متغیرها '!C37-1)*('متغیرها '!U60-'متغیرها '!U59),IF('متغیرها '!C37<3,'متغیرها '!U60+('متغیرها '!C37-2)*(I105-'متغیرها '!U60),I105+('متغیرها '!C37-3)*(H127-H126)))) -> 0 | FR42: =FO31 -> 5 | FS42: =FP31 -> 59.34082496 | FT42: s''12 | GA42: 54 | GB42: =GB12+GE12*SIN(RADIANS(GA42)+GA14) ->  | GC42: =GC12+GE12*COS(RADIANS(GA42)+GA14) ->  | GD42: =IF(GB13>GB42,ATAN((GC13-GC42)/(GB13-GB42)),ATAN((GC13-GC42)/(GB42-GB13))) ->  | GE42: =IF(GB13>GB42,(GB13-GB42)/COS(GD42),(GB42-GB13)/COS(GD42)) ->  | GU42: =GU41+GT11 -> -38 | GV42: -0.6632251158 | GW42: =HB13+HB10*COS(GV42) ->  | GX42: =HC13-HB10*SIN(GV42) ->  | GY42: =SQRT(POWER((HB12-GW42),2)+POWER((HC12-GX42),2)) ->  | GZ42: =ABS(HB9-GY42) ->  | HE42: یافتن راس سوم مثلث با داشتن دو راس و یک ضلع و یک زاویه | HO42: =-HK42+HP9 -> 0 | HP42: =HL42 -> 0 | NV42: =L23 -> 4 | NW42: بافت انتخابی یقه شکاری | NY42: g5 | NZ42: =NZ38+0.7*(NZ41-NZ38) -> 25.228125 | OA42: =OA38+0.28*(OA41-OA38) -> 2.0825 | OB42: =NZ41 -> 25.27232143 | OC42: =OA41 -> 2.294642857 | OD42: =NY41 -> g4 | OF42: f5 | OG42: =NV38 -> 0.5 | OH42: زاویه فلش رج | OJ42: g5 | OK42: =OK38+0.7*(OK41-OK38) -> 36.71279412 | OL42: =OL38+0.28*(OL41-OL38) -> 2.058235294 | OM42: =OK41 -> 36.7439916 | ON42: =OL41 -> 2.207983193 | OO42: =OJ41 -> g4 | OQ42: f5 | OR42: =NV38 -> 0.5 | OS42: زاویه فلش رج | OU42: g5 | OV42: =OV38+0.7*(OV41-OV38) -> 33.14279412 | OW42: =OW38+0.28*(OW41-OW38) -> 2.058235294 | OX42: =OV41 -> 33.1739916 | OY42: =OW41 -> 2.207983193 | OZ42: =OU41 -> g4
E43: b3 جلو بدون جادکمه بین خط رگلان و خط مرکزی جلو که نیمه جادکمه از آن کم شود | F43: =ROUNDUP(F7*(SQRT(POWER(AX129-AX131,2)+POWER(AX130,2))+SQRT(POWER(AX131-AX133,2)+POWER(AX132-AX130,2))),0)-F25 -> 24 | G43: =ROUNDUP(I7*(SQRT(POWER(AX129-AX131,2)+POWER(AX130,2))+SQRT(POWER(AX131-AX133,2)+POWER(AX132-AX130,2))),0)-F25 -> 54 | K43: a25 | L43: =ROUND(I7*(F11-L15),0) -> 2 | N43: e11 | O43: =O30 -> 8 | Q43: e11 | R43: 8 | U43: 0 | V43: =(10/3)*((Y43/X43)*(1/L6)-1) -> -3.333333333 | W43: =(100/68)*((AA43/Z43)*(1/L7)-1) ->  | X43: 13.5 | AA43: 36 | AC43: 37 | CI43: =CI36 -> 5 | CJ43: =CJ44 -> 57 | CK43: j9 | CO43: انحنا | DL43: شیفت افقی کل | DM43: ='متغیرها '!C51 -> 5 | DP43: =DM28 -> 30.7085693 | DQ43: =DN28 -> 63.59517699 | DR43: s12 | EQ43: شیفت افقی مرغک | ER43: ='متغیرها '!C33*0.5*('متغیرها '!U72-'متغیرها '!U73) -> 28 | EX43: =ET32 -> 31.6 | EY43: =EU32 -> 51.975 | EZ43: 18 | FB43: (14 →19') | FC43: =DM47+0.1*'متغیرها '!C40 -> 10.5 | FF43: رسم چادر شماره 5 برای پرینت | GA43: 56 | GB43: =GB12+GE12*SIN(RADIANS(GA43)+GA14) ->  | GC43: =GC12+GE12*COS(RADIANS(GA43)+GA14) ->  | GD43: =IF(GB13>GB43,ATAN((GC13-GC43)/(GB13-GB43)),ATAN((GC13-GC43)/(GB43-GB13))) ->  | GE43: =IF(GB13>GB43,(GB13-GB43)/COS(GD43),(GB43-GB13)/COS(GD43)) ->  | GU43: =GU42+GT11 -> -36 | GV43: -0.6283185307 | GW43: =HB13+HB10*COS(GV43) ->  | GX43: =HC13-HB10*SIN(GV43) ->  | GY43: =SQRT(POWER((HB12-GW43),2)+POWER((HC12-GX43),2)) ->  | GZ43: =ABS(HB9-GY43) ->  | HB43: اطلاعات ورودی | HO43: =-HK43+HP9 -> 0 | HP43: 0 | NU43: محاسبات | NY43: g6 | NZ43: =NZ42 -> 25.228125 | OA43: =OA40-OA42+OA38 -> 2.506785714 | OF43: f9 | OG43: ='متغیرها '!C860 -> 0.3 | OH43: بزرگی خط عمودی دانه | OJ43: g6 | OK43: =OK42 -> 36.71279412 | OL43: =OL40-OL42+OL38 -> 2.357731092 | OQ43: f9 | OR43: ='متغیرها '!C860 -> 0.3 | OS43: بزرگی خط عمودی دانه | OU43: g6 | OV43: =OV42 -> 33.14279412 | OW43: =OW40-OW42+OW38 -> 2.357731092
E44: b4 آستین | F44: =ROUNDDOWN(F7*(DE534+DE535),0) -> 27 | G44: =ROUNDDOWN(I19*(DE534+DE535),0) -> 62 | K44: خطا | L44: =IF((ROUND(0.6*L12,0)-6)<0," خطا : قد پشت یقه زیاد شود "," ") ->  | N44: خطا | O44: =IF((ROUNDUP(P12*P17*P9,0)-O39-O40-3)>-1," ","خطا : قد پایه یقه شومیزیه زیاد شود یا پهنای جادکمه جلو کم شود") ->  | Q44: خطا | U44: 0 | V44: =(10/3)*((Y44/X44)*(1/L6)-1) -> -3.333333333 | W44: =(100/68)*((AA44/Z44)*(1/L7)-1) ->  | X44: 13.5 | AA44: 36 | AC44: 38 | CI44: =CI42 -> 7 | CJ44: =CJ41-'طراحی همه الگوها'!U182 -> 57 | CK44: j10 | CM44: =CI39 -> 62.5 | CN44: =CJ39 -> 106 | CO44: j5 | DL44: شیفت عمودی کل | DM44: ='متغیرها '!C52 -> 5 | DX44: =DX42 -> 5 | DY44: =DY42 -> 5 | DZ44: 2' | EQ44: شیفت عمودی مرغک | ER44: =IF('متغیرها '!C34<1,'متغیرها '!C34*'متغیرها '!U59,IF('متغیرها '!C34<2,'متغیرها '!U59+('متغیرها '!C34-1)*('متغیرها '!U60-'متغیرها '!U59),IF('متغیرها '!C34<3,'متغیرها '!U60+('متغیرها '!C34-2)*(I105-'متغیرها '!U60),I105+('متغیرها '!C34-3)*(H127-H126))))+'طراحی همه الگوها'!U245 -> 40.975 | FB44: شیفت عمودی الگو دسته | FC44: 7 | FG44: صاف | FH44: برای پرینت | FK44: انحنا | FL44: برای پرینت | FR44: =FR42 -> 5 | FS44: =FS42 -> 59.34082496 | FT44: s''12 | GA44: 58 | GB44: =GB12+GE12*SIN(RADIANS(GA44)+GA14) ->  | GC44: =GC12+GE12*COS(RADIANS(GA44)+GA14) ->  | GD44: =IF(GB13>GB44,ATAN((GC13-GC44)/(GB13-GB44)),ATAN((GC13-GC44)/(GB44-GB13))) ->  | GE44: =IF(GB13>GB44,(GB13-GB44)/COS(GD44),(GB44-GB13)/COS(GD44)) ->  | GU44: =GU43+GT11 -> -34 | GV44: -0.5934119457 | GW44: =HB13+HB10*COS(GV44) ->  | GX44: =HC13-HB10*SIN(GV44) ->  | GY44: =SQRT(POWER((HB12-GW44),2)+POWER((HC12-GX44),2)) ->  | GZ44: =ABS(HB9-GY44) ->  | HB44: مولفه افقی | HC44: مولفه عمودی | HD44: اسم نقطه | HF44: محاسبات | HO44: =-HK44+HP9 -> 0 | HP44: 0 | NU44: g3 | NV44: =NV33 -> 0.5892857143 | NW44: ارتفاع نیم دایره | NY44: g7 | NZ44: =NZ41+OA36*SIN(RADIANS(40)-ATAN((NZ41-NZ42)/(OA41-OA42+0.0001))) -> 25.43960362 | OA44: =OA41-OA36*COS(RADIANS(40)-ATAN((NZ41-NZ42)/(OA41-OA42+0.0001))) -> 1.983147393 | OB44: =NZ41 -> 25.27232143 | OC44: =OA41 -> 2.294642857 | OD44: =NY41 -> g4 | OF44: f10 | OG44: ='متغیرها '!C861 -> 0.5 | OH44: بزرگی فلش دانه | OJ44: g7 | OK44: =OK41+OL36*SIN(RADIANS(40)-ATAN((OK41-OK42)/(OL41-OL42+0.0001))) -> 36.86208176 | OL44: =OL41-OL36*COS(RADIANS(40)-ATAN((OK41-OK42)/(OL41-OL42+0.0001))) -> 1.988108668 | OM44: =OK41 -> 36.7439916 | ON44: =OL41 -> 2.207983193 | OO44: =OJ41 -> g4 | OQ44: f10 | OR44: ='متغیرها '!C861 -> 0.5 | OS44: بزرگی فلش دانه | OU44: g7 | OV44: =OV41+OW36*SIN(RADIANS(40)-ATAN((OV41-OV42)/(OW41-OW42+0.0001))) -> 33.29208176 | OW44: =OW41-OW36*COS(RADIANS(40)-ATAN((OV41-OV42)/(OW41-OW42+0.0001))) -> 1.988108668 | OX44: =OV41 -> 33.1739916 | OY44: =OW41 -> 2.207983193 | OZ44: =OU41 -> g4
E45: b5 پشت | F45: =ROUNDDOWN(F7*2*(SQRT(POWER(BI128-BI130,2)+POWER(BI129,2))+SQRT(POWER(BI130-BI132,2)+POWER(BI131-BI129,2))),0) -> 31 | G45: =ROUNDDOWN(I13*2*(SQRT(POWER(BI128-BI130,2)+POWER(BI129,2))+SQRT(POWER(BI130-BI132,2)+POWER(BI131-BI129,2))),0) -> 71 | K45: a22 خطا | L45: =ROUNDDOWN(L35-(L35/L41)*(L41-L42)-(G46-2*L43),0) -> 0 | N45: خطا | O45: =IF(O41>0," ","خطا : قد پایه یقه شومیزیه زیاد شود ") ->  | Q45: خطا | U45: 0 | V45: =(10/3)*((Y45/X45)*(1/L6)-1) -> -3.333333333 | W45: =(100/68)*((AA45/Z45)*(1/L7)-1) ->  | X45: 13.5 | AA45: 36 | AC45: 39 | CI45: =CI38+'طراحی همه الگوها'!U183 -> 24.5 | CJ45: =CJ36 -> 106 | CK45: j11 | CM45: =CI48 -> 61.09 | CN45: 95.66 | CO45: j5' | DL45: j4 | DM45: =IF('متغیرها '!C9<1,'متغیرها '!C9*'متغیرها '!U59,IF('متغیرها '!C9<2,'متغیرها '!U59+('متغیرها '!C9-1)*('متغیرها '!U60-'متغیرها '!U59),IF('متغیرها '!C9<3,'متغیرها '!U60+('متغیرها '!C9-2)*(I105-'متغیرها '!U60),I105+('متغیرها '!C9-3)*(H127-H126)))) -> 0 | DN45: چادر 2 | DP45: =DP43 -> 30.7085693 | DQ45: =DQ43 -> 63.59517699 | DR45: s12 | DX45: =DM15 -> 5 | DY45: =DN15 -> 70.1 | DZ45: خط سینه | EQ45: شبیه ساز آستین(3→19) | ER45: =BL516 -> 24.96345316 | EX45: =ET34 -> 35.2 | EY45: =EU34 -> 40.975 | EZ45: 17 | FB45: شیفت عمودی الگو دسته برای پرینت | FC45: =-'متغیرها '!U56 -> -53.9 | FF45: =FF13+'طراحی همه الگوها'!U260+'طراحی همه الگوها'!U262 -> 59 | FG45: =FG25+FC45 -> 2.6 | FH45: 13 | FJ45: =FF45 -> 59 | FK45: =FG45 -> 2.6 | FL45: 13 | FR45: =FO32 -> 5 | FS45: =FP32 -> 61.94082496 | FT45: s'12 | GA45: 60 | GB45: =GB12+GE12*SIN(RADIANS(GA45)+GA14) ->  | GC45: =GC12+GE12*COS(RADIANS(GA45)+GA14) ->  | GD45: =IF(GB13>GB45,ATAN((GC13-GC45)/(GB13-GB45)),ATAN((GC13-GC45)/(GB45-GB13))) ->  | GE45: =IF(GB13>GB45,(GB13-GB45)/COS(GD45),(GB45-GB13)/COS(GD45)) ->  | GU45: =GU44+GT11 -> -32 | GV45: -0.5585053606 | GW45: =HB13+HB10*COS(GV45) ->  | GX45: =HC13-HB10*SIN(GV45) ->  | GY45: =SQRT(POWER((HB12-GW45),2)+POWER((HC12-GX45),2)) ->  | GZ45: =ABS(HB9-GY45) ->  | HB45: 5 | HC45: 50 | HD45: 1 | HE45: راس بالا | HF45: =SQRT(POWER(HB46-HB45,2)+POWER(HC45-HC46,2)) -> 10.19803903 | HG45: m2 | HO45: =-HK45+HP9 -> 0 | HP45: 0 | NU45: w12 | NV45: =L19*40/NV32 -> 5.442176871 | NW45: ضریب کاهش تعداد دانه ها | NY45: g8 | NZ45: =NZ41-OA36*SIN(RADIANS(40)+ATAN((NZ41-NZ42)/(OA41-OA42+0.0001))) -> 24.99460653 | OA45: =OA41-OA36*COS(RADIANS(40)+ATAN((NZ41-NZ42)/(OA41-OA42+0.0001))) -> 2.07581144 | OB45: =NZ44 -> 25.43960362 | OC45: =OA44 -> 1.983147393 | OD45: =NY44 -> g7 | OF45: f11 | OG45: ='متغیرها '!C862 -> 0.75 | OH45: زاویه فلش دانه | OJ45: g8 | OK45: =OK41-OL36*SIN(RADIANS(40)+ATAN((OK41-OK42)/(OL41-OL42+0.0001))) -> 36.5479636 | OL45: =OL41-OL36*COS(RADIANS(40)+ATAN((OK41-OK42)/(OL41-OL42+0.0001))) -> 2.053506279 | OM45: =OK44 -> 36.86208176 | ON45: =OL44 -> 1.988108668 | OO45: =OJ44 -> g7 | OQ45: f11 | OR45: ='متغیرها '!C862 -> 0.75 | OS45: زاویه فلش دانه | OU45: g8 | OV45: =OV41-OW36*SIN(RADIANS(40)+ATAN((OV41-OV42)/(OW41-OW42+0.0001))) -> 32.9779636 | OW45: =OW41-OW36*COS(RADIANS(40)+ATAN((OV41-OV42)/(OW41-OW42+0.0001))) -> 2.053506279 | OX45: =OV44 -> 33.29208176 | OY45: =OW44 -> 1.988108668 | OZ45: =OU44 -> g7
E46: تعداد دانه ها دور گردن + دو تا نیمه جادکمه که از خط مرکزی اضافه شده | F46: =F45+2*F44+2*F43+2*F42 -> 133 | G46: =G45+2*G44+2*G43+2*F42 -> 303 | H46: b''1 | U46: 0 | V46: =(10/3)*((Y46/X46)*(1/L6)-1) -> -3.333333333 | W46: =(100/68)*((AA46/Z46)*(1/L7)-1) ->  | X46: 13.5 | AA46: 36 | AC46: 40 | CI46: =CI38 -> 15.5 | CJ46: =CJ36-'طراحی همه الگوها'!U184 -> 98.5 | CK46: j12 | CM46: 55.45 | CN46: 82.5 | CO46: j5'' | DL46: (j1 → j2) | DM46: =ROUND(CJ22+0.1*'متغیرها '!U85-DM45,1) -> 101 | DP46: =DM27 -> 35.11041108 | DQ46: =DN27 -> 76.25155044 | DR46: s10 | EQ46: شبیه سازαk1 | ER46: =F423 -> 1.385321903 | EX46: =ET30 -> 31.6 | EY46: =EU30 -> 29.975 | EZ46: 19 | FF46: =FF13 -> 0 | FG46: =FG45 -> 2.6 | FH46: 12 | FJ46: =FJ45+0.45*(FJ49-FJ45) -> 65.075 | FK46: =FK45+0.25*(FK49-FK45) -> 20.75 | FL46: 13' | GA46: 62 | GB46: =GB12+GE12*SIN(RADIANS(GA46)+GA14) ->  | GC46: =GC12+GE12*COS(RADIANS(GA46)+GA14) ->  | GD46: =IF(GB13>GB46,ATAN((GC13-GC46)/(GB13-GB46)),ATAN((GC13-GC46)/(GB46-GB13))) ->  | GE46: =IF(GB13>GB46,(GB13-GB46)/COS(GD46),(GB46-GB13)/COS(GD46)) ->  | GU46: =GU45+GT11 -> -30 | GV46: -0.5235987756 | GW46: =HB13+HB10*COS(GV46) ->  | GX46: =HC13-HB10*SIN(GV46) ->  | GY46: =SQRT(POWER((HB12-GW46),2)+POWER((HC12-GX46),2)) ->  | GZ46: =ABS(HB9-GY46) ->  | HB46: 7 | HC46: 40 | HD46: 2 | HE46: راس پایین | HF46: =ATAN((HB46-HB45)/(HC45-HC46)) -> 0.1973955598 | HG46: γ18 | HO46: =-HK46+HP9 -> 0 | HP46: 0 | NU46: f4 | NV46: =NV37*NV33 -> 0.3535714286 | NW46: بزرگی فلش رج
U47: 0 | V47: =(10/3)*((Y47/X47)*(1/L6)-1) -> -3.333333333 | W47: =(100/68)*((AA47/Z47)*(1/L7)-1) ->  | X47: 13.5 | AA47: 36 | AC47: 41 | CI47: =CI38 -> 15.5 | CJ47: =CJ37 -> 59 | CK47: j13 | CM47: 43.7 | CN47: 69.81 | CO47: j5''' | DL47: (j1 → j3) | DM47: =0.21*CJ16 -> 10.5 | DN47: بدون انتخاب | FF47: =FF13 -> 0 | FG47: =FG46+'طراحی همه الگوها'!U258 -> 10.1 | FH47: 18 | FJ47: =FJ45+0.75*(FJ49-FJ45) -> 69.125 | FK47: =FK45+0.5*(FK49-FK45) -> 38.9 | FL47: 13'' | FR47: =FR45 -> 5 | FS47: =FS45 -> 61.94082496 | FT47: s'12 | GA47: 64 | GB47: =GB12+GE12*SIN(RADIANS(GA47)+GA14) ->  | GC47: =GC12+GE12*COS(RADIANS(GA47)+GA14) ->  | GD47: =IF(GB13>GB47,ATAN((GC13-GC47)/(GB13-GB47)),ATAN((GC13-GC47)/(GB47-GB13))) ->  | GE47: =IF(GB13>GB47,(GB13-GB47)/COS(GD47),(GB47-GB13)/COS(GD47)) ->  | GU47: =GU46+GT11 -> -28 | GV47: -0.4886921906 | GW47: =HB13+HB10*COS(GV47) ->  | GX47: =HC13-HB10*SIN(GV47) ->  | GY47: =SQRT(POWER((HB12-GW47),2)+POWER((HC12-GX47),2)) ->  | GZ47: =ABS(HB9-GY47) ->  | HB47: 10 | HC47: m4 | HD47: ضلع بالا | HF47: =RADIANS(90)-RADIANS(HF46)-HB48 -> 1.829150512 | HG47: m5 | HO47: =-HK47+HP9 -> 0 | HP47: 0 | OA47: باکس نوشته a2 | OD47: =OA47 -> باکس نوشته a2 | OF47: محاسبات | OM47: =OF62 -> 36.64 | ON47: =OG62 -> 2.415966387 | OO47: m4 | OQ47: محاسبات | OX47: =OQ62 -> 33.07 | OY47: =OR62 -> 2.415966387 | OZ47: m4
I48: مقادیر قدیمی تا تاریخ 12 99 | U48: 0 | V48: =(10/3)*((Y48/X48)*(1/L6)-1) -> -3.333333333 | W48: =(100/68)*((AA48/Z48)*(1/L7)-1) ->  | X48: 13.5 | AA48: 36 | AC48: 42 | CI48: =CI47+0.97*(CI39-CI47) -> 61.09 | CJ48: =CJ47+0.78*(CJ39-CJ47) -> 95.66 | CK48: j5' | CM48: 27.25 | CN48: 60.88 | CO48: j5'''' | DP48: =DM30 -> 47.1 | DQ48: =DN30 -> 5 | DR48: s13 | EX48: =ET28 -> 28 | EY48: =EU28 -> 40.975 | EZ48: 15 | FF48: =FF13 -> 0 | FG48: =FG47+'طراحی همه الگوها'!U259 -> 75.2 | FH48: 14 | FJ48: =FJ45+0.95*(FJ49-FJ45) -> 71.825 | FK48: =FK45+0.8*(FK49-FK45) -> 60.68 | FL48: 13''' | FR48: =FO23 -> 18 | FS48: =FP23 -> 61.94082496 | FT48: s12 | GA48: بهینه α | GB48: =IF(GE13<GE16,GA16,IF(GE13<GE17,GA17,IF(GE13<GE18,GA18,IF(GE13<GE19,GA19,IF(GE13<GE20,GA20,IF(GE13<GE21,GA21,IF(GE13<GE22,GA22,IF(GE13<GE23,GA23,IF(GE13<GE24,GA24,IF(GE13<GE25,GA25,IF(GE13<GE26,GA26,IF(GE13<GE27,GA27,IF(GE13<GE28,GA28,IF(GE13<GE29,GA29,IF(GE13<GE30,GA30,IF(GE13<GE31,GA31,IF(GE13<GE32,GA32,IF(GE13<GE33,GA33,IF(GE13<GE34,GA34,IF(GE13<GE35,GA35,IF(GE13<GE36,GA36,IF(GE13<GE37,GA37,IF(GE13<GE38,GA38,IF(GE13<GE39,GA39,IF(GE13<GE40,GA40,IF(GE13<GE41,GA41,IF(GE13<GE42,GA42,IF(GE13<GE43,GA43,IF(GE13<GE44,GA44,IF(GE13<GE45,GA45,IF(GE13<GE46,GA46,GA47))))))))))))))))))))))))))))))) ->  | GC48: =RADIANS(GB48) ->  | GD48: c21 | GE48: =IF(GB13>GB50,ATAN((GC13-GC50)/(GB13-GB50)),ATAN((GC13-GC50)/(GB50-GB13))) ->  | GU48: =GU47+GT11 -> -26 | GV48: -0.4537856055 | GW48: =HB13+HB10*COS(GV48) ->  | GX48: =HC13-HB10*SIN(GV48) ->  | GY48: =SQRT(POWER((HB12-GW48),2)+POWER((HC12-GX48),2)) ->  | GZ48: =ABS(HB9-GY48) ->  | HB48: =RADIANS(-15) -> -0.2617993878 | HC48: m1 | HD48: زاویه ضلع پایین با افق به رادیان ساعتگرزیر افق عدد مثبت | HF48: =HB47*COS(HF49)-HF45*COS(HF47) -> 4.275403846 | HG48: m7 | HO48: =-HK48+HP9 -> 0 | HP48: 0 | NV48: نقاط خروجی | NZ48: متغیرهای ورودی | OB48: =NZ54 -> -30 | OC48: =OA54 -> 2.589285714 | OD48: =NY54 -> w8 | OF48: g3 | OG48: =OG37 -> 0.4159663866 | OH48: ارتفاع نیم دایره | OM48: =OF64 -> -30 | ON48: =OG64 -> 2.415966387 | OO48: m6 | OQ48: g3 | OR48: =OR37 -> 0.4159663866 | OS48: ارتفاع نیم دایره | OX48: =OQ64 -> -30 | OY48: =OR64 -> 2.415966387 | OZ48: m6
H49: میل 2 و 2.5 | I49: میل 3 و 3.5 | J49: میل 4 و 4.5 | U49: 0 | V49: =(10/3)*((Y49/X49)*(1/L6)-1) -> -3.333333333 | W49: =(100/68)*((AA49/Z49)*(1/L7)-1) ->  | X49: 13.5 | AA49: 36 | AC49: 43 | CI49: =CI47+0.85*(CI39-CI47) -> 55.45 | CJ49: =CJ47+0.5*(CJ39-CJ47) -> 82.5 | CK49: j5'' | CM49: =CI47 -> 15.5 | CN49: =CJ47 -> 59 | CO49: j13 | DP49: =DM19 -> 5 | DQ49: =DN30 -> 5 | DR49: 2 | EX49: =ET30 -> 31.6 | EY49: =EU30 -> 29.975 | EZ49: 19 | FF49: =FF13+'طراحی همه الگوها'!U263 -> 72.5 | FG49: =FG48 -> 75.2 | FH49: 15 | FJ49: =FF49 -> 72.5 | FK49: =FG49 -> 75.2 | FL49: 15 | GB49: مولفه افقی | GC49: مولفه عمودی | GJ49: پروسیجرها | GU49: =GU48+GT11 -> -24 | GV49: -0.4188790205 | GW49: =HB13+HB10*COS(GV49) ->  | GX49: =HC13-HB10*SIN(GV49) ->  | GY49: =SQRT(POWER((HB12-GW49),2)+POWER((HC12-GX49),2)) ->  | GZ49: =ABS(HB9-GY49) ->  | HB49: راس سوم | HF49: =ASIN(HF50/HB47) -> 1.403019319 | HG49: m8 | HO49: =-HK49+HP9 -> 0 | HP49: 0 | NU49: =NV30+NV5/NV45 -> 25.125 | NV49: =NV31 -> 2 | NW49: w2 | NY49: طول باکس نوشته | NZ49: =1.1*NV35 -> 4.95 | OA49: h3 | OB49: =NZ59 -> -4.9125 | OC49: =OA59 -> 2.589285714 | OD49: =NY59 -> h8 | OF49: m0 | OG49: =P18*40/OG36 -> 3.361344538 | OH49: ضریب کاهش تعداد دانه ها | OJ49: زاویه فلش | OK49: =OG42 -> 0.5 | OL49: f5 | OO49: فلش به سمت چپ | OQ49: m0 | OR49: =P18*40/OR36 -> 3.361344538 | OS49: ضریب کاهش تعداد دانه ها | OU49: زاویه فلش | OV49: =OR42 -> 0.5 | OW49: f5 | OZ49: فلش به سمت چپ
H50: 3.5 | I50: 2.8 | J50: 2.6 | K50: a''0 | U50: 0 | V50: =(10/3)*((Y50/X50)*(1/L6)-1) -> -3.333333333 | W50: =(100/68)*((AA50/Z50)*(1/L7)-1) ->  | X50: 13.5 | AA50: 36 | AC50: 44 | CI50: =CI47+0.6*(CI39-CI47) -> 43.7 | CJ50: =CJ47+0.23*(CJ39-CJ47) -> 69.81 | CK50: j5''' | CM50: =CI37 -> 5 | CN50: =CJ37 -> 59 | CO50: j2 | FR50: =FR48 -> 18 | FS50: =FS48 -> 61.94082496 | FT50: s12 | GA50: e23 | GB50: =GB12+GE12*SIN(GC48+GA14) ->  | GC50: =GC12+GE12*COS(GC48+GA14) ->  | GD50: راس سوم | GU50: =GU49+GT11 -> -22 | GV50: -0.3839724354 | GW50: =HB13+HB10*COS(GV50) ->  | GX50: =HC13-HB10*SIN(GV50) ->  | GY50: =SQRT(POWER((HB12-GW50),2)+POWER((HC12-GX50),2)) ->  | GZ50: =ABS(HB9-GY50) ->  | HB50: =HB46+HF48*COS(HB48) -> 11.12972299 | HC50: =HC46-HF48*SIN(HB48) -> 41.10655594 | HD50: 3 | HF50: =HF45*SIN(HF47) -> 9.859584224 | HG50: m9 | HO50: =-HK50+HP9 -> 0 | HP50: 0 | NU50: =NV30 -> -30 | NV50: =NV55+NV33*NV6 -> 4.946428571 | NW50: w3 | NY50: پهنای باکس نوشته | NZ50: =NV36 -> 0.5 | OA50: h4 | OF50: f4 | OG50: =OG41*OG37 -> 0.2495798319 | OH50: بزرگی فلش رج | OJ50: بزرگی فلش | OK50: =OG50 -> 0.2495798319 | OL50: f4 | OM50: =OK52 -> -23.336 | ON50: =OL52 -> 2.415966387 | OO50: =OJ52 -> m5 | OQ50: f4 | OR50: =OR41*OR37 -> 0.2495798319 | OS50: بزرگی فلش رج | OU50: بزرگی فلش | OV50: =OR50 -> 0.2495798319 | OW50: f4 | OX50: =OV52 -> -23.693 | OY50: =OW52 -> 2.415966387 | OZ50: =OU52 -> m5
H51: 2.3 | I51: 1.8 | J51: 1.7 | K51: b''0 | U51: 0 | V51: =(10/3)*((Y51/X51)*(1/L6)-1) -> -3.333333333 | W51: =(100/68)*((AA51/Z51)*(1/L7)-1) ->  | X51: 13.5 | AA51: 36 | AC51: 45 | CI51: =CI47+0.25*(CI39-CI47) -> 27.25 | CJ51: =CJ47+0.04*(CJ39-CJ47) -> 60.88 | CK51: j5'''' | DP51: =DP49 -> 5 | DQ51: =DQ49 -> 5 | DR51: 2 | EX51: =ET34 -> 35.2 | EY51: =EU34 -> 40.975 | EZ51: 17 | FF51: =FJ54 -> 35.6 | FG51: =FG46 -> 2.6 | FH51: 16 | FJ51: =FF47 -> 0 | FK51: =FG47 -> 10.1 | FL51: 18 | FR51: =FO24 -> 18 | FS51: =FP24 -> 59.34082496 | FT51: 41 شبیه ساز | GU51: =GU50+GT11 -> -20 | GV51: -0.3490658504 | GW51: =HB13+HB10*COS(GV51) ->  | GX51: =HC13-HB10*SIN(GV51) ->  | GY51: =SQRT(POWER((HB12-GW51),2)+POWER((HC12-GX51),2)) ->  | GZ51: =ABS(HB9-GY51) ->  | HO51: =-HK51+HP9 -> 0 | HP51: 0 | NU51: =NU49 -> 25.125 | NV51: =NV50 -> 4.946428571 | NW51: w4 | OB51: =NZ61 -> -4.9125 | OC51: =OA61 -> 2.839285714 | OD51: =NY61 -> h10 | OF51: m20 | OG51: 0.2 | OH51: فاصله فلش کم کردن | OJ51: نقطه ورودی سر فلش | OK51: مولفه افقی | OL51: مولفه عمودی | OM51: =OK54 -> -23.08642017 | ON51: =OL54 -> 2.540756303 | OO51: =OJ54 -> f3 | OQ51: m20 | OR51: =OG51 -> 0.2 | OS51: فاصله فلش کم کردن | OU51: نقطه ورودی سر فلش | OV51: مولفه افقی | OW51: مولفه عمودی | OX51: =OV54 -> -23.44342017 | OY51: =OW54 -> 2.540756303 | OZ51: =OU54 -> f3
U52: 0 | V52: =(10/3)*((Y52/X52)*(1/L6)-1) -> -3.333333333 | W52: =(100/68)*((AA52/Z52)*(1/L7)-1) ->  | X52: 13.5 | AA52: 36 | AC52: 46 | DP52: =DM15 -> 5 | DQ52: =DN15 -> 70.1 | DR52: خط سینه | EX52: =ET32 -> 31.6 | EY52: =EU32 -> 51.975 | EZ52: 18 | FJ52: =FJ18 -> 14.2 | FK52: =FG46+'طراحی همه الگوها'!U269 -> 10.6 | FL52: 24 | GU52: =GU51+GT11 -> -18 | GV52: -0.3141592654 | GW52: =HB13+HB10*COS(GV52) ->  | GX52: =HC13-HB10*SIN(GV52) ->  | GY52: =SQRT(POWER((HB12-GW52),2)+POWER((HC12-GX52),2)) ->  | GZ52: =ABS(HB9-GY52) ->  | HO52: =-HK52+HP9 -> 0 | HP52: 0 | NU52: =NU49 -> 25.125 | NV52: =NV31+NV33 -> 2.589285714 | NW52: w5 | OB52: =NZ62 -> -4.9125 | OC52: =OA62 -> 2.339285714 | OD52: =NY62 -> h11 | OF52: m30 | OG52: 0.25 | OH52: فاصله فلش کم کردن | OJ52: m5 | OK52: =OF63 -> -23.336 | OL52: =OG63 -> 2.415966387 | OQ52: m30 | OR52: =OG52 -> 0.25 | OS52: فاصله فلش کم کردن | OU52: m5 | OV52: =OQ63 -> -23.693 | OW52: =OR63 -> 2.415966387
U53: 0 | V53: =(10/3)*((Y53/X53)*(1/L6)-1) -> -3.333333333 | W53: =(100/68)*((AA53/Z53)*(1/L7)-1) ->  | X53: 13.5 | AA53: 36 | AC53: 47 | FJ53: =FJ19 -> 28.5 | FK53: =FG46+'طراحی همه الگوها'!U271 -> 13 | FL53: 26 | FR53: =FR51 -> 18 | FS53: =FS51 -> 59.34082496 | FT53: 41 شبیه ساز | HO53: =-HK53+HP9 -> 0 | HP53: 0 | NU53: =NV30+0.1*(NU49-NV30) -> -24.4875 | NV53: =NV31 -> 2 | NW53: w6 | NY53: نقطه شروع رج(چپ) | NZ53: مولفه افقی | OA53: مولفه عمودی | OF53: m40 | OG53: 0.35 | OH53: فاصله فلش کم کردن | OJ53: f2 | OK53: =OK52+1*OK50 -> -23.08642017 | OL53: =OL52-OK49*OK50 -> 2.291176471 | OM53: =OK52 -> -23.336 | ON53: =OL52 -> 2.415966387 | OO53: =OJ52 -> m5 | OQ53: m40 | OR53: =OG53 -> 0.35 | OS53: فاصله فلش کم کردن | OU53: f2 | OV53: =OV52+1*OV50 -> -23.44342017 | OW53: =OW52-OV49*OV50 -> 2.291176471 | OX53: =OV52 -> -23.693 | OY53: =OW52 -> 2.415966387 | OZ53: =OU52 -> m5
U54: 0 | V54: =(10/3)*((Y54/X54)*(1/L6)-1) -> -3.333333333 | W54: =(100/68)*((AA54/Z54)*(1/L7)-1) ->  | X54: 13.5 | AA54: 36 | AC54: 48 | EX54: =EP29 -> 5 | EY54: =EQ29 -> 106 | EZ54: 1 | FJ54: =FF46+'طراحی همه الگوها'!U260 -> 35.6 | FK54: =FG46+'طراحی همه الگوها'!U261 -> 15.4 | FL54: 17 | FR54: =FO31 -> 5 | FS54: =FP31 -> 59.34082496 | FT54: s''12 | HO54: =-HK54+HP9 -> 0 | HP54: 0 | NU54: =NU55+0.1*(NU52-NU55) -> -24.4875 | NV54: =NV52 -> 2.589285714 | NW54: w7 | NY54: w8 | NZ54: =NU55 -> -30 | OA54: =NV55 -> 2.589285714 | OB54: =NZ61 -> -4.9125 | OC54: =OA61 -> 2.839285714 | OD54: =NY61 -> h10 | OF54: m50 | OG54: 0.42 | OH54: فاصله فلش کم کردن | OJ54: f3 | OK54: =OK53 -> -23.08642017 | OL54: =OL52+OK49*OK50 -> 2.540756303 | OM54: =OK53 -> -23.08642017 | ON54: =OL53 -> 2.291176471 | OO54: =OJ53 -> f2 | OQ54: m50 | OR54: =OG54 -> 0.42 | OS54: فاصله فلش کم کردن | OU54: f3 | OV54: =OV53 -> -23.44342017 | OW54: =OW52+OV49*OV50 -> 2.540756303 | OX54: =OV53 -> -23.44342017 | OY54: =OW53 -> 2.291176471 | OZ54: =OU53 -> f2
U55: 0 | V55: =(10/3)*((Y55/X55)*(1/L6)-1) -> -3.333333333 | W55: =(100/68)*((AA55/Z55)*(1/L7)-1) ->  | X55: 13.5 | AA55: 36 | AC55: 49 | EX55: =EP31 -> 10.3 | EY55: =EQ31 -> 5 | EZ55: 5 | HO55: =-HK55+HP9 -> 0 | HP55: 0 | NU55: =NV30 -> -30 | NV55: =NV52 -> 2.589285714 | NW55: w8 | NY55: نقطه پایان رج(راست) | NZ55: مولفه افقی | OA55: مولفه عمودی | OB55: =NZ64 -> 0.0375 | OC55: =OA64 -> 2.839285714 | OD55: =NY64 -> h13 | OG55: =P17 -> 6.01010101 | OH55: ea0 تعداد رج در یک سانت | OR55: =P17 -> 6.01010101 | OS55: ea0 تعداد رج در یک سانت
U56: 0 | V56: =(10/3)*((Y56/X56)*(1/L6)-1) -> -3.333333333 | W56: =(100/68)*((AA56/Z56)*(1/L7)-1) ->  | X56: 13.5 | AA56: 36 | AC56: 50 | HO56: =-HK56+HP9 -> 0 | HP56: 0 | NU56: =NU50+0.1*(NU51-NU50) -> -24.4875 | NV56: =NV50 -> 4.946428571 | NW56: w9 | NY56: w5 | NZ56: =NU52 -> 25.125 | OA56: =NV52 -> 2.589285714 | OG56: =P18 -> 3.529411765 | OH56: تعداد دانه در یک سانت eb0 | OL56: انحنا راستگرد | OO56: =OL56 -> انحنا راستگرد | OR56: =P18 -> 3.529411765 | OS56: تعداد دانه در یک سانت eb0 | OW56: انحنا راستگرد | OZ56: =OW56 -> انحنا راستگرد
HO57: =-HK57+HP9 -> 0 | HP57: 0 | NU57: =NU51 -> 25.125 | NV57: =NV51+NV33 -> 5.535714286 | NW57: w10 | NY57: نقاط خروجی | NZ57: مولفه افقی | OA57: مولفه عمودی | OB57: =NZ62 -> -4.9125 | OC57: =OA62 -> 2.339285714 | OD57: =NY62 -> h11 | OG57: =F8 -> 2 | OH57: انتخاب ضخامت میل بافتنی f1 | OJ57: ارتفاع نیم دایره | OK57: =OG48 -> 0.4159663866 | OL57: بزرگی فلش | OM57: =OK60 -> -30 | ON57: =OL60 -> 2.415966387 | OO57: =OJ60 -> m6 | OR57: =F8 -> 2 | OS57: انتخاب ضخامت میل بافتنی f1 | OU57: ارتفاع نیم دایره | OV57: =OR48 -> 0.4159663866 | OW57: بزرگی فلش | OX57: =OV60 -> -30 | OY57: =OW60 -> 2.415966387 | OZ57: =OU60 -> m6
HO58: =-HK58+HP9 -> 0 | HP58: 0 | NU58: =NU57-NV7/NV45 -> 18.69375 | NV58: =NV57 -> 5.535714286 | NW58: w13 | NY58: h5 | NZ58: =NZ54+0.5*(NZ56-NZ54) -> -2.4375 | OA58: =OA54 -> 2.589285714 | OB58: =NZ63 -> 0.0375 | OC58: =OA63 -> 2.339285714 | OD58: =NY63 -> h12 | OG58: =P20 -> 2 | OH58: بافت انتخابی یقه شومیزیه | OJ58: پهنای نیم دایره | OK58: =OG38 -> 0.25 | OL58: =OG50 -> 0.2495798319 | OM58: =OK64 -> -30.07279412 | ON58: =OL64 -> 2.474201681 | OO58: =OJ64 -> g5 | OR58: =P20 -> 2 | OS58: بافت انتخابی یقه شومیزیه | OU58: پهنای نیم دایره | OV58: =OR38 -> 0.25 | OW58: =OR50 -> 0.2495798319 | OX58: =OV64 -> -30.07279412 | OY58: =OW64 -> 2.474201681 | OZ58: =OU64 -> g5
HO59: =-HK59+HP9 -> 0 | HP59: 0 | NU59: =NU58 -> 18.69375 | NV59: =NV58+NV33 -> 6.125 | NW59: w14 | NY59: h8 | NZ59: =NZ58-0.5*NZ49 -> -4.9125 | OA59: =OA54 -> 2.589285714 | OG59: نقاط خروجی | OJ59: نقطه شروع انحنا | OK59: مولفه افقی | OL59: مولفه عمودی | OM59: =OK63 -> -30.1039916 | ON59: =OL63 -> 2.62394958 | OO59: =OJ63 -> g4 | OR59: نقاط خروجی | OU59: نقطه شروع انحنا | OV59: مولفه افقی | OW59: مولفه عمودی | OX59: =OV63 -> -30.1039916 | OY59: =OW63 -> 2.62394958 | OZ59: =OU63 -> g4
HO60: =-HK60+HP9 -> 0 | HP60: 0 | NU60: =NU57 -> 25.125 | NV60: =NV59 -> 6.125 | NW60: w15 | NY60: h9 | NZ60: =NZ58+0.5*NZ49 -> 0.0375 | OA60: =OA54 -> 2.589285714 | OB60: =NZ63 -> 0.0375 | OC60: =OA63 -> 2.339285714 | OD60: =NY63 -> h12 | OF60: =OG34+OG5/OG49 -> 36.64 | OG60: =OG35 -> 2 | OH60: m2 | OJ60: m6 | OK60: =OF64 -> -30 | OL60: =OG64 -> 2.415966387 | OM60: =OK65 -> -30.07279412 | ON60: =OL65 -> 2.773697479 | OO60: =OJ65 -> g6 | OQ60: =OR34+OR5/OR49 -> 33.07 | OR60: =OR35 -> 2 | OS60: m2 | OU60: m6 | OV60: =OQ64 -> -30 | OW60: =OR64 -> 2.415966387 | OX60: =OV65 -> -30.07279412 | OY60: =OW65 -> 2.773697479 | OZ60: =OU65 -> g6
HO61: =-HK61+HP9 -> 0 | HP61: 0 | NU61: =NU59+0.5*(NU60-NU59) -> 21.909375 | NV61: =NV59 -> 6.125 | NW61: w16 | NY61: h10 | NZ61: =NZ59 -> -4.9125 | OA61: =OA59+0.5*NZ50 -> 2.839285714 | OB61: =NZ64 -> 0.0375 | OC61: =OA64 -> 2.839285714 | OD61: =NY64 -> h13 | OF61: =OG34+0.1*(OF60-OG34) -> -23.336 | OG61: =OG35 -> 2 | OH61: m3 | OJ61: نقاط خروجی | OK61: مولفه افقی | OL61: مولفه عمودی | OM61: =OK62 -> -30 | ON61: =OL62 -> 2.831932773 | OO61: =OJ62 -> g2 | OQ61: =OR34+0.1*(OQ60-OR34) -> -23.693 | OR61: =OR35 -> 2 | OS61: m3 | OU61: نقاط خروجی | OV61: مولفه افقی | OW61: مولفه عمودی | OX61: =OV62 -> -30 | OY61: =OW62 -> 2.831932773 | OZ61: =OU62 -> g2
HO62: =-HK62+HP9 -> 0 | HP62: 0 | NU62: =NU60 -> 25.125 | NV62: =NV60+NV33 -> 6.714285714 | NW62: w17 | NY62: h11 | NZ62: =NZ59 -> -4.9125 | OA62: =OA59-0.5*NZ50 -> 2.339285714 | OF62: =OF60 -> 36.64 | OG62: =OG35+OG37 -> 2.415966387 | OH62: m4 | OJ62: g2 | OK62: =OK60 -> -30 | OL62: =OL60+OK57 -> 2.831932773 | OQ62: =OQ60 -> 33.07 | OR62: =OR35+OR37 -> 2.415966387 | OS62: m4 | OU62: g2 | OV62: =OV60 -> -30 | OW62: =OW60+OV57 -> 2.831932773
... 75 more rows

Sheet متغیرها (hidden)
A3: متغیرهای ورودی چادر | E3: تبدیل رنج متغیر ورودی | F3: توضیح متغیر ورودی برای صفحه نمایش
A4: متغیر ورودی چادر شماره 1 یا مقنعه | F4: متغیر ورودی چادر شماره 1 یا مقنعه | G4: x1 | H4: y1 | I4: x2 | J4: y2(بهینه) | K4: a | L4: b | N4: کمترین | P4: بیشترین | U4: انتخاب ستون سلول مرجع برای انتخاب سایز در رسم الگو | V4: انتخاب نوع الگو | W4: انتخاب نوع اندازه گیری | X4: اندازه جدید یا اندازه موجود | Y4: انتخاب ستون سلول مرجع برای انتخاب سایز در بررسی اندازه ها
A5: ضریب فاصله لبه چادر یا مقنعه تا زمین j0 | B5: (از -0.1 الی 4.5) | C5: =K5*E5+L5 -> 3 | D5: خط زمین=0 خط زانو=1 خط باسن=2 خط کمر=3 خط سینه=4 | E5: ='طراحی همه الگوها'!Q177 -> 70 | F5: ضریب فاصله لبه چادر یا مقنعه تا زمین | G5: 10 | H5: 0 | I5: 30 | J5: 1 | K5: =(J5-H5)/(I5-G5) -> 0.05 | L5: =H5-G5*K5 -> -0.5 | M5: 2 | N5: =(M5-L5)/K5 -> 50 | O5: 4 | P5: =(O5-L5)/K5 -> 90 | Q5: 3 | R5: =(Q5-L5)/K5 -> 70 | T5: سلول مرجع | U5: =MATCH('الگوهای مدل 39'!D4,'متغیرها '!AJ51:AJ179,0) -> 7 | V5: 1 | W5: 3 | X5: 2 | Y5: 32
A6: انتخاب چادر تا پایین پیشانی=1 انتخاب چادر تا بالای پیشانی=0 انتخاب چادر روی سر = -1 | B6: -1 یا 0 یا 1 | C6: =K6*E6+L6 -> 0 | E6: ='طراحی همه الگوها'!Q178 -> 2 | F6: انتخاب چادر تا پایین پیشانی=3 انتخاب چادر تا بالای پیشانی=2 انتخاب چادر روی سر = 1 | G6: 2 | H6: 0 | I6: 1 | J6: -1 | K6: =(J6-H6)/(I6-G6) -> 1 | L6: =H6-G6*K6 -> -2 | M6: 0 | N6: =(M6-L6)/K6 -> 2 | O6: 2 | P6: =(O6-L6)/K6 -> 4 | Q6: 1 | R6: =(Q6-L6)/K6 -> 3 | U6: 1ماهه | V6: 1 تا 3 ماهه | W6: 3 تا 6 ماهه | X6: 6ماهه تا یکساله | Y6: بچگانه 1 ساله | Z6: بچگانه 2 ساله | AA6: بچگانه 3 ساله | AB6: بچگانه 4 ساله | AC6: بچگانه 5 ساله | AD6: بچگانه 6 ساله | AE6: بچگانه 7 ساله | AF6: بچگانه 8 ساله | AG6: بچگانه 9 ساله | AH6: بچگانه 10 ساله | AI6: بچگانه 11 ساله | AJ6: بچگانه 12 ساله | AK6: بچگانه 13 ساله | AL6: بچگانه 14 ساله | AM6: 34زنانه | AN6: 36زنانه | AO6: 38زنانه | AP6: 40زنانه | AQ6: 42زنانه | AR6: 44زنانه | AS6: 46زنانه | AT6: 48زنانه | AU6: 50زنانه | AV6: 52زنانه | AW6: 54زنانه | AX6: 56زنانه | AY6: 58زنانه | AZ6: 60زنانه | BA6: 37 مردانه | BB6: 38 مردانه | BC6: 39 مردانه | BD6: 40 مردانه | BE6: 41 مردانه | BF6: 42 مردانه | BG6: 43 مردانه | BH6: 44 مردانه | BI6: 45 مردانه | BJ6: 46 مردانه | BK6: 47 مردانه | BL6: 48 مردانه | BM6: 49 مردانه | BN6: 50 مردانه | BO6: 6ماهه تا یکساله کت | BP6: 1ساله کت | BQ6: 2ساله کت | BR6: 3ساله کت | BS6: 4ساله کت | BT6: 5ساله کت | BU6: 6ساله کت | BV6: 7ساله کت | BW6: 8ساله کت | BX6: 9ساله کت | BY6: 10ساله کت | BZ6: 11ساله کت | CA6: 12ساله کت | CB6: 13ساله کت | CC6: 14ساله کت | CD6: 34زنانه کمر پهن | CE6: 36زنانه کمر پهن | CF6: 38زنانه کمر پهن | CG6: 40زنانه کمر پهن | CH6: 42زنانه کمر پهن | CI6: 44زنانه کمر پهن | CJ6: 46زنانه کمر پهن | CK6: 48زنانه کمر پهن | CL6: 50زنانه کمر پهن | CM6: 52زنانه کمر پهن | CN6: 54زنانه کمر پهن | CO6: 56زنانه کمر پهن | CP6: 58زنانه کمر پهن | CQ6: 60زنانه کمر پهن | CR6: 37مردانه کت | CS6: 38مردانه کت | CT6: 39مردانه کت | CU6: 40مردانه کت | CV6: 41مردانه کت | CW6: 42مردانه کت | CX6: 43مردانه کت | CY6: 44مردانه کت | CZ6: 45مردانه کت | DA6: 46 مردانه کت | DB6: 47 مردانه کت | DC6: 48 مردانه کت | DD6: 49 مردانه کت | DE6: 50 مردانه کت | DF6: ='اندازه های شخصی'!G5 -> عنوان 1 | DG6: ='اندازه های شخصی'!I5 -> عنوان 2 | DH6: ='اندازه های شخصی'!K5 -> عنوان 3 | DI6: ='اندازه های شخصی'!M5 -> عنوان 4 | DJ6: ='اندازه های شخصی'!O5 -> عنوان 5 | DK6: ='اندازه های شخصی'!Q5 -> عنوان 6 | DL6: ='اندازه های شخصی'!S5 -> عنوان 7 | DM6: ='اندازه های شخصی'!U5 -> عنوان 8 | DN6: ='اندازه های شخصی'!W5 -> عنوان 9 | DO6: ='اندازه های شخصی'!Y5 -> عنوان 10 | DP6: ='اندازه های شخصی'!AA5 -> عنوان 11 | DQ6: ='اندازه های شخصی'!AC5 -> عنوان 12 | DR6: ='اندازه های شخصی'!AE5 -> عنوان 13 | DS6: ='اندازه های شخصی'!AG5 -> عنوان 14 | DT6: ='اندازه های شخصی'!AI5 -> عنوان 15 | DU6: ='اندازه های شخصی'!AK5 -> عنوان 16 | DV6: ='اندازه های شخصی'!AM5 -> عنوان 17 | DW6: ='اندازه های شخصی'!AO5 -> عنوان 18 | DX6: ='اندازه های شخصی'!AQ5 -> عنوان 19 | DY6: ='اندازه های شخصی'!AS5 -> عنوان 20 | DZ6: ='اندازه های شخصی'!AU5 -> عنوان 21 | EA6: ='اندازه های شخصی'!AW5 -> عنوان 22 | EB6: ='اندازه های شخصی'!AY5 -> عنوان 23 | EC6: ='اندازه های شخصی'!BA5 -> عنوان 24 | ED6: ='اندازه های شخصی'!BC5 -> عنوان 25 | EE6: ='اندازه های شخصی'!BE5 -> عنوان 26 | EF6: ='اندازه های شخصی'!BG5 -> عنوان 27 | EG6: ='اندازه های شخصی'!BI5 -> عنوان 28 | EH6: ='اندازه های شخصی'!BK5 -> عنوان 29 | EI6: ='اندازه های شخصی'!BM5 -> عنوان 30 | EJ6: ='اندازه های شخصی'!BO5 -> عنوان 31 | EK6: ='اندازه های شخصی'!BQ5 -> عنوان 32 | EL6: ='اندازه های شخصی'!BS5 -> عنوان 33 | EM6: ='اندازه های شخصی'!BU5 -> عنوان 34 | EN6: ='اندازه های شخصی'!BW5 -> عنوان 35 | EO6: ='اندازه های شخصی'!BY5 -> عنوان 36 | EP6: ='اندازه های شخصی'!CA5 -> عنوان 37 | EQ6: ='اندازه های شخصی'!CC5 -> عنوان 38 | ER6: ='اندازه های شخصی'!CE5 -> عنوان 39 | ES6: ='اندازه های شخصی'!CG5 -> عنوان 40
T7: a | U7: 41 | V7: 42 | W7: 45 | X7: 47 | Y7: 48 | Z7: 49 | AA7: 51 | AB7: 53 | AC7: 55 | AD7: 57 | AE7: 59 | AF7: 61 | AG7: 63 | AH7: 65.5 | AI7: 68 | AJ7: 71 | AK7: 73 | AL7: 75 | AM7: 63 | AN7: 65 | AO7: 68 | AP7: 72 | AQ7: 77 | AR7: 82 | AS7: 87 | AT7: 92 | AU7: 97 | AV7: 103 | AW7: 110 | AX7: 117 | AY7: 124 | AZ7: 131 | BA7: 74 | BB7: 78 | BC7: 82 | BD7: 86 | BE7: 90 | BF7: 94 | BG7: 98 | BH7: 102 | BI7: 106 | BJ7: 111 | BK7: 116 | BL7: 121 | BM7: 126 | BN7: 131 | BO7: 47 | BP7: 48 | BQ7: 49 | BR7: 51 | BS7: 53 | BT7: 55 | BU7: 57 | BV7: 59 | BW7: 61 | BX7: 63 | BY7: 65.5 | BZ7: 68 | CA7: 71 | CB7: 73 | CC7: 75 | CD7: 67 | CE7: 69 | CF7: 72 | CG7: 76 | CH7: 81 | CI7: 86 | CJ7: 91 | CK7: 96 | CL7: 101 | CM7: 107 | CN7: 114 | CO7: 121 | CP7: 127 | CQ7: 135 | CR7: 75.5 | CS7: 79.6 | CT7: 83.6 | CU7: 87.7 | CV7: 91.8 | CW7: 95.9 | CX7: 100 | CY7: 104 | CZ7: 108.1 | DA7: 113.2 | DB7: 118.3 | DC7: 123.4 | DD7: 128.5 | DE7: 133.6 | DF7: ='اندازه های شخصی'!G8 -> 0 | DG7: ='اندازه های شخصی'!I8 -> 0 | DH7: ='اندازه های شخصی'!K8 -> 0 | DI7: ='اندازه های شخصی'!M8 -> 0 | DJ7: ='اندازه های شخصی'!O8 -> 0 | DK7: ='اندازه های شخصی'!Q8 -> 0 | DL7: ='اندازه های شخصی'!S8 -> 0 | DM7: ='اندازه های شخصی'!U8 -> 0 | DN7: ='اندازه های شخصی'!W8 -> 0 | DO7: ='اندازه های شخصی'!Y8 -> 0 | DP7: ='اندازه های شخصی'!AA8 -> 0 | DQ7: ='اندازه های شخصی'!AC8 -> 0 | DR7: ='اندازه های شخصی'!AE8 -> 0 | DS7: ='اندازه های شخصی'!AG8 -> 0 | DT7: ='اندازه های شخصی'!AI8 -> 0 | DU7: ='اندازه های شخصی'!AK8 -> 0 | DV7: ='اندازه های شخصی'!AM8 -> 0 | DW7: ='اندازه های شخصی'!AO8 -> 0 | DX7: ='اندازه های شخصی'!AQ8 -> 0 | DY7: ='اندازه های شخصی'!AS8 -> 0 | DZ7: ='اندازه های شخصی'!AU8 -> 0 | EA7: ='اندازه های شخصی'!AW8 -> 0 | EB7: ='اندازه های شخصی'!AY8 -> 0 | EC7: ='اندازه های شخصی'!BA8 -> 0 | ED7: ='اندازه های شخصی'!BC8 -> 0 | EE7: ='اندازه های شخصی'!BE8 -> 0 | EF7: ='اندازه های شخصی'!BG8 -> 0 | EG7: ='اندازه های شخصی'!BI8 -> 0 | EH7: ='اندازه های شخصی'!BK8 -> 0 | EI7: ='اندازه های شخصی'!BM8 -> 0 | EJ7: ='اندازه های شخصی'!BO8 -> 0 | EK7: ='اندازه های شخصی'!BQ8 -> 0 | EL7: ='اندازه های شخصی'!BS8 -> 0 | EM7: ='اندازه های شخصی'!BU8 -> 0 | EN7: ='اندازه های شخصی'!BW8 -> 0 | EO7: ='اندازه های شخصی'!BY8 -> 0 | EP7: ='اندازه های شخصی'!CA8 -> 0 | EQ7: ='اندازه های شخصی'!CC8 -> 0 | ER7: ='اندازه های شخصی'!CE8 -> 0 | ES7: ='اندازه های شخصی'!CG8 -> 0
A8: متغیرهای ورودی چادر شماره 2 | F8: متغیرهای ورودی چادر شماره 2 | G8: x1 | H8: y1 | I8: x2 | J8: y2(بهینه) | K8: a | L8: b | N8: کمترین | P8: بیشترین | T8: b | U8: 20.1 | V8: 20.6 | W8: 22.1 | X8: 23 | Y8: 23.5 | Z8: 24 | AA8: 25 | AB8: 26 | AC8: 27 | AD8: 27.9 | AE8: 28.9 | AF8: 29.9 | AG8: 30.9 | AH8: 32.1 | AI8: 33.3 | AJ8: 34.8 | AK8: 35.8 | AL8: 36.8 | AM8: 32.2 | AN8: 32.7 | AO8: 33.7 | AP8: 35.2 | AQ8: 36.9 | AR8: 38.7 | AS8: 40.6 | AT8: 42.3 | AU8: 44.3 | AV8: 47.5 | AW8: 51 | AX8: 54.8 | AY8: 59.2 | AZ8: 63.6 | BA8: 37 | BB8: 39 | BC8: 41 | BD8: 43 | BE8: 45 | BF8: 47 | BG8: 49 | BH8: 51 | BI8: 53 | BJ8: 55.5 | BK8: 58 | BL8: 60.5 | BM8: 63 | BN8: 65.5 | BO8: 23 | BP8: 23.5 | BQ8: 24 | BR8: 25 | BS8: 26 | BT8: 27 | BU8: 27.9 | BV8: 28.9 | BW8: 29.9 | BX8: 30.9 | BY8: 32.1 | BZ8: 33.3 | CA8: 34.8 | CB8: 35.8 | CC8: 36.8 | CD8: 34.2 | CE8: 34.7 | CF8: 35.7 | CG8: 37.1 | CH8: 38.8 | CI8: 40.6 | CJ8: 42.4 | CK8: 44.2 | CL8: 46.1 | CM8: 49.4 | CN8: 52.8 | CO8: 56.7 | CP8: 60.7 | CQ8: 64.5 | CR8: 37.8 | CS8: 39.8 | CT8: 41.8 | CU8: 43.9 | CV8: 45.9 | CW8: 48 | CX8: 50 | CY8: 52 | CZ8: 54.1 | DA8: 56.6 | DB8: 59.2 | DC8: 61.7 | DD8: 64.3 | DE8: 66.8 | DF8: ='اندازه های شخصی'!G9 -> 0 | DG8: ='اندازه های شخصی'!I9 -> 0 | DH8: ='اندازه های شخصی'!K9 -> 0 | DI8: ='اندازه های شخصی'!M9 -> 0 | DJ8: ='اندازه های شخصی'!O9 -> 0 | DK8: ='اندازه های شخصی'!Q9 -> 0 | DL8: ='اندازه های شخصی'!S9 -> 0 | DM8: ='اندازه های شخصی'!U9 -> 0 | DN8: ='اندازه های شخصی'!W9 -> 0 | DO8: ='اندازه های شخصی'!Y9 -> 0 | DP8: ='اندازه های شخصی'!AA9 -> 0 | DQ8: ='اندازه های شخصی'!AC9 -> 0 | DR8: ='اندازه های شخصی'!AE9 -> 0 | DS8: ='اندازه های شخصی'!AG9 -> 0 | DT8: ='اندازه های شخصی'!AI9 -> 0 | DU8: ='اندازه های شخصی'!AK9 -> 0 | DV8: ='اندازه های شخصی'!AM9 -> 0 | DW8: ='اندازه های شخصی'!AO9 -> 0 | DX8: ='اندازه های شخصی'!AQ9 -> 0 | DY8: ='اندازه های شخصی'!AS9 -> 0 | DZ8: ='اندازه های شخصی'!AU9 -> 0 | EA8: ='اندازه های شخصی'!AW9 -> 0 | EB8: ='اندازه های شخصی'!AY9 -> 0 | EC8: ='اندازه های شخصی'!BA9 -> 0 | ED8: ='اندازه های شخصی'!BC9 -> 0 | EE8: ='اندازه های شخصی'!BE9 -> 0 | EF8: ='اندازه های شخصی'!BG9 -> 0 | EG8: ='اندازه های شخصی'!BI9 -> 0 | EH8: ='اندازه های شخصی'!BK9 -> 0 | EI8: ='اندازه های شخصی'!BM9 -> 0 | EJ8: ='اندازه های شخصی'!BO9 -> 0 | EK8: ='اندازه های شخصی'!BQ9 -> 0 | EL8: ='اندازه های شخصی'!BS9 -> 0 | EM8: ='اندازه های شخصی'!BU9 -> 0 | EN8: ='اندازه های شخصی'!BW9 -> 0 | EO8: ='اندازه های شخصی'!BY9 -> 0 | EP8: ='اندازه های شخصی'!CA9 -> 0 | EQ8: ='اندازه های شخصی'!CC9 -> 0 | ER8: ='اندازه های شخصی'!CE9 -> 0 | ES8: ='اندازه های شخصی'!CG9 -> 0
A9: ضریب فاصله لبه چادر تا زمین j0 | B9: (از -0.1 الی 0.5) | C9: =K9*E9+L9 -> 0 | D9: خط زمین=0 خط زانو=1 | E9: ='طراحی همه الگوها'!Q188 -> 10 | F9: ضریب فاصله لبه چادر تا زمین | G9: 10 | H9: 0 | I9: 30 | J9: 1 | K9: =(J9-H9)/(I9-G9) -> 0.05 | L9: =H9-G9*K9 -> -0.5 | M9: -0.1 | N9: =(M9-L9)/K9 -> 8 | O9: 0.5 | P9: =(O9-L9)/K9 -> 20 | Q9: 0 | R9: =(Q9-L9)/K9 -> 10 | T9: c | U9: 43 | V9: 45 | W9: 48 | X9: 50 | Y9: 53 | Z9: 56 | AA9: 59 | AB9: 62 | AC9: 65 | AD9: 68 | AE9: 71 | AF9: 74 | AG9: 77 | AH9: 80 | AI9: 83 | AJ9: 85 | AK9: 89 | AL9: 93 | AM9: 85 | AN9: 89 | AO9: 93 | AP9: 97 | AQ9: 102 | AR9: 107 | AS9: 112 | AT9: 117 | AU9: 122 | AV9: 126 | AW9: 132 | AX9: 138 | AY9: 144 | AZ9: 150 | BA9: 92 | BB9: 96 | BC9: 100 | BD9: 104 | BE9: 108 | BF9: 112 | BG9: 116 | BH9: 120 | BI9: 124 | BJ9: 128 | BK9: 132 | BL9: 136 | BM9: 140 | BN9: 144 | BO9: 50 | BP9: 53 | BQ9: 56 | BR9: 59 | BS9: 62 | BT9: 65 | BU9: 68 | BV9: 71 | BW9: 74 | BX9: 77 | BY9: 80 | BZ9: 83 | CA9: 85 | CB9: 89 | CC9: 93 | CD9: 85 | CE9: 89 | CF9: 93 | CG9: 97 | CH9: 102 | CI9: 107 | CJ9: 112 | CK9: 117 | CL9: 122 | CM9: 126 | CN9: 132 | CO9: 138 | CP9: 144 | CQ9: 150 | CR9: 92 | CS9: 96 | CT9: 100 | CU9: 104 | CV9: 108 | CW9: 112 | CX9: 116 | CY9: 120 | CZ9: 124 | DA9: 128 | DB9: 132 | DC9: 136 | DD9: 140 | DE9: 144 | DF9: ='اندازه های شخصی'!G10 -> 0 | DG9: ='اندازه های شخصی'!I10 -> 0 | DH9: ='اندازه های شخصی'!K10 -> 0 | DI9: ='اندازه های شخصی'!M10 -> 0 | DJ9: ='اندازه های شخصی'!O10 -> 0 | DK9: ='اندازه های شخصی'!Q10 -> 0 | DL9: ='اندازه های شخصی'!S10 -> 0 | DM9: ='اندازه های شخصی'!U10 -> 0 | DN9: ='اندازه های شخصی'!W10 -> 0 | DO9: ='اندازه های شخصی'!Y10 -> 0 | DP9: ='اندازه های شخصی'!AA10 -> 0 | DQ9: ='اندازه های شخصی'!AC10 -> 0 | DR9: ='اندازه های شخصی'!AE10 -> 0 | DS9: ='اندازه های شخصی'!AG10 -> 0 | DT9: ='اندازه های شخصی'!AI10 -> 0 | DU9: ='اندازه های شخصی'!AK10 -> 0 | DV9: ='اندازه های شخصی'!AM10 -> 0 | DW9: ='اندازه های شخصی'!AO10 -> 0 | DX9: ='اندازه های شخصی'!AQ10 -> 0 | DY9: ='اندازه های شخصی'!AS10 -> 0 | DZ9: ='اندازه های شخصی'!AU10 -> 0 | EA9: ='اندازه های شخصی'!AW10 -> 0 | EB9: ='اندازه های شخصی'!AY10 -> 0 | EC9: ='اندازه های شخصی'!BA10 -> 0 | ED9: ='اندازه های شخصی'!BC10 -> 0 | EE9: ='اندازه های شخصی'!BE10 -> 0 | EF9: ='اندازه های شخصی'!BG10 -> 0 | EG9: ='اندازه های شخصی'!BI10 -> 0 | EH9: ='اندازه های شخصی'!BK10 -> 0 | EI9: ='اندازه های شخصی'!BM10 -> 0 | EJ9: ='اندازه های شخصی'!BO10 -> 0 | EK9: ='اندازه های شخصی'!BQ10 -> 0 | EL9: ='اندازه های شخصی'!BS10 -> 0 | EM9: ='اندازه های شخصی'!BU10 -> 0 | EN9: ='اندازه های شخصی'!BW10 -> 0 | EO9: ='اندازه های شخصی'!BY10 -> 0 | EP9: ='اندازه های شخصی'!CA10 -> 0 | EQ9: ='اندازه های شخصی'!CC10 -> 0 | ER9: ='اندازه های شخصی'!CE10 -> 0 | ES9: ='اندازه های شخصی'!CG10 -> 0
A10: ضریب قرارگیری نقطه اتصال جلو چادر به پشت چادر a0 | B10: (از 0.5 الی 1.2) | C10: 1 | D10: روی پیشانی=0.5 بالای گوش=1 | E10: ='طراحی همه الگوها'!Q189 -> 20 | F10: مکان نقطه اتصال جلو چادر به پشت چادر | G10: 10 | H10: 0.5 | I10: 20 | J10: 1 | K10: 0.05 | L10: 0 | M10: 0.5 | N10: 10 | O10: 1.2 | P10: 24 | Q10: 0.5 | R10: 10 | T10: d | U10: 24.1 | V10: 25.2 | W10: 26.9 | X10: 28 | Y10: 29.7 | Z10: 31.4 | AA10: 31.3 | AB10: 32.9 | AC10: 34.5 | AD10: 36 | AE10: 37.6 | AF10: 39.2 | AG10: 40.8 | AH10: 42.4 | AI10: 44 | AJ10: 45.1 | AK10: 47.2 | AL10: 49.3 | AM10: 47.5 | AN10: 49 | AO10: 50.4 | AP10: 51.9 | AQ10: 53.6 | AR10: 55.4 | AS10: 57.2 | AT10: 59 | AU10: 61 | AV10: 63.7 | AW10: 67 | AX10: 70.8 | AY10: 75.3 | AZ10: 79.8 | BA10: 50.6 | BB10: 52.8 | BC10: 55 | BD10: 57.2 | BE10: 59.4 | BF10: 61.6 | BG10: 63.8 | BH10: 66 | BI10: 68.2 | BJ10: 70.4 | BK10: 72.6 | BL10: 74.8 | BM10: 77 | BN10: 79.2 | BO10: 28 | BP10: 29.7 | BQ10: 31.4 | BR10: 31.3 | BS10: 33.5 | BT10: 35.1 | BU10: 36.7 | BV10: 38.3 | BW10: 40 | BX10: 41.6 | BY10: 43.2 | BZ10: 44 | CA10: 45.1 | CB10: 47.2 | CC10: 49.3 | CD10: 47.5 | CE10: 49 | CF10: 50.4 | CG10: 51.9 | CH10: 53.6 | CI10: 55.4 | CJ10: 57.2 | CK10: 59 | CL10: 61 | CM10: 63.7 | CN10: 67 | CO10: 70.8 | CP10: 75.3 | CQ10: 79.8 | CR10: 48.3 | CS10: 50.4 | CT10: 52.5 | CU10: 54.6 | CV10: 56.7 | CW10: 58.8 | CX10: 60.9 | CY10: 63 | CZ10: 65.1 | DA10: 67.2 | DB10: 69.3 | DC10: 71.4 | DD10: 73.5 | DE10: 75.6 | DF10: ='اندازه های شخصی'!G11 -> 0 | DG10: ='اندازه های شخصی'!I11 -> 0 | DH10: ='اندازه های شخصی'!K11 -> 0 | DI10: ='اندازه های شخصی'!M11 -> 0 | DJ10: ='اندازه های شخصی'!O11 -> 0 | DK10: ='اندازه های شخصی'!Q11 -> 0 | DL10: ='اندازه های شخصی'!S11 -> 0 | DM10: ='اندازه های شخصی'!U11 -> 0 | DN10: ='اندازه های شخصی'!W11 -> 0 | DO10: ='اندازه های شخصی'!Y11 -> 0 | DP10: ='اندازه های شخصی'!AA11 -> 0 | DQ10: ='اندازه های شخصی'!AC11 -> 0 | DR10: ='اندازه های شخصی'!AE11 -> 0 | DS10: ='اندازه های شخصی'!AG11 -> 0 | DT10: ='اندازه های شخصی'!AI11 -> 0 | DU10: ='اندازه های شخصی'!AK11 -> 0 | DV10: ='اندازه های شخصی'!AM11 -> 0 | DW10: ='اندازه های شخصی'!AO11 -> 0 | DX10: ='اندازه های شخصی'!AQ11 -> 0 | DY10: ='اندازه های شخصی'!AS11 -> 0 | DZ10: ='اندازه های شخصی'!AU11 -> 0 | EA10: ='اندازه های شخصی'!AW11 -> 0 | EB10: ='اندازه های شخصی'!AY11 -> 0 | EC10: ='اندازه های شخصی'!BA11 -> 0 | ED10: ='اندازه های شخصی'!BC11 -> 0 | EE10: ='اندازه های شخصی'!BE11 -> 0 | EF10: ='اندازه های شخصی'!BG11 -> 0 | EG10: ='اندازه های شخصی'!BI11 -> 0 | EH10: ='اندازه های شخصی'!BK11 -> 0 | EI10: ='اندازه های شخصی'!BM11 -> 0 | EJ10: ='اندازه های شخصی'!BO11 -> 0 | EK10: ='اندازه های شخصی'!BQ11 -> 0 | EL10: ='اندازه های شخصی'!BS11 -> 0 | EM10: ='اندازه های شخصی'!BU11 -> 0 | EN10: ='اندازه های شخصی'!BW11 -> 0 | EO10: ='اندازه های شخصی'!BY11 -> 0 | EP10: ='اندازه های شخصی'!CA11 -> 0 | EQ10: ='اندازه های شخصی'!CC11 -> 0 | ER10: ='اندازه های شخصی'!CE11 -> 0 | ES10: ='اندازه های شخصی'!CG11 -> 0
A11: ضریب گشادی عرضی چادر a1 | B11: (از 0.35 الی 0.53) | C11: 0.45 | D11: بهینه=0.45 | E11: ='طراحی همه الگوها'!Q190 -> 20 | F11: ضریب گشادی عرضی چادر | G11: 21 | H11: 0.46 | I11: 20 | J11: 0.45 | K11: 0.01 | L11: 0.25 | M11: 0.35 | N11: 10 | O11: 0.53 | P11: 28 | Q11: 0.45 | R11: 20 | T11: e | U11: 23 | V11: 25 | W11: 32 | X11: 38 | Y11: 42 | Z11: 48 | AA11: 53.9 | AB11: 60.4 | AC11: 66.4 | AD11: 70.4 | AE11: 74.4 | AF11: 77.9 | AG11: 80.9 | AH11: 84.4 | AI11: 87.9 | AJ11: 91.9 | AK11: 95.9 | AL11: 99.9 | AM11: 101 | AN11: 102 | AO11: 103 | AP11: 104 | AQ11: 104.4 | AR11: 104.9 | AS11: 105.4 | AT11: 105.9 | AU11: 106.4 | AV11: 106.9 | AW11: 107.4 | AX11: 107.9 | AY11: 108.4 | AZ11: 108.9 | BA11: 103.8 | BB11: 105.1 | BC11: 106.5 | BD11: 107.2 | BE11: 107.8 | BF11: 108.4 | BG11: 109 | BH11: 109.6 | BI11: 110.2 | BJ11: 110.7 | BK11: 111.2 | BL11: 111.7 | BM11: 112.2 | BN11: 112.7 | BO11: 38 | BP11: 42 | BQ11: 48 | BR11: 53.9 | BS11: 60.4 | BT11: 66.4 | BU11: 70.4 | BV11: 74.4 | BW11: 77.9 | BX11: 80.9 | BY11: 84.4 | BZ11: 87.9 | CA11: 91.9 | CB11: 95.9 | CC11: 99.9 | CD11: 101 | CE11: 102 | CF11: 103 | CG11: 104 | CH11: 104.4 | CI11: 104.9 | CJ11: 105.4 | CK11: 105.9 | CL11: 106.4 | CM11: 106.9 | CN11: 107.4 | CO11: 107.9 | CP11: 108.4 | CQ11: 108.9 | CR11: 104.7 | CS11: 106.1 | CT11: 107.5 | CU11: 108.2 | CV11: 108.8 | CW11: 109.4 | CX11: 110 | CY11: 110.6 | CZ11: 111.2 | DA11: 111.7 | DB11: 112.2 | DC11: 112.7 | DD11: 113.2 | DE11: 113.7 | DF11: ='اندازه های شخصی'!G12 -> 0 | DG11: ='اندازه های شخصی'!I12 -> 0 | DH11: ='اندازه های شخصی'!K12 -> 0 | DI11: ='اندازه های شخصی'!M12 -> 0 | DJ11: ='اندازه های شخصی'!O12 -> 0 | DK11: ='اندازه های شخصی'!Q12 -> 0 | DL11: ='اندازه های شخصی'!S12 -> 0 | DM11: ='اندازه های شخصی'!U12 -> 0 | DN11: ='اندازه های شخصی'!W12 -> 0 | DO11: ='اندازه های شخصی'!Y12 -> 0 | DP11: ='اندازه های شخصی'!AA12 -> 0 | DQ11: ='اندازه های شخصی'!AC12 -> 0 | DR11: ='اندازه های شخصی'!AE12 -> 0 | DS11: ='اندازه های شخصی'!AG12 -> 0 | DT11: ='اندازه های شخصی'!AI12 -> 0 | DU11: ='اندازه های شخصی'!AK12 -> 0 | DV11: ='اندازه های شخصی'!AM12 -> 0 | DW11: ='اندازه های شخصی'!AO12 -> 0 | DX11: ='اندازه های شخصی'!AQ12 -> 0 | DY11: ='اندازه های شخصی'!AS12 -> 0 | DZ11: ='اندازه های شخصی'!AU12 -> 0 | EA11: ='اندازه های شخصی'!AW12 -> 0 | EB11: ='اندازه های شخصی'!AY12 -> 0 | EC11: ='اندازه های شخصی'!BA12 -> 0 | ED11: ='اندازه های شخصی'!BC12 -> 0 | EE11: ='اندازه های شخصی'!BE12 -> 0 | EF11: ='اندازه های شخصی'!BG12 -> 0 | EG11: ='اندازه های شخصی'!BI12 -> 0 | EH11: ='اندازه های شخصی'!BK12 -> 0 | EI11: ='اندازه های شخصی'!BM12 -> 0 | EJ11: ='اندازه های شخصی'!BO12 -> 0 | EK11: ='اندازه های شخصی'!BQ12 -> 0 | EL11: ='اندازه های شخصی'!BS12 -> 0 | EM11: ='اندازه های شخصی'!BU12 -> 0 | EN11: ='اندازه های شخصی'!BW12 -> 0 | EO11: ='اندازه های شخصی'!BY12 -> 0 | EP11: ='اندازه های شخصی'!CA12 -> 0 | EQ11: ='اندازه های شخصی'!CC12 -> 0 | ER11: ='اندازه های شخصی'!CE12 -> 0 | ES11: ='اندازه های شخصی'!CG12 -> 0
A12: ضریب گشادی دور مچ a2 | B12: (از 1.1 الی 2) | C12: 1.7 | D12: بهینه=1.7 | E12: ='طراحی همه الگوها'!Q191 -> 7 | F12: ضریب گشادی دور مچ | G12: 1 | H12: 1.1 | I12: 0 | J12: 1 | K12: 0.1 | L12: 1 | M12: 1.1 | N12: 1 | O12: 2 | P12: 10 | Q12: 1.7 | R12: 7 | T12: f | U12: 23 | V12: 25 | W12: 32 | X12: 38 | Y12: 42 | Z12: 48 | AA12: 54 | AB12: 60.5 | AC12: 66.5 | AD12: 70.5 | AE12: 74.5 | AF12: 78 | AG12: 81 | AH12: 84.5 | AI12: 88 | AJ12: 92 | AK12: 96 | AL12: 100 | AM12: 102 | AN12: 103 | AO12: 104 | AP12: 105 | AQ12: 105.5 | AR12: 106 | AS12: 106.5 | AT12: 107 | AU12: 107.5 | AV12: 108 | AW12: 108.5 | AX12: 109 | AY12: 109.5 | AZ12: 110 | BA12: 104.8 | BB12: 106.2 | BC12: 107.6 | BD12: 108.3 | BE12: 108.9 | BF12: 109.5 | BG12: 110.1 | BH12: 110.7 | BI12: 111.3 | BJ12: 111.8 | BK12: 112.3 | BL12: 112.8 | BM12: 113.3 | BN12: 113.8 | BO12: 38 | BP12: 42 | BQ12: 48 | BR12: 54 | BS12: 60.5 | BT12: 66.5 | BU12: 70.5 | BV12: 74.5 | BW12: 78 | BX12: 81 | BY12: 84.5 | BZ12: 88 | CA12: 92 | CB12: 96 | CC12: 100 | CD12: 102 | CE12: 103 | CF12: 104 | CG12: 105 | CH12: 105.5 | CI12: 106 | CJ12: 106.5 | CK12: 107 | CL12: 107.5 | CM12: 108 | CN12: 108.5 | CO12: 109 | CP12: 109.5 | CQ12: 110 | CR12: 104.8 | CS12: 106.2 | CT12: 107.6 | CU12: 108.3 | CV12: 108.9 | CW12: 109.5 | CX12: 110.1 | CY12: 110.7 | CZ12: 111.3 | DA12: 111.8 | DB12: 112.3 | DC12: 112.8 | DD12: 113.3 | DE12: 113.8 | DF12: ='اندازه های شخصی'!G13 -> 0 | DG12: ='اندازه های شخصی'!I13 -> 0 | DH12: ='اندازه های شخصی'!K13 -> 0 | DI12: ='اندازه های شخصی'!M13 -> 0 | DJ12: ='اندازه های شخصی'!O13 -> 0 | DK12: ='اندازه های شخصی'!Q13 -> 0 | DL12: ='اندازه های شخصی'!S13 -> 0 | DM12: ='اندازه های شخصی'!U13 -> 0 | DN12: ='اندازه های شخصی'!W13 -> 0 | DO12: ='اندازه های شخصی'!Y13 -> 0 | DP12: ='اندازه های شخصی'!AA13 -> 0 | DQ12: ='اندازه های شخصی'!AC13 -> 0 | DR12: ='اندازه های شخصی'!AE13 -> 0 | DS12: ='اندازه های شخصی'!AG13 -> 0 | DT12: ='اندازه های شخصی'!AI13 -> 0 | DU12: ='اندازه های شخصی'!AK13 -> 0 | DV12: ='اندازه های شخصی'!AM13 -> 0 | DW12: ='اندازه های شخصی'!AO13 -> 0 | DX12: ='اندازه های شخصی'!AQ13 -> 0 | DY12: ='اندازه های شخصی'!AS13 -> 0 | DZ12: ='اندازه های شخصی'!AU13 -> 0 | EA12: ='اندازه های شخصی'!AW13 -> 0 | EB12: ='اندازه های شخصی'!AY13 -> 0 | EC12: ='اندازه های شخصی'!BA13 -> 0 | ED12: ='اندازه های شخصی'!BC13 -> 0 | EE12: ='اندازه های شخصی'!BE13 -> 0 | EF12: ='اندازه های شخصی'!BG13 -> 0 | EG12: ='اندازه های شخصی'!BI13 -> 0 | EH12: ='اندازه های شخصی'!BK13 -> 0 | EI12: ='اندازه های شخصی'!BM13 -> 0 | EJ12: ='اندازه های شخصی'!BO13 -> 0 | EK12: ='اندازه های شخصی'!BQ13 -> 0 | EL12: ='اندازه های شخصی'!BS13 -> 0 | EM12: ='اندازه های شخصی'!BU13 -> 0 | EN12: ='اندازه های شخصی'!BW13 -> 0 | EO12: ='اندازه های شخصی'!BY13 -> 0 | EP12: ='اندازه های شخصی'!CA13 -> 0 | EQ12: ='اندازه های شخصی'!CC13 -> 0 | ER12: ='اندازه های شخصی'!CE13 -> 0 | ES12: ='اندازه های شخصی'!CG13 -> 0
A13: ضریب بلند شدن آستین نسبت به مچ a4 | B13: (از -0.4 الی 0.4) | C13: 0 | D13: آستین تا مچ=0 آستین کوتاه تر از مچ = منفی آستین بلند تر از مچ = مثبت | E13: ='طراحی همه الگوها'!Q192 -> 10 | F13: بلند شدن آستین چادر نسبت به مچ اندام | G13: 30 | H13: -0.45 | I13: 10 | J13: 0 | K13: -0.0225 | L13: 0.225 | M13: -0.4 | N13: 27.77777778 | O13: 0.4 | P13: -7.777777778 | Q13: 0 | R13: 10 | T13: g | U13: 23 | V13: 25 | W13: 32 | X13: 38 | Y13: 42 | Z13: 48 | AA13: 54.1 | AB13: 60.6 | AC13: 66.6 | AD13: 70.6 | AE13: 74.6 | AF13: 78.1 | AG13: 81.1 | AH13: 84.6 | AI13: 88.1 | AJ13: 92.1 | AK13: 96.1 | AL13: 100.1 | AM13: 103 | AN13: 104 | AO13: 105 | AP13: 106.1 | AQ13: 106.6 | AR13: 107.1 | AS13: 107.6 | AT13: 108.1 | AU13: 108.6 | AV13: 109.1 | AW13: 109.6 | AX13: 110.1 | AY13: 110.6 | AZ13: 111.1 | BA13: 105.8 | BB13: 107.3 | BC13: 108.7 | BD13: 109.4 | BE13: 110 | BF13: 110.6 | BG13: 111.2 | BH13: 111.8 | BI13: 112.4 | BJ13: 112.9 | BK13: 113.4 | BL13: 113.9 | BM13: 114.4 | BN13: 114.9 | BO13: 38 | BP13: 42 | BQ13: 48 | BR13: 54.1 | BS13: 60.6 | BT13: 66.6 | BU13: 70.6 | BV13: 74.6 | BW13: 78.1 | BX13: 81.1 | BY13: 84.6 | BZ13: 88.1 | CA13: 92.1 | CB13: 96.1 | CC13: 100.1 | CD13: 103 | CE13: 104 | CF13: 105 | CG13: 106.1 | CH13: 106.6 | CI13: 107.1 | CJ13: 107.6 | CK13: 108.1 | CL13: 108.6 | CM13: 109.1 | CN13: 109.6 | CO13: 110.1 | CP13: 110.6 | CQ13: 111.1 | CR13: 104.9 | CS13: 106.3 | CT13: 107.7 | CU13: 108.4 | CV13: 109 | CW13: 109.6 | CX13: 110.2 | CY13: 110.8 | CZ13: 111.4 | DA13: 111.9 | DB13: 112.4 | DC13: 112.9 | DD13: 113.4 | DE13: 113.9 | DF13: ='اندازه های شخصی'!G14 -> 0 | DG13: ='اندازه های شخصی'!I14 -> 0 | DH13: ='اندازه های شخصی'!K14 -> 0 | DI13: ='اندازه های شخصی'!M14 -> 0 | DJ13: ='اندازه های شخصی'!O14 -> 0 | DK13: ='اندازه های شخصی'!Q14 -> 0 | DL13: ='اندازه های شخصی'!S14 -> 0 | DM13: ='اندازه های شخصی'!U14 -> 0 | DN13: ='اندازه های شخصی'!W14 -> 0 | DO13: ='اندازه های شخصی'!Y14 -> 0 | DP13: ='اندازه های شخصی'!AA14 -> 0 | DQ13: ='اندازه های شخصی'!AC14 -> 0 | DR13: ='اندازه های شخصی'!AE14 -> 0 | DS13: ='اندازه های شخصی'!AG14 -> 0 | DT13: ='اندازه های شخصی'!AI14 -> 0 | DU13: ='اندازه های شخصی'!AK14 -> 0 | DV13: ='اندازه های شخصی'!AM14 -> 0 | DW13: ='اندازه های شخصی'!AO14 -> 0 | DX13: ='اندازه های شخصی'!AQ14 -> 0 | DY13: ='اندازه های شخصی'!AS14 -> 0 | DZ13: ='اندازه های شخصی'!AU14 -> 0 | EA13: ='اندازه های شخصی'!AW14 -> 0 | EB13: ='اندازه های شخصی'!AY14 -> 0 | EC13: ='اندازه های شخصی'!BA14 -> 0 | ED13: ='اندازه های شخصی'!BC14 -> 0 | EE13: ='اندازه های شخصی'!BE14 -> 0 | EF13: ='اندازه های شخصی'!BG14 -> 0 | EG13: ='اندازه های شخصی'!BI14 -> 0 | EH13: ='اندازه های شخصی'!BK14 -> 0 | EI13: ='اندازه های شخصی'!BM14 -> 0 | EJ13: ='اندازه های شخصی'!BO14 -> 0 | EK13: ='اندازه های شخصی'!BQ14 -> 0 | EL13: ='اندازه های شخصی'!BS14 -> 0 | EM13: ='اندازه های شخصی'!BU14 -> 0 | EN13: ='اندازه های شخصی'!BW14 -> 0 | EO13: ='اندازه های شخصی'!BY14 -> 0 | EP13: ='اندازه های شخصی'!CA14 -> 0 | EQ13: ='اندازه های شخصی'!CC14 -> 0 | ER13: ='اندازه های شخصی'!CE14 -> 0 | ES13: ='اندازه های شخصی'!CG14 -> 0
A14: انتخاب چادر تا پایین پیشانی=1 انتخاب چادر تا بالای پیشانی=0 انتخاب چادر روی سر = -1 | B14: -1 یا 0 یا 1 | C14: 0 | E14: ='طراحی همه الگوها'!Q193 -> 2 | F14: انتخاب چادر تا پایین پیشانی=3 انتخاب چادر تا بالای پیشانی=2 انتخاب چادر روی سر = 1 | G14: 2 | H14: 0 | I14: 1 | J14: -1 | K14: 1 | L14: -2 | M14: 0 | N14: 2 | O14: 1 | P14: 3 | Q14: 1 | R14: 3 | T14: h | U14: 7.4 | V14: 8.4 | W14: 11.1 | X14: 13.4 | Y14: 14.9 | Z14: 17.2 | AA14: 24.9 | AB14: 27.4 | AC14: 30.3 | AD14: 32.1 | AE14: 33.9 | AF14: 35.4 | AG14: 36.6 | AH14: 38.2 | AI14: 39.7 | AJ14: 41.4 | AK14: 43.5 | AL14: 45.7 | AM14: 44.5 | AN14: 45 | AO14: 45.5 | AP14: 46 | AQ14: 46 | AR14: 46 | AS14: 46 | AT14: 46 | AU14: 46.3 | AV14: 46.3 | AW14: 46.4 | AX14: 46.5 | AY14: 46.6 | AZ14: 46.7 | BA14: 48.1 | BB14: 48.8 | BC14: 49.6 | BD14: 50 | BE14: 50.4 | BF14: 50.8 | BG14: 51.2 | BH14: 51.5 | BI14: 51.9 | BJ14: 52.3 | BK14: 52.6 | BL14: 53 | BM14: 53.2 | BN14: 53.6 | BO14: 13.4 | BP14: 14.9 | BQ14: 17.2 | BR14: 24.9 | BS14: 27.4 | BT14: 30.3 | BU14: 32.1 | BV14: 33.9 | BW14: 35.4 | BX14: 36.6 | BY14: 38.2 | BZ14: 39.7 | CA14: 41.4 | CB14: 43.5 | CC14: 45.7 | CD14: 44.5 | CE14: 45 | CF14: 45.5 | CG14: 46 | CH14: 46 | CI14: 46 | CJ14: 46 | CK14: 46 | CL14: 46.3 | CM14: 46.3 | CN14: 46.4 | CO14: 46.5 | CP14: 46.6 | CQ14: 46.7 | CR14: 48.1 | CS14: 48.8 | CT14: 49.6 | CU14: 50 | CV14: 50.3 | CW14: 50.8 | CX14: 51.2 | CY14: 51.5 | CZ14: 51.9 | DA14: 52.3 | DB14: 52.6 | DC14: 52.9 | DD14: 53.3 | DE14: 53.6 | DF14: ='اندازه های شخصی'!G15 -> 0 | DG14: ='اندازه های شخصی'!I15 -> 0 | DH14: ='اندازه های شخصی'!K15 -> 0 | DI14: ='اندازه های شخصی'!M15 -> 0 | DJ14: ='اندازه های شخصی'!O15 -> 0 | DK14: ='اندازه های شخصی'!Q15 -> 0 | DL14: ='اندازه های شخصی'!S15 -> 0 | DM14: ='اندازه های شخصی'!U15 -> 0 | DN14: ='اندازه های شخصی'!W15 -> 0 | DO14: ='اندازه های شخصی'!Y15 -> 0 | DP14: ='اندازه های شخصی'!AA15 -> 0 | DQ14: ='اندازه های شخصی'!AC15 -> 0 | DR14: ='اندازه های شخصی'!AE15 -> 0 | DS14: ='اندازه های شخصی'!AG15 -> 0 | DT14: ='اندازه های شخصی'!AI15 -> 0 | DU14: ='اندازه های شخصی'!AK15 -> 0 | DV14: ='اندازه های شخصی'!AM15 -> 0 | DW14: ='اندازه های شخصی'!AO15 -> 0 | DX14: ='اندازه های شخصی'!AQ15 -> 0 | DY14: ='اندازه های شخصی'!AS15 -> 0 | DZ14: ='اندازه های شخصی'!AU15 -> 0 | EA14: ='اندازه های شخصی'!AW15 -> 0 | EB14: ='اندازه های شخصی'!AY15 -> 0 | EC14: ='اندازه های شخصی'!BA15 -> 0 | ED14: ='اندازه های شخصی'!BC15 -> 0 | EE14: ='اندازه های شخصی'!BE15 -> 0 | EF14: ='اندازه های شخصی'!BG15 -> 0 | EG14: ='اندازه های شخصی'!BI15 -> 0 | EH14: ='اندازه های شخصی'!BK15 -> 0 | EI14: ='اندازه های شخصی'!BM15 -> 0 | EJ14: ='اندازه های شخصی'!BO15 -> 0 | EK14: ='اندازه های شخصی'!BQ15 -> 0 | EL14: ='اندازه های شخصی'!BS15 -> 0 | EM14: ='اندازه های شخصی'!BU15 -> 0 | EN14: ='اندازه های شخصی'!BW15 -> 0 | EO14: ='اندازه های شخصی'!BY15 -> 0 | EP14: ='اندازه های شخصی'!CA15 -> 0 | EQ14: ='اندازه های شخصی'!CC15 -> 0 | ER14: ='اندازه های شخصی'!CE15 -> 0 | ES14: ='اندازه های شخصی'!CG15 -> 0
T15: j | U15: 15.8 | V15: 17.9 | W15: 23.8 | X15: 28.7 | Y15: 31.8 | Z15: 36.7 | AA15: 45.2 | AB15: 49.8 | AC15: 55.1 | AD15: 58.3 | AE15: 61.6 | AF15: 64.3 | AG15: 66.5 | AH15: 69.4 | AI15: 72.1 | AJ15: 75.3 | AK15: 79.1 | AL15: 83 | AM15: 82.5 | AN15: 82.7 | AO15: 83.4 | AP15: 84.1 | AQ15: 84.3 | AR15: 84.5 | AS15: 84.7 | AT15: 85 | AU15: 85.3 | AV15: 85.7 | AW15: 86.1 | AX15: 86.5 | AY15: 86.9 | AZ15: 87.3 | BA15: 87.4 | BB15: 88.8 | BC15: 90.2 | BD15: 90.9 | BE15: 91.6 | BF15: 92.3 | BG15: 93 | BH15: 93.7 | BI15: 94.3 | BJ15: 95 | BK15: 95.7 | BL15: 96.3 | BM15: 96.8 | BN15: 97.5 | BO15: 28.7 | BP15: 31.8 | BQ15: 36.7 | BR15: 45.2 | BS15: 49.8 | BT15: 55.1 | BU15: 58.3 | BV15: 61.6 | BW15: 64.3 | BX15: 66.5 | BY15: 69.4 | BZ15: 72.1 | CA15: 75.3 | CB15: 79.1 | CC15: 83 | CD15: 82.5 | CE15: 82.7 | CF15: 83.4 | CG15: 84.1 | CH15: 84.3 | CI15: 84.5 | CJ15: 84.7 | CK15: 85 | CL15: 85.3 | CM15: 85.7 | CN15: 86.1 | CO15: 86.5 | CP15: 86.9 | CQ15: 87.3 | CR15: 87.4 | CS15: 88.8 | CT15: 90.2 | CU15: 90.9 | CV15: 91.5 | CW15: 92.3 | CX15: 93 | CY15: 93.6 | CZ15: 94.4 | DA15: 95 | DB15: 95.7 | DC15: 96.2 | DD15: 96.9 | DE15: 97.5 | DF15: ='اندازه های شخصی'!G16 -> 0 | DG15: ='اندازه های شخصی'!I16 -> 0 | DH15: ='اندازه های شخصی'!K16 -> 0 | DI15: ='اندازه های شخصی'!M16 -> 0 | DJ15: ='اندازه های شخصی'!O16 -> 0 | DK15: ='اندازه های شخصی'!Q16 -> 0 | DL15: ='اندازه های شخصی'!S16 -> 0 | DM15: ='اندازه های شخصی'!U16 -> 0 | DN15: ='اندازه های شخصی'!W16 -> 0 | DO15: ='اندازه های شخصی'!Y16 -> 0 | DP15: ='اندازه های شخصی'!AA16 -> 0 | DQ15: ='اندازه های شخصی'!AC16 -> 0 | DR15: ='اندازه های شخصی'!AE16 -> 0 | DS15: ='اندازه های شخصی'!AG16 -> 0 | DT15: ='اندازه های شخصی'!AI16 -> 0 | DU15: ='اندازه های شخصی'!AK16 -> 0 | DV15: ='اندازه های شخصی'!AM16 -> 0 | DW15: ='اندازه های شخصی'!AO16 -> 0 | DX15: ='اندازه های شخصی'!AQ16 -> 0 | DY15: ='اندازه های شخصی'!AS16 -> 0 | DZ15: ='اندازه های شخصی'!AU16 -> 0 | EA15: ='اندازه های شخصی'!AW16 -> 0 | EB15: ='اندازه های شخصی'!AY16 -> 0 | EC15: ='اندازه های شخصی'!BA16 -> 0 | ED15: ='اندازه های شخصی'!BC16 -> 0 | EE15: ='اندازه های شخصی'!BE16 -> 0 | EF15: ='اندازه های شخصی'!BG16 -> 0 | EG15: ='اندازه های شخصی'!BI16 -> 0 | EH15: ='اندازه های شخصی'!BK16 -> 0 | EI15: ='اندازه های شخصی'!BM16 -> 0 | EJ15: ='اندازه های شخصی'!BO16 -> 0 | EK15: ='اندازه های شخصی'!BQ16 -> 0 | EL15: ='اندازه های شخصی'!BS16 -> 0 | EM15: ='اندازه های شخصی'!BU16 -> 0 | EN15: ='اندازه های شخصی'!BW16 -> 0 | EO15: ='اندازه های شخصی'!BY16 -> 0 | EP15: ='اندازه های شخصی'!CA16 -> 0 | EQ15: ='اندازه های شخصی'!CC16 -> 0 | ER15: ='اندازه های شخصی'!CE16 -> 0 | ES15: ='اندازه های شخصی'!CG16 -> 0
A16: متغیرهای ورودی چادر شماره 3 | F16: متغیرهای ورودی چادر شماره 3 | G16: x1 | H16: y1 | I16: x2 | J16: y2(بهینه) | K16: a | L16: b | N16: کمترین | P16: بیشترین | T16: L | U16: 17.6 | V16: 18.5 | W16: 19.7 | X16: 20.5 | Y16: 21.7 | Z16: 23 | AA16: 24.2 | AB16: 25.4 | AC16: 26.7 | AD16: 27.9 | AE16: 29.1 | AF16: 30.3 | AG16: 31.6 | AH16: 32.8 | AI16: 34 | AJ16: 34.9 | AK16: 36.5 | AL16: 38.1 | AM16: 34.9 | AN16: 36.5 | AO16: 38.1 | AP16: 39.8 | AQ16: 41.8 | AR16: 43.9 | AS16: 45.9 | AT16: 48 | AU16: 50 | AV16: 51.7 | AW16: 54.1 | AX16: 56.6 | AY16: 59 | AZ16: 61.5 | BA16: 37.7 | BB16: 39.4 | BC16: 41 | BD16: 42.6 | BE16: 44.3 | BF16: 45.9 | BG16: 47.6 | BH16: 49.2 | BI16: 50.8 | BJ16: 52.5 | BK16: 54.1 | BL16: 55.8 | BM16: 57.4 | BN16: 59 | BO16: 20.5 | BP16: 21.7 | BQ16: 23 | BR16: 24.2 | BS16: 25.4 | BT16: 26.7 | BU16: 27.9 | BV16: 29.1 | BW16: 30.3 | BX16: 31.6 | BY16: 32.8 | BZ16: 34 | CA16: 34.9 | CB16: 36.5 | CC16: 38.1 | CD16: 34.9 | CE16: 36.5 | CF16: 38.1 | CG16: 39.8 | CH16: 41.8 | CI16: 43.9 | CJ16: 45.9 | CK16: 48 | CL16: 50 | CM16: 51.7 | CN16: 54.1 | CO16: 56.6 | CP16: 59 | CQ16: 61.5 | CR16: 37.7 | CS16: 39.4 | CT16: 41 | CU16: 42.6 | CV16: 44.3 | CW16: 45.9 | CX16: 47.6 | CY16: 49.2 | CZ16: 50.8 | DA16: 52.5 | DB16: 54.1 | DC16: 55.8 | DD16: 57.4 | DE16: 59 | DF16: ='اندازه های شخصی'!G17 -> 0 | DG16: ='اندازه های شخصی'!I17 -> 0 | DH16: ='اندازه های شخصی'!K17 -> 0 | DI16: ='اندازه های شخصی'!M17 -> 0 | DJ16: ='اندازه های شخصی'!O17 -> 0 | DK16: ='اندازه های شخصی'!Q17 -> 0 | DL16: ='اندازه های شخصی'!S17 -> 0 | DM16: ='اندازه های شخصی'!U17 -> 0 | DN16: ='اندازه های شخصی'!W17 -> 0 | DO16: ='اندازه های شخصی'!Y17 -> 0 | DP16: ='اندازه های شخصی'!AA17 -> 0 | DQ16: ='اندازه های شخصی'!AC17 -> 0 | DR16: ='اندازه های شخصی'!AE17 -> 0 | DS16: ='اندازه های شخصی'!AG17 -> 0 | DT16: ='اندازه های شخصی'!AI17 -> 0 | DU16: ='اندازه های شخصی'!AK17 -> 0 | DV16: ='اندازه های شخصی'!AM17 -> 0 | DW16: ='اندازه های شخصی'!AO17 -> 0 | DX16: ='اندازه های شخصی'!AQ17 -> 0 | DY16: ='اندازه های شخصی'!AS17 -> 0 | DZ16: ='اندازه های شخصی'!AU17 -> 0 | EA16: ='اندازه های شخصی'!AW17 -> 0 | EB16: ='اندازه های شخصی'!AY17 -> 0 | EC16: ='اندازه های شخصی'!BA17 -> 0 | ED16: ='اندازه های شخصی'!BC17 -> 0 | EE16: ='اندازه های شخصی'!BE17 -> 0 | EF16: ='اندازه های شخصی'!BG17 -> 0 | EG16: ='اندازه های شخصی'!BI17 -> 0 | EH16: ='اندازه های شخصی'!BK17 -> 0 | EI16: ='اندازه های شخصی'!BM17 -> 0 | EJ16: ='اندازه های شخصی'!BO17 -> 0 | EK16: ='اندازه های شخصی'!BQ17 -> 0 | EL16: ='اندازه های شخصی'!BS17 -> 0 | EM16: ='اندازه های شخصی'!BU17 -> 0 | EN16: ='اندازه های شخصی'!BW17 -> 0 | EO16: ='اندازه های شخصی'!BY17 -> 0 | EP16: ='اندازه های شخصی'!CA17 -> 0 | EQ16: ='اندازه های شخصی'!CC17 -> 0 | ER16: ='اندازه های شخصی'!CE17 -> 0 | ES16: ='اندازه های شخصی'!CG17 -> 0
A17: ضریب فاصله لبه چادر تا زمین j0 | B17: (از -0.1 الی 0.5) | C17: =K17*E17+L17 -> 0 | D17: خط زمین=0 خط زانو=1 | E17: ='طراحی همه الگوها'!Q210 -> 10 | F17: ضریب فاصله لبه چادر تا زمین | G17: 10 | H17: 0 | I17: 30 | J17: 1 | K17: =(J17-H17)/(I17-G17) -> 0.05 | L17: =H17-G17*K17 -> -0.5 | M17: -0.1 | N17: =(M17-L17)/K17 -> 8 | O17: 0.5 | P17: =(O17-L17)/K17 -> 20 | Q17: 0 | R17: =(Q17-L17)/K17 -> 10 | T17: m | U17: 10 | V17: 10 | W17: 11 | X17: 12 | Y17: 13 | Z17: 14 | AA17: 14 | AB17: 16 | AC17: 17 | AD17: 18 | AE17: 19 | AF17: 20 | AG17: 21 | AH17: 22 | AI17: 23 | AJ17: 24 | AK17: 24.5 | AL17: 25 | AM17: 25.1 | AN17: 25.8 | AO17: 26.4 | AP17: 27.1 | AQ17: 27.8 | AR17: 28.4 | AS17: 29.1 | AT17: 29.7 | AU17: 30.3 | AV17: 31 | AW17: 31.6 | AX17: 32.3 | AY17: 32.9 | AZ17: 33.5 | BA17: 23.1 | BB17: 23.5 | BC17: 23.8 | BD17: 24.2 | BE17: 24.5 | BF17: 24.7 | BG17: 25 | BH17: 25.3 | BI17: 25.6 | BJ17: 25.8 | BK17: 26.1 | BL17: 26.4 | BM17: 26.7 | BN17: 26.9 | BO17: 12 | BP17: 13 | BQ17: 14 | BR17: 14 | BS17: 16 | BT17: 17 | BU17: 18 | BV17: 19 | BW17: 20 | BX17: 21 | BY17: 22 | BZ17: 23 | CA17: 24 | CB17: 24.5 | CC17: 25 | CD17: 25.1 | CE17: 25.8 | CF17: 26.4 | CG17: 27.1 | CH17: 27.8 | CI17: 28.4 | CJ17: 29.1 | CK17: 29.7 | CL17: 30.3 | CM17: 31 | CN17: 31.6 | CO17: 32.3 | CP17: 32.9 | CQ17: 33.5 | CR17: 23.1 | CS17: 23.5 | CT17: 23.8 | CU17: 24.2 | CV17: 24.5 | CW17: 24.7 | CX17: 25 | CY17: 25.3 | CZ17: 25.5 | DA17: 25.8 | DB17: 26.1 | DC17: 26.4 | DD17: 26.6 | DE17: 26.9 | DF17: ='اندازه های شخصی'!G18 -> 0 | DG17: ='اندازه های شخصی'!I18 -> 0 | DH17: ='اندازه های شخصی'!K18 -> 0 | DI17: ='اندازه های شخصی'!M18 -> 0 | DJ17: ='اندازه های شخصی'!O18 -> 0 | DK17: ='اندازه های شخصی'!Q18 -> 0 | DL17: ='اندازه های شخصی'!S18 -> 0 | DM17: ='اندازه های شخصی'!U18 -> 0 | DN17: ='اندازه های شخصی'!W18 -> 0 | DO17: ='اندازه های شخصی'!Y18 -> 0 | DP17: ='اندازه های شخصی'!AA18 -> 0 | DQ17: ='اندازه های شخصی'!AC18 -> 0 | DR17: ='اندازه های شخصی'!AE18 -> 0 | DS17: ='اندازه های شخصی'!AG18 -> 0 | DT17: ='اندازه های شخصی'!AI18 -> 0 | DU17: ='اندازه های شخصی'!AK18 -> 0 | DV17: ='اندازه های شخصی'!AM18 -> 0 | DW17: ='اندازه های شخصی'!AO18 -> 0 | DX17: ='اندازه های شخصی'!AQ18 -> 0 | DY17: ='اندازه های شخصی'!AS18 -> 0 | DZ17: ='اندازه های شخصی'!AU18 -> 0 | EA17: ='اندازه های شخصی'!AW18 -> 0 | EB17: ='اندازه های شخصی'!AY18 -> 0 | EC17: ='اندازه های شخصی'!BA18 -> 0 | ED17: ='اندازه های شخصی'!BC18 -> 0 | EE17: ='اندازه های شخصی'!BE18 -> 0 | EF17: ='اندازه های شخصی'!BG18 -> 0 | EG17: ='اندازه های شخصی'!BI18 -> 0 | EH17: ='اندازه های شخصی'!BK18 -> 0 | EI17: ='اندازه های شخصی'!BM18 -> 0 | EJ17: ='اندازه های شخصی'!BO18 -> 0 | EK17: ='اندازه های شخصی'!BQ18 -> 0 | EL17: ='اندازه های شخصی'!BS18 -> 0 | EM17: ='اندازه های شخصی'!BU18 -> 0 | EN17: ='اندازه های شخصی'!BW18 -> 0 | EO17: ='اندازه های شخصی'!BY18 -> 0 | EP17: ='اندازه های شخصی'!CA18 -> 0 | EQ17: ='اندازه های شخصی'!CC18 -> 0 | ER17: ='اندازه های شخصی'!CE18 -> 0 | ES17: ='اندازه های شخصی'!CG18 -> 0
A18: ضریب گشادی دور مچ b2 | B18: (از 1.1 الی 2) | C18: 1.5 | D18: بهینه=1.5 | E18: ='طراحی همه الگوها'!Q211 -> 5 | F18: ضریب گشادی دور مچ | G18: 1 | H18: 1.1 | I18: 0 | J18: 1 | K18: 0.1 | L18: 1 | M18: 1.1 | N18: 1 | O18: 2 | P18: 10 | Q18: 1.5 | R18: 5 | T18: q | U18: 29.1 | V18: 29.6 | W18: 32.8 | X18: 35.7 | Y18: 38.5 | Z18: 41.7 | AA18: 37.7 | AB18: 42.6 | AC18: 45 | AD18: 47.6 | AE18: 50 | AF18: 52.7 | AG18: 55.3 | AH18: 57.7 | AI18: 60.3 | AJ18: 62.6 | AK18: 64.4 | AL18: 66 | AM18: 65.2 | AN18: 67.2 | AO18: 69.2 | AP18: 71.1 | AQ18: 73.4 | AR18: 75.2 | AS18: 77.3 | AT18: 79.4 | AU18: 81.2 | AV18: 83.3 | AW18: 85.3 | AX18: 87.5 | AY18: 89.7 | AZ18: 91.7 | BA18: 66.5 | BB18: 67.8 | BC18: 69.2 | BD18: 70.5 | BE18: 71.6 | BF18: 72.8 | BG18: 73.9 | BH18: 75.1 | BI18: 76.4 | BJ18: 77.4 | BK18: 78.5 | BL18: 79.6 | BM18: 80.9 | BN18: 81.8 | BO18: 35.7 | BP18: 38.5 | BQ18: 41.7 | BR18: 37.7 | BS18: 42.6 | BT18: 45 | BU18: 47.6 | BV18: 50.1 | BW18: 52.7 | BX18: 55.3 | BY18: 57.7 | BZ18: 60.3 | CA18: 62.6 | CB18: 64.4 | CC18: 66 | CD18: 65.2 | CE18: 67.2 | CF18: 69.2 | CG18: 71.1 | CH18: 73.4 | CI18: 75.2 | CJ18: 77.3 | CK18: 79.4 | CL18: 81.2 | CM18: 83.3 | CN18: 85.3 | CO18: 87.5 | CP18: 89.7 | CQ18: 91.7 | CR18: 66.3 | CS18: 67.7 | CT18: 69 | CU18: 70.3 | CV18: 71.7 | CW18: 72.6 | CX18: 73.8 | CY18: 75.1 | CZ18: 76.1 | DA18: 77.2 | DB18: 78.3 | DC18: 79.6 | DD18: 80.5 | DE18: 81.7 | DF18: ='اندازه های شخصی'!G19 -> 0 | DG18: ='اندازه های شخصی'!I19 -> 0 | DH18: ='اندازه های شخصی'!K19 -> 0 | DI18: ='اندازه های شخصی'!M19 -> 0 | DJ18: ='اندازه های شخصی'!O19 -> 0 | DK18: ='اندازه های شخصی'!Q19 -> 0 | DL18: ='اندازه های شخصی'!S19 -> 0 | DM18: ='اندازه های شخصی'!U19 -> 0 | DN18: ='اندازه های شخصی'!W19 -> 0 | DO18: ='اندازه های شخصی'!Y19 -> 0 | DP18: ='اندازه های شخصی'!AA19 -> 0 | DQ18: ='اندازه های شخصی'!AC19 -> 0 | DR18: ='اندازه های شخصی'!AE19 -> 0 | DS18: ='اندازه های شخصی'!AG19 -> 0 | DT18: ='اندازه های شخصی'!AI19 -> 0 | DU18: ='اندازه های شخصی'!AK19 -> 0 | DV18: ='اندازه های شخصی'!AM19 -> 0 | DW18: ='اندازه های شخصی'!AO19 -> 0 | DX18: ='اندازه های شخصی'!AQ19 -> 0 | DY18: ='اندازه های شخصی'!AS19 -> 0 | DZ18: ='اندازه های شخصی'!AU19 -> 0 | EA18: ='اندازه های شخصی'!AW19 -> 0 | EB18: ='اندازه های شخصی'!AY19 -> 0 | EC18: ='اندازه های شخصی'!BA19 -> 0 | ED18: ='اندازه های شخصی'!BC19 -> 0 | EE18: ='اندازه های شخصی'!BE19 -> 0 | EF18: ='اندازه های شخصی'!BG19 -> 0 | EG18: ='اندازه های شخصی'!BI19 -> 0 | EH18: ='اندازه های شخصی'!BK19 -> 0 | EI18: ='اندازه های شخصی'!BM19 -> 0 | EJ18: ='اندازه های شخصی'!BO19 -> 0 | EK18: ='اندازه های شخصی'!BQ19 -> 0 | EL18: ='اندازه های شخصی'!BS19 -> 0 | EM18: ='اندازه های شخصی'!BU19 -> 0 | EN18: ='اندازه های شخصی'!BW19 -> 0 | EO18: ='اندازه های شخصی'!BY19 -> 0 | EP18: ='اندازه های شخصی'!CA19 -> 0 | EQ18: ='اندازه های شخصی'!CC19 -> 0 | ER18: ='اندازه های شخصی'!CE19 -> 0 | ES18: ='اندازه های شخصی'!CG19 -> 0
A19: ضریب بلندی طول مچ b3 معادل ضریب تنگی پایین چادر | B19: (از0 الی 0.4) | C19: 0.15 | D19: بهینه=0.15 | E19: ='طراحی همه الگوها'!Q212 -> 15 | F19: گشادی پایین چادر (معادل بلندی طول مچ) | G19: 1 | H19: 0.01 | I19: 0 | J19: 0 | K19: 0.01 | L19: 0 | M19: 0 | N19: 0 | O19: 0.4 | P19: 40 | Q19: 0.15 | R19: 15 | T19: r | U19: 13.5 | V19: 13.5 | W19: 14.2 | X19: 14.9 | Y19: 16.2 | Z19: 16.2 | AA19: 17.6 | AB19: 17.6 | AC19: 17.6 | AD19: 18.9 | AE19: 18.9 | AF19: 20.3 | AG19: 21.6 | AH19: 20.3 | AI19: 21.6 | AJ19: 22.3 | AK19: 23 | AL19: 23.6 | AM19: 23 | AN19: 23.5 | AO19: 24 | AP19: 24.5 | AQ19: 25.1 | AR19: 25.7 | AS19: 26.3 | AT19: 26.9 | AU19: 27.5 | AV19: 28 | AW19: 28.5 | AX19: 29 | AY19: 29.5 | AZ19: 30 | BA19: 24 | BB19: 25 | BC19: 26 | BD19: 27 | BE19: 28 | BF19: 29 | BG19: 29 | BH19: 29 | BI19: 29 | BJ19: 29.4 | BK19: 29.8 | BL19: 30.2 | BM19: 32.6 | BN19: 31 | BO19: 14.9 | BP19: 16.2 | BQ19: 16.2 | BR19: 17.6 | BS19: 17.6 | BT19: 17.6 | BU19: 18.9 | BV19: 18.9 | BW19: 20.3 | BX19: 21.6 | BY19: 20.3 | BZ19: 21.6 | CA19: 22.3 | CB19: 23 | CC19: 23.6 | CD19: 23 | CE19: 23.5 | CF19: 24 | CG19: 24.5 | CH19: 25.1 | CI19: 25.7 | CJ19: 26.3 | CK19: 26.9 | CL19: 27.5 | CM19: 28 | CN19: 28.5 | CO19: 29 | CP19: 29.5 | CQ19: 30 | CR19: 24 | CS19: 25 | CT19: 26 | CU19: 27 | CV19: 28 | CW19: 29 | CX19: 29 | CY19: 29 | CZ19: 29 | DA19: 29.4 | DB19: 29.8 | DC19: 30.2 | DD19: 32.6 | DE19: 31 | DF19: ='اندازه های شخصی'!G20 -> 0 | DG19: ='اندازه های شخصی'!I20 -> 0 | DH19: ='اندازه های شخصی'!K20 -> 0 | DI19: ='اندازه های شخصی'!M20 -> 0 | DJ19: ='اندازه های شخصی'!O20 -> 0 | DK19: ='اندازه های شخصی'!Q20 -> 0 | DL19: ='اندازه های شخصی'!S20 -> 0 | DM19: ='اندازه های شخصی'!U20 -> 0 | DN19: ='اندازه های شخصی'!W20 -> 0 | DO19: ='اندازه های شخصی'!Y20 -> 0 | DP19: ='اندازه های شخصی'!AA20 -> 0 | DQ19: ='اندازه های شخصی'!AC20 -> 0 | DR19: ='اندازه های شخصی'!AE20 -> 0 | DS19: ='اندازه های شخصی'!AG20 -> 0 | DT19: ='اندازه های شخصی'!AI20 -> 0 | DU19: ='اندازه های شخصی'!AK20 -> 0 | DV19: ='اندازه های شخصی'!AM20 -> 0 | DW19: ='اندازه های شخصی'!AO20 -> 0 | DX19: ='اندازه های شخصی'!AQ20 -> 0 | DY19: ='اندازه های شخصی'!AS20 -> 0 | DZ19: ='اندازه های شخصی'!AU20 -> 0 | EA19: ='اندازه های شخصی'!AW20 -> 0 | EB19: ='اندازه های شخصی'!AY20 -> 0 | EC19: ='اندازه های شخصی'!BA20 -> 0 | ED19: ='اندازه های شخصی'!BC20 -> 0 | EE19: ='اندازه های شخصی'!BE20 -> 0 | EF19: ='اندازه های شخصی'!BG20 -> 0 | EG19: ='اندازه های شخصی'!BI20 -> 0 | EH19: ='اندازه های شخصی'!BK20 -> 0 | EI19: ='اندازه های شخصی'!BM20 -> 0 | EJ19: ='اندازه های شخصی'!BO20 -> 0 | EK19: ='اندازه های شخصی'!BQ20 -> 0 | EL19: ='اندازه های شخصی'!BS20 -> 0 | EM19: ='اندازه های شخصی'!BU20 -> 0 | EN19: ='اندازه های شخصی'!BW20 -> 0 | EO19: ='اندازه های شخصی'!BY20 -> 0 | EP19: ='اندازه های شخصی'!CA20 -> 0 | EQ19: ='اندازه های شخصی'!CC20 -> 0 | ER19: ='اندازه های شخصی'!CE20 -> 0 | ES19: ='اندازه های شخصی'!CG20 -> 0
A20: ضریب بلند شدن آستین نسبت به مچ b5 | B20: (از -0.4 الی 0.4) | C20: 0 | D20: آستین تا مچ=0 آستین کوتاه تر از مچ = منفی آستین بلند تر از مچ = مثبت | E20: ='طراحی همه الگوها'!Q213 -> 10 | F20: بلند شدن آستین چادر نسبت به مچ اندام | G20: 30 | H20: -0.45 | I20: 10 | J20: 0 | K20: -0.0225 | L20: 0.225 | M20: -0.4 | N20: 27.77777778 | O20: 0.4 | P20: -7.777777778 | Q20: 0 | R20: 10
A21: عرض پارچه به سانتیمتر b1 | B21: (از 90 الی 200) | C21: 110 | D21: 90 یا 100 یا 110 115 یا 120 یا ... | E21: ='طراحی همه الگوها'!Q214 -> 110 | F21: عرض پارچه | G21: 2 | H21: 2 | I21: 1 | J21: 1 | K21: 1 | L21: 0 | M21: 90 | N21: 90 | O21: 200 | P21: 200 | Q21: 100 | R21: 100 | U21: 2 | V21: 2 | W21: 2 | X21: 2 | Y21: 2 | Z21: 2 | AA21: 0 | AB21: 0 | AC21: 0 | AD21: 0 | AE21: 0 | AF21: 0 | AG21: 0 | AH21: 0 | AI21: 0 | AJ21: 0 | AK21: 0 | AL21: 0 | AM21: 0 | AN21: 0 | AO21: 0 | AP21: 0 | AQ21: 0 | AR21: 0 | AS21: 0 | AT21: 0 | AU21: 0 | AV21: 0 | AW21: 0 | AX21: 0 | AY21: 0 | AZ21: 0 | BA21: 1 | BB21: 1 | BC21: 1 | BD21: 1 | BE21: 1 | BF21: 1 | BG21: 1 | BH21: 1 | BI21: 1 | BJ21: 1 | BK21: 1 | BL21: 1 | BM21: 1 | BN21: 1 | BO21: 2 | BP21: 2 | BQ21: 2 | BR21: 0 | BS21: 0 | BT21: 0 | BU21: 0 | BV21: 0 | BW21: 0 | BX21: 0 | BY21: 0 | BZ21: 0 | CA21: 0 | CB21: 0 | CC21: 0 | CD21: 0 | CE21: 0 | CF21: 0 | CG21: 0 | CH21: 0 | CI21: 0 | CJ21: 0 | CK21: 0 | CL21: 0 | CM21: 0 | CN21: 0 | CO21: 0 | CP21: 0 | CQ21: 0 | CR21: 1 | CS21: 1 | CT21: 1 | CU21: 1 | CV21: 1 | CW21: 1 | CX21: 1 | CY21: 1 | CZ21: 1 | DA21: 1 | DB21: 1 | DC21: 1 | DD21: 1 | DE21: 1 | DF21: ='اندازه های شخصی'!G21 -> 0 | DG21: ='اندازه های شخصی'!I21 -> 0 | DH21: ='اندازه های شخصی'!K21 -> 0 | DI21: ='اندازه های شخصی'!M21 -> 0 | DJ21: ='اندازه های شخصی'!O21 -> 0 | DK21: ='اندازه های شخصی'!Q21 -> 0 | DL21: ='اندازه های شخصی'!S21 -> 0 | DM21: ='اندازه های شخصی'!U21 -> 0 | DN21: ='اندازه های شخصی'!W21 -> 0 | DO21: ='اندازه های شخصی'!Y21 -> 0 | DP21: ='اندازه های شخصی'!AA21 -> 0 | DQ21: ='اندازه های شخصی'!AC21 -> 0 | DR21: ='اندازه های شخصی'!AE21 -> 0 | DS21: ='اندازه های شخصی'!AG21 -> 0 | DT21: ='اندازه های شخصی'!AI21 -> 0 | DU21: ='اندازه های شخصی'!AK21 -> 0 | DV21: ='اندازه های شخصی'!AM21 -> 0 | DW21: ='اندازه های شخصی'!AO21 -> 0 | DX21: ='اندازه های شخصی'!AQ21 -> 0 | DY21: ='اندازه های شخصی'!AS21 -> 0 | DZ21: ='اندازه های شخصی'!AU21 -> 0 | EA21: ='اندازه های شخصی'!AW21 -> 0 | EB21: ='اندازه های شخصی'!AY21 -> 0 | EC21: ='اندازه های شخصی'!BA21 -> 0 | ED21: ='اندازه های شخصی'!BC21 -> 0 | EE21: ='اندازه های شخصی'!BE21 -> 0 | EF21: ='اندازه های شخصی'!BG21 -> 0 | EG21: ='اندازه های شخصی'!BI21 -> 0 | EH21: ='اندازه های شخصی'!BK21 -> 0 | EI21: ='اندازه های شخصی'!BM21 -> 0 | EJ21: ='اندازه های شخصی'!BO21 -> 0 | EK21: ='اندازه های شخصی'!BQ21 -> 0 | EL21: ='اندازه های شخصی'!BS21 -> 0 | EM21: ='اندازه های شخصی'!BU21 -> 0 | EN21: ='اندازه های شخصی'!BW21 -> 0 | EO21: ='اندازه های شخصی'!BY21 -> 0 | EP21: ='اندازه های شخصی'!CA21 -> 0 | EQ21: ='اندازه های شخصی'!CC21 -> 0 | ER21: ='اندازه های شخصی'!CE21 -> 0 | ES21: ='اندازه های شخصی'!CG21 -> 0
A22: انتخاب چادر تا پایین پیشانی=1 انتخاب چادر تا بالای پیشانی=0 انتخاب چادر روی سر = -1 | B22: -1 یا 0 یا 1 | C22: 0 | E22: ='طراحی همه الگوها'!Q215 -> 2 | F22: انتخاب چادر تا پایین پیشانی=3 انتخاب چادر تا بالای پیشانی=2 انتخاب چادر روی سر = 1 | G22: 2 | H22: 0 | I22: 1 | J22: -1 | K22: 1 | L22: -2 | M22: 0 | N22: 2 | O22: 2 | P22: 4 | Q22: 1 | R22: 3
A24: متغیرهای ورودی چادر شماره 4 | F24: متغیرهای ورودی چادر شماره 4 | G24: x1 | H24: y1 | I24: x2 | J24: y2(بهینه) | K24: a | L24: b | N24: کمترین | P24: بیشترین | U24: اندازه شخص | V24: اندازه شخص | W24: اندازه شخص | X24: اندازه شخص | Y24: اندازه شخص | Z24: اندازه شخص | AA24: اندازه شخص | AB24: اندازه شخص | AC24: اندازه شخص | AD24: اندازه شخص | AE24: اندازه شخص | AF24: اندازه شخص | AG24: اندازه شخص | AH24: اندازه شخص | AI24: اندازه شخص | AJ24: اندازه شخص | AK24: اندازه شخص | AL24: اندازه شخص | AM24: اندازه شخص | AN24: اندازه شخص | AO24: اندازه شخص | AP24: اندازه شخص | AQ24: اندازه شخص | AR24: اندازه شخص | AS24: اندازه شخص | AT24: اندازه شخص | AU24: اندازه شخص | AV24: اندازه شخص | AW24: اندازه شخص | AX24: اندازه شخص | AY24: اندازه شخص | AZ24: اندازه شخص | BA24: اندازه شخص | BB24: اندازه شخص | BC24: اندازه شخص | BD24: اندازه شخص | BE24: اندازه شخص | BF24: اندازه شخص | BG24: اندازه شخص | BH24: اندازه شخص | BI24: اندازه شخص | BJ24: اندازه شخص | BK24: اندازه شخص | BL24: اندازه شخص | BM24: اندازه شخص | BN24: اندازه شخص | BO24: اندازه شخص | BP24: اندازه شخص | BQ24: اندازه شخص | BR24: اندازه شخص | BS24: اندازه شخص | BT24: اندازه شخص | BU24: اندازه شخص | BV24: اندازه شخص | BW24: اندازه شخص | BX24: اندازه شخص | BY24: اندازه شخص | BZ24: اندازه شخص | CA24: اندازه شخص | CB24: اندازه شخص | CC24: اندازه شخص | CD24: اندازه شخص | CE24: اندازه شخص | CF24: اندازه شخص | CG24: اندازه شخص | CH24: اندازه شخص | CI24: اندازه شخص | CJ24: اندازه شخص | CK24: اندازه شخص | CL24: اندازه شخص | CM24: اندازه شخص | CN24: اندازه شخص | CO24: اندازه شخص | CP24: اندازه شخص | CQ24: اندازه شخص | CR24: اندازه شخص | CS24: اندازه شخص | CT24: اندازه شخص | CU24: اندازه شخص | CV24: اندازه شخص | CW24: اندازه شخص | CX24: اندازه شخص | CY24: اندازه شخص | CZ24: اندازه شخص | DA24: اندازه شخص | DB24: اندازه شخص | DC24: اندازه شخص | DD24: اندازه شخص | DE24: اندازه شخص
A25: ضریب فاصله لبه چادر تا زمین j0 | B25: (از -0.1 الی 0.5) | C25: =K25*E25+L25 -> 0 | D25: خط زمین=0 خط زانو=1 | E25: ='طراحی همه الگوها'!Q232 -> 10 | F25: ضریب فاصله لبه چادر تا زمین | G25: 10 | H25: 0 | I25: 30 | J25: 1 | K25: =(J25-H25)/(I25-G25) -> 0.05 | L25: =H25-G25*K25 -> -0.5 | M25: -0.1 | N25: =(M25-L25)/K25 -> 8 | O25: 0.5 | P25: =(O25-L25)/K25 -> 20 | Q25: 0 | R25: =(Q25-L25)/K25 -> 10 | T25: a | U25: 41 | V25: 42 | W25: 45 | X25: 47 | Y25: 48 | Z25: 49 | AA25: 51 | AB25: 53 | AC25: 55 | AD25: 57 | AE25: 59 | AF25: 61 | AG25: 63 | AH25: 65.5 | AI25: 68 | AJ25: 71 | AK25: 73 | AL25: 75 | AM25: 63 | AN25: 65 | AO25: 68 | AP25: 72 | AQ25: 77 | AR25: 82 | AS25: 87 | AT25: 92 | AU25: 97 | AV25: 103 | AW25: 110 | AX25: 117 | AY25: 124 | AZ25: 131 | BA25: 74 | BB25: 78 | BC25: 82 | BD25: 86 | BE25: 90 | BF25: 94 | BG25: 98 | BH25: 102 | BI25: 106 | BJ25: 111 | BK25: 116 | BL25: 121 | BM25: 126 | BN25: 131 | BO25: 47 | BP25: 48 | BQ25: 49 | BR25: 51 | BS25: 53 | BT25: 55 | BU25: 57 | BV25: 59 | BW25: 61 | BX25: 63 | BY25: 65.5 | BZ25: 68 | CA25: 71 | CB25: 73 | CC25: 75 | CD25: 67 | CE25: 69 | CF25: 72 | CG25: 76 | CH25: 81 | CI25: 86 | CJ25: 91 | CK25: 96 | CL25: 101 | CM25: 107 | CN25: 114 | CO25: 121 | CP25: 127 | CQ25: 135 | CR25: 75.5 | CS25: 79.6 | CT25: 83.6 | CU25: 87.7 | CV25: 91.8 | CW25: 95.9 | CX25: 100 | CY25: 104 | CZ25: 108.1 | DA25: 113.2 | DB25: 118.3 | DC25: 123.4 | DD25: 128.5 | DE25: 133.6 | DF25: =DF7 -> 0 | DG25: 0 | DH25: 0 | DI25: 0 | DJ25: 0 | DK25: 0 | DL25: 0 | DM25: 0 | DN25: 0 | DO25: 0 | DP25: 0 | DQ25: 0 | DR25: 0 | DS25: 0 | DT25: 0 | DU25: 0 | DV25: 0 | DW25: 0 | DX25: 0 | DY25: 0 | DZ25: =DZ7 -> 0 | EA25: 0 | EB25: 0 | EC25: =EC7 -> 0 | ED25: =ED7 -> 0 | EE25: 0 | EF25: 0 | EG25: =EG7 -> 0 | EH25: =EH7 -> 0 | EI25: 0 | EJ25: 0 | EK25: =EK7 -> 0 | EL25: =EL7 -> 0 | EM25: 0 | EN25: 0 | EO25: =EO7 -> 0 | EP25: =EP7 -> 0 | EQ25: 0 | ER25: 0 | ES25: 0
A26: ضریب گشادی پشت چادر نسبت به جلو چادر (به درجه) c1 | B26: (از -5 الی 5) | C26: 3 | D26: بهینه=3 | E26: ='طراحی همه الگوها'!Q233 -> 3 | F26: ضریب گشادی پشت چادر نسبت به جلو چادر (درجه) | G26: 1 | H26: 1 | I26: 0 | J26: 0 | K26: 1 | L26: 0 | M26: -5 | N26: -5 | O26: 5 | P26: 5 | Q26: 3 | R26: 3 | T26: b | U26: 20.1 | V26: 20.6 | W26: 22.1 | X26: 23 | Y26: 23.5 | Z26: 24 | AA26: 25 | AB26: 26 | AC26: 27 | AD26: 27.9 | AE26: 28.9 | AF26: 29.9 | AG26: 30.9 | AH26: 32.1 | AI26: 33.3 | AJ26: 34.8 | AK26: 35.8 | AL26: 36.8 | AM26: 32.2 | AN26: 32.7 | AO26: 33.7 | AP26: 35.2 | AQ26: 36.9 | AR26: 38.7 | AS26: 40.6 | AT26: 42.3 | AU26: 44.3 | AV26: 47.5 | AW26: 51 | AX26: 54.8 | AY26: 59.2 | AZ26: 63.6 | BA26: 37 | BB26: 39 | BC26: 41 | BD26: 43 | BE26: 45 | BF26: 47 | BG26: 49 | BH26: 51 | BI26: 53 | BJ26: 55.5 | BK26: 58 | BL26: 60.5 | BM26: 63 | BN26: 65.5 | BO26: 23 | BP26: 23.5 | BQ26: 24 | BR26: 25 | BS26: 26 | BT26: 27 | BU26: 27.9 | BV26: 28.9 | BW26: 29.9 | BX26: 30.9 | BY26: 32.1 | BZ26: 33.3 | CA26: 34.8 | CB26: 35.8 | CC26: 36.8 | CD26: 34.2 | CE26: 34.7 | CF26: 35.7 | CG26: 37.1 | CH26: 38.8 | CI26: 40.6 | CJ26: 42.4 | CK26: 44.2 | CL26: 46.1 | CM26: 49.4 | CN26: 52.8 | CO26: 56.7 | CP26: 60.7 | CQ26: 64.5 | CR26: 37.8 | CS26: 39.8 | CT26: 41.8 | CU26: 43.9 | CV26: 45.9 | CW26: 48 | CX26: 50 | CY26: 52 | CZ26: 54.1 | DA26: 56.6 | DB26: 59.2 | DC26: 61.7 | DD26: 64.3 | DE26: 66.8 | DF26: =DF8 -> 0 | DG26: 0 | DH26: 0 | DI26: 0 | DJ26: 0 | DK26: 0 | DL26: 0 | DM26: 0 | DN26: 0 | DO26: 0 | DP26: 0 | DQ26: 0 | DR26: 0 | DS26: 0 | DT26: 0 | DU26: 0 | DV26: 0 | DW26: 0 | DX26: 0 | DY26: 0 | DZ26: 0 | EA26: 0 | EB26: 0 | EC26: =EC8 -> 0 | ED26: 0 | EE26: 0 | EF26: 0 | EG26: =EG8 -> 0 | EH26: 0 | EI26: 0 | EJ26: 0 | EK26: =EK8 -> 0 | EL26: 0 | EM26: 0 | EN26: 0 | EO26: =EO8 -> 0 | EP26: 0 | EQ26: 0 | ER26: 0 | ES26: 0
A27: ضریب بلند شدن آستین نسبت به مچ c2 | B27: (از -0.4 الی 0.4) | C27: 0 | D27: آستین تا مچ=0 آستین کوتاه تر از مچ = منفی آستین بلند تر از مچ = مثبت | E27: ='طراحی همه الگوها'!Q234 -> 10 | F27: بلند شدن آستین چادر نسبت به مچ اندام | G27: 30 | H27: -0.45 | I27: 10 | J27: 0 | K27: -0.0225 | L27: 0.225 | M27: -0.4 | N27: 27.77777778 | O27: 0.4 | P27: -7.777777778 | Q27: 0 | R27: 10 | T27: s1 | U27: 43 | V27: 45 | W27: 47 | X27: 50 | Y27: 52 | Z27: 54 | AA27: 56 | AB27: 58 | AC27: 60 | AD27: 62 | AE27: 64 | AF27: 66 | AG27: 68 | AH27: 71 | AI27: 75 | AJ27: 78 | AK27: 82 | AL27: 86 | AM27: 80 | AN27: 84 | AO27: 88 | AP27: 92 | AQ27: 97 | AR27: 102 | AS27: 107 | AT27: 112 | AU27: 117 | AV27: 122 | AW27: 128 | AX27: 134 | AY27: 140 | AZ27: 146 | BA27: 88 | BB27: 92 | BC27: 96 | BD27: 100 | BE27: 104 | BF27: 108 | BG27: 112 | BH27: 116 | BI27: 120 | BJ27: 124 | BK27: 128 | BL27: 132 | BM27: 136 | BN27: 140 | BO27: 50 | BP27: 52 | BQ27: 54 | BR27: 56 | BS27: 58 | BT27: 60 | BU27: 62 | BV27: 64 | BW27: 66 | BX27: 68 | BY27: 71 | BZ27: 75 | CA27: 78 | CB27: 82 | CC27: 86 | CD27: 80 | CE27: 84 | CF27: 88 | CG27: 92 | CH27: 97 | CI27: 102 | CJ27: 107 | CK27: 112 | CL27: 117 | CM27: 122 | CN27: 128 | CO27: 134 | CP27: 140 | CQ27: 146 | CR27: 88 | CS27: 92 | CT27: 96 | CU27: 100 | CV27: 104 | CW27: 108 | CX27: 112 | CY27: 116 | CZ27: 120 | DA27: 124 | DB27: 128 | DC27: 132 | DD27: 136 | DE27: 140 | DF27: ='اندازه های شخصی'!G22 -> 0 | DG27: ='اندازه های شخصی'!I22 -> 0 | DH27: ='اندازه های شخصی'!K22 -> 0 | DI27: ='اندازه های شخصی'!M22 -> 0 | DJ27: ='اندازه های شخصی'!O22 -> 0 | DK27: ='اندازه های شخصی'!Q22 -> 0 | DL27: ='اندازه های شخصی'!S22 -> 0 | DM27: ='اندازه های شخصی'!U22 -> 0 | DN27: ='اندازه های شخصی'!W22 -> 0 | DO27: ='اندازه های شخصی'!Y22 -> 0 | DP27: ='اندازه های شخصی'!AA22 -> 0 | DQ27: ='اندازه های شخصی'!AC22 -> 0 | DR27: ='اندازه های شخصی'!AE22 -> 0 | DS27: ='اندازه های شخصی'!AG22 -> 0 | DT27: ='اندازه های شخصی'!AI22 -> 0 | DU27: ='اندازه های شخصی'!AK22 -> 0 | DV27: ='اندازه های شخصی'!AM22 -> 0 | DW27: ='اندازه های شخصی'!AO22 -> 0 | DX27: ='اندازه های شخصی'!AQ22 -> 0 | DY27: ='اندازه های شخصی'!AS22 -> 0 | DZ27: ='اندازه های شخصی'!AU22 -> 0 | EA27: ='اندازه های شخصی'!AW22 -> 0 | EB27: ='اندازه های شخصی'!AY22 -> 0 | EC27: ='اندازه های شخصی'!BA22 -> 0 | ED27: ='اندازه های شخصی'!BC22 -> 0 | EE27: ='اندازه های شخصی'!BE22 -> 0 | EF27: ='اندازه های شخصی'!BG22 -> 0 | EG27: ='اندازه های شخصی'!BI22 -> 0 | EH27: ='اندازه های شخصی'!BK22 -> 0 | EI27: ='اندازه های شخصی'!BM22 -> 0 | EJ27: ='اندازه های شخصی'!BO22 -> 0 | EK27: ='اندازه های شخصی'!BQ22 -> 0 | EL27: ='اندازه های شخصی'!BS22 -> 0 | EM27: ='اندازه های شخصی'!BU22 -> 0 | EN27: ='اندازه های شخصی'!BW22 -> 0 | EO27: ='اندازه های شخصی'!BY22 -> 0 | EP27: ='اندازه های شخصی'!CA22 -> 0 | EQ27: ='اندازه های شخصی'!CC22 -> 0 | ER27: ='اندازه های شخصی'!CE22 -> 0 | ES27: ='اندازه های شخصی'!CG22 -> 0
A28: ضریب گشادی دور مچ c3 | B28: (از 1.1 الی 3) | C28: 1.7 | D28: بدون گشادی=1 | E28: ='طراحی همه الگوها'!Q235 -> 7 | F28: ضریب گشادی دور مچ | G28: 1 | H28: 1.1 | I28: 0 | J28: 1 | K28: 0.1 | L28: 1 | M28: 1.1 | N28: 1 | O28: 3 | P28: 20 | Q28: 1 | R28: 0 | T28: s2 | U28: 21.5 | V28: 22.5 | W28: 23.5 | X28: 25 | Y28: 26 | Z28: 27 | AA28: 28 | AB28: 29 | AC28: 30 | AD28: 31 | AE28: 32 | AF28: 33 | AG28: 34 | AH28: 35.5 | AI28: 37.5 | AJ28: 39 | AK28: 41 | AL28: 43 | AM28: 38.9 | AN28: 40.2 | AO28: 41.5 | AP28: 42.8 | AQ28: 44.3 | AR28: 45.9 | AS28: 47.5 | AT28: 49.1 | AU28: 50.9 | AV28: 53.6 | AW28: 56.5 | AX28: 59.8 | AY28: 63.7 | AZ28: 67.5 | BA28: 44 | BB28: 46 | BC28: 48 | BD28: 50 | BE28: 52 | BF28: 54 | BG28: 56 | BH28: 58 | BI28: 60 | BJ28: 62 | BK28: 64 | BL28: 66 | BM28: 68 | BN28: 70 | BO28: 25 | BP28: 26 | BQ28: 27 | BR28: 28 | BS28: 29 | BT28: 30 | BU28: 31 | BV28: 32 | BW28: 33 | BX28: 34 | BY28: 35.5 | BZ28: 37.5 | CA28: 39 | CB28: 41 | CC28: 43 | CD28: 38.9 | CE28: 40.2 | CF28: 41.5 | CG28: 42.8 | CH28: 44.3 | CI28: 45.9 | CJ28: 47.5 | CK28: 49.1 | CL28: 50.9 | CM28: 53.6 | CN28: 56.5 | CO28: 59.8 | CP28: 63.7 | CQ28: 67.5 | CR28: 44 | CS28: 46 | CT28: 48 | CU28: 50 | CV28: 52 | CW28: 54 | CX28: 56 | CY28: 58 | CZ28: 60 | DA28: 62 | DB28: 64 | DC28: 66 | DD28: 68 | DE28: 70 | DF28: ='اندازه های شخصی'!G23 -> 0 | DG28: ='اندازه های شخصی'!I23 -> 0 | DH28: ='اندازه های شخصی'!K23 -> 0 | DI28: ='اندازه های شخصی'!M23 -> 0 | DJ28: ='اندازه های شخصی'!O23 -> 0 | DK28: ='اندازه های شخصی'!Q23 -> 0 | DL28: ='اندازه های شخصی'!S23 -> 0 | DM28: ='اندازه های شخصی'!U23 -> 0 | DN28: ='اندازه های شخصی'!W23 -> 0 | DO28: ='اندازه های شخصی'!Y23 -> 0 | DP28: ='اندازه های شخصی'!AA23 -> 0 | DQ28: ='اندازه های شخصی'!AC23 -> 0 | DR28: ='اندازه های شخصی'!AE23 -> 0 | DS28: ='اندازه های شخصی'!AG23 -> 0 | DT28: ='اندازه های شخصی'!AI23 -> 0 | DU28: ='اندازه های شخصی'!AK23 -> 0 | DV28: ='اندازه های شخصی'!AM23 -> 0 | DW28: ='اندازه های شخصی'!AO23 -> 0 | DX28: ='اندازه های شخصی'!AQ23 -> 0 | DY28: ='اندازه های شخصی'!AS23 -> 0 | DZ28: ='اندازه های شخصی'!AU23 -> 0 | EA28: ='اندازه های شخصی'!AW23 -> 0 | EB28: ='اندازه های شخصی'!AY23 -> 0 | EC28: ='اندازه های شخصی'!BA23 -> 0 | ED28: ='اندازه های شخصی'!BC23 -> 0 | EE28: ='اندازه های شخصی'!BE23 -> 0 | EF28: ='اندازه های شخصی'!BG23 -> 0 | EG28: ='اندازه های شخصی'!BI23 -> 0 | EH28: ='اندازه های شخصی'!BK23 -> 0 | EI28: ='اندازه های شخصی'!BM23 -> 0 | EJ28: ='اندازه های شخصی'!BO23 -> 0 | EK28: ='اندازه های شخصی'!BQ23 -> 0 | EL28: ='اندازه های شخصی'!BS23 -> 0 | EM28: ='اندازه های شخصی'!BU23 -> 0 | EN28: ='اندازه های شخصی'!BW23 -> 0 | EO28: ='اندازه های شخصی'!BY23 -> 0 | EP28: ='اندازه های شخصی'!CA23 -> 0 | EQ28: ='اندازه های شخصی'!CC23 -> 0 | ER28: ='اندازه های شخصی'!CE23 -> 0 | ES28: ='اندازه های شخصی'!CG23 -> 0
A29: ضریب بلند شدن آستین به سمت زیر بغل c4 | B29: (از 0 الی 1) | C29: 0.7 | D29: آستین تا زیر بغل=0 بدون آستین= 1 | E29: ='طراحی همه الگوها'!Q236 -> 30 | F29: بلند شدن آستین به سمت زیر بغل | G29: 30 | H29: 0.7 | I29: 10 | J29: 0.1 | K29: 0.03 | L29: -0.2 | M29: 0 | N29: 6.666666667 | O29: 1 | P29: 40 | Q29: 0 | R29: 6.666666667 | T29: t1 | U29: 15.8 | V29: 16.2 | W29: 18.3 | X29: 20.3 | Y29: 21.3 | Z29: 24.4 | AA29: 26.5 | AB29: 26.9 | AC29: 28.6 | AD29: 30.2 | AE29: 31.8 | AF29: 33.3 | AG29: 35.5 | AH29: 36.5 | AI29: 37.3 | AJ29: 38.2 | AK29: 39 | AL29: 39.8 | AM29: 43.6 | AN29: 43.8 | AO29: 44.1 | AP29: 44.4 | AQ29: 44.8 | AR29: 45 | AS29: 45 | AT29: 45.6 | AU29: 45.9 | AV29: 46.3 | AW29: 46.3 | AX29: 46.6 | AY29: 46.3 | AZ29: 46.5 | BA29: 43.9 | BB29: 44.2 | BC29: 44.3 | BD29: 44.5 | BE29: 44.8 | BF29: 44.8 | BG29: 44.9 | BH29: 44.9 | BI29: 45.2 | BJ29: 45.1 | BK29: 45.3 | BL29: 45.6 | BM29: 45.5 | BN29: 45.7 | BO29: 21.8 | BP29: 22.8 | BQ29: 25.8 | BR29: 28.2 | BS29: 28.4 | BT29: 30.2 | BU29: 31.7 | BV29: 33.3 | BW29: 34.9 | BX29: 37.2 | BY29: 38.2 | BZ29: 39.1 | CA29: 39.7 | CB29: 40.5 | CC29: 40.9 | CD29: 43.6 | CE29: 43.8 | CF29: 44.1 | CG29: 44.4 | CH29: 44.8 | CI29: 45 | CJ29: 45 | CK29: 45.6 | CL29: 45.9 | CM29: 46.3 | CN29: 46.3 | CO29: 46.6 | CP29: 46.3 | CQ29: 46.5 | CR29: 46.3 | CS29: 46.3 | CT29: 46 | CU29: 46 | CV29: 45.6 | CW29: 45.6 | CX29: 45.4 | CY29: 45 | CZ29: 44.8 | DA29: 44.4 | DB29: 44.4 | DC29: 44.2 | DD29: 44 | DE29: 43.6 | DF29: ='اندازه های شخصی'!G24 -> 0 | DG29: ='اندازه های شخصی'!I24 -> 0 | DH29: ='اندازه های شخصی'!K24 -> 0 | DI29: ='اندازه های شخصی'!M24 -> 0 | DJ29: ='اندازه های شخصی'!O24 -> 0 | DK29: ='اندازه های شخصی'!Q24 -> 0 | DL29: ='اندازه های شخصی'!S24 -> 0 | DM29: ='اندازه های شخصی'!U24 -> 0 | DN29: ='اندازه های شخصی'!W24 -> 0 | DO29: ='اندازه های شخصی'!Y24 -> 0 | DP29: ='اندازه های شخصی'!AA24 -> 0 | DQ29: ='اندازه های شخصی'!AC24 -> 0 | DR29: ='اندازه های شخصی'!AE24 -> 0 | DS29: ='اندازه های شخصی'!AG24 -> 0 | DT29: ='اندازه های شخصی'!AI24 -> 0 | DU29: ='اندازه های شخصی'!AK24 -> 0 | DV29: ='اندازه های شخصی'!AM24 -> 0 | DW29: ='اندازه های شخصی'!AO24 -> 0 | DX29: ='اندازه های شخصی'!AQ24 -> 0 | DY29: ='اندازه های شخصی'!AS24 -> 0 | DZ29: ='اندازه های شخصی'!AU24 -> 0 | EA29: ='اندازه های شخصی'!AW24 -> 0 | EB29: ='اندازه های شخصی'!AY24 -> 0 | EC29: ='اندازه های شخصی'!BA24 -> 0 | ED29: ='اندازه های شخصی'!BC24 -> 0 | EE29: ='اندازه های شخصی'!BE24 -> 0 | EF29: ='اندازه های شخصی'!BG24 -> 0 | EG29: ='اندازه های شخصی'!BI24 -> 0 | EH29: ='اندازه های شخصی'!BK24 -> 0 | EI29: ='اندازه های شخصی'!BM24 -> 0 | EJ29: ='اندازه های شخصی'!BO24 -> 0 | EK29: ='اندازه های شخصی'!BQ24 -> 0 | EL29: ='اندازه های شخصی'!BS24 -> 0 | EM29: ='اندازه های شخصی'!BU24 -> 0 | EN29: ='اندازه های شخصی'!BW24 -> 0 | EO29: ='اندازه های شخصی'!BY24 -> 0 | EP29: ='اندازه های شخصی'!CA24 -> 0 | EQ29: ='اندازه های شخصی'!CC24 -> 0 | ER29: ='اندازه های شخصی'!CE24 -> 0 | ES29: ='اندازه های شخصی'!CG24 -> 0
A30: ضریب گشادی پایین چادر (به درجه) c5 | B30: (از 0 الی حداکثر) | C30: 20 | D30: چادر راسته بدون گشادی=0 | E30: ='طراحی همه الگوها'!Q237 -> 20 | F30: ضریب گشادی پایین چادر (درجه) | G30: 21 | H30: 21 | I30: 20 | J30: 20 | K30: 1 | L30: 0 | M30: 0 | N30: 0 | O30: 2 | P30: 2 | Q30: 0 | R30: 0 | T30: t2 | U30: 19.4 | V30: 19.9 | W30: 22.2 | X30: 24.5 | Y30: 25.7 | Z30: 28.7 | AA30: 31 | AB30: 31.6 | AC30: 33.4 | AD30: 35.2 | AE30: 36.9 | AF30: 38.6 | AG30: 40.9 | AH30: 42.1 | AI30: 43.3 | AJ30: 44.5 | AK30: 45.7 | AL30: 46.9 | AM30: 50.8 | AN30: 51.4 | AO30: 51.9 | AP30: 52.5 | AQ30: 53.5 | AR30: 54.3 | AS30: 55.1 | AT30: 56.4 | AU30: 57.5 | AV30: 58.7 | AW30: 59.8 | AX30: 61 | AY30: 62.1 | AZ30: 63.3 | BA30: 50.7 | BB30: 51.3 | BC30: 51.7 | BD30: 52.3 | BE30: 52.7 | BF30: 53 | BG30: 53.6 | BH30: 54 | BI30: 54.6 | BJ30: 55 | BK30: 55.4 | BL30: 56 | BM30: 56.4 | BN30: 56.9 | BO30: 26.6 | BP30: 27.9 | BQ30: 31.1 | BR30: 33.6 | BS30: 34.2 | BT30: 36.1 | BU30: 37.9 | BV30: 39.8 | BW30: 41.8 | BX30: 44.3 | BY30: 45.5 | BZ30: 46.9 | CA30: 48 | CB30: 49.4 | CC30: 50.6 | CD30: 50.8 | CE30: 51.4 | CF30: 51.9 | CG30: 52.5 | CH30: 53.5 | CI30: 54.3 | CJ30: 55.1 | CK30: 56.4 | CL30: 57.5 | CM30: 58.7 | CN30: 59.8 | CO30: 61 | CP30: 62.1 | CQ30: 63.3 | CR30: 55.9 | CS30: 56.4 | CT30: 56.7 | CU30: 57.3 | CV30: 57.7 | CW30: 58.3 | CX30: 58.9 | CY30: 59.3 | CZ30: 59.9 | DA30: 60.2 | DB30: 60.8 | DC30: 61.4 | DD30: 62 | DE30: 62.4 | DF30: ='اندازه های شخصی'!G25 -> 0 | DG30: ='اندازه های شخصی'!I25 -> 0 | DH30: ='اندازه های شخصی'!K25 -> 0 | DI30: ='اندازه های شخصی'!M25 -> 0 | DJ30: ='اندازه های شخصی'!O25 -> 0 | DK30: ='اندازه های شخصی'!Q25 -> 0 | DL30: ='اندازه های شخصی'!S25 -> 0 | DM30: ='اندازه های شخصی'!U25 -> 0 | DN30: ='اندازه های شخصی'!W25 -> 0 | DO30: ='اندازه های شخصی'!Y25 -> 0 | DP30: ='اندازه های شخصی'!AA25 -> 0 | DQ30: ='اندازه های شخصی'!AC25 -> 0 | DR30: ='اندازه های شخصی'!AE25 -> 0 | DS30: ='اندازه های شخصی'!AG25 -> 0 | DT30: ='اندازه های شخصی'!AI25 -> 0 | DU30: ='اندازه های شخصی'!AK25 -> 0 | DV30: ='اندازه های شخصی'!AM25 -> 0 | DW30: ='اندازه های شخصی'!AO25 -> 0 | DX30: ='اندازه های شخصی'!AQ25 -> 0 | DY30: ='اندازه های شخصی'!AS25 -> 0 | DZ30: ='اندازه های شخصی'!AU25 -> 0 | EA30: ='اندازه های شخصی'!AW25 -> 0 | EB30: ='اندازه های شخصی'!AY25 -> 0 | EC30: ='اندازه های شخصی'!BA25 -> 0 | ED30: ='اندازه های شخصی'!BC25 -> 0 | EE30: ='اندازه های شخصی'!BE25 -> 0 | EF30: ='اندازه های شخصی'!BG25 -> 0 | EG30: ='اندازه های شخصی'!BI25 -> 0 | EH30: ='اندازه های شخصی'!BK25 -> 0 | EI30: ='اندازه های شخصی'!BM25 -> 0 | EJ30: ='اندازه های شخصی'!BO25 -> 0 | EK30: ='اندازه های شخصی'!BQ25 -> 0 | EL30: ='اندازه های شخصی'!BS25 -> 0 | EM30: ='اندازه های شخصی'!BU25 -> 0 | EN30: ='اندازه های شخصی'!BW25 -> 0 | EO30: ='اندازه های شخصی'!BY25 -> 0 | EP30: ='اندازه های شخصی'!CA25 -> 0 | EQ30: ='اندازه های شخصی'!CC25 -> 0 | ER30: ='اندازه های شخصی'!CE25 -> 0 | ES30: ='اندازه های شخصی'!CG25 -> 0
A31: حداکثر مقدار c5 برای اندام شما | B31: =ROUND(DEGREES(محاسبات!ER46-RADIANS(45)+محاسبات!ER42),0) -> 54 | F31: حداکثر مقدار ضریب گشادی پایین چادر برای اندام شما | T31: t3 | U31: 33 | V31: 34 | W31: 38 | X31: 42 | Y31: 44 | Z31: 49 | AA31: 53 | AB31: 54 | AC31: 57 | AD31: 60 | AE31: 63 | AF31: 66 | AG31: 70 | AH31: 72 | AI31: 74 | AJ31: 76 | AK31: 78 | AL31: 80 | AM31: 80 | AN31: 81 | AO31: 82 | AP31: 83 | AQ31: 84.4 | AR31: 85.7 | AS31: 87 | AT31: 88.9 | AU31: 90.8 | AV31: 92.6 | AW31: 94.5 | AX31: 96.3 | AY31: 98.2 | AZ31: 100 | BA31: 86.8 | BB31: 87.6 | BC31: 88.4 | BD31: 89.2 | BE31: 90 | BF31: 90.8 | BG31: 91.6 | BH31: 92.4 | BI31: 93.2 | BJ31: 94 | BK31: 94.8 | BL31: 95.6 | BM31: 96.4 | BN31: 97.2 | BO31: 42 | BP31: 44 | BQ31: 49 | BR31: 53 | BS31: 54 | BT31: 57 | BU31: 60 | BV31: 63 | BW31: 66 | BX31: 70 | BY31: 72 | BZ31: 74 | CA31: 76 | CB31: 78 | CC31: 80 | CD31: 80 | CE31: 81 | CF31: 82 | CG31: 83 | CH31: 84.4 | CI31: 85.7 | CJ31: 87 | CK31: 88.9 | CL31: 90.8 | CM31: 92.6 | CN31: 94.5 | CO31: 96.3 | CP31: 98.2 | CQ31: 100 | CR31: 88.2 | CS31: 89 | CT31: 89.7 | CU31: 90.5 | CV31: 91.3 | CW31: 92.1 | CX31: 92.9 | CY31: 93.7 | CZ31: 94.5 | DA31: 95.3 | DB31: 96.1 | DC31: 97.1 | DD31: 97.9 | DE31: 98.7 | DF31: ='اندازه های شخصی'!G26 -> 0 | DG31: ='اندازه های شخصی'!I26 -> 0 | DH31: ='اندازه های شخصی'!K26 -> 0 | DI31: ='اندازه های شخصی'!M26 -> 0 | DJ31: ='اندازه های شخصی'!O26 -> 0 | DK31: ='اندازه های شخصی'!Q26 -> 0 | DL31: ='اندازه های شخصی'!S26 -> 0 | DM31: ='اندازه های شخصی'!U26 -> 0 | DN31: ='اندازه های شخصی'!W26 -> 0 | DO31: ='اندازه های شخصی'!Y26 -> 0 | DP31: ='اندازه های شخصی'!AA26 -> 0 | DQ31: ='اندازه های شخصی'!AC26 -> 0 | DR31: ='اندازه های شخصی'!AE26 -> 0 | DS31: ='اندازه های شخصی'!AG26 -> 0 | DT31: ='اندازه های شخصی'!AI26 -> 0 | DU31: ='اندازه های شخصی'!AK26 -> 0 | DV31: ='اندازه های شخصی'!AM26 -> 0 | DW31: ='اندازه های شخصی'!AO26 -> 0 | DX31: ='اندازه های شخصی'!AQ26 -> 0 | DY31: ='اندازه های شخصی'!AS26 -> 0 | DZ31: ='اندازه های شخصی'!AU26 -> 0 | EA31: ='اندازه های شخصی'!AW26 -> 0 | EB31: ='اندازه های شخصی'!AY26 -> 0 | EC31: ='اندازه های شخصی'!BA26 -> 0 | ED31: ='اندازه های شخصی'!BC26 -> 0 | EE31: ='اندازه های شخصی'!BE26 -> 0 | EF31: ='اندازه های شخصی'!BG26 -> 0 | EG31: ='اندازه های شخصی'!BI26 -> 0 | EH31: ='اندازه های شخصی'!BK26 -> 0 | EI31: ='اندازه های شخصی'!BM26 -> 0 | EJ31: ='اندازه های شخصی'!BO26 -> 0 | EK31: ='اندازه های شخصی'!BQ26 -> 0 | EL31: ='اندازه های شخصی'!BS26 -> 0 | EM31: ='اندازه های شخصی'!BU26 -> 0 | EN31: ='اندازه های شخصی'!BW26 -> 0 | EO31: ='اندازه های شخصی'!BY26 -> 0 | EP31: ='اندازه های شخصی'!CA26 -> 0 | EQ31: ='اندازه های شخصی'!CC26 -> 0 | ER31: ='اندازه های شخصی'!CE26 -> 0 | ES31: ='اندازه های شخصی'!CG26 -> 0
A32: انتخاب چادر تا پایین پیشانی=1 انتخاب چادر تا بالای پیشانی=0 انتخاب چادر روی سر = -1 | B32: -1 یا 0 یا 1 | C32: =K32*E32+L32 -> 0 | E32: ='طراحی همه الگوها'!Q239 -> 2 | F32: انتخاب چادر تا پایین پیشانی=3 انتخاب چادر تا بالای پیشانی=2 انتخاب چادر روی سر = 1 | G32: 2 | H32: 0 | I32: 1 | J32: -1 | K32: =(J32-H32)/(I32-G32) -> 1 | L32: =H32-G32*K32 -> -2 | M32: 0 | N32: =(M32-L32)/K32 -> 2 | O32: 1 | P32: =(O32-L32)/K32 -> 3 | Q32: 0 | R32: =(Q32-L32)/K32 -> 2 | T32: t4 | U32: 8.1 | V32: 8.3 | W32: 9.4 | X32: 10.4 | Y32: 10.9 | Z32: 12.5 | AA32: 13.6 | AB32: 13.8 | AC32: 14.7 | AD32: 15.5 | AE32: 16.3 | AF32: 17.1 | AG32: 18.2 | AH32: 18.7 | AI32: 19.1 | AJ32: 19.6 | AK32: 20 | AL32: 20.4 | AM32: 21.9 | AN32: 22.1 | AO32: 22.3 | AP32: 22.5 | AQ32: 22.8 | AR32: 23 | AS32: 23.1 | AT32: 23.5 | AU32: 23.7 | AV32: 23.9 | AW32: 23.9 | AX32: 24 | AY32: 23.8 | AZ32: 23.8 | BA32: 21.9 | BB32: 22 | BC32: 22 | BD32: 22.1 | BE32: 22.2 | BF32: 22.2 | BG32: 22.2 | BH32: 22.2 | BI32: 22.3 | BJ32: 22.2 | BK32: 22.3 | BL32: 22.4 | BM32: 22.3 | BN32: 22.4 | BO32: 10.8 | BP32: 11.3 | BQ32: 12.8 | BR32: 14 | BS32: 14.1 | BT32: 15 | BU32: 15.8 | BV32: 16.6 | BW32: 17.4 | BX32: 18.6 | BY32: 19 | BZ32: 19.4 | CA32: 19.7 | CB32: 20.1 | CC32: 20.3 | CD32: 21.9 | CE32: 22.1 | CF32: 22.3 | CG32: 22.5 | CH32: 22.8 | CI32: 23 | CJ32: 23.1 | CK32: 23.5 | CL32: 23.7 | CM32: 23.9 | CN32: 23.9 | CO32: 24 | CP32: 23.8 | CQ32: 23.8 | CR32: 22.9 | CS32: 22.9 | CT32: 22.7 | CU32: 22.7 | CV32: 22.5 | CW32: 22.5 | CX32: 22.4 | CY32: 22.2 | CZ32: 22.1 | DA32: 21.9 | DB32: 21.9 | DC32: 21.8 | DD32: 21.7 | DE32: 21.5 | DF32: ='اندازه های شخصی'!G27 -> 0 | DG32: ='اندازه های شخصی'!I27 -> 0 | DH32: ='اندازه های شخصی'!K27 -> 0 | DI32: ='اندازه های شخصی'!M27 -> 0 | DJ32: ='اندازه های شخصی'!O27 -> 0 | DK32: ='اندازه های شخصی'!Q27 -> 0 | DL32: ='اندازه های شخصی'!S27 -> 0 | DM32: ='اندازه های شخصی'!U27 -> 0 | DN32: ='اندازه های شخصی'!W27 -> 0 | DO32: ='اندازه های شخصی'!Y27 -> 0 | DP32: ='اندازه های شخصی'!AA27 -> 0 | DQ32: ='اندازه های شخصی'!AC27 -> 0 | DR32: ='اندازه های شخصی'!AE27 -> 0 | DS32: ='اندازه های شخصی'!AG27 -> 0 | DT32: ='اندازه های شخصی'!AI27 -> 0 | DU32: ='اندازه های شخصی'!AK27 -> 0 | DV32: ='اندازه های شخصی'!AM27 -> 0 | DW32: ='اندازه های شخصی'!AO27 -> 0 | DX32: ='اندازه های شخصی'!AQ27 -> 0 | DY32: ='اندازه های شخصی'!AS27 -> 0 | DZ32: ='اندازه های شخصی'!AU27 -> 0 | EA32: ='اندازه های شخصی'!AW27 -> 0 | EB32: ='اندازه های شخصی'!AY27 -> 0 | EC32: ='اندازه های شخصی'!BA27 -> 0 | ED32: ='اندازه های شخصی'!BC27 -> 0 | EE32: ='اندازه های شخصی'!BE27 -> 0 | EF32: ='اندازه های شخصی'!BG27 -> 0 | EG32: ='اندازه های شخصی'!BI27 -> 0 | EH32: ='اندازه های شخصی'!BK27 -> 0 | EI32: ='اندازه های شخصی'!BM27 -> 0 | EJ32: ='اندازه های شخصی'!BO27 -> 0 | EK32: ='اندازه های شخصی'!BQ27 -> 0 | EL32: ='اندازه های شخصی'!BS27 -> 0 | EM32: ='اندازه های شخصی'!BU27 -> 0 | EN32: ='اندازه های شخصی'!BW27 -> 0 | EO32: ='اندازه های شخصی'!BY27 -> 0 | EP32: ='اندازه های شخصی'!CA27 -> 0 | EQ32: ='اندازه های شخصی'!CC27 -> 0 | ER32: ='اندازه های شخصی'!CE27 -> 0 | ES32: ='اندازه های شخصی'!CG27 -> 0
A33: ضریب فاصله افقی مرغک از خط مرکزی جلو | B33: (از -1 الی 4) | C33: =K33*E33+L33 -> 2 | D33: خط مرکزی جلو=0 خط پهلو=1 | E33: ='طراحی همه الگوها'!Q240 -> 40 | F33: ضریب فاصله افقی مرغک از خط مرکزی جلو | G33: 20 | H33: 1 | I33: 0 | J33: 0 | K33: =(J33-H33)/(I33-G33) -> 0.05 | L33: =H33-G33*K33 -> 0 | M33: -1 | N33: =(M33-L33)/K33 -> -20 | O33: 4 | P33: =(O33-L33)/K33 -> 80 | Q33: 0 | R33: =(Q33-L33)/K33 -> 0 | T33: t5 | U33: 10.1 | V33: 10.4 | W33: 11.6 | X33: 12.8 | Y33: 13.4 | Z33: 15 | AA33: 16.2 | AB33: 16.5 | AC33: 17.5 | AD33: 18.4 | AE33: 19.3 | AF33: 20.2 | AG33: 21.4 | AH33: 22 | AI33: 22.6 | AJ33: 23.3 | AK33: 23.9 | AL33: 24.5 | AM33: 25.4 | AN33: 25.7 | AO33: 26 | AP33: 26.3 | AQ33: 26.7 | AR33: 27 | AS33: 27.3 | AT33: 27.8 | AU33: 28.2 | AV33: 28.7 | AW33: 29.1 | AX33: 29.6 | AY33: 30 | AZ33: 30.5 | BA33: 26 | BB33: 26.3 | BC33: 26.5 | BD33: 26.8 | BE33: 27 | BF33: 27.2 | BG33: 27.5 | BH33: 27.7 | BI33: 28 | BJ33: 28.2 | BK33: 28.4 | BL33: 28.7 | BM33: 28.9 | BN33: 29.2 | BO33: 13.7 | BP33: 14.4 | BQ33: 16 | BR33: 17.3 | BS33: 17.6 | BT33: 18.6 | BU33: 19.6 | BV33: 20.6 | BW33: 21.6 | BX33: 22.9 | BY33: 23.5 | BZ33: 24.2 | CA33: 24.8 | CB33: 25.5 | CC33: 26.1 | CD33: 25.4 | CE33: 25.7 | CF33: 26 | CG33: 26.3 | CH33: 26.7 | CI33: 27 | CJ33: 27.3 | CK33: 27.8 | CL33: 28.2 | CM33: 28.7 | CN33: 29.1 | CO33: 29.6 | CP33: 30 | CQ33: 30.5 | CR33: 28.8 | CS33: 29.1 | CT33: 29.3 | CU33: 29.6 | CV33: 29.8 | CW33: 30.1 | CX33: 30.4 | CY33: 30.6 | CZ33: 30.9 | DA33: 31.1 | DB33: 31.4 | DC33: 31.7 | DD33: 32 | DE33: 32.2 | DF33: ='اندازه های شخصی'!G28 -> 0 | DG33: ='اندازه های شخصی'!I28 -> 0 | DH33: ='اندازه های شخصی'!K28 -> 0 | DI33: ='اندازه های شخصی'!M28 -> 0 | DJ33: ='اندازه های شخصی'!O28 -> 0 | DK33: ='اندازه های شخصی'!Q28 -> 0 | DL33: ='اندازه های شخصی'!S28 -> 0 | DM33: ='اندازه های شخصی'!U28 -> 0 | DN33: ='اندازه های شخصی'!W28 -> 0 | DO33: ='اندازه های شخصی'!Y28 -> 0 | DP33: ='اندازه های شخصی'!AA28 -> 0 | DQ33: ='اندازه های شخصی'!AC28 -> 0 | DR33: ='اندازه های شخصی'!AE28 -> 0 | DS33: ='اندازه های شخصی'!AG28 -> 0 | DT33: ='اندازه های شخصی'!AI28 -> 0 | DU33: ='اندازه های شخصی'!AK28 -> 0 | DV33: ='اندازه های شخصی'!AM28 -> 0 | DW33: ='اندازه های شخصی'!AO28 -> 0 | DX33: ='اندازه های شخصی'!AQ28 -> 0 | DY33: ='اندازه های شخصی'!AS28 -> 0 | DZ33: ='اندازه های شخصی'!AU28 -> 0 | EA33: ='اندازه های شخصی'!AW28 -> 0 | EB33: ='اندازه های شخصی'!AY28 -> 0 | EC33: ='اندازه های شخصی'!BA28 -> 0 | ED33: ='اندازه های شخصی'!BC28 -> 0 | EE33: ='اندازه های شخصی'!BE28 -> 0 | EF33: ='اندازه های شخصی'!BG28 -> 0 | EG33: ='اندازه های شخصی'!BI28 -> 0 | EH33: ='اندازه های شخصی'!BK28 -> 0 | EI33: ='اندازه های شخصی'!BM28 -> 0 | EJ33: ='اندازه های شخصی'!BO28 -> 0 | EK33: ='اندازه های شخصی'!BQ28 -> 0 | EL33: ='اندازه های شخصی'!BS28 -> 0 | EM33: ='اندازه های شخصی'!BU28 -> 0 | EN33: ='اندازه های شخصی'!BW28 -> 0 | EO33: ='اندازه های شخصی'!BY28 -> 0 | EP33: ='اندازه های شخصی'!CA28 -> 0 | EQ33: ='اندازه های شخصی'!CC28 -> 0 | ER33: ='اندازه های شخصی'!CE28 -> 0 | ES33: ='اندازه های شخصی'!CG28 -> 0
A34: ضریب فاصله عمودی مرغک از زمین | B34: (از 0 الی 5) | C34: =K34*E34+L34 -> 1.25 | D34: خط زمین=0 خط زانو=1 خط باسن=2 خط کمر=3 خط سینه=4 | E34: ='طراحی همه الگوها'!Q241 -> 35 | F34: ضریب فاصله عمودی مرغک از زمین | G34: 10 | H34: 0 | I34: 30 | J34: 1 | K34: =(J34-H34)/(I34-G34) -> 0.05 | L34: =H34-G34*K34 -> -0.5 | M34: 0 | N34: =(M34-L34)/K34 -> 10 | O34: 5 | P34: =(O34-L34)/K34 -> 110 | Q34: 0 | R34: =(Q34-L34)/K34 -> 10 | T34: t6 | U34: 16.8 | V34: 17.3 | W34: 19.4 | X34: 21.4 | Y34: 22.4 | Z34: 25 | AA34: 27 | AB34: 27.5 | AC34: 29.1 | AD34: 30.6 | AE34: 32.1 | AF34: 33.7 | AG34: 35.7 | AH34: 36.7 | AI34: 37.7 | AJ34: 38.8 | AK34: 39.8 | AL34: 40.8 | AM34: 39 | AN34: 39.5 | AO34: 40 | AP34: 40.5 | AQ34: 41 | AR34: 41.5 | AS34: 42 | AT34: 42.7 | AU34: 43.4 | AV34: 44.1 | AW34: 44.8 | AX34: 45.5 | AY34: 46.2 | AZ34: 46.9 | BA34: 43.4 | BB34: 43.8 | BC34: 44.2 | BD34: 44.6 | BE34: 45 | BF34: 45.4 | BG34: 45.8 | BH34: 46.2 | BI34: 46.6 | BJ34: 47 | BK34: 47.4 | BL34: 47.8 | BM34: 48.2 | BN34: 48.6 | BO34: 21.1 | BP34: 22.1 | BQ34: 24.6 | BR34: 26.6 | BS34: 27.1 | BT34: 28.6 | BU34: 30.2 | BV34: 31.7 | BW34: 33.2 | BX34: 35.2 | BY34: 36.2 | BZ34: 37.2 | CA34: 38.2 | CB34: 39.2 | CC34: 40.2 | CD34: 39 | CE34: 39.5 | CF34: 40 | CG34: 40.5 | CH34: 41 | CI34: 41.5 | CJ34: 42 | CK34: 42.7 | CL34: 43.4 | CM34: 44.1 | CN34: 44.8 | CO34: 45.5 | CP34: 46.2 | CQ34: 46.9 | CR34: 44.3 | CS34: 44.7 | CT34: 45.1 | CU34: 45.5 | CV34: 45.9 | CW34: 46.3 | CX34: 46.7 | CY34: 47.1 | CZ34: 47.5 | DA34: 47.9 | DB34: 48.3 | DC34: 48.8 | DD34: 49.2 | DE34: 49.6 | DF34: ='اندازه های شخصی'!G29 -> 0 | DG34: ='اندازه های شخصی'!I29 -> 0 | DH34: ='اندازه های شخصی'!K29 -> 0 | DI34: ='اندازه های شخصی'!M29 -> 0 | DJ34: ='اندازه های شخصی'!O29 -> 0 | DK34: ='اندازه های شخصی'!Q29 -> 0 | DL34: ='اندازه های شخصی'!S29 -> 0 | DM34: ='اندازه های شخصی'!U29 -> 0 | DN34: ='اندازه های شخصی'!W29 -> 0 | DO34: ='اندازه های شخصی'!Y29 -> 0 | DP34: ='اندازه های شخصی'!AA29 -> 0 | DQ34: ='اندازه های شخصی'!AC29 -> 0 | DR34: ='اندازه های شخصی'!AE29 -> 0 | DS34: ='اندازه های شخصی'!AG29 -> 0 | DT34: ='اندازه های شخصی'!AI29 -> 0 | DU34: ='اندازه های شخصی'!AK29 -> 0 | DV34: ='اندازه های شخصی'!AM29 -> 0 | DW34: ='اندازه های شخصی'!AO29 -> 0 | DX34: ='اندازه های شخصی'!AQ29 -> 0 | DY34: ='اندازه های شخصی'!AS29 -> 0 | DZ34: ='اندازه های شخصی'!AU29 -> 0 | EA34: ='اندازه های شخصی'!AW29 -> 0 | EB34: ='اندازه های شخصی'!AY29 -> 0 | EC34: ='اندازه های شخصی'!BA29 -> 0 | ED34: ='اندازه های شخصی'!BC29 -> 0 | EE34: ='اندازه های شخصی'!BE29 -> 0 | EF34: ='اندازه های شخصی'!BG29 -> 0 | EG34: ='اندازه های شخصی'!BI29 -> 0 | EH34: ='اندازه های شخصی'!BK29 -> 0 | EI34: ='اندازه های شخصی'!BM29 -> 0 | EJ34: ='اندازه های شخصی'!BO29 -> 0 | EK34: ='اندازه های شخصی'!BQ29 -> 0 | EL34: ='اندازه های شخصی'!BS29 -> 0 | EM34: ='اندازه های شخصی'!BU29 -> 0 | EN34: ='اندازه های شخصی'!BW29 -> 0 | EO34: ='اندازه های شخصی'!BY29 -> 0 | EP34: ='اندازه های شخصی'!CA29 -> 0 | EQ34: ='اندازه های شخصی'!CC29 -> 0 | ER34: ='اندازه های شخصی'!CE29 -> 0 | ES34: ='اندازه های شخصی'!CG29 -> 0
T35: v | U35: 25 | V35: 27 | W35: 27 | X35: 28 | Y35: 28 | Z35: 30 | AA35: 30 | AB35: 31 | AC35: 31 | AD35: 32 | AE35: 32 | AF35: 33 | AG35: 34 | AH35: 35 | AI35: 36 | AJ35: 37 | AK35: 38 | AL35: 39 | AM35: 36 | AN35: 37 | AO35: 38 | AP35: 39 | AQ35: 40.2 | AR35: 41.4 | AS35: 42.6 | AT35: 43.8 | AU35: 45 | AV35: 46 | AW35: 47 | AX35: 48 | AY35: 49 | AZ35: 50 | BA35: 39 | BB35: 40 | BC35: 41 | BD35: 42 | BE35: 43 | BF35: 44 | BG35: 45 | BH35: 46 | BI35: 47 | BJ35: 48 | BK35: 49 | BL35: 50 | BM35: 51 | BN35: 52 | BO35: 28 | BP35: 28 | BQ35: 30 | BR35: 30 | BS35: 31 | BT35: 31 | BU35: 32 | BV35: 32 | BW35: 33 | BX35: 34 | BY35: 35 | BZ35: 36 | CA35: 37 | CB35: 38 | CC35: 39 | CD35: 36 | CE35: 37 | CF35: 38 | CG35: 39 | CH35: 40.2 | CI35: 41.4 | CJ35: 42.6 | CK35: 43.8 | CL35: 45 | CM35: 46 | CN35: 47 | CO35: 48 | CP35: 49 | CQ35: 50 | CR35: 39 | CS35: 40 | CT35: 41 | CU35: 42 | CV35: 43 | CW35: 44 | CX35: 45 | CY35: 46 | CZ35: 47 | DA35: 48 | DB35: 49 | DC35: 50 | DD35: 51 | DE35: 52 | DF35: ='اندازه های شخصی'!G30 -> 0 | DG35: ='اندازه های شخصی'!I30 -> 0 | DH35: ='اندازه های شخصی'!K30 -> 0 | DI35: ='اندازه های شخصی'!M30 -> 0 | DJ35: ='اندازه های شخصی'!O30 -> 0 | DK35: ='اندازه های شخصی'!Q30 -> 0 | DL35: ='اندازه های شخصی'!S30 -> 0 | DM35: ='اندازه های شخصی'!U30 -> 0 | DN35: ='اندازه های شخصی'!W30 -> 0 | DO35: ='اندازه های شخصی'!Y30 -> 0 | DP35: ='اندازه های شخصی'!AA30 -> 0 | DQ35: ='اندازه های شخصی'!AC30 -> 0 | DR35: ='اندازه های شخصی'!AE30 -> 0 | DS35: ='اندازه های شخصی'!AG30 -> 0 | DT35: ='اندازه های شخصی'!AI30 -> 0 | DU35: ='اندازه های شخصی'!AK30 -> 0 | DV35: ='اندازه های شخصی'!AM30 -> 0 | DW35: ='اندازه های شخصی'!AO30 -> 0 | DX35: ='اندازه های شخصی'!AQ30 -> 0 | DY35: ='اندازه های شخصی'!AS30 -> 0 | DZ35: ='اندازه های شخصی'!AU30 -> 0 | EA35: ='اندازه های شخصی'!AW30 -> 0 | EB35: ='اندازه های شخصی'!AY30 -> 0 | EC35: ='اندازه های شخصی'!BA30 -> 0 | ED35: ='اندازه های شخصی'!BC30 -> 0 | EE35: ='اندازه های شخصی'!BE30 -> 0 | EF35: ='اندازه های شخصی'!BG30 -> 0 | EG35: ='اندازه های شخصی'!BI30 -> 0 | EH35: ='اندازه های شخصی'!BK30 -> 0 | EI35: ='اندازه های شخصی'!BM30 -> 0 | EJ35: ='اندازه های شخصی'!BO30 -> 0 | EK35: ='اندازه های شخصی'!BQ30 -> 0 | EL35: ='اندازه های شخصی'!BS30 -> 0 | EM35: ='اندازه های شخصی'!BU30 -> 0 | EN35: ='اندازه های شخصی'!BW30 -> 0 | EO35: ='اندازه های شخصی'!BY30 -> 0 | EP35: ='اندازه های شخصی'!CA30 -> 0 | EQ35: ='اندازه های شخصی'!CC30 -> 0 | ER35: ='اندازه های شخصی'!CE30 -> 0 | ES35: ='اندازه های شخصی'!CG30 -> 0
A36: متغیرهای ورودی چادر شماره 5 | F36: متغیرهای ورودی چادر شماره 5 | G36: x1 | H36: y1 | I36: x2 | J36: y2(بهینه) | K36: a | L36: b | N36: کمترین | P36: بیشترین | T36: v3 | U36: 17.7 | V36: 18.4 | W36: 19.2 | X36: 20.4 | Y36: 21.2 | Z36: 22 | AA36: 22.7 | AB36: 23.5 | AC36: 24.2 | AD36: 25.2 | AE36: 26 | AF36: 27 | AG36: 27.8 | AH36: 28.9 | AI36: 30.5 | AJ36: 31.8 | AK36: 33.4 | AL36: 35.1 | AM36: 31.9 | AN36: 32.9 | AO36: 33.9 | AP36: 34.8 | AQ36: 36 | AR36: 37.1 | AS36: 38.3 | AT36: 39.5 | AU36: 40.9 | AV36: 43.2 | AW36: 45.7 | AX36: 48.6 | AY36: 52.1 | AZ36: 55.5 | BA36: 35.2 | BB36: 36.9 | BC36: 38.6 | BD36: 40.2 | BE36: 41.9 | BF36: 43.6 | BG36: 45.4 | BH36: 47.3 | BI36: 49.1 | BJ36: 51.8 | BK36: 52.8 | BL36: 54.6 | BM36: 56.5 | BN36: 58.3 | BO36: 20.4 | BP36: 21.2 | BQ36: 22 | BR36: 22.7 | BS36: 23.5 | BT36: 24.2 | BU36: 25.2 | BV36: 26 | BW36: 27 | BX36: 27.8 | BY36: 28.9 | BZ36: 30.5 | CA36: 31.8 | CB36: 33.4 | CC36: 35.1 | CD36: 31.9 | CE36: 32.9 | CF36: 33.9 | CG36: 34.8 | CH36: 36 | CI36: 37.1 | CJ36: 38.3 | CK36: 39.5 | CL36: 40.9 | CM36: 43.2 | CN36: 45.7 | CO36: 48.6 | CP36: 52.1 | CQ36: 55.5 | CR36: 35.5 | CS36: 37.2 | CT36: 38.9 | CU36: 40.6 | CV36: 42.3 | CW36: 44 | CX36: 45.8 | CY36: 47.7 | CZ36: 49.5 | DA36: 51.4 | DB36: 53.2 | DC36: 55.1 | DD36: 56.9 | DE36: 58.8 | DF36: ='اندازه های شخصی'!G31 -> 0 | DG36: ='اندازه های شخصی'!I31 -> 0 | DH36: ='اندازه های شخصی'!K31 -> 0 | DI36: ='اندازه های شخصی'!M31 -> 0 | DJ36: ='اندازه های شخصی'!O31 -> 0 | DK36: ='اندازه های شخصی'!Q31 -> 0 | DL36: ='اندازه های شخصی'!S31 -> 0 | DM36: ='اندازه های شخصی'!U31 -> 0 | DN36: ='اندازه های شخصی'!W31 -> 0 | DO36: ='اندازه های شخصی'!Y31 -> 0 | DP36: ='اندازه های شخصی'!AA31 -> 0 | DQ36: ='اندازه های شخصی'!AC31 -> 0 | DR36: ='اندازه های شخصی'!AE31 -> 0 | DS36: ='اندازه های شخصی'!AG31 -> 0 | DT36: ='اندازه های شخصی'!AI31 -> 0 | DU36: ='اندازه های شخصی'!AK31 -> 0 | DV36: ='اندازه های شخصی'!AM31 -> 0 | DW36: ='اندازه های شخصی'!AO31 -> 0 | DX36: ='اندازه های شخصی'!AQ31 -> 0 | DY36: ='اندازه های شخصی'!AS31 -> 0 | DZ36: ='اندازه های شخصی'!AU31 -> 0 | EA36: ='اندازه های شخصی'!AW31 -> 0 | EB36: ='اندازه های شخصی'!AY31 -> 0 | EC36: ='اندازه های شخصی'!BA31 -> 0 | ED36: ='اندازه های شخصی'!BC31 -> 0 | EE36: ='اندازه های شخصی'!BE31 -> 0 | EF36: ='اندازه های شخصی'!BG31 -> 0 | EG36: ='اندازه های شخصی'!BI31 -> 0 | EH36: ='اندازه های شخصی'!BK31 -> 0 | EI36: ='اندازه های شخصی'!BM31 -> 0 | EJ36: ='اندازه های شخصی'!BO31 -> 0 | EK36: ='اندازه های شخصی'!BQ31 -> 0 | EL36: ='اندازه های شخصی'!BS31 -> 0 | EM36: ='اندازه های شخصی'!BU31 -> 0 | EN36: ='اندازه های شخصی'!BW31 -> 0 | EO36: ='اندازه های شخصی'!BY31 -> 0 | EP36: ='اندازه های شخصی'!CA31 -> 0 | EQ36: ='اندازه های شخصی'!CC31 -> 0 | ER36: ='اندازه های شخصی'!CE31 -> 0 | ES36: ='اندازه های شخصی'!CG31 -> 0
A37: ضریب فاصله لبه چادر تا زمین j0 | B37: (از -0.1 الی 0.5) | C37: =K37*E37+L37 -> 0 | D37: خط زمین=0 خط زانو=1 | E37: ='طراحی همه الگوها'!Q249 -> 10 | F37: ضریب فاصله لبه چادر تا زمین | G37: 10 | H37: 0 | I37: 30 | J37: 1 | K37: =(J37-H37)/(I37-G37) -> 0.05 | L37: =H37-G37*K37 -> -0.5 | M37: -0.1 | N37: =(M37-L37)/K37 -> 8 | O37: 0.5 | P37: =(O37-L37)/K37 -> 20 | Q37: 0 | R37: =(Q37-L37)/K37 -> 10 | T37: w2 | U37: 16 | V37: 17 | W37: 18 | X37: 19 | Y37: 20 | Z37: 21 | AA37: 22 | AB37: 23 | AC37: 24 | AD37: 24 | AE37: 25 | AF37: 25 | AG37: 26 | AH37: 27.5 | AI37: 29 | AJ37: 30 | AK37: 31.5 | AL37: 33 | AM37: 27 | AN37: 28.2 | AO37: 29.4 | AP37: 30.6 | AQ37: 32 | AR37: 33.8 | AS37: 35.4 | AT37: 37 | AU37: 38.5 | AV37: 40 | AW37: 41.5 | AX37: 43 | AY37: 44.5 | AZ37: 46 | BA37: 33.9 | BB37: 35.1 | BC37: 36.3 | BD37: 37.6 | BE37: 38.8 | BF37: 40 | BG37: 40.7 | BH37: 41.3 | BI37: 41.9 | BJ37: 42.5 | BK37: 43.1 | BL37: 43.7 | BM37: 44.4 | BN37: 45 | BO37: 19 | BP37: 20 | BQ37: 21 | BR37: 22 | BS37: 23 | BT37: 24 | BU37: 24 | BV37: 25 | BW37: 25 | BX37: 26 | BY37: 27.5 | BZ37: 29 | CA37: 30 | CB37: 31.5 | CC37: 33 | CD37: 27 | CE37: 28.2 | CF37: 29.4 | CG37: 30.6 | CH37: 32 | CI37: 33.8 | CJ37: 35.4 | CK37: 37 | CL37: 38.5 | CM37: 40 | CN37: 41.5 | CO37: 43 | CP37: 44.5 | CQ37: 46 | CR37: 33.9 | CS37: 35.1 | CT37: 36.3 | CU37: 37.6 | CV37: 38.8 | CW37: 40 | CX37: 40.7 | CY37: 41.3 | CZ37: 41.9 | DA37: 42.5 | DB37: 43.1 | DC37: 43.7 | DD37: 44.4 | DE37: 45 | DF37: ='اندازه های شخصی'!G32 -> 0 | DG37: ='اندازه های شخصی'!I32 -> 0 | DH37: ='اندازه های شخصی'!K32 -> 0 | DI37: ='اندازه های شخصی'!M32 -> 0 | DJ37: ='اندازه های شخصی'!O32 -> 0 | DK37: ='اندازه های شخصی'!Q32 -> 0 | DL37: ='اندازه های شخصی'!S32 -> 0 | DM37: ='اندازه های شخصی'!U32 -> 0 | DN37: ='اندازه های شخصی'!W32 -> 0 | DO37: ='اندازه های شخصی'!Y32 -> 0 | DP37: ='اندازه های شخصی'!AA32 -> 0 | DQ37: ='اندازه های شخصی'!AC32 -> 0 | DR37: ='اندازه های شخصی'!AE32 -> 0 | DS37: ='اندازه های شخصی'!AG32 -> 0 | DT37: ='اندازه های شخصی'!AI32 -> 0 | DU37: ='اندازه های شخصی'!AK32 -> 0 | DV37: ='اندازه های شخصی'!AM32 -> 0 | DW37: ='اندازه های شخصی'!AO32 -> 0 | DX37: ='اندازه های شخصی'!AQ32 -> 0 | DY37: ='اندازه های شخصی'!AS32 -> 0 | DZ37: ='اندازه های شخصی'!AU32 -> 0 | EA37: ='اندازه های شخصی'!AW32 -> 0 | EB37: ='اندازه های شخصی'!AY32 -> 0 | EC37: ='اندازه های شخصی'!BA32 -> 0 | ED37: ='اندازه های شخصی'!BC32 -> 0 | EE37: ='اندازه های شخصی'!BE32 -> 0 | EF37: ='اندازه های شخصی'!BG32 -> 0 | EG37: ='اندازه های شخصی'!BI32 -> 0 | EH37: ='اندازه های شخصی'!BK32 -> 0 | EI37: ='اندازه های شخصی'!BM32 -> 0 | EJ37: ='اندازه های شخصی'!BO32 -> 0 | EK37: ='اندازه های شخصی'!BQ32 -> 0 | EL37: ='اندازه های شخصی'!BS32 -> 0 | EM37: ='اندازه های شخصی'!BU32 -> 0 | EN37: ='اندازه های شخصی'!BW32 -> 0 | EO37: ='اندازه های شخصی'!BY32 -> 0 | EP37: ='اندازه های شخصی'!CA32 -> 0 | EQ37: ='اندازه های شخصی'!CC32 -> 0 | ER37: ='اندازه های شخصی'!CE32 -> 0 | ES37: ='اندازه های شخصی'!CG32 -> 0
A38: ضریب گشادی دامن چادر d1 | B38: (از 1.5 الی 2.3) | C38: =K38*E38+L38 -> 1.8 | D38: بهینه=1.8 | E38: ='طراحی همه الگوها'!Q250 -> 20 | F38: ضریب گشادی دامن چادر | G38: 21 | H38: 1.85 | I38: 20 | J38: 1.8 | K38: =(J38-H38)/(I38-G38) -> 0.05 | L38: =H38-G38*K38 -> 0.8 | M38: 1.5 | N38: =(M38-L38)/K38 -> 14 | O38: 2.3 | P38: =(O38-L38)/K38 -> 30 | Q38: 1.8 | R38: =(Q38-L38)/K38 -> 20 | T38: w10 | U38: 17 | V38: 18 | W38: 21 | X38: 23 | Y38: 27 | Z38: 31 | AA38: 35 | AB38: 38 | AC38: 41 | AD38: 44 | AE38: 46 | AF38: 48 | AG38: 50 | AH38: 52 | AI38: 54 | AJ38: 56 | AK38: 58 | AL38: 60 | AM38: 57.2 | AN38: 57.8 | AO38: 58.4 | AP38: 59 | AQ38: 59.5 | AR38: 60 | AS38: 60.5 | AT38: 61 | AU38: 61.2 | AV38: 62 | AW38: 62.5 | AX38: 63 | AY38: 63.5 | AZ38: 64 | BA38: 60 | BB38: 60.3 | BC38: 60.8 | BD38: 61.4 | BE38: 62 | BF38: 62.5 | BG38: 63 | BH38: 63.5 | BI38: 64 | BJ38: 64.4 | BK38: 64.8 | BL38: 65.2 | BM38: 65.6 | BN38: 66 | BO38: 23 | BP38: 27 | BQ38: 31 | BR38: 35 | BS38: 38 | BT38: 41 | BU38: 44 | BV38: 46 | BW38: 48 | BX38: 50 | BY38: 52 | BZ38: 54 | CA38: 56 | CB38: 58 | CC38: 60 | CD38: 57.2 | CE38: 57.8 | CF38: 58.4 | CG38: 59 | CH38: 59.5 | CI38: 60 | CJ38: 60.5 | CK38: 61 | CL38: 61.2 | CM38: 62 | CN38: 62.5 | CO38: 63 | CP38: 63.5 | CQ38: 64 | CR38: 60 | CS38: 60.3 | CT38: 60.8 | CU38: 61.4 | CV38: 62 | CW38: 62.5 | CX38: 63 | CY38: 63.5 | CZ38: 64 | DA38: 64.4 | DB38: 64.8 | DC38: 65.2 | DD38: 65.6 | DE38: 66 | DF38: ='اندازه های شخصی'!G33 -> 0 | DG38: ='اندازه های شخصی'!I33 -> 0 | DH38: ='اندازه های شخصی'!K33 -> 0 | DI38: ='اندازه های شخصی'!M33 -> 0 | DJ38: ='اندازه های شخصی'!O33 -> 0 | DK38: ='اندازه های شخصی'!Q33 -> 0 | DL38: ='اندازه های شخصی'!S33 -> 0 | DM38: ='اندازه های شخصی'!U33 -> 0 | DN38: ='اندازه های شخصی'!W33 -> 0 | DO38: ='اندازه های شخصی'!Y33 -> 0 | DP38: ='اندازه های شخصی'!AA33 -> 0 | DQ38: ='اندازه های شخصی'!AC33 -> 0 | DR38: ='اندازه های شخصی'!AE33 -> 0 | DS38: ='اندازه های شخصی'!AG33 -> 0 | DT38: ='اندازه های شخصی'!AI33 -> 0 | DU38: ='اندازه های شخصی'!AK33 -> 0 | DV38: ='اندازه های شخصی'!AM33 -> 0 | DW38: ='اندازه های شخصی'!AO33 -> 0 | DX38: ='اندازه های شخصی'!AQ33 -> 0 | DY38: ='اندازه های شخصی'!AS33 -> 0 | DZ38: ='اندازه های شخصی'!AU33 -> 0 | EA38: ='اندازه های شخصی'!AW33 -> 0 | EB38: ='اندازه های شخصی'!AY33 -> 0 | EC38: ='اندازه های شخصی'!BA33 -> 0 | ED38: ='اندازه های شخصی'!BC33 -> 0 | EE38: ='اندازه های شخصی'!BE33 -> 0 | EF38: ='اندازه های شخصی'!BG33 -> 0 | EG38: ='اندازه های شخصی'!BI33 -> 0 | EH38: ='اندازه های شخصی'!BK33 -> 0 | EI38: ='اندازه های شخصی'!BM33 -> 0 | EJ38: ='اندازه های شخصی'!BO33 -> 0 | EK38: ='اندازه های شخصی'!BQ33 -> 0 | EL38: ='اندازه های شخصی'!BS33 -> 0 | EM38: ='اندازه های شخصی'!BU33 -> 0 | EN38: ='اندازه های شخصی'!BW33 -> 0 | EO38: ='اندازه های شخصی'!BY33 -> 0 | EP38: ='اندازه های شخصی'!CA33 -> 0 | EQ38: ='اندازه های شخصی'!CC33 -> 0 | ER38: ='اندازه های شخصی'!CE33 -> 0 | ES38: ='اندازه های شخصی'!CG33 -> 0
A39: ضریب بلند شدن دسته چادر d2 | B39: (از 0.1 الی 1) | C39: =K39*E39+L39 -> 0.5 | D39: بهینه=0.5 | E39: ='طراحی همه الگوها'!Q251 -> 20 | F39: ضریب بلند شدن دسته چادر | G39: 21 | H39: 0.55 | I39: 20 | J39: 0.5 | K39: =(J39-H39)/(I39-G39) -> 0.05 | L39: =H39-G39*K39 -> -0.5 | M39: 0.1 | N39: =(M39-L39)/K39 -> 12 | O39: 1 | P39: =(O39-L39)/K39 -> 30 | Q39: 0.5 | R39: =(Q39-L39)/K39 -> 20 | T39: w11 | U39: 10 | V39: 10 | W39: 10.5 | X39: 11 | Y39: 12 | Z39: 12 | AA39: 13 | AB39: 13 | AC39: 13 | AD39: 14 | AE39: 14 | AF39: 15 | AG39: 16 | AH39: 15 | AI39: 16 | AJ39: 16.5 | AK39: 17 | AL39: 17.5 | AM39: 16.5 | AN39: 17 | AO39: 17.5 | AP39: 18 | AQ39: 18.5 | AR39: 19 | AS39: 19.5 | AT39: 20 | AU39: 20.5 | AV39: 21 | AW39: 21.5 | AX39: 22 | AY39: 22.5 | AZ39: 23 | BA39: 17.9 | BB39: 18.3 | BC39: 18.7 | BD39: 19.1 | BE39: 19.5 | BF39: 19.9 | BG39: 20.3 | BH39: 20.7 | BI39: 21.1 | BJ39: 21.5 | BK39: 21.9 | BL39: 22.3 | BM39: 22.7 | BN39: 23.1 | BO39: 11 | BP39: 12 | BQ39: 12 | BR39: 13 | BS39: 13 | BT39: 13 | BU39: 14 | BV39: 14 | BW39: 15 | BX39: 16 | BY39: 15 | BZ39: 16 | CA39: 16.5 | CB39: 17 | CC39: 17.5 | CD39: 16.5 | CE39: 17 | CF39: 17.5 | CG39: 18 | CH39: 18.5 | CI39: 19 | CJ39: 19.5 | CK39: 20 | CL39: 20.5 | CM39: 21 | CN39: 21.5 | CO39: 22 | CP39: 22.5 | CQ39: 23 | CR39: 17.9 | CS39: 18.3 | CT39: 18.7 | CU39: 19.1 | CV39: 19.5 | CW39: 19.9 | CX39: 20.3 | CY39: 20.7 | CZ39: 21.1 | DA39: 21.5 | DB39: 21.9 | DC39: 22.3 | DD39: 22.7 | DE39: 23.1 | DF39: ='اندازه های شخصی'!G34 -> 0 | DG39: ='اندازه های شخصی'!I34 -> 0 | DH39: ='اندازه های شخصی'!K34 -> 0 | DI39: ='اندازه های شخصی'!M34 -> 0 | DJ39: ='اندازه های شخصی'!O34 -> 0 | DK39: ='اندازه های شخصی'!Q34 -> 0 | DL39: ='اندازه های شخصی'!S34 -> 0 | DM39: ='اندازه های شخصی'!U34 -> 0 | DN39: ='اندازه های شخصی'!W34 -> 0 | DO39: ='اندازه های شخصی'!Y34 -> 0 | DP39: ='اندازه های شخصی'!AA34 -> 0 | DQ39: ='اندازه های شخصی'!AC34 -> 0 | DR39: ='اندازه های شخصی'!AE34 -> 0 | DS39: ='اندازه های شخصی'!AG34 -> 0 | DT39: ='اندازه های شخصی'!AI34 -> 0 | DU39: ='اندازه های شخصی'!AK34 -> 0 | DV39: ='اندازه های شخصی'!AM34 -> 0 | DW39: ='اندازه های شخصی'!AO34 -> 0 | DX39: ='اندازه های شخصی'!AQ34 -> 0 | DY39: ='اندازه های شخصی'!AS34 -> 0 | DZ39: ='اندازه های شخصی'!AU34 -> 0 | EA39: ='اندازه های شخصی'!AW34 -> 0 | EB39: ='اندازه های شخصی'!AY34 -> 0 | EC39: ='اندازه های شخصی'!BA34 -> 0 | ED39: ='اندازه های شخصی'!BC34 -> 0 | EE39: ='اندازه های شخصی'!BE34 -> 0 | EF39: ='اندازه های شخصی'!BG34 -> 0 | EG39: ='اندازه های شخصی'!BI34 -> 0 | EH39: ='اندازه های شخصی'!BK34 -> 0 | EI39: ='اندازه های شخصی'!BM34 -> 0 | EJ39: ='اندازه های شخصی'!BO34 -> 0 | EK39: ='اندازه های شخصی'!BQ34 -> 0 | EL39: ='اندازه های شخصی'!BS34 -> 0 | EM39: ='اندازه های شخصی'!BU34 -> 0 | EN39: ='اندازه های شخصی'!BW34 -> 0 | EO39: ='اندازه های شخصی'!BY34 -> 0 | EP39: ='اندازه های شخصی'!CA34 -> 0 | EQ39: ='اندازه های شخصی'!CC34 -> 0 | ER39: ='اندازه های شخصی'!CE34 -> 0 | ES39: ='اندازه های شخصی'!CG34 -> 0
A40: انتخاب چادر تا پایین پیشانی=1 انتخاب چادر تا بالای پیشانی=0 انتخاب چادر روی سر = -1 | B40: -1 یا 0 یا 1 | C40: =K40*E40+L40 -> 0 | E40: ='طراحی همه الگوها'!Q252 -> 2 | F40: انتخاب چادر تا پایین پیشانی=3 انتخاب چادر تا بالای پیشانی=2 انتخاب چادر روی سر = 1 | G40: 2 | H40: 0 | I40: 1 | J40: -1 | K40: =(J40-H40)/(I40-G40) -> 1 | L40: =H40-G40*K40 -> -2 | M40: 0 | N40: =(M40-L40)/K40 -> 2 | O40: 1 | P40: =(O40-L40)/K40 -> 3 | Q40: 0 | R40: =(Q40-L40)/K40 -> 2 | T40: w12 | U40: 37 | V40: 38 | W40: 42 | X40: 45 | Y40: 47 | Z40: 49 | AA40: 50 | AB40: 51 | AC40: 52 | AD40: 53 | AE40: 53.5 | AF40: 54 | AG40: 54.5 | AH40: 55 | AI40: 55.5 | AJ40: 56 | AK40: 56.5 | AL40: 57 | AM40: 57 | AN40: 57 | AO40: 57 | AP40: 57 | AQ40: 57 | AR40: 57 | AS40: 57 | AT40: 57 | AU40: 57 | AV40: 57 | AW40: 57 | AX40: 57 | AY40: 57 | AZ40: 57 | BA40: 59 | BB40: 59 | BC40: 59 | BD40: 59 | BE40: 59 | BF40: 59 | BG40: 59 | BH40: 59 | BI40: 59 | BJ40: 59 | BK40: 59 | BL40: 59 | BM40: 59 | BN40: 59 | BO40: 45 | BP40: 47 | BQ40: 49 | BR40: 50 | BS40: 51 | BT40: 52 | BU40: 53 | BV40: 53.5 | BW40: 54 | BX40: 54.5 | BY40: 55 | BZ40: 55.5 | CA40: 56 | CB40: 56.5 | CC40: 57 | CD40: 57 | CE40: 57 | CF40: 57 | CG40: 57 | CH40: 57 | CI40: 57 | CJ40: 57 | CK40: 57 | CL40: 57 | CM40: 57 | CN40: 57 | CO40: 57 | CP40: 57 | CQ40: 57 | CR40: 59 | CS40: 59 | CT40: 59 | CU40: 59 | CV40: 59 | CW40: 59 | CX40: 59 | CY40: 59 | CZ40: 59 | DA40: 59 | DB40: 59 | DC40: 59 | DD40: 59 | DE40: 59 | DF40: ='اندازه های شخصی'!G35 -> 0 | DG40: ='اندازه های شخصی'!I35 -> 0 | DH40: ='اندازه های شخصی'!K35 -> 0 | DI40: ='اندازه های شخصی'!M35 -> 0 | DJ40: ='اندازه های شخصی'!O35 -> 0 | DK40: ='اندازه های شخصی'!Q35 -> 0 | DL40: ='اندازه های شخصی'!S35 -> 0 | DM40: ='اندازه های شخصی'!U35 -> 0 | DN40: ='اندازه های شخصی'!W35 -> 0 | DO40: ='اندازه های شخصی'!Y35 -> 0 | DP40: ='اندازه های شخصی'!AA35 -> 0 | DQ40: ='اندازه های شخصی'!AC35 -> 0 | DR40: ='اندازه های شخصی'!AE35 -> 0 | DS40: ='اندازه های شخصی'!AG35 -> 0 | DT40: ='اندازه های شخصی'!AI35 -> 0 | DU40: ='اندازه های شخصی'!AK35 -> 0 | DV40: ='اندازه های شخصی'!AM35 -> 0 | DW40: ='اندازه های شخصی'!AO35 -> 0 | DX40: ='اندازه های شخصی'!AQ35 -> 0 | DY40: ='اندازه های شخصی'!AS35 -> 0 | DZ40: ='اندازه های شخصی'!AU35 -> 0 | EA40: ='اندازه های شخصی'!AW35 -> 0 | EB40: ='اندازه های شخصی'!AY35 -> 0 | EC40: ='اندازه های شخصی'!BA35 -> 0 | ED40: ='اندازه های شخصی'!BC35 -> 0 | EE40: ='اندازه های شخصی'!BE35 -> 0 | EF40: ='اندازه های شخصی'!BG35 -> 0 | EG40: ='اندازه های شخصی'!BI35 -> 0 | EH40: ='اندازه های شخصی'!BK35 -> 0 | EI40: ='اندازه های شخصی'!BM35 -> 0 | EJ40: ='اندازه های شخصی'!BO35 -> 0 | EK40: ='اندازه های شخصی'!BQ35 -> 0 | EL40: ='اندازه های شخصی'!BS35 -> 0 | EM40: ='اندازه های شخصی'!BU35 -> 0 | EN40: ='اندازه های شخصی'!BW35 -> 0 | EO40: ='اندازه های شخصی'!BY35 -> 0 | EP40: ='اندازه های شخصی'!CA35 -> 0 | EQ40: ='اندازه های شخصی'!CC35 -> 0 | ER40: ='اندازه های شخصی'!CE35 -> 0 | ES40: ='اندازه های شخصی'!CG35 -> 0
U42: سایز مناسب برای الگوهای شلوار | V42: =IF(W43=1,(IF(Y43<U9-1," کوچکتر از یک ماهه ",IF(Y43<V9-1,U6,IF(Y43<W9-1,V6,IF(Y43<X9-1,W6,IF(Y43<Y9-1,X6,IF(Y43<Z9-1,Y6,IF(Y43<AA9-1,Z6,IF(Y43<AB9-1,AA6,IF(Y43<AC9-1,AB6,IF(Y43<AD9-1,AC6,IF(Y43<AE9-1,AD6,IF(Y43<AF9-1,AE6,IF(Y43<AG9-1,AF6,IF(Y43<AH9-1,AG6,IF(Y43<AI9-1,AH6,IF(Y43<AJ9-1,AI6,IF(Y43<AK9-1,AJ6,IF(Y43<AL9-1,AK6,IF(Y43<AL9+3,AL6," بزرگتر از 14 ساله ")))))))))))))))))))),IF(W43=2,(IF(Y43<AM9-1," کوچکتر از سایز 34 ",IF(Y43<AN9-1,AM6,IF(Y43<AO9-1,AN6,IF(Y43<AP9-1,AO6,IF(Y43<AQ9-1,AP6,IF(Y43<AR9-1,AQ6,IF(Y43<AS9-1,AR6,IF(Y43<AT9-1,AS6,IF(Y43<AU9-1,AT6,IF(Y43<AV9-1,AU6,IF(Y43<AW9-1,AV6,IF(Y43<AX9-1,AW6,IF(Y43<AY9-1,AX6,IF(Y43<AZ9-1,AY6,IF(Y43<AZ9+3,AZ6," بزرگتر از سایز 60 ")))))))))))))))),IF(Y43<BA9-1," کوچکتراز سایز 37 ",IF(Y43<BB9-1,BA6,IF(Y43<BC9-1,BB6,IF(Y43<BD9-1,BC6,IF(Y43<BE9-1,BD6,IF(Y43<BF9-1,BE6,IF(Y43<BG9-1,BF6,IF(Y43<BH9-1,BG6,IF(Y43<BI9-1,BH6,IF(Y43<BJ9-1,BI6,IF(Y43<BK9-1,BJ6,IF(Y43<BL9-1,BK6,IF(Y43<BM9-1,BL6,IF(Y43<BN9-1,BM6,IF(Y43<BN9+3,BN6," بزرگتر از سایز 50 "))))))))))))))))) -> کوچکتر از سایز 34 | W42: انتخاب نوع اندازه گیری | X42: کمر اندام | Y42: باسن اندام | Z42: دور سینه اندام
U43: سایز مناسب برای الگوهای دامن | V43: =IF(W43=1,(IF(X43<U7-1," کوچکتر از یک ماهه ",IF(X43<V7-1,U6,IF(X43<W7-1,V6,IF(X43<X7-1,W6,IF(X43<Y7-1,X6,IF(X43<Z7-1,Y6,IF(X43<AA7-1,Z6,IF(X43<AB7-1,AA6,IF(X43<AC7-1,AB6,IF(X43<AD7-1,AC6,IF(X43<AE7-1,AD6,IF(X43<AF7-1,AE6,IF(X43<AG7-1,AF6,IF(X43<AH7-1,AG6,IF(X43<AI7-1,AH6,IF(X43<AJ7-1,AI6,IF(X43<AK7-1,AJ6,IF(X43<AL7-1,AK6,IF(X43<AL7+3,AL6," بزرگتر از 14 ساله ")))))))))))))))))))),IF(W43=2,(IF(X43<AM7-1," کوچکتر از سایز 34 ",IF(X43<AN7-1,AM6,IF(X43<AO7-1,AN6,IF(X43<AP7-1,AO6,IF(X43<AQ7-1,AP6,IF(X43<AR7-1,AQ6,IF(X43<AS7-1,AR6,IF(X43<AT7-1,AS6,IF(X43<AU7-1,AT6,IF(X43<AV7-1,AU6,IF(X43<AW7-1,AV6,IF(X43<AX7-1,AW6,IF(X43<AY7-1,AX6,IF(X43<AZ7-1,AY6,IF(X43<AZ7+3,AZ6," بزرگتر از سایز 60 ")))))))))))))))),IF(X43<BA7-1," کوچکتر از سایز 37 ",IF(X43<BB7-1,BA6,IF(X43<BC7-1,BB6,IF(X43<BD7-1,BC6,IF(X43<BE7-1,BD6,IF(X43<BF7-1,BE6,IF(X43<BG7-1,BF6,IF(X43<BH7-1,BG6,IF(X43<BI7-1,BH6,IF(X43<BJ7-1,BI6,IF(X43<BK7-1,BJ6,IF(X43<BL7-1,BK6,IF(X43<BM7-1,BL6,IF(X43<BN7-1,BM6,IF(X43<BN7+3,BN6," بزرگتر از سایز 50 "))))))))))))))))) -> کوچکتر از سایز 34 | W43: 2 | X43: ='اندازه گیری و تحلیل'!E275 -> 0 | Y43: ='اندازه گیری و تحلیل'!E272 -> 0 | Z43: ='اندازه گیری و تحلیل'!E269 -> 0
U44: سایز مناسب برای الگوهای پیراهن | V44: =IF(W43=1,(IF(Z43<U27-1," کوچکتر از یک ماهه ",IF(Z43<V27-1,U6,IF(Z43<W27-1,V6,IF(Z43<X27-1,W6,IF(Z43<Y27-1,X6,IF(Z43<Z27-1,Y6,IF(Z43<AA27-1,Z6,IF(Z43<AB27-1,AA6,IF(Z43<AC27-1,AB6,IF(Z43<AD27-1,AC6,IF(Z43<AE27-1,AD6,IF(Z43<AF27-1,AE6,IF(Z43<AG27-1,AF6,IF(Z43<AH27-1,AG6,IF(Z43<AI27-1,AH6,IF(Z43<AJ27-1,AI6,IF(Z43<AK27-1,AJ6,IF(Z43<AL27-1,AK6,IF(Z43<AL27+3,AL6," بزرگتر از 14 ساله ")))))))))))))))))))),IF(W43=2,(IF(Z43<AM27-1," کوچکتر از سایز 34 ",IF(Z43<AN27-1,AM6,IF(Z43<AO27-1,AN6,IF(Z43<AP27-1,AO6,IF(Z43<AQ27-1,AP6,IF(Z43<AR27-1,AQ6,IF(Z43<AS27-1,AR6,IF(Z43<AT27-1,AS6,IF(Z43<AU27-1,AT6,IF(Z43<AV27-1,AU6,IF(Z43<AW27-1,AV6,IF(Z43<AX27-1,AW6,IF(Z43<AY27-1,AX6,IF(Z43<AZ27-1,AY6,IF(Z43<AZ27+3,AZ6," بزرگتر از سایز 60 ")))))))))))))))),IF(Z43<BA27-1," کوچکتر از سایز 37 ",IF(Z43<BB27-1,BA6,IF(Z43<BC27-1,BB6,IF(Z43<BD27-1,BC6,IF(Z43<BE27-1,BD6,IF(Z43<BF27-1,BE6,IF(Z43<BG27-1,BF6,IF(Z43<BH27-1,BG6,IF(Z43<BI27-1,BH6,IF(Z43<BJ27-1,BI6,IF(Z43<BK27-1,BJ6,IF(Z43<BL27-1,BK6,IF(Z43<BM27-1,BL6,IF(Z43<BN27-1,BM6,IF(Z43<BN27+3,BN6," بزرگتر از سایز 50 "))))))))))))))))) -> کوچکتر از سایز 34
A46: متغیرهای ورودی پیراهن | F46: متغیرهای ورودی پیراهن
B48: برچسب الگو : | F48: پنج ساله میل سه
A50: متغیرهای ورودی - شیفت الگو پیراهن | F50: متغیرهای ورودی - شیفت الگو پیراهن | G50: x1 | H50: y1 | I50: x2 | J50: y2(بهینه) | K50: a | L50: b | M50: کمترین قبلی | N50: کمترین جدید | O50: بیشترین قبلی | P50: بیشترین جدید | S50: اندازه های خوانده شده در محاسبه الگوها | W50: اندازه های خوانده شده برای بررسی اندازه ها | AJ50: رنج تغییرات اندزه ها | AK50: رنج تغییرات متغیرها مثبت و منفی | AL50: رنج تغییرات متغیرها مثبت | AO50: انتخاب نوع سایزبندی | AP50: رنج تغییرات کوچک متغیرها مثبت و منفی
A51: شیفت افقی کل الگو جلو پیراهن برحسب سانتیمتر | B51: (از -100 الی100) | C51: =K51*E51+L51 -> 5 | D51: بدون شیفت=0 | E51: ='طراحی همه الگوها'!B182 -> 5 | F51: شیفت افقی کل الگو جلو پیراهن (سانتیمتر) | G51: 1 | H51: 1 | I51: 0 | J51: 0 | K51: =(J51-H51)/(I51-G51) -> 1 | L51: =H51-G51*K51 -> 0 | M51: -100 | N51: =(M51-L51)/K51 -> -100 | O51: 100 | P51: =(O51-L51)/K51 -> 100 | S51: اندازه ها در دامن و شلوار | U51: اندازه شخص | W51: اندازه شخص | AJ51: =U6 -> 1ماهه | AK51: -100 | AL51: 1 | AM51: اندازه جدید | AO51: سایزبندی بچگانه | AP51: -50
A52: شیفت عمودی کل الگو جلو پیراهن برحسب سانتیمتر | B52: (از -100 الی100) | C52: 5 | D52: بدون شیفت =0 | E52: ='طراحی همه الگوها'!B183 -> 5 | F52: شیفت عمودی کل الگو جلو پیراهن (سانتیمتر) | G52: 1 | H52: 1 | I52: 0 | J52: 0 | K52: 1 | L52: 0 | M52: -100 | N52: -100 | O52: 100 | P52: 100 | S52: دور کمر | T52: a | U52: =OFFSET('متغیرها '!T5,2,'متغیرها '!U5) -> 51 | W52: =OFFSET('متغیرها '!T5,2,'متغیرها '!Y5) -> 131 | AJ52: =V6 -> 1 تا 3 ماهه | AK52: -99 | AL52: 2 | AM52: اندازه های موجود | AO52: سایزبندی زنانه | AP52: -49.5
A53: شیفت افقی کل الگو پشت پیراهن برحسب سانتیمتر | B53: (از -100 الی100) | C53: 5 | D53: بدون شیفت=0 | E53: ='طراحی همه الگوها'!B184 -> 5 | F53: شیفت افقی کل الگو پشت پیراهن (سانتیمتر) | G53: 1 | H53: 1 | I53: 0 | J53: 0 | K53: 1 | L53: 0 | M53: -100 | N53: -100 | O53: 100 | P53: 100 | S53: نوار کمر از پشت بین دو خط پهلو | T53: b | U53: =OFFSET('متغیرها '!T5,3,'متغیرها '!U5) -> 25 | W53: =OFFSET('متغیرها '!T5,3,'متغیرها '!Y5) -> 63.6 | AJ53: =W6 -> 3 تا 6 ماهه | AK53: -98 | AL53: 3 | AM53: انتخاب نوع اندازه گیری | AO53: سایزبندی مردانه | AP53: -49
A54: شیفت عمودی کل الگو پشت پیراهن برحسب سانتیمتر | B54: (از -100 الی100) | C54: 5 | D54: بدون شیفت =0 | E54: ='طراحی همه الگوها'!B185 -> 5 | F54: شیفت عمودی کل الگو پشت پیراهن (سانتیمتر) | G54: 1 | H54: 1 | I54: 0 | J54: 0 | K54: 1 | L54: 0 | M54: -100 | N54: -100 | O54: 100 | P54: 100 | S54: دور باسن | T54: c | U54: =OFFSET('متغیرها '!T5,4,'متغیرها '!U5) -> 59 | W54: =OFFSET('متغیرها '!T5,4,'متغیرها '!Y5) -> 150 | AJ54: =X6 -> 6ماهه تا یکساله | AK54: -97 | AL54: 4 | AM54: اندازه گیری پیشرفته و با جزئیات | AP54: -48.5
A55: شیفت افقی تکه پهلو جلو برحسب سانتیمتر | B55: (از -100 الی100) | C55: 0 | D55: بدون شیفت=0 | E55: ='طراحی همه الگوها'!B187 -> 0 | F55: شیفت افقی تکه پهلو جلو (سانتیمتر) | G55: 1 | H55: 1 | I55: 0 | J55: 0 | K55: 1 | L55: 0 | M55: -100 | N55: -100 | O55: 100 | P55: 100 | S55: نوار باسن از پشت بین دو خط پهلو | T55: d | U55: =OFFSET('متغیرها '!T5,5,'متغیرها '!U5) -> 31.3 | W55: =OFFSET('متغیرها '!T5,5,'متغیرها '!Y5) -> 79.8 | AJ55: =Y6 -> بچگانه 1 ساله | AK55: -96 | AL55: 5 | AM55: اندازه گیری مردان و بچه ها | AP55: -48
A56: شیفت افقی تکه پهلو پشت برحسب سانتیمتر | B56: (از -100 الی100) | C56: 0 | D56: بدون شیفت=0 | E56: ='طراحی همه الگوها'!B188 -> 0 | F56: شیفت افقی تکه پهلو پشت (سانتیمتر) | G56: 1 | H56: 1 | I56: 0 | J56: 0 | K56: 1 | L56: 0 | M56: -100 | N56: -100 | O56: 100 | P56: 100 | S56: فاصله نوار کمر تا زمین، از قسمت جلو | T56: e | U56: =OFFSET('متغیرها '!T5,6,'متغیرها '!U5) -> 53.9 | W56: =OFFSET('متغیرها '!T5,6,'متغیرها '!Y5) -> 108.9 | AJ56: =Z6 -> بچگانه 2 ساله | AK56: -95 | AL56: 6 | AM56: اندازه گیری زنان | AP56: -47.5
A57: شیفت عمودی تکه پهلو پشت برحسب سانتیمتر | B57: (از -100 الی100) | C57: 0 | D57: بدون شیفت=0 | E57: ='طراحی همه الگوها'!B189 -> 0 | F57: شیفت عمودی تکه پهلو پشت (سانتیمتر) | G57: 1 | H57: 1 | I57: 0 | J57: 0 | K57: 1 | L57: 0 | M57: -100 | N57: -100 | O57: 100 | P57: 100 | S57: فاصله نوار کمر تا زمین، از قسمت پهلو | T57: f | U57: =OFFSET('متغیرها '!T5,7,'متغیرها '!U5) -> 54 | W57: =OFFSET('متغیرها '!T5,7,'متغیرها '!Y5) -> 110 | AJ57: =AA6 -> بچگانه 3 ساله | AK57: -94 | AL57: 7 | AM57: اندازه گیری پیشرفته زنان | AP57: -47
S58: فاصله نوار کمر تا زمین، از قسمت پشت | T58: g | U58: =OFFSET('متغیرها '!T5,8,'متغیرها '!U5) -> 54.1 | W58: =OFFSET('متغیرها '!T5,8,'متغیرها '!Y5) -> 111.1 | AJ58: =AB6 -> بچگانه 4 ساله | AK58: -93 | AL58: 8 | AP58: -46.5
A59: متغیرهای ورودی - گشاد یا تنگ شدن پیراهن | F59: متغیرهای ورودی - گشاد یا تنگ شدن پیراهن | G59: x1 | H59: y1 | I59: x2 | J59: y2(بهینه) | K59: a | L59: b | M59: کمترین قبلی | N59: کمترین جدید | O59: بیشترین قبلی | P59: بیشترین جدید | S59: فاصله نوار زانو تا زمین | T59: h | U59: =OFFSET('متغیرها '!T5,9,'متغیرها '!U5) -> 24.9 | W59: =OFFSET('متغیرها '!T5,9,'متغیرها '!Y5) -> 46.7 | AJ59: =AC6 -> بچگانه 5 ساله | AK59: -92 | AL59: 9 | AP59: -46
A60: ضریب تغییر اندازه های عرضی در پیراهن f2 | B60: (از -0.2 الی 0.2) | C60: =K60*E60+L60 -> 0 | D60: اندامی =0 | E60: ='طراحی همه الگوها'!B192 -> 0 | F60: اندازه های عرضی در پیراهن | G60: 1 | H60: 0.01 | I60: 0 | J60: 0 | K60: =(J60-H60)/(I60-G60) -> 0.01 | L60: =H60-G60*K60 -> 0 | M60: -0.2 | N60: =(M60-L60)/K60 -> -20 | O60: 0.2 | P60: =(O60-L60)/K60 -> 20 | S60: فاصله نوار باسن تا زمین | T60: j | U60: =OFFSET('متغیرها '!T5,10,'متغیرها '!U5) -> 45.2 | W60: =OFFSET('متغیرها '!T5,10,'متغیرها '!Y5) -> 87.3 | AJ60: =AD6 -> بچگانه 6 ساله | AK60: -91 | AL60: 10 | AM60: انتخاب نوع الگو | AP60: -45.5
A61: ضریب گشاد یا تنگ شدن از خط پهلو زیر حلقهf3 | B61: (از -0.03 الی 0.03) | C61: =K61*E61+L61 -> 0 | D61: اندامی =0 | E61: ='طراحی همه الگوها'!B193 -> 0 | F61: گشاد یا تنگ شدن از خط پهلو زیر حلقه | G61: 1 | H61: 0.005 | I61: 0 | J61: 0 | K61: =(J61-H61)/(I61-G61) -> 0.005 | L61: =H61-G61*K61 -> 0 | M61: -0.03 | N61: =(M61-L61)/K61 -> -6 | O61: 0.03 | P61: =(O61-L61)/K61 -> 6 | S61: دور زانو | T61: L | U61: =OFFSET('متغیرها '!T5,11,'متغیرها '!U5) -> 24.2 | W61: =OFFSET('متغیرها '!T5,11,'متغیرها '!Y5) -> 61.5 | AJ61: =AE6 -> بچگانه 7 ساله | AK61: -90 | AL61: 11 | AM61: فاق معمولی مناسب زنان و بچه ها | AP61: -45
A62: ضریب گشاد یا تنگ شدن از خط پهلو دور باسن f4 | B62: (از -0.03 الی 0.08) | C62: =K62*E62+L62 -> -0.01 | D62: اندامی =0 | E62: ='طراحی همه الگوها'!B194 -> -2 | F62: گشاد یا تنگ شدن از خط پهلو دور باسن | G62: 1 | H62: 0.005 | I62: 0 | J62: 0 | K62: =(J62-H62)/(I62-G62) -> 0.005 | L62: =H62-G62*K62 -> 0 | M62: -0.03 | N62: =(M62-L62)/K62 -> -6 | O62: 0.08 | P62: =(O62-L62)/K62 -> 16 | S62: بلندی فاق | T62: m | U62: =OFFSET('متغیرها '!T5,12,'متغیرها '!U5) -> 14 | W62: =OFFSET('متغیرها '!T5,12,'متغیرها '!Y5) -> 33.5 | AJ62: =AF6 -> بچگانه 8 ساله | AK62: -89 | AL62: 12 | AM62: فاق کمی بلند مناسب مردان | AP62: -44.5
A63: ضریب تغییر اندازه های طولی در پیراهن f5 | B63: (از -0.2 الی 0.2) | C63: =K63*E63+L63 -> 0 | D63: اندامی =0 | E63: ='طراحی همه الگوها'!B195 -> 0 | F63: اندازه های طولی در پیراهن | G63: 1 | H63: 0.01 | I63: 0 | J63: 0 | K63: =(J63-H63)/(I63-G63) -> 0.01 | L63: =H63-G63*K63 -> 0 | M63: -0.2 | N63: =(M63-L63)/K63 -> -20 | O63: 0.2 | P63: =(O63-L63)/K63 -> 20 | S63: آنفورشور | T63: q | U63: =OFFSET('متغیرها '!T5,13,'متغیرها '!U5) -> 37.7 | W63: =OFFSET('متغیرها '!T5,13,'متغیرها '!Y5) -> 91.7 | AJ63: =AG6 -> بچگانه 9 ساله | AK63: -88 | AL63: 13 | AM63: فاق کاملا بلند مناسب بچه با پوشک | AP63: -44
S64: دور مچ پا | T64: r | U64: =OFFSET('متغیرها '!T5,14,'متغیرها '!U5) -> 17.6 | W64: =OFFSET('متغیرها '!T5,14,'متغیرها '!Y5) -> 30 | AJ64: =AH6 -> بچگانه 10 ساله | AK64: -87 | AL64: 14 | AP64: -43.5
A65: متغیرهای ورودی - جادکمه و پایین لباس | F65: متغیرهای ورودی - جادکمه و پایین لباس | G65: x1 | H65: y1 | I65: x2 | J65: y2(بهینه) | K65: a | L65: b | M65: کمترین قبلی | N65: کمترین جدید | O65: بیشترین قبلی | P65: بیشترین جدید | AJ65: =AI6 -> بچگانه 11 ساله | AK65: -86 | AL65: 15 | AM65: ارتفاع یقه گرد کش | AP65: -43
A66: ضریب بزرگی پهنای جادکمه جلو مرحله اول | B66: (از 0 الی 0.1) | C66: =K66*E66+L66 -> 0 | D66: بهینه=0.015 | E66: ='طراحی همه الگوها'!B198 -> 0 | F66: پهنای جادکمه جلو مرحله اول در طراحی یقه انگلیسی | G66: 0 | H66: 0 | I66: 1 | J66: 0.005 | K66: =(J66-H66)/(I66-G66) -> 0.005 | L66: =H66-G66*K66 -> 0 | M66: 0 | N66: =(M66-L66)/K66 -> 0 | O66: 0.1 | P66: =(O66-L66)/K66 -> 20 | S66: شلوار زنانه و بچگانه = 0 مردانه=1 بچه با پوشک=2 | U66: =OFFSET('متغیرها '!T5,16,'متغیرها '!U5) -> 0 | W66: =OFFSET('متغیرها '!T5,16,'متغیرها '!Y5) -> 0 | AJ66: =AJ6 -> بچگانه 12 ساله | AK66: -85 | AL66: 16 | AM66: 0.5 | AN66: نوع آستین | AP66: -42.5
A67: ضریب فاصله لبه دامن یا پیراهن تا زمین k0 | B67: (از 0 الی 4) | C67: =K67*E67+L67 -> 1.25 | D67: خط زمین=0 خط زانو=1 خط باسن=2 خط کمر=3 خط سینه=4 | E67: ='طراحی همه الگوها'!B199 -> 35 | F67: لبه پایین لباس | G67: 10 | H67: 0 | I67: 30 | J67: 1 | K67: =(J67-H67)/(I67-G67) -> 0.05 | L67: =H67-G67*K67 -> -0.5 | M67: 0 | N67: =(M67-L67)/K67 -> 10 | O67: 4 | P67: =(O67-L67)/K67 -> 90 | AJ67: =AK6 -> بچگانه 13 ساله | AK67: -84 | AL67: 17 | AM67: 1 | AN67: 1 | AP67: -42
A68: ضریب انحنا لبه پایین لباس | B68: (از 0 الی 0.9) | C68: =K68*E68+L68 -> 0 | D68: بهینه =0.1 | E68: ='طراحی همه الگوها'!B200 -> 0 | F68: انحنا لبه پایین لباس نزدیک خط پهلو | G68: 0 | H68: 0 | I68: 1 | J68: 0.05 | K68: =(J68-H68)/(I68-G68) -> 0.05 | L68: =H68-G68*K68 -> 0 | M68: 0 | N68: =(M68-L68)/K68 -> 0 | O68: 0.9 | P68: =(O68-L68)/K68 -> 18 | AJ68: =AL6 -> بچگانه 14 ساله | AK68: -83 | AL68: 18 | AM68: 1.5 | AN68: 2 | AP68: -41.5
A69: ضریب طول انحنا لبه پایین لباس نزدیک خط پهلو | B69: (از 0 الی 1) | C69: =K69*E69+L69 -> 0.75 | D69: بهینه =0.9 | E69: ='طراحی همه الگوها'!B201 -> 15 | F69: طول انحنا لبه پایین لباس نزدیک خط پهلو | G69: 0 | H69: 0 | I69: 1 | J69: 0.05 | K69: =(J69-H69)/(I69-G69) -> 0.05 | L69: =H69-G69*K69 -> 0 | M69: 0 | N69: =(M69-L69)/K69 -> 0 | O69: 1 | P69: =(O69-L69)/K69 -> 20 | S69: اندازه ها در بالاتنه | U69: اندازه شخص | W69: اندازه شخص | AJ69: =AM6 -> 34زنانه | AK69: -82 | AL69: 19 | AM69: 2 | AN69: 4 | AP69: -41
A70: متغیرهای ورودی - یقه | F70: متغیرهای ورودی - یقه | G70: x1 | H70: y1 | I70: x2 | J70: y2(بهینه) | K70: a | L70: b | M70: کمترین قبلی | N70: کمترین جدید | O70: بیشترین قبلی | P70: بیشترین جدید | S70: دور کمر | T70: a | U70: =OFFSET('متغیرها '!T5,20,'متغیرها '!U5) -> 51 | W70: =OFFSET('متغیرها '!T5,20,'متغیرها '!Y5) -> 131 | AJ70: =AN6 -> 36زنانه | AK70: -81 | AL70: 20 | AM70: 2.5 | AP70: -40.5
A71: ضریب باز شدن یقه روی سرشانه (گرد یا مربعی یا دلبری) مرحله دوم x6 | B71: (از 0 الی 0.99) | C71: =K71*E71+L71 -> 0.7 | D71: یقه کیپ=0 | E71: ='طراحی همه الگوها'!E177 -> 14 | F71: باز شدن یقه روی سرشانه (گرد یا مربعی یا دلبری) مرحله دوم در طراحی یقه انگلیسی | G71: 0 | H71: 0 | I71: 1 | J71: 0.05 | K71: =(J71-H71)/(I71-G71) -> 0.05 | L71: =H71-G71*K71 -> 0 | M71: 0 | N71: =(M71-L71)/K71 -> 0 | O71: 0.95 | P71: =(O71-L71)/K71 -> 19 | S71: نوار کمر از پشت بین دو خط پهلو | T71: b | U71: =OFFSET('متغیرها '!T5,21,'متغیرها '!U5) -> 25 | W71: =OFFSET('متغیرها '!T5,21,'متغیرها '!Y5) -> 63.6 | AJ71: =AO6 -> 38زنانه | AK71: -80 | AL71: 21 | AM71: 3 | AP71: -40
A72: ضریب باز شدن یقه روی خط مرکزی جلو (گرد یا مربعی یا قایقی یا پروانه ای) x'6 | B72: (از 0 الی 3) | C72: =K72*E72+L72 -> 2.2 | D72: یقه کیپ=0 | E72: ='طراحی همه الگوها'!E178 -> 44 | F72: باز شدن یقه روی خط مرکزی جلو (گرد یا مربعی یا قایقی یا پروانه ای) | G72: 0 | H72: 0 | I72: 1 | J72: 0.05 | K72: =(J72-H72)/(I72-G72) -> 0.05 | L72: =H72-G72*K72 -> 0 | M72: 0 | N72: =(M72-L72)/K72 -> 0 | O72: 3 | P72: =(O72-L72)/K72 -> 60 | S72: دور سینه : از برجسته ترین قسمت سینه | T72: s1 | U72: =OFFSET('متغیرها '!T5,22,'متغیرها '!U5) -> 56 | W72: =OFFSET('متغیرها '!T5,22,'متغیرها '!Y5) -> 146 | AJ72: =AP6 -> 40زنانه | AK72: -79 | AL72: 22 | AM72: 3.5 | AP72: -39.5
A73: ضریب باز شدن یقه روی خط مرکزی پشت (گرد یا مربعی یا قایقی یا پروانه ای) مرحله دوم x7 | B73: (از 0 الی 3) | C73: =K73*E73+L73 -> 1.5 | D73: یقه کیپ=0 | E73: ='طراحی همه الگوها'!E179 -> 30 | F73: باز شدن یقه روی خط مرکزی پشت(گرد؛ مربعی؛ قایقی؛ پروانه ای)مرحله دوم در طراحی یقه انگلیسی | G73: 0 | H73: 0 | I73: 1 | J73: 0.05 | K73: =(J73-H73)/(I73-G73) -> 0.05 | L73: =H73-G73*K73 -> 0 | M73: 0 | N73: =(M73-L73)/K73 -> 0 | O73: 3 | P73: =(O73-L73)/K73 -> 60 | S73: پشت نوار سینه، بین دو خط پهلو | T73: s2 | U73: =OFFSET('متغیرها '!T5,23,'متغیرها '!U5) -> 28 | W73: =OFFSET('متغیرها '!T5,23,'متغیرها '!Y5) -> 67.5 | AJ73: =AQ6 -> 42زنانه | AK73: -78 | AL73: 23 | AM73: 4 | AP73: -39
S74: فاصله عمودی از خط سینه جلو تا خط سینه پشت که از کنار حلقه آستین بگذرد | T74: t1 | U74: =OFFSET('متغیرها '!T5,24,'متغیرها '!U5) -> 26.5 | W74: =OFFSET('متغیرها '!T5,24,'متغیرها '!Y5) -> 46.5 | AJ74: =AR6 -> 44زنانه | AK74: -77 | AL74: 24 | AM74: 4.5 | AP74: -38.5
A75: متغیرهای ورودی - سرشانه و حلقه آستین | F75: متغیرهای ورودی - سرشانه و حلقه آستین | G75: x1 | H75: y1 | I75: x2 | J75: y2(بهینه) | K75: a | L75: b | M75: کمترین قبلی | N75: کمترین جدید | O75: بیشترین قبلی | P75: بیشترین جدید | S75: فاصله عمودی از خط سینه جلو تا خط سینه پشت که از کنارگردن بگذرد | T75: t2 | U75: =OFFSET('متغیرها '!T5,25,'متغیرها '!U5) -> 31 | W75: =OFFSET('متغیرها '!T5,25,'متغیرها '!Y5) -> 63.3 | AJ75: =AS6 -> 46زنانه | AK75: -76 | AL75: 25 | AM75: 5 | AP75: -38
A76: میزان کم شدن سرشانه x8 | B76: (از -0.5 الی 0.9) | C76: =K76*E76+L76 -> 0.3 | D76: اندامی =0 | E76: ='طراحی همه الگوها'!B204 -> 6 | F76: ضریب کم شدن سرشانه | G76: 0 | H76: 0 | I76: 1 | J76: 0.05 | K76: =(J76-H76)/(I76-G76) -> 0.05 | L76: =H76-G76*K76 -> 0 | M76: -0.5 | N76: =(M76-L76)/K76 -> -10 | O76: 0.9 | P76: =(O76-L76)/K76 -> 18 | S76: فاصله عمودی از خط کمر جلو تا خط کمر پشت که از کنار گردن بگذرد | T76: t3 | U76: =OFFSET('متغیرها '!T5,26,'متغیرها '!U5) -> 53 | W76: =OFFSET('متغیرها '!T5,26,'متغیرها '!Y5) -> 100 | AJ76: =AT6 -> 48زنانه | AK76: -75 | AL76: 26 | AP76: -37.5
A77: میزان بزرگ شدن زیر حلقه آستین x9 | B77: (از -0.5 الی 1.5) | C77: =K77*E77+L77 -> 0.3 | D77: اندامی =0 | E77: ='طراحی همه الگوها'!B205 -> 6 | F77: ضریب بزرگ شدن زیر حلقه آستین | G77: 0 | H77: 0 | I77: 1 | J77: 0.05 | K77: =(J77-H77)/(I77-G77) -> 0.05 | L77: =H77-G77*K77 -> 0 | M77: -0.5 | N77: =(M77-L77)/K77 -> -10 | O77: 1.5 | P77: =(O77-L77)/K77 -> 30 | S77: فاصله عمودی بین خط سینه پشت و سرشانه، نزدیک دست | T77: t4 | U77: =OFFSET('متغیرها '!T5,27,'متغیرها '!U5) -> 13.6 | W77: =OFFSET('متغیرها '!T5,27,'متغیرها '!Y5) -> 23.8 | AJ77: =AU6 -> 50زنانه | AK77: -74 | AL77: 27 | AM77: متغیر ورودی به سانتیمتر | AN77: متغیر ورودی به سانتیمتر | AP77: -37
A78: میزان زیاد شدن سرشانه x10 | B78: (از -0.5 الی 0.5) | C78: =K78*E78+L78 -> 0 | D78: اندامی =0 | E78: ='طراحی همه الگوها'!B206 -> 0 | F78: ضریب زیاد شدن سرشانه | G78: 0 | H78: 0 | I78: 1 | J78: 0.05 | K78: =(J78-H78)/(I78-G78) -> 0.05 | L78: =H78-G78*K78 -> 0 | M78: -0.5 | N78: =(M78-L78)/K78 -> -10 | O78: 0.5 | P78: =(O78-L78)/K78 -> 10 | S78: فاصله عمودی بین خط سینه پشت و سرشانه، نزدیک گردن | T78: t5 | U78: =OFFSET('متغیرها '!T5,28,'متغیرها '!U5) -> 16.2 | W78: =OFFSET('متغیرها '!T5,28,'متغیرها '!Y5) -> 30.5 | AJ78: =AV6 -> 52زنانه | AK78: -73 | AL78: 28 | AM78: -10 | AN78: 0 | AP78: -36.5
A79: انتخاب آستین حلقه ای یا پیش سینه رکابی یا تکه پهلو جدا=0 و انتخاب آستین دیگر=1 | B79: 0 یا 1 | C79: =K79*E79+L79 -> 0 | E79: ='طراحی همه الگوها'!B207 -> 1 | F79: انتخاب آستین حلقه ای یا پیش سینه رکابی یا تکه پهلو جدا=1 و انتخاب آستین دیگر=2 | G79: 1 | H79: 0 | I79: 2 | J79: 1 | K79: =(J79-H79)/(I79-G79) -> 1 | L79: =H79-G79*K79 -> -1 | N79: 1 | P79: 2 | S79: فاصله عمودی بین خط کمرپشت و سرشانه، نزدیک گردن | T79: t6 | U79: =OFFSET('متغیرها '!T5,29,'متغیرها '!U5) -> 27 | W79: =OFFSET('متغیرها '!T5,29,'متغیرها '!Y5) -> 46.9 | AJ79: =AW6 -> 54زنانه | AK79: -72 | AL79: 29 | AM79: -9.5 | AN79: 0.1 | AP79: -36
S80: دور گردن (متر به طور عمودی دور گردن قرار می گیرد و از روی استخوان ترقوه می گذرد) | T80: v | U80: =OFFSET('متغیرها '!T5,30,'متغیرها '!U5) -> 30 | W80: =OFFSET('متغیرها '!T5,30,'متغیرها '!Y5) -> 50 | AJ80: =AX6 -> 56زنانه | AK80: -71 | AL80: 30 | AM80: -9 | AN80: 0.2 | AP80: -35.5
A81: متغیرهای ورودی - تنظیم ساسون های بالای کمر مجموع ضرایب پهنای دو ساسون پشت باید کمتر از یک یا مساوی یک باشد. با تغییر ضرایب پهنای ساسون، باقیمانده ساسون ها روی خط پهلو قرار میگیرد. | F81: متغیرهای ورودی - تنظیم ساسون های بالای کمر مجموع ضرایب پهنای دو ساسون پشت باید کمتر از یک یا مساوی یک باشد. با تغییر ضرایب پهنای ساسون، باقیمانده ساسون ها روی خط پهلو قرار میگیرد. | G81: x1 | H81: y1 | I81: x2 | J81: y2 | K81: a | L81: b | N81: کمترین | P81: بیشترین | R81: تست جدید | S81: کارور پشت (بین دو خط امتداد زیر بغل) | T81: v3 | U81: =OFFSET('متغیرها '!T5,31,'متغیرها '!U5) -> 22.7 | W81: =OFFSET('متغیرها '!T5,31,'متغیرها '!Y5) -> 55.5 | AJ81: =AY6 -> 58زنانه | AK81: -70 | AL81: 31 | AM81: -8.5 | AN81: 0.3 | AP81: -35
A82: ضریب پهنای ساسون روی خط مرکزی پشت بالاتنه y'1 | B82: (از 0 الی 1) | C82: =K82*E82+L82 -> 0 | D82: بدون ساسون=0 بهینه=0.5 | E82: ='طراحی همه الگوها'!B241 -> 0 | F82: ضریب پهنای ساسون روی خط مرکزی پشت بالاتنه | G82: 0 | H82: 0 | I82: 1 | J82: 0.05 | K82: =(J82-H82)/(I82-G82) -> 0.05 | L82: =H82-G82*K82 -> 0 | M82: 0 | N82: =(M82-L82)/K82 -> 0 | O82: 1 | P82: =(O82-L82)/K82 -> 20 | Q82: 0.5 | R82: =(Q82-L82)/K82 -> 10 | S82: دور بازو از ناحیه زیر بغل | T82: w2 | U82: =OFFSET('متغیرها '!T5,32,'متغیرها '!U5) -> 22 | W82: =OFFSET('متغیرها '!T5,32,'متغیرها '!Y5) -> 46 | AJ82: =AZ6 -> 60زنانه | AK82: -69 | AL82: 32 | AM82: -8 | AN82: 0.4 | AO82: متغیر ورودی خاص شلوار | AP82: -34.5
A83: ضریب طول ساسون روی خط مرکزی پشت بالاتنه y'3 | B83: (از0.1 الی 0.9) | C83: 0.6 | D83: بهینه=0.75 | E83: ='طراحی همه الگوها'!B242 -> 12 | F83: ضریب طول ساسون روی خط مرکزی پشت بالاتنه | G83: 0 | H83: 0 | I83: 1 | J83: 0.05 | K83: =(J83-H83)/(I83-G83) -> 0.05 | L83: =H83-G83*K83 -> 0 | M83: 0.1 | N83: 2 | O83: 0.9 | P83: 18 | Q83: 0.75 | R83: 15 | S83: قد آستین (دست به طور خمیده، قد از سرشانه تا مچ) | T83: w10 | U83: =OFFSET('متغیرها '!T5,33,'متغیرها '!U5) -> 35 | W83: =OFFSET('متغیرها '!T5,33,'متغیرها '!Y5) -> 64 | AJ83: =BA6 -> 37 مردانه | AK83: -68 | AL83: 33 | AM83: -7.5 | AN83: 0.5 | AO83: 0.5 | AP83: -34
A84: ضریب پهنای ساسون میانی پشت بالاتنه y'2 | B84: (از 0 الی 1) | C84: 0.5 | D84: بدون ساسون=0 بهینه=0.5 | E84: ='طراحی همه الگوها'!B243 -> 10 | F84: ضریب پهنای ساسون میانی پشت بالاتنه | G84: 0 | H84: 0 | I84: 1 | J84: 0.05 | K84: =(J84-H84)/(I84-G84) -> 0.05 | L84: =H84-G84*K84 -> 0 | M84: 0 | N84: 0 | O84: 1 | P84: 20 | Q84: 0.5 | R84: 10 | S84: دور مچ دست | T84: w11 | U84: =OFFSET('متغیرها '!T5,34,'متغیرها '!U5) -> 13 | W84: =OFFSET('متغیرها '!T5,34,'متغیرها '!Y5) -> 23 | AJ84: =BB6 -> 38 مردانه | AK84: -67 | AL84: 34 | AM84: -7 | AN84: 0.6 | AO84: 0.55 | AP84: -33.5
A85: ضریب طول ساسون میانی پشت بالاتنه y'4 | B85: (از 0.3 الی 1) | C85: 0.9 | D85: بهینه =0.9 | E85: ='طراحی همه الگوها'!B244 -> 18 | F85: ضریب طول ساسون میانی پشت بالاتنه | G85: 0 | H85: 0 | I85: 1 | J85: 0.05 | K85: 0.05 | L85: 0 | M85: 0.3 | N85: 6 | O85: 1 | P85: 20 | Q85: 0.9 | R85: 18 | S85: دور سر | T85: w12 | U85: =OFFSET('متغیرها '!T5,35,'متغیرها '!U5) -> 50 | W85: =OFFSET('متغیرها '!T5,35,'متغیرها '!Y5) -> 57 | AJ85: =BC6 -> 39 مردانه | AK85: -66 | AL85: 35 | AM85: -6.5 | AN85: 0.7 | AO85: 0.6 | AP85: -33
A86: ضریب فاصله افقی ساسون وسط بالاتنه از خط مرکزی پشت y'5 | B86: (از0.2 الی 0.8) | C86: 0.5 | D86: بهینه=0.5 | E86: ='طراحی همه الگوها'!B245 -> 25 | F86: ضریب فاصله افقی ساسون وسط بالاتنه از خط مرکزی پشت | G86: 0 | H86: 0 | I86: 1 | J86: 0.02 | K86: 0.02 | L86: 0 | M86: 0.2 | N86: 10 | O86: 0.8 | P86: 40 | Q86: 0.5 | R86: 25 | AJ86: =BD6 -> 40 مردانه | AK86: -65 | AL86: 36 | AM86: -6 | AN86: 0.8 | AO86: 0.65 | AP86: -32.5
A87: ضریب پهنای ساسون میانی جلو بالاتنه y'6 | B87: (از 0 الی 0.5) | C87: 0.3 | D87: بدون ساسون=0 بهینه=0.333 | E87: ='طراحی همه الگوها'!B246 -> 6 | F87: ضریب پهنای ساسون میانی جلو بالاتنه | G87: 0 | H87: 0 | I87: 1 | J87: 0.05 | K87: 0.05 | L87: 0 | M87: 0 | N87: 0 | O87: 0.5 | P87: 10 | Q87: 0.35 | R87: 7 | AJ87: =BE6 -> 41 مردانه | AK87: -64 | AL87: 37 | AM87: -5.5 | AN87: 0.9 | AO87: 0.7 | AP87: -32
A88: ضریب طول ساسون میانی جلو بالاتنه y'7 | B88: (از 0 الی 0.5) | C88: 0.1 | D88: بهینه =0.2 تا خط سینه=0 | E88: ='طراحی همه الگوها'!B247 -> 18 | F88: ضریب طول ساسون میانی جلو بالاتنه | G88: 20 | H88: 0 | I88: 0 | J88: 1 | K88: -0.05 | L88: 1 | M88: 0 | N88: 20 | O88: 0.5 | P88: 10 | Q88: 0.2 | R88: 16 | AJ88: =BF6 -> 42 مردانه | AK88: -63 | AL88: 38 | AM88: -5 | AN88: 1 | AO88: 0.75 | AP88: -31.5
A89: ضریب فاصله افقی ساسون میانی بالاتنه از خط مرکزی جلو y'8 | B89: (از0.2 الی 0.8) | C89: 0.5 | D89: بهینه=0.5 | E89: ='طراحی همه الگوها'!B248 -> 25 | F89: ضریب فاصله افقی ساسون میانی بالاتنه از خط مرکزی جلو | G89: 0 | H89: 0 | I89: 1 | J89: 0.02 | K89: 0.02 | L89: 0 | M89: 0.2 | N89: 10 | O89: 0.8 | P89: 40 | Q89: 0.5 | R89: 25 | AJ89: =BG6 -> 43 مردانه | AK89: -62 | AL89: 39 | AM89: -4.5 | AN89: 1.1 | AO89: 0.8 | AP89: -31
A90: ضریب نوک ساسون سرشانه جلو تا نوک سینه y'15 | B90: (از 0 الی 0.5) | C90: 0.1 | D90: بهینه =0.2 تا خط سینه=0 | E90: ='طراحی همه الگوها'!B249 -> 18 | F90: ضریب نوک ساسون سرشانه جلو تا نوک سینه | G90: 20 | H90: 0 | I90: 0 | J90: 1 | K90: =(J90-H90)/(I90-G90) -> -0.05 | L90: =H90-G90*K90 -> 1 | M90: 0 | N90: 20 | O90: 0.5 | P90: 10 | Q90: 0.2 | R90: 16 | AJ90: =BH6 -> 44 مردانه | AK90: -61 | AL90: 40 | AM90: -4 | AN90: 1.2 | AO90: 0.85 | AP90: -30.5
AJ91: =BI6 -> 45 مردانه | AK91: -60 | AL91: 41 | AM91: -3.5 | AN91: 1.3 | AO91: 0.9 | AP91: -30
A92: متغیرهای ورودی - تنظیم ساسون های پایین کمر مجموع پهنای دو ساسون پشت باید کمتر از یک یا مساوی یک باشد. با تغییر ضرایب پهنای ساسون، باقیمانده ساسون ها روی خط پهلو قرار میگیرد. | F92: متغیرهای ورودی - تنظیم ساسون های پایین کمر مجموع پهنای دو ساسون پشت باید کمتر از یک یا مساوی یک باشد. با تغییر ضرایب پهنای ساسون، باقیمانده ساسون ها روی خط پهلو قرار میگیرد. | G92: x1 | H92: y1 | I92: x2 | J92: y2(بهینه) | K92: a | L92: b | N92: کمترین | P92: بیشترین | AJ92: =BJ6 -> 46 مردانه | AK92: -59 | AL92: 42 | AM92: -3 | AN92: 1.4 | AO92: 0.95 | AP92: -29.5
A93: ضریب پهنای ساسون روی خط مرکزی پشت دامن y'9 | B93: (از 0 الی 1) | C93: =K93*E93+L93 -> 0 | D93: بدون ساسون=0 بهینه=025 | E93: ='طراحی همه الگوها'!B254 -> 0 | F93: ضریب پهنای ساسون روی خط مرکزی پشت دامن | G93: 0 | H93: 0 | I93: 1 | J93: 0.05 | K93: =(J93-H93)/(I93-G93) -> 0.05 | L93: =H93-G93*K93 -> 0 | M93: 0 | N93: =(M93-L93)/K93 -> 0 | O93: 1 | P93: =(O93-L93)/K93 -> 20 | Q93: 0.25 | R93: =(Q93-L93)/K93 -> 5 | AJ93: =BK6 -> 47 مردانه | AK93: -58 | AL93: 43 | AM93: -2.5 | AN93: 1.5 | AO93: 1 | AP93: -29
A94: ضریب طول ساسون روی خط مرکزی پشت دامن y'10 غیر فعال | B94: (از0.1 الی 0.9) | C94: 0.9 | D94: بهینه=0.9 | E94: ='طراحی همه الگوها'!B236 -> 18 | F94: ضریب طول ساسون روی خط مرکزی پشت دامن غیر فعال | G94: 0 | H94: 0 | I94: 1 | J94: 0.05 | K94: 0.05 | L94: 0 | M94: 0.1 | N94: 2 | O94: 0.9 | P94: 18 | Q94: 0.9 | R94: 18 | AJ94: =BL6 -> 48 مردانه | AK94: -57 | AL94: 44 | AM94: -2 | AN94: 1.6 | AO94: 1.05 | AP94: -28.5
A95: ضریب پهنای ساسون میانی پشت دامن y'11 | B95: (از 0 الی 1) | C95: 0.5 | D95: بدون ساسون=0 بهینه=0.5 | E95: ='طراحی همه الگوها'!B255 -> 10 | F95: ضریب پهنای ساسون میانی پشت دامن | G95: 0 | H95: 0 | I95: 1 | J95: 0.05 | K95: 0.05 | L95: 0 | M95: 0 | N95: 0 | O95: 1 | P95: 20 | Q95: 0.5 | R95: 10 | AJ95: =BM6 -> 49 مردانه | AK95: -56 | AL95: 45 | AM95: -1.5 | AN95: 1.7 | AO95: 1.1 | AP95: -28
A96: ضریب طول ساسون میانی پشت دامن y'12 | B96: (از 0.3 الی 1) | C96: 0.9 | D96: بلندی ساسون تا خط باسن=1 بهینه =0.9 | E96: ='طراحی همه الگوها'!B256 -> 18 | F96: ضریب طول ساسون میانی پشت دامن | G96: 0 | H96: 0 | I96: 1 | J96: 0.05 | K96: 0.05 | L96: 0 | M96: 0.3 | N96: 6 | O96: 1 | P96: 20 | Q96: 0.9 | R96: 18 | AJ96: =BN6 -> 50 مردانه | AK96: -55 | AL96: 46 | AM96: -1 | AN96: 1.8 | AO96: 1.15 | AP96: -27.5
A97: ضریب پهنای ساسون میانی جلو دامن y'13 | B97: (از 0 الی 0.5) | C97: 0.3 | D97: بدون ساسون=0 بهینه=0.25 | E97: ='طراحی همه الگوها'!B257 -> 6 | F97: ضریب پهنای ساسون میانی جلو دامن | G97: 0 | H97: 0 | I97: 1 | J97: 0.05 | K97: 0.05 | L97: 0 | M97: 0 | N97: 0 | O97: 0.5 | P97: 10 | Q97: 0.25 | R97: 5 | AJ97: =BO6 -> 6ماهه تا یکساله کت | AK97: -54 | AL97: 47 | AM97: -0.5 | AN97: 1.9 | AO97: 1.2 | AP97: -27
A98: ضریب طول ساسون میانی جلو دامن y'14 | B98: (از 0.3 الی 0.99) | C98: 1 | D98: بلندی ساسون تا خط باسن=1 بهینه =0.9 | E98: ='طراحی همه الگوها'!B258 -> 20 | F98: ضریب طول ساسون میانی جلو دامن | G98: 0 | H98: 0 | I98: 1 | J98: 0.05 | K98: 0.05 | L98: 0 | M98: 0.3 | N98: 6 | O98: 0.95 | P98: 19 | Q98: 0.9 | R98: 18 | AJ98: =BP6 -> 1ساله کت | AK98: -53 | AL98: 48 | AM98: 0 | AN98: 2 | AO98: 1.25 | AP98: -26.5
AJ99: =BQ6 -> 2ساله کت | AK99: -52 | AL99: 49 | AM99: 0.5 | AN99: 2.1 | AO99: 1.3 | AP99: -26
A100: متغیرهای ورودی-بالاتنه عصایی ساسون ها | F100: متغیرهای ورودی-بالاتنه عصایی ساسون ها | G100: x1 | H100: y1 | I100: x2 | J100: y2(بهینه) | K100: a | L100: b | N100: کمترین | P100: بیشترین | AJ100: =BR6 -> 3ساله کت | AK100: -51 | AL100: 50 | AM100: 1 | AN100: 2.2 | AO100: 1.35 | AP100: -25.5
A101: انتخاب بالاتنه عصایی=1 انتخاب دیگر=0 | B101: 0 یا 1 | C101: =K101*E101+L101 -> 0 | E101: ='طراحی همه الگوها'!B260 -> 1 | F101: انتخاب بالاتنه عصایی=2 انتخاب دیگر=1 | G101: 1 | H101: 0 | I101: 2 | J101: 1 | K101: =(J101-H101)/(I101-G101) -> 1 | L101: =H101-G101*K101 -> -1 | M101: 0 | N101: =(M101-L101)/K101 -> 1 | O101: 1 | P101: =(O101-L101)/K101 -> 2 | Q101: 1 | R101: =(Q101-L101)/K101 -> 2 | AJ101: =BS6 -> 4ساله کت | AK101: -50 | AL101: 51 | AM101: 1.5 | AN101: 2.3 | AO101: 1.4 | AP101: -25
A102: ضریب مکان ساسون جلو عصایی در بالاتنه | B102: (از 0.1 الی 0.3) | C102: =K102*E102+L102 -> 0.2 | D102: بهینه عصایی=0.2 | E102: ='طراحی همه الگوها'!B261 -> 4 | F102: مکان ساسون عصایی جلو در حلقه آستین بالاتنه | G102: 0 | H102: 0 | I102: 1 | J102: 0.05 | K102: =(J102-H102)/(I102-G102) -> 0.05 | L102: =H102-G102*K102 -> 0 | M102: 0.1 | N102: =(M102-L102)/K102 -> 2 | O102: 0.3 | P102: =(O102-L102)/K102 -> 6 | Q102: 0.2 | R102: =(Q102-L102)/K102 -> 4 | AJ102: =BT6 -> 5ساله کت | AK102: -49 | AL102: 52 | AM102: 2 | AN102: 2.4 | AO102: 1.45 | AP102: -24.5
A103: ضریب مکان ساسون پشت عصایی در بالاتنه | B103: (از 0.1 الی 0.4) | C103: =K103*E103+L103 -> 0.3 | D103: بهینه عصایی=0.3 | E103: ='طراحی همه الگوها'!B262 -> 6 | F103: مکان ساسون عصایی پشت در حلقه آستین بالاتنه | G103: 0 | H103: 0 | I103: 1 | J103: 0.05 | K103: =(J103-H103)/(I103-G103) -> 0.05 | L103: =H103-G103*K103 -> 0 | M103: 0.1 | N103: =(M103-L103)/K103 -> 2 | O103: 0.4 | P103: =(O103-L103)/K103 -> 8 | Q103: 0.3 | R103: =(Q103-L103)/K103 -> 6 | AJ103: =BU6 -> 6ساله کت | AK103: -48 | AL103: 53 | AM103: 2.5 | AN103: 2.5 | AO103: 1.5 | AP103: -24
AJ104: =BV6 -> 7ساله کت | AK104: -47 | AL104: 54 | AM104: 3 | AN104: 2.6 | AO104: 1.55 | AP104: -23.5
A105: متغیرهای ورودی- انتقال ساسون سرشانه به زیر بغل، عصایی یا خط مرکزی جلو برای حذف کامل ساسون سرشانه مجموع c1 و c2 باید 1 شود. | F105: متغیرهای ورودی- انتقال ساسون سرشانه به زیر بغل، عصایی یا خط مرکزی جلو برای حذف کامل ساسون سرشانه مجموع c1 و c2 باید 30 شود. | G105: x1 | H105: y1 | I105: x2 | J105: y2(بهینه) | K105: a | L105: b | N105: کمترین | P105: بیشترین | AJ105: =BW6 -> 8ساله کت | AK105: -46 | AL105: 55 | AM105: 3.5 | AN105: 2.7 | AO105: 1.6 | AP105: -23
A106: ضریب انتقال ساسون سرشانه جلو به ساسون زیر بغل یا ساسون عصایی c1 | B106: (از 0 الی 1) | C106: =K106*E106+L106 -> 0 | D106: بدون انتقال=0 بهیه برای کت جلو باز=0.8 | E106: ='طراحی همه الگوها'!B223 -> 0 | F106: انتقال ساسون سرشانه جلو به ساسون زیر بغل یا ساسون عصایی c1 | G106: 0 | H106: 0 | I106: 10 | J106: 1 | K106: =(J106-H106)/(I106-G106) -> 0.1 | L106: =H106-G106*K106 -> 0 | M106: 0 | N106: =(M106-L106)/K106 -> 0 | O106: 1 | P106: =(O106-L106)/K106 -> 10 | AJ106: =BX6 -> 9ساله کت | AK106: -45 | AL106: 56 | AM106: 4 | AN106: 2.8 | AO106: 1.65 | AP106: -22.5
A107: ضریب انتقال ساسون سرشانه به خط مرکزی جلو c2 | B107: (از 0 الی 1) | C107: =K107*E107+L107 -> 0 | D107: بدون انتقال=0 بهیه برای کت جلو باز=0.2 | E107: ='طراحی همه الگوها'!B224 -> 0 | F107: انتقال ساسون سرشانه به خط مرکزی جلو c2 | G107: 0 | H107: 0 | I107: 10 | J107: 1 | K107: =(J107-H107)/(I107-G107) -> 0.1 | L107: =H107-G107*K107 -> 0 | M107: 0 | N107: =(M107-L107)/K107 -> 0 | O107: 1 | P107: =(O107-L107)/K107 -> 10 | AJ107: =BY6 -> 10ساله کت | AK107: -44 | AL107: 57 | AM107: 4.5 | AN107: 2.9 | AO107: 1.7 | AP107: -22
A108: انتخاب (اصلاح سرشانه و حلقه آستین برای c1 >1 ) = 1 و انتخاب دیگر=0 | B108: 0 یا 1 | C108: =K108*E108+L108 -> 0 | E108: ='طراحی همه الگوها'!B225 -> 1 | F108: انتخاب (اصلاح سرشانه و حلقه آستین برای c1 >30 ) = 2 انتخاب دیگر=1 | G108: 1 | H108: 0 | I108: 2 | J108: 1 | K108: =(J108-H108)/(I108-G108) -> 1 | L108: =H108-G108*K108 -> -1 | M108: 0 | N108: =(M108-L108)/K108 -> 1 | O108: 1 | P108: =(O108-L108)/K108 -> 2 | AJ108: =BZ6 -> 11ساله کت | AK108: -43 | AL108: 58 | AM108: 5 | AN108: 3 | AO108: 1.75 | AP108: -21.5
AJ109: =CA6 -> 12ساله کت | AK109: -42 | AL109: 59 | AM109: 5.5 | AN109: 3.1 | AO109: 1.8 | AP109: -21
A110: متغیرهای ورودی- انتقال ساسون سرشانه به زیر بغل، عصایی یا خط مرکزی پشت برای حذف کامل ساسون سرشانه مجموع c1 و c2 باید 1 شود. | F110: متغیرهای ورودی- انتقال ساسون سرشانه به زیر بغل، عصایی یا خط مرکزی پشت برای حذف کامل ساسون سرشانه مجموع c1 و c2 باید 30 شود. | G110: x1 | H110: y1 | I110: x2 | J110: y2(بهینه) | K110: a | L110: b | N110: کمترین | P110: بیشترین | AJ110: =CB6 -> 13ساله کت | AK110: -41 | AL110: 60 | AM110: 6 | AN110: 3.2 | AP110: -20.5
A111: ضریب انتقال ساسون سرشانه پشت به ساسون زیر بغل یا عصایی c1 | B111: (از 0 الی 1) | C111: =K111*E111+L111 -> 0 | D111: بدون انتقال=0 بهیه برای کت پشت باز=0.8 | E111: ='طراحی همه الگوها'!B229 -> 0 | F111: انتقال ساسون سرشانه پشت به ساسون زیر بغل یا عصایی c1 | G111: 0 | H111: 0 | I111: 10 | J111: 1 | K111: =(J111-H111)/(I111-G111) -> 0.1 | L111: =H111-G111*K111 -> 0 | M111: 0 | N111: =(M111-L111)/K111 -> 0 | O111: 1 | P111: =(O111-L111)/K111 -> 10 | AJ111: =CC6 -> 14ساله کت | AK111: -40 | AL111: 61 | AM111: 6.5 | AN111: 3.3 | AP111: -20
A112: ضریب انتقال ساسون سرشانه به خط مرکزی پشت c2 | B112: (از 0 الی 1) | C112: =K112*E112+L112 -> 0 | D112: بدون انتقال=0 بهیه برای کت پشت باز=0.2 | E112: ='طراحی همه الگوها'!B230 -> 0 | F112: انتقال ساسون سرشانه به خط مرکزی پشت c2 | G112: 0 | H112: 0 | I112: 10 | J112: 1 | K112: =(J112-H112)/(I112-G112) -> 0.1 | L112: =H112-G112*K112 -> 0 | M112: 0 | N112: =(M112-L112)/K112 -> 0 | O112: 1 | P112: =(O112-L112)/K112 -> 10 | AJ112: =CD6 -> 34زنانه کمر پهن | AK112: -39 | AL112: 62 | AM112: 7 | AN112: 3.4 | AP112: -19.5
AJ113: =CE6 -> 36زنانه کمر پهن | AK113: -38 | AL113: 63 | AM113: 7.5 | AN113: 3.5 | AP113: -19
A114: متغیرهای ورودی-ساسون زیر بغل | F114: متغیرهای ورودی-ساسون زیر بغل | G114: x1 | H114: y1 | I114: x2 | J114: y2(بهینه) | K114: a | L114: b | N114: کمترین | P114: بیشترین | AJ114: =CF6 -> 38زنانه کمر پهن | AK114: -37 | AL114: 64 | AM114: 8 | AN114: 3.6 | AP114: -18.5
A115: ضریب کوتاه شدن ساسون زیر بغل جلو c3 | B115: (از0.1 الی 1) | C115: =K115*E115+L115 -> 0.8 | D115: بلندی ساسون تا نوک سینه=1 بهینه =0.9 | E115: ='طراحی همه الگوها'!B233 -> 8 | F115: ضریب کوتاه شدن ساسون زیر بغل جلو | G115: 0 | H115: 0 | I115: 1 | J115: 0.1 | K115: =(J115-H115)/(I115-G115) -> 0.1 | L115: =H115-G115*K115 -> 0 | M115: 0.1 | N115: =(M115-L115)/K115 -> 1 | O115: 1 | P115: =(O115-L115)/K115 -> 10 | AJ115: =CG6 -> 40زنانه کمر پهن | AK115: -36 | AL115: 65 | AM115: 8.5 | AN115: 3.7 | AP115: -18
A116: ضریب کوتاه شدن ساسون زیر بغل پشت c3 | B116: (از 0.1 الی 1) | C116: =K116*E116+L116 -> 0.5 | D116: بلندی ساسون تا نوک سینه=1 بهینه =0.9 | E116: ='طراحی همه الگوها'!B234 -> 5 | F116: ضریب کوتاه شدن ساسون زیر بغل پشت | G116: 0 | H116: 0 | I116: 1 | J116: 0.1 | K116: =(J116-H116)/(I116-G116) -> 0.1 | L116: =H116-G116*K116 -> 0 | M116: 0.1 | N116: =(M116-L116)/K116 -> 1 | O116: 1 | P116: =(O116-L116)/K116 -> 10 | AJ116: =CH6 -> 42زنانه کمر پهن | AK116: -35 | AL116: 66 | AM116: 9 | AN116: 3.8 | AP116: -17.5
AJ117: =CI6 -> 44زنانه کمر پهن | AK117: -34 | AL117: 67 | AM117: 9.5 | AN117: 3.9 | AP117: -17
A118: متغیرهای ورودی - کنترل گودی حلقه آستین و اپل | F118: متغیرهای ورودی - کنترل گودی حلقه آستین و اپل | G118: x1 | H118: y1 | I118: x2 | J118: y2(بهینه) | K118: a | L118: b | N118: کمترین | P118: بیشترین | AJ118: =CJ6 -> 46زنانه کمر پهن | AK118: -33 | AL118: 68 | AM118: 10 | AN118: 4 | AP118: -16.5
A119: انتخاب کنترل گودی حلقه آستین=1 و انتخاب دیگر=0 | B119: 0 یا 1 | C119: =K119*E119+L119 -> 0 | E119: ='طراحی همه الگوها'!B331 -> 1 | F119: انتخاب کنترل گودی حلقه آستین=2 و انتخاب دیگر=1 | G119: 1 | H119: 0 | I119: 2 | J119: 1 | K119: =(J119-H119)/(I119-G119) -> 1 | L119: =H119-G119*K119 -> -1 | M119: 0 | N119: =(M119-L119)/K119 -> 1 | O119: 1 | P119: =(O119-L119)/K119 -> 2 | Q119: 4 | R119: =(Q119-L119)/K119 -> 5 | AJ119: =CK6 -> 48زنانه کمر پهن | AK119: -32 | AL119: 69 | AM119: 10.5 | AN119: 4.1 | AP119: -16
A120: ضریب میزان روی هم آمدن سرشانه پشت و جلو g2 | B120: (از 0 الی 1) | C120: =K120*E120+L120 -> 0.5 | D120: بهینه=0.5 | E120: ='طراحی همه الگوها'!B332 -> 10 | F120: روی هم آمدن سرشانه پشت و جلو | G120: 1 | H120: 0.05 | I120: 0 | J120: 0 | K120: =(J120-H120)/(I120-G120) -> 0.05 | L120: =H120-G120*K120 -> 0 | M120: 0 | N120: =(M120-L120)/K120 -> 0 | O120: 1 | P120: =(O120-L120)/K120 -> 20 | Q120: 0.5 | R120: =(Q120-L120)/K120 -> 10 | AJ120: =CL6 -> 50زنانه کمر پهن | AK120: -31 | AL120: 70 | AM120: 11 | AN120: 4.2 | AP120: -15.5
A121: نسبت اعمال تغییر در حلقه جلو به حلقه پشت g1 | B121: (از 0.5 الی 5) | C121: =K121*E121+L121 -> 2 | D121: بهینه=2 | E121: ='طراحی همه الگوها'!B333 -> 20 | F121: نسبت اعمال تغییر در حلقه جلو به حلقه پشت | G121: 1 | H121: 0.1 | I121: 0 | J121: 0 | K121: =(J121-H121)/(I121-G121) -> 0.1 | L121: =H121-G121*K121 -> 0 | M121: 0.5 | N121: =(M121-L121)/K121 -> 5 | O121: 5 | P121: =(O121-L121)/K121 -> 50 | Q121: 2 | R121: =(Q121-L121)/K121 -> 20 | AJ121: =CM6 -> 52زنانه کمر پهن | AK121: -30 | AL121: 71 | AM121: 11.5 | AN121: 4.3 | AP121: -15
A122: زاویه اپل (به درجه) b | B122: (از 0 الی 10) | C122: =K122*E122+L122 -> 3 | D122: بهینه =3 | E122: ='طراحی همه الگوها'!B334 -> 15 | F122: زاویه اپل | G122: 1 | H122: 0.2 | I122: 0 | J122: 0 | K122: =(J122-H122)/(I122-G122) -> 0.2 | L122: =H122-G122*K122 -> 0 | M122: 0 | N122: =(M122-L122)/K122 -> 0 | O122: 10 | P122: =(O122-L122)/K122 -> 50 | Q122: 3 | R122: =(Q122-L122)/K122 -> 15 | AJ122: =CN6 -> 54زنانه کمر پهن | AK122: -29 | AL122: 72 | AM122: 12 | AN122: 4.4 | AP122: -14.5
AJ123: =CO6 -> 56زنانه کمر پهن | AK123: -28 | AL123: 73 | AM123: 12.5 | AN123: 4.5 | AP123: -14
A124: متغیرهای ورودی - نوع پیراهن | F124: متغیرهای ورودی - نوع پیراهن | G124: x1 | H124: y1 | I124: x2 | J124: y2(بهینه) | K124: a | L124: b | N124: کمترین | P124: بیشترین | AJ124: =CP6 -> 58زنانه کمر پهن | AK124: -27 | AL124: 74 | AM124: 13 | AN124: 4.6 | AP124: -13.5
A125: انتخاب جلو ترک ( سوتین) =1 انتخاب جلو با ساسون (مایو) = 0 | B125: 0 یا 1 | C125: =K125*E125+L125 -> 0 | E125: ='طراحی همه الگوها'!B210 -> 1 | F125: انتخاب الگو جلو ترک ( سوتین) =2 انتخاب الگو جلو با ساسون (مایو) = 1 | G125: 1 | H125: 0 | I125: 2 | J125: 1 | K125: =(J125-H125)/(I125-G125) -> 1 | L125: =H125-G125*K125 -> -1 | N125: 1 | P125: 2 | AJ125: =CQ6 -> 60زنانه کمر پهن | AK125: -26 | AL125: 75 | AM125: 13.5 | AN125: 4.7 | AP125: -13
AJ126: =CR6 -> 37مردانه کت | AK126: -25 | AL126: 76 | AM126: 14 | AN126: 4.8 | AP126: -12.5
A127: متغیر ورودی اوزمان ها | F127: متغیر ورودی اوزمان ها | G127: x1 | H127: y1 | I127: x2 | J127: y2(بهینه) | K127: a | L127: b | N127: کمترین | P127: بیشترین | AJ127: =CS6 -> 38مردانه کت | AK127: -24 | AL127: 77 | AM127: 14.5 | AN127: 4.9 | AP127: -12
A128: میزان پایین آمدن نقطه شروع اوزمان از خط کمر x5 | B128: (از 0 الی 1) | C128: =K128*E128+L128 -> 1 | D128: روی خط باسن=1 | E128: ='طراحی همه الگوها'!B213 -> 30 | F128: میزان پایین آمدن نقطه شروع اوزمان از خط کمر | G128: 10 | H128: 0 | I128: 30 | J128: 1 | K128: =(J128-H128)/(I128-G128) -> 0.05 | L128: =H128-G128*K128 -> -0.5 | M128: 0 | N128: =(M128-L128)/K128 -> 10 | O128: 1 | P128: =(O128-L128)/K128 -> 30 | AJ128: =CT6 -> 39مردانه کت | AK128: -23 | AL128: 78 | AM128: 15 | AN128: 5 | AO128: متغیر ورودی خاص چادر | AP128: -11.5
A129: ضریب بزرگ شدن اوزمان در خط پهلو جلو دامن f0 | B129: (از -0.5 الی 2) | C129: -0.1 | D129: بهینه=0.5 | E129: ='طراحی همه الگوها'!B214 -> -2 | F129: اوزمان در خط پهلو جلو دامن | G129: 0 | H129: 0 | I129: 1 | J129: 0.05 | K129: 0.05 | L129: 0 | M129: -0.5 | N129: -10 | O129: 2 | P129: 40 | AJ129: =CU6 -> 40مردانه کت | AK129: -22 | AL129: 79 | AM129: 15.5 | AO129: 70 | AP129: -11
A130: ضریب بزرگ شدن اوزمان در خط ترک جلو دامن e20 | B130: (از -0.5 الی 2) | C130: 0 | D130: بهینه=0.5 | E130: ='طراحی همه الگوها'!B215 -> 0 | F130: اوزمان در خط ترک جلو دامن | G130: 0 | H130: 0 | I130: 1 | J130: 0.05 | K130: 0.05 | L130: 0 | M130: -0.5 | N130: -10 | O130: 2 | P130: 40 | AJ130: =CV6 -> 41مردانه کت | AK130: -21 | AL130: 80 | AM130: 16 | AO130: 75 | AP130: -10.5
A131: ضریب بزرگ شدن اوزمان در خط پهلو پشت دامن f1 | B131: (از -0.5 الی 2) | C131: -0.1 | D131: بهینه=0.5 | E131: ='طراحی همه الگوها'!B216 -> -2 | F131: اوزمان در خط پهلو پشت دامن | G131: 0 | H131: 0 | I131: 1 | J131: 0.05 | K131: 0.05 | L131: 0 | M131: -0.5 | N131: -10 | O131: 2 | P131: 40 | AJ131: =CW6 -> 42مردانه کت | AK131: -20 | AL131: 81 | AM131: 16.5 | AO131: 80 | AP131: -10
A132: ضریب بزرگ شدن اوزمان در خط مرکزی پشت دامن e40 | B132: (از -0.5 الی 2) | C132: 0.25 | D132: بهینه=0.5 | E132: ='طراحی همه الگوها'!B217 -> 5 | F132: اوزمان در خط مرکزی پشت دامن | G132: 0 | H132: 0 | I132: 1 | J132: 0.05 | K132: 0.05 | L132: 0 | M132: -0.5 | N132: -10 | O132: 2 | P132: 40 | AJ132: =CX6 -> 43مردانه کت | AK132: -19 | AL132: 82 | AM132: 17 | AO132: 85 | AP132: -9.5
A133: ضریب بزرگ شدن اوزمان در خط ترک پشت دامن e50 | B133: (از -0.5 الی 2) | C133: 0 | D133: بهینه=0.5 | E133: ='طراحی همه الگوها'!B218 -> 0 | F133: اوزمان در خط ترک پشت دامن | G133: 0 | H133: 0 | I133: 1 | J133: 0.05 | K133: 0.05 | L133: 0 | M133: -0.5 | N133: -10 | O133: 2 | P133: 40 | AJ133: =CY6 -> 44مردانه کت | AK133: -18 | AL133: 83 | AM133: 17.5 | AO133: 90 | AP133: -9
A134: انتخاب پیراهن ترک گشاد=1 انتخاب دیگر=0 | B134: 0 یا 1 | C134: 0 | E134: ='طراحی همه الگوها'!B219 -> 1 | F134: انتخاب پیراهن ترک گشاد=2 انتخاب دیگر=1 | G134: 1 | H134: 0 | I134: 2 | J134: 1 | K134: 1 | L134: -1 | N134: 1 | P134: 2 | AJ134: =CZ6 -> 45مردانه کت | AK134: -17 | AL134: 84 | AM134: 18 | AO134: 95 | AP134: -8.5
AJ135: =DA6 -> 46 مردانه کت | AK135: -16 | AL135: 85 | AM135: 18.5 | AO135: 100 | AP135: -8
A136: متغیرهای ورودی - پیلی ها و گوده ها | F136: متغیرهای ورودی - پیلی ها و گوده ها | G136: x1 | H136: y1 | I136: x2 | J136: y2(بهینه) | K136: a | L136: b | N136: کمترین | P136: بیشترین | AJ136: =DB6 -> 47 مردانه کت | AK136: -15 | AL136: 86 | AM136: 19 | AO136: 105 | AP136: -7.5
A137: عرض پیلی 1 - روی خط مرکزی جلو (سانتیمتر) e119 | B137: (از 0 الی 10) | C137: =K137*E137+L137 -> 0 | D137: بهینه=4 | E137: ='طراحی همه الگوها'!B299 -> 0 | F137: عرض پیلی 1 - روی خط مرکزی جلو (سانتیمتر) | G137: 1 | H137: 1 | I137: 0 | J137: 0 | K137: =(J137-H137)/(I137-G137) -> 1 | L137: =H137-G137*K137 -> 0 | M137: 0 | N137: =(M137-L137)/K137 -> 0 | O137: 10 | P137: =(O137-L137)/K137 -> 10 | Q137: 4 | R137: =(Q137-L137)/K137 -> 4 | AJ137: =DC6 -> 48 مردانه کت | AK137: -14 | AL137: 87 | AM137: 19.5 | AO137: 110 | AP137: -7
A138: عرض پیلی 2 - روی خط ترک جلو (سانتیمتر) e219 | B138: (از 0 الی 10) | C138: 0 | D138: بهینه=4 | E138: ='طراحی همه الگوها'!B300 -> 0 | F138: عرض پیلی 2 - روی خط ترک جلو (سانتیمتر) | G138: 1 | H138: 1 | I138: 0 | J138: 0 | K138: 1 | L138: 0 | M138: 0 | N138: 0 | O138: 10 | P138: 10 | Q138: 4 | R138: 4 | AJ138: =DD6 -> 49 مردانه کت | AK138: -13 | AL138: 88 | AM138: 20 | AO138: 115 | AP138: -6.5
A139: عرض پیلی 3 - روی خط پهلو (سانتیمتر) e319 | B139: (از 0 الی 10 | C139: 0 | D139: بهینه=4 | E139: ='طراحی همه الگوها'!B301 -> 0 | F139: عرض پیلی 3 - روی خط پهلو (سانتیمتر) | G139: 1 | H139: 1 | I139: 0 | J139: 0 | K139: 1 | L139: 0 | M139: 0 | N139: 0 | O139: 10 | P139: 10 | Q139: 4 | R139: 4 | AJ139: =DE6 -> 50 مردانه کت | AK139: -12 | AL139: 89 | AO139: 120 | AP139: -6
A140: عرض پیلی 4 - روی خط مرکزی پشت (سانتیمتر) e419 | B140: (از 0 الی 10 | C140: 2 | D140: بهینه=4 | E140: ='طراحی همه الگوها'!B302 -> 2 | F140: عرض پیلی 4 - روی خط مرکزی پشت (سانتیمتر) | G140: 1 | H140: 1 | I140: 0 | J140: 0 | K140: 1 | L140: 0 | M140: 0 | N140: 0 | O140: 10 | P140: 10 | Q140: 4 | R140: 4 | AJ140: =DF6 -> عنوان 1 | AK140: -11 | AL140: 90 | AO140: 125 | AP140: -5.5
A141: عرض پیلی 5 و لبه برگردان پایین کت یا پیراهن- روی خط ترک پشت (سانتیمتر) e519 | B141: (از 0 الی 10) | C141: 2 | D141: بهینه=4 | E141: ='طراحی همه الگوها'!B303 -> 2 | F141: عرض پیلی 5 و لبه برگردان پایین کت یا پیراهن- روی خط ترک پشت (سانتیمتر) | G141: 1 | H141: 1 | I141: 0 | J141: 0 | K141: 1 | L141: 0 | M141: 0 | N141: 0 | O141: 10 | P141: 10 | Q141: 4 | R141: 4 | AJ141: =DG6 -> عنوان 2 | AK141: -10 | AL141: 91 | AO141: 130 | AP141: -5
A142: عرض گوده 1 - روی خط مرکزی جلو (سانتیمتر) e111 | B142: (از 0 الی 15) | C142: 0 | D142: بهینه=7 | E142: ='طراحی همه الگوها'!B304 -> 0 | F142: عرض گوده 1 - روی خط مرکزی جلو (سانتیمتر) | G142: 1 | H142: 1 | I142: 0 | J142: 0 | K142: 1 | L142: 0 | M142: 0 | N142: 0 | O142: 15 | P142: 15 | Q142: 7 | R142: 7 | AJ142: =DH6 -> عنوان 3 | AK142: -9 | AL142: 92 | AO142: 135 | AP142: -4.5
A143: عرض گوده 2 - روی خط ترک جلو (سانتیمتر) e211 | B143: (از 0 الی 15) | C143: 0 | D143: بهینه=7 | E143: ='طراحی همه الگوها'!B305 -> 0 | F143: عرض گوده 2 - روی خط ترک جلو (سانتیمتر) | G143: 1 | H143: 1 | I143: 0 | J143: 0 | K143: 1 | L143: 0 | M143: 0 | N143: 0 | O143: 15 | P143: 15 | Q143: 7 | R143: 7 | AJ143: =DI6 -> عنوان 4 | AK143: -8 | AL143: 93 | AO143: 140 | AP143: -4
A144: عرض گوده 3 - روی خط پهلو (سانتیمتر) e311 | B144: (از 0 الی 15) | C144: 5 | D144: بهینه=7 | E144: ='طراحی همه الگوها'!B306 -> 5 | F144: عرض گوده 3 - روی خط پهلو (سانتیمتر) | G144: 1 | H144: 1 | I144: 0 | J144: 0 | K144: 1 | L144: 0 | M144: 0 | N144: 0 | O144: 15 | P144: 15 | Q144: 7 | R144: 7 | AJ144: =DJ6 -> عنوان 5 | AK144: -7 | AL144: 94 | AO144: 145 | AP144: -3.5
A145: عرض گوده 4 - روی خط مرکزی پشت (سانتیمتر) e411 | B145: (از 0 الی 15) | C145: 5 | D145: بهینه=7 | E145: ='طراحی همه الگوها'!B307 -> 5 | F145: عرض گوده 4 - روی خط مرکزی پشت (سانتیمتر) | G145: 1 | H145: 1 | I145: 0 | J145: 0 | K145: 1 | L145: 0 | M145: 0 | N145: 0 | O145: 15 | P145: 15 | Q145: 7 | R145: 7 | AJ145: =DK6 -> عنوان 6 | AK145: -6 | AL145: 95 | AO145: 150 | AP145: -3
A146: عرض گوده 5 - روی خط ترک پشت (سانتیمتر) e511 | B146: (از 0 الی 15) | C146: 5 | D146: بهینه=7 | E146: ='طراحی همه الگوها'!B308 -> 5 | F146: عرض گوده 5 - روی خط ترک پشت (سانتیمتر) | G146: 1 | H146: 1 | I146: 0 | J146: 0 | K146: 1 | L146: 0 | M146: 0 | N146: 0 | O146: 15 | P146: 15 | Q146: 7 | R146: 7 | AJ146: =DL6 -> عنوان 7 | AK146: -5 | AL146: 96 | AO146: 155 | AP146: -2.5
A147: ضریب نقطه شروع گوده و پیلی از زمین e0 | B147: (از 0 الی 2) | C147: 1.5 | D147: خط زمین=0 خط زانو=1 خط باسن=2 | E147: ='طراحی همه الگوها'!B309 -> 40 | F147: ضریب نقطه شروع گوده و پیلی از زمین | G147: 10 | H147: 0 | I147: 30 | J147: 1 | K147: 0.05 | L147: -0.5 | N147: 1 | P147: 50 | Q147: 0 | R147: 10 | AJ147: =DM6 -> عنوان 8 | AK147: -4 | AL147: 97 | AO147: 160 | AP147: -2
AJ148: =DN6 -> عنوان 9 | AK148: -3 | AL148: 98 | AO148: 165 | AP148: -1.5
A149: متغیرهای ورودی جزئی - طراحی تکه پشت یقه انگلیسی | F149: متغیرهای ورودی جزئی - طراحی تکه پشت یقه انگلیسی | G149: x1 | H149: y1 | I149: x2 | J149: y2(بهینه) | K149: a | L149: b | N149: کمترین | P149: بیشترین | AJ149: =DO6 -> عنوان 10 | AK149: -2 | AL149: 99 | AO149: 170 | AP149: -1
A150: γ11 زاویه تکه پشت یقه روی خط مرکزی | B150: (از -10 الی 20) | C150: =K150*E150+L150 -> 2 | D150: بهینه=2 | E150: ='طراحی همه الگوها'!E225 -> 20 | F150: زاویه تکه پشت یقه روی خط مرکزی | G150: 19 | H150: 1 | I150: 20 | J150: 2 | K150: =(J150-H150)/(I150-G150) -> 1 | L150: =H150-G150*K150 -> -18 | M150: -10 | N150: =(M150-L150)/K150 -> 8 | O150: 20 | P150: =(O150-L150)/K150 -> 38 | Q150: 2 | R150: =(Q150-L150)/K150 -> 20 | AJ150: =DP6 -> عنوان 11 | AK150: -1 | AL150: 100 | AO150: 175 | AP150: -0.5
A151: γ12 زاویه تکه پشت یقه با پایه روی خط مرکزی | B151: (از -10 الی 20) | C151: 4 | D151: بهینه=4 | E151: ='طراحی همه الگوها'!E226 -> 20 | F151: زاویه تکه پشت یقه با پایه روی خط مرکزی | G151: 19 | H151: 3 | I151: 20 | J151: 4 | K151: 1 | L151: -16 | M151: -10 | N151: 6 | O151: 20 | P151: 36 | Q151: 4 | R151: 20 | AJ151: =DQ6 -> عنوان 12 | AK151: 0 | AL151: 101 | AO151: 180 | AP151: 0
A152: ضریب تغییر انحنا بالا سمت چپ مرحله نهم γ13 | B152: (از -1 الی 1) | C152: 0 | D152: بهینه=0 | E152: ='طراحی همه الگوها'!E223 -> 20 | F152: ضریب تغییر انحنا بالا سمت چپ مرحله نهم در طراحی یقه انگلیسی | G152: 19 | H152: -0.1 | I152: 20 | J152: 0 | K152: 0.1 | L152: -2 | M152: -1 | N152: 10 | O152: 1 | P152: 30 | Q152: 0 | R152: 20 | AJ152: =DR6 -> عنوان 13 | AK152: 1 | AL152: 102 | AO152: 185 | AP152: 0.5
A153: γ14 ضریب تغییر انحنا بالا مرحله نهم | B153: (از 0.5 الی 2) | C153: 1.18 | D153: بهینه=1.18 | E153: ='طراحی همه الگوها'!E224 -> 40 | F153: ضریب تغییر انحنا بالا مرحله نهم در طراحی یقه انگلیسی | G153: 39 | H153: 1.16 | I153: 40 | J153: 1.18 | K153: 0.02 | L153: 0.38 | M153: 0.5 | N153: 6 | O153: 2 | P153: 81 | Q153: 1.18 | R153: 40 | AJ153: =DS6 -> عنوان 14 | AK153: 2 | AL153: 103 | AO153: 190 | AP153: 1
A154: γ15 ضریب تغییر انحنا پایین روی خط مرکزی پشت | B154: (از 0 الی 2) | C154: 0.5 | D154: بهینه=0.5 | E154: ='طراحی همه الگوها'!E227 -> 20 | F154: ضریب تغییر انحنا پایین روی خط مرکزی پشت | G154: 19 | H154: 0.45 | I154: 20 | J154: 0.5 | K154: 0.05 | L154: -0.5 | M154: 0 | N154: 10 | O154: 2 | P154: 50 | Q154: 0.5 | R154: 20 | AJ154: =DT6 -> عنوان 15 | AK154: 3 | AL154: 104 | AO154: 195 | AP154: 1.5
A155: γ16 ضریب تغییر انحنا پایین | B155: (از 0 الی 2) | C155: 0.6 | D155: بهینه=0.6 | E155: ='طراحی همه الگوها'!E228 -> 20 | F155: ضریب تغییر انحنا پایین | G155: 19 | H155: 0.55 | I155: 20 | J155: 0.6 | K155: 0.05 | L155: -0.4 | M155: 0 | N155: 8 | O155: 2 | P155: 48 | Q155: 0.6 | R155: 20 | AJ155: =DU6 -> عنوان 16 | AK155: 4 | AL155: 105 | AO155: 200 | AP155: 2
A156: γ17 ضریب پهنای پشت پایه (انگلیسی و آرشال) مرحله سوم | B156: (از 0.2 الی 2) | C156: 0.7 | D156: بهینه=1 بهینه پایه مستطیل=0.7 | E156: ='طراحی همه الگوها'!E219 -> 20 | F156: پهنای پشت پایه (انگلیسی و آرشال) مرحله سوم در طراحی یقه انگلیسی | G156: 19 | H156: 0.65 | I156: 20 | J156: 0.7 | K156: 0.05 | L156: -0.3 | M156: 0.2 | N156: 10 | O156: 2 | P156: 46 | Q156: 1 | R156: 26 | AJ156: =DV6 -> عنوان 17 | AK156: 5 | AL156: 106 | AP156: 2.5
A157: γ18 زاویه کج شدن پایه مستطیل به قسمت گردن بر حسب درجه مرحله سوم | B157: (از -30 الی 30) | C157: -15 | D157: بهینه=5 | E157: ='طراحی همه الگوها'!E220 -> 20 | F157: زاویه کج شدن پایه مستطیل به قسمت گردن مرحله سوم در طراحی یقه انگلیسی | G157: 39 | H157: 4 | I157: 40 | J157: 5 | K157: 1 | L157: -35 | M157: -30 | N157: 5 | O157: 30 | P157: 65 | Q157: 5 | R157: 40 | AJ157: =DW6 -> عنوان 18 | AK157: 6 | AL157: 107 | AP157: 3
A158: ضریب پهنای جلو پایه مستطیل مرحله سوم γ19 | B158: (از 0 الی 1) | C158: 0.7 | D158: بهینه=0.7 | E158: ='طراحی همه الگوها'!E221 -> 20 | F158: پهنای جلو پایه مستطیل مرحله سوم در طراحی یقه انگلیسی | G158: 19 | H158: 0.65 | I158: 20 | J158: 0.7 | K158: 0.05 | L158: -0.3 | M158: 0 | N158: 6 | O158: 1 | P158: 26 | Q158: 0.7 | R158: 20 | AJ158: =DX6 -> عنوان 19 | AK158: 7 | AL158: 108 | AP158: 3.5
A159: انتخاب یقه انگلیسی با پایه جدا=1 انتخاب دیگر=0 مرحله سوم | B159: 0 یا 1 | C159: 0 | E159: ='طراحی همه الگوها'!E222 -> 1 | F159: انتخاب یقه انگلیسی پایه سرخود یا پایه جدا مرحله سوم در طراحی یقه انگلیسی | G159: 1 | H159: 0 | I159: 2 | J159: 1 | K159: 1 | L159: -1 | M159: 0 | N159: 1 | O159: 1 | P159: 2 | Q159: 0 | R159: 1 | AJ159: =DY6 -> عنوان 20 | AK159: 8 | AL159: 109 | AP159: 4
A160: γ20 جابجایی عمودی پایه مستطیل | B160: (از -100 الی100) | C160: 0 | D160: بهینه=دلخواه | E160: ='طراحی همه الگوها'!E231 -> 0 | F160: جابجایی عمودی پایه مستطیل (سانتیمتر) | G160: 1 | H160: 1 | I160: 0 | J160: 0 | K160: 1 | L160: 0 | M160: -100 | N160: =(M160-L160)/K160 -> -100 | O160: 100 | P160: =(O160-L160)/K160 -> 100 | AJ160: =DZ6 -> عنوان 21 | AK160: 9 | AL160: 110 | AP160: 4.5
A161: γ21 جابجایی افقی پایه مستطیل | B161: (از -100 الی100) | C161: 0 | D161: بهینه=دلخواه | E161: ='طراحی همه الگوها'!E230 -> 0 | F161: جابجایی افقی پایه مستطیل (سانتیمتر) | G161: 1 | H161: 1 | I161: 0 | J161: 0 | K161: 1 | L161: 0 | M161: -100 | N161: =(M161-L161)/K161 -> -100 | O161: 100 | P161: =(O161-L161)/K161 -> 100 | AJ161: =EA6 -> عنوان 22 | AK161: 10 | AL161: 111 | AP161: 5
AJ162: =EB6 -> عنوان 23 | AK162: 11 | AL162: 112 | AP162: 5.5
A163: متغیرهای ورودی-طراحی یقه انگلیسی و آرشال و یقه هفت | F163: متغیرهای ورودی-طراحی یقه انگلیسی و آرشال و یقه هفت | G163: x1 | H163: y1 | I163: x2 | J163: y2(بهینه) | K163: a | L163: b | N163: کمترین | P163: بیشترین | S163: مراحل مختلف در طراحی یقه انگلیسی | AJ163: =EC6 -> عنوان 24 | AK163: 12 | AL163: 113 | AP163: 6
A164: پهنای یقه در پشت گردن (انگلیسی یا آرشال) مرحله سوم | B164: (از 0.7 الی 3) | C164: =K164*E164+L164 -> 1 | D164: بهینه=1 | E164: ='طراحی همه الگوها'!E207 -> 20 | F164: پهنای یقه در پشت گردن (انگلیسی یا آرشال) مرحله سوم در طراحی یقه انگلیسی | G164: 19 | H164: 0.95 | I164: 20 | J164: 1 | K164: =(J164-H164)/(I164-G164) -> 0.05 | L164: =H164-G164*K164 -> -8.881784197e-16 | M164: 0.7 | N164: =(M164-L164)/K164 -> 14 | O164: 3 | P164: =(O164-L164)/K164 -> 60 | Q164: 1 | R164: =(Q164-L164)/K164 -> 20 | S164: پهنای جادکمه جلو - میزان روی هم آمدن یقه انگلیسی | T164: مرحله اول | AJ164: =ED6 -> عنوان 25 | AK164: 13 | AL164: 114 | AP164: 6.5
A165: γ1 باز بودن یقه انگلیسی یا آرشال یا هفت مرحله چهارم | B165: (از 0.5 الی 1.5) | C165: 0.7 | D165: بهینه=0.7 | E165: ='طراحی همه الگوها'!E208 -> 20 | F165: باز بودن یقه انگلیسی یا آرشال یا هفت مرحله چهارم در طراحی یقه انگلیسی | G165: 19 | H165: 0.65 | I165: 20 | J165: 0.7 | K165: 0.05 | L165: -0.3 | M165: 0.5 | N165: 16 | O165: 1.5 | P165: 36 | Q165: 0.7 | R165: 20 | S165: میزان باز بودن یقه گرد - نشان میدهد یقه چقدر به گردن میچسبد | T165: مرحله دوم | AJ165: =EE6 -> عنوان 26 | AK165: 14 | AL165: 115 | AP165: 7
A166: γ7 پهنای بالای دال مرحله پنجم | B166: (از 0.01 الی 0.4) | C166: 0.1 | D166: بهینه=0.1 | E166: ='طراحی همه الگوها'!E209 -> 20 | F166: پهنای بالای دال مرحله پنجم در طراحی یقه انگلیسی | G166: 21 | H166: 0.11 | I166: 20 | J166: 0.1 | K166: 0.01 | L166: -0.1 | M166: 0.01 | N166: 11 | O166: 0.4 | P166: 50 | Q166: 0.1 | R166: 20 | S166: پهنای تکه پشت یقه انگلیسی | T166: مرحله سوم | AJ166: =EF6 -> عنوان 27 | AK166: 15 | AL166: 116 | AP166: 7.5
A167: پهنای پایین دال مرحله پنجم γ6 | B167: (از 0.01 الی 0.4) | C167: 0.1 | D167: بهینه=0.1 | E167: ='طراحی همه الگوها'!E210 -> 20 | F167: پهنای پایین دال مرحله پنجم در طراحی یقه انگلیسی | G167: 21 | H167: 0.11 | I167: 20 | J167: 0.1 | K167: 0.01 | L167: -0.1 | M167: 0.01 | N167: 11 | O167: 0.4 | P167: 50 | Q167: 0.1 | R167: 20 | S167: باز بودن یقه انگلیسی | T167: مرحله چهارم | AJ167: =EG6 -> عنوان 28 | AK167: 16 | AL167: 117 | AP167: 8
A168: γ4 پهنای یقه انگلیسی یا آرشال مرحله ششم | B168: (از -5 الی 40) | C168: 8 | D168: بهینه=8 | E168: ='طراحی همه الگوها'!E211 -> 20 | F168: پهنای یقه انگلیسی یا آرشال مرحله ششم در طراحی یقه انگلیسی | G168: 19 | H168: 7 | I168: 20 | J168: 8 | K168: 1 | L168: -12 | M168: -5 | N168: 7 | O168: 40 | P168: 52 | Q168: 8 | R168: 20 | S168: پهنای بالا و پایین دال | T168: مرحله پنجم | AJ168: =EH6 -> عنوان 29 | AK168: 17 | AL168: 118 | AP168: 8.5
A169: γ5 وسط دال پایین یا بالا رود (انگلیسی یا آرشال) مرحله هفتم | B169: (از -0.2 الی 0.3) | C169: 0 | D169: عدد منفی یعنی دال رو به سرشانه برود بهینه=0 | E169: ='طراحی همه الگوها'!E212 -> 20 | F169: وسط دال پایین یا بالا رود (انگلیسی یا آرشال) مرحله هفتم در طراحی یقه انگلیسی | G169: 19 | H169: -0.01 | I169: 20 | J169: 0 | K169: 0.01 | L169: -0.2 | M169: -0.2 | N169: 0 | O169: 0.3 | P169: 50 | Q169: 0 | R169: 20 | S169: پهنای یقه انگلیسی | T169: مرحله ششم | AJ169: =EI6 -> عنوان 30 | AK169: 18 | AL169: 119 | AM169: متغیر ورودی خاص یقه | AN169: متغیر ورودی خاص شلوار | AP169: 9
A170: γ9 زاویه بالای دال مرحله هشتم | B170: (از 90 الی 180) | C170: 130 | D170: بهینه=130 | E170: ='طراحی همه الگوها'!E213 -> 20 | F170: زاویه بالای دال مرحله هشتم در طراحی یقه انگلیسی | G170: 19 | H170: 125 | I170: 20 | J170: 130 | K170: 5 | L170: 30 | M170: 90 | N170: 12 | O170: 180 | P170: 30 | Q170: 130 | R170: 20 | S170: بالا و پایین رفتن نقطه وسط دال | T170: مرحله هفتم | AJ170: =EJ6 -> عنوان 31 | AK170: 19 | AL170: 120 | AM170: خط جادکمه | AN170: روش مولر | AP170: 9.5
A171: γ10 زاویه پایین دال مرحله هشتم | B171: (از 90 الی 180) | C171: 160 | D171: بهینه=160 | E171: ='طراحی همه الگوها'!E214 -> 20 | F171: زاویه پایین دال مرحله هشتم در طراحی یقه انگلیسی | G171: 19 | H171: 155 | I171: 20 | J171: 160 | K171: 5 | L171: 60 | M171: 90 | N171: 6 | O171: 180 | P171: 24 | Q171: 160 | R171: 20 | S171: تنظیم زاویه های نوک دال | T171: مرحله هشتم | AJ171: =EK6 -> عنوان 32 | AK171: 20 | AM171: مرکزی جلو | AN171: 0 | AP171: 10
A172: γ3 دال رو به پایین شود یا رو به بالا شود مرحله هشتم (در آستین رگلان = 0.05) | B172: (از 0.01 الی 0.3) | C172: 0.05 | D172: بهینه=0.05 | E172: ='طراحی همه الگوها'!E215 -> 20 | F172: دال رو به پایین یا رو به بالا شود مرحله هشتم در طراحی یقه انگلیسی | G172: 19 | H172: 0.04 | I172: 20 | J172: 0.05 | K172: =(J172-H172)/(I172-G172) -> 0.01 | L172: =H172-G172*K172 -> -0.15 | M172: 0.01 | N172: =(M172-L172)/K172 -> 16 | O172: 0.3 | P172: =(O172-L172)/K172 -> 45 | Q172: 0.05 | R172: =(Q172-L172)/K172 -> 20 | S172: اصلاح انحنای بالای تکه پشت یقه انگلیسی | T172: مرحله نهم | AJ172: =EL6 -> عنوان 33 | AK172: 21 | AM172: 1 | AN172: 0.5 | AP172: 10.5
A173: γ1 محاسبه در یقه شکاری متصل به یقه هفت | B173: =ROUND(1-(محاسبات!AX103-محاسبات!AX129-محاسبات!AX155-'متغیرها '!C169*محاسبات!H124)/محاسبات!H124,2) -> 0.54 | F173: محاسبه در یقه شکاری متصل به یقه هفت | AJ173: =EM6 -> عنوان 34 | AK173: 22 | AM173: 2 | AN173: 1 | AP173: 11
AJ174: =EN6 -> عنوان 35 | AK174: 23 | AM174: 3 | AN174: 1.5 | AP174: 11.5
A175: متغیرهای ورودی -ضخیم دوزی در سجاف یقه انگلیسی و آرشال | F175: متغیرهای ورودی -ضخیم دوزی در سجاف یقه انگلیسی و آرشال | G175: x1 | H175: y1 | I175: x2 | J175: y2(بهینه) | K175: a | L175: b | N175: کمترین | P175: بیشترین | AJ175: =EO6 -> عنوان 36 | AK175: 24 | AM175: 4 | AN175: 2 | AP175: 12
A176: ضریب اعمال ضخیم دوزی در سجاف (سانتیمتر) a'0 | B176: (از 0 الی 1) | C176: =K176*E176+L176 -> 0.5 | D176: بهینه کت مردانه=0.5 | E176: ='طراحی همه الگوها'!E229 -> 20 | F176: ضریب اعمال ضخیم دوزی در سجاف (سانتیمتر) | G176: 19 | H176: 0.45 | I176: 20 | J176: 0.5 | K176: =(J176-H176)/(I176-G176) -> 0.05 | L176: =H176-G176*K176 -> -0.5 | M176: 0 | N176: =(M176-L176)/K176 -> 10 | O176: 1 | P176: =(O176-L176)/K176 -> 30 | Q176: 0.5 | R176: =(Q176-L176)/K176 -> 20 | AJ176: =EP6 -> عنوان 37 | AK176: 25 | AM176: 5 | AN176: 2.5 | AP176: 12.5
AJ177: =EQ6 -> عنوان 38 | AK177: 26 | AM177: 6 | AN177: 3 | AP177: 13
A178: متغیرهای ورودی - پایه یقه انگلیسی | F178: متغیرهای ورودی - پایه یقه انگلیسی | G178: x1 | H178: y1 | I178: x2 | J178: y2(بهینه) | K178: a | L178: b | N178: کمترین | P178: بیشترین | AJ178: =ER6 -> عنوان 39 | AK178: 27 | AM178: 7 | AN178: 3.5 | AP178: 13.5
A179: شیفت افقی پایه (به سانتیمتر) | B179: (از -100 الی100) | C179: =K179*E179+L179 -> 0 | D179: بهینه=دلخواه | E179: ='طراحی همه الگوها'!E232 -> 0 | F179: شیفت افقی پایه (سانتیمتر) | G179: 1 | H179: 1 | I179: 0 | J179: 0 | K179: =(J179-H179)/(I179-G179) -> 1 | L179: =H179-G179*K179 -> 0 | M179: -100 | N179: =(M179-L179)/K179 -> -100 | O179: 100 | P179: =(O179-L179)/K179 -> 100 | AJ179: =ES6 -> عنوان 40 | AK179: 28 | AM179: 8 | AN179: 4 | AP179: 14
A180: شیفت عمودی پایه (به سانتیمتر) | B180: (از -100 الی100) | C180: =K180*E180+L180 -> 0 | D180: بهینه=دلخواه | E180: ='طراحی همه الگوها'!E233 -> 0 | F180: شیفت عمودی پایه (سانتیمتر) | G180: 1 | H180: 1 | I180: 0 | J180: 0 | K180: =(J180-H180)/(I180-G180) -> 1 | L180: =H180-G180*K180 -> 0 | M180: -100 | N180: =(M180-L180)/K180 -> -100 | O180: 100 | P180: =(O180-L180)/K180 -> 100 | AK180: 29 | AM180: 9 | AN180: 4.5 | AP180: 14.5
AK181: 30 | AM181: 10 | AN181: 5 | AP181: 15
A182: متغیرهای ورودی - پایه یقه آرشال | F182: متغیرهای ورودی - پایه یقه آرشال | G182: x1 | H182: y1 | I182: x2 | J182: y2(بهینه) | K182: a | L182: b | N182: کمترین | P182: بیشترین | AK182: 31 | AM182: 11 | AN182: 5.5 | AP182: 15.5
A183: شیفت افقی پایه (به سانتیمتر) | B183: (از -100 الی100) | C183: =K183*E183+L183 -> 0 | D183: بهینه=دلخواه | E183: ='طراحی همه الگوها'!E234 -> 0 | F183: شیفت افقی پایه (سانتیمتر) | G183: 1 | H183: 1 | I183: 0 | J183: 0 | K183: =(J183-H183)/(I183-G183) -> 1 | L183: =H183-G183*K183 -> 0 | M183: -100 | N183: =(M183-L183)/K183 -> -100 | O183: 100 | P183: =(O183-L183)/K183 -> 100 | AK183: 32 | AM183: 12 | AN183: 6 | AP183: 16
A184: شیفت عمودی پایه (به سانتیمتر) | B184: (از -100 الی100) | C184: =K184*E184+L184 -> 0 | D184: بهینه=دلخواه | E184: ='طراحی همه الگوها'!E235 -> 0 | F184: شیفت عمودی پایه (سانتیمتر) | G184: 1 | H184: 1 | I184: 0 | J184: 0 | K184: =(J184-H184)/(I184-G184) -> 1 | L184: =H184-G184*K184 -> 0 | M184: -100 | N184: =(M184-L184)/K184 -> -100 | O184: 100 | P184: =(O184-L184)/K184 -> 100 | AK184: 33 | AM184: 13 | AN184: 6.5 | AP184: 16.5
AK185: 34 | AM185: 14 | AN185: 7 | AP185: 17
A186: متغیرهای ورودی-انتقال ساسون زیر بغل بر روی جیب در تکه پهلو جدا | F186: متغیرهای ورودی-انتقال ساسون زیر بغل بر روی جیب در تکه پهلو جدا | G186: x1 | H186: y1 | I186: x2 | J186: y2(بهینه) | K186: a | L186: b | N186: کمترین | P186: بیشترین | AK186: 35 | AM186: 15 | AN186: 7.5 | AP186: 17.5
A187: تغییر زاویه جیب با افق (درجه) | B187: (از -45 الی 45) | C187: =K187*E187+L187 -> -41 | D187: بهینه =دلخواه | E187: ='طراحی همه الگوها'!B337 -> 40 | F187: تغییر زاویه جیب با افق (درجه) | G187: -2 | H187: 1 | I187: -1 | J187: 0 | K187: =(J187-H187)/(I187-G187) -> -1 | L187: =H187-G187*K187 -> -1 | M187: -45 | N187: =(M187-L187)/K187 -> 44 | O187: 45 | P187: =(O187-L187)/K187 -> -46 | Q187: 0 | R187: =(Q187-L187)/K187 -> -1 | AK187: 36 | AM187: 16 | AN187: 8 | AP187: 18
A188: ضریب پهنای جیب در مدل تکه پهلو جدا | B188: (از 0.01 الی 1.5) | C188: =K188*E188+L188 -> 1 | D188: بهینه=1 | E188: ='طراحی همه الگوها'!B338 -> 20 | F188: ضریب پهنای جیب در مدل تکه پهلو جدا | G188: 19 | H188: 0.95 | I188: 20 | J188: 1 | K188: =(J188-H188)/(I188-G188) -> 0.05 | L188: =H188-G188*K188 -> -8.881784197e-16 | M188: 0.01 | N188: =(M188-L188)/K188 -> 0.2 | O188: 1.5 | P188: =(O188-L188)/K188 -> 30 | Q188: 1 | R188: =(Q188-L188)/K188 -> 20 | AK188: 37 | AM188: 17 | AN188: 8.5 | AP188: 18.5
AK189: 38 | AM189: 18 | AN189: 9 | AP189: 19
A190: متغیرهای ورودی-انحنا لبه پیراهن روی خط مرکزی جلو | F190: متغیرهای ورودی-انحنا لبه پیراهن روی خط مرکزی جلو | G190: x1 | H190: y1 | I190: x2 | J190: y2(بهینه) | K190: a | L190: b | N190: کمترین | P190: بیشترین | AK190: 39 | AM190: 19 | AN190: 9.5 | AP190: 19.5
A191: ضریب انحنا بالای لبه پیراهن روی خط مرکزی جلو n11 | B191: (از 0.01 الی 0.9) | C191: =K191*E191+L191 -> 0.45 | D191: بهینه کت مردانه=0.45 | E191: ='طراحی همه الگوها'!B312 -> 9 | F191: ضریب انحنا بالای لبه پیراهن روی خط مرکزی جلو | G191: 1 | H191: 0.05 | I191: 0 | J191: 0 | K191: =(J191-H191)/(I191-G191) -> 0.05 | L191: =H191-G191*K191 -> 0 | M191: 0.01 | N191: =(M191-L191)/K191 -> 0.2 | O191: 0.9 | P191: =(O191-L191)/K191 -> 18 | Q191: 0.45 | R191: =(Q191-L191)/K191 -> 9 | AK191: 40 | AM191: 20 | AN191: 10 | AP191: 20
A192: ضریب انحنا میانی لبه پیراهن روی خط مرکزی جلو n13 | B192: (از 0.5 الی 1.7) | C192: =K192*E192+L192 -> 1.3 | D192: بهینه کت مردانه=1.3 | E192: ='طراحی همه الگوها'!B313 -> 26 | F192: ضریب انحنا میانی لبه پیراهن روی خط مرکزی جلو | G192: 1 | H192: 0.05 | I192: 0 | J192: 0 | K192: =(J192-H192)/(I192-G192) -> 0.05 | L192: =H192-G192*K192 -> 0 | M192: 0.5 | N192: =(M192-L192)/K192 -> 10 | O192: 1.7 | P192: =(O192-L192)/K192 -> 34 | Q192: 1.3 | R192: =(Q192-L192)/K192 -> 26 | AK192: 41 | AN192: 10.5 | AP192: 20.5
A193: ضریب انحنا پایین لبه پیراهن روی خط مرکزی جلو n12 | B193: (از 0.3 الی 1) | C193: =K193*E193+L193 -> 0.8 | D193: بهینه کت مردانه=0.8 | E193: ='طراحی همه الگوها'!B314 -> 16 | F193: ضریب انحنا پایین لبه پیراهن روی خط مرکزی جلو | G193: 1 | H193: 0.05 | I193: 0 | J193: 0 | K193: =(J193-H193)/(I193-G193) -> 0.05 | L193: =H193-G193*K193 -> 0 | M193: 0.3 | N193: =(M193-L193)/K193 -> 6 | O193: 1 | P193: =(O193-L193)/K193 -> 20 | Q193: 0.8 | R193: =(Q193-L193)/K193 -> 16 | AK193: 42 | AN193: 11 | AP193: 21
AK194: 43 | AN194: 11.5 | AP194: 21.5
A195: متغیرهای ورودی - جیب پهلو | F195: متغیرهای ورودی - جیب پهلو آبی با بلیطی (جلو) | G195: x1 | H195: y1 | I195: x2 | J195: y2(بهینه) | K195: a | L195: b | N195: کمترین | P195: بیشترین | AK195: 44 | AN195: 12 | AP195: 22
A196: عرض پاکت جیب به سانتیمتر | B196: (از 0 الی 4) | C196: =K196*E196+L196 -> 2 | D196: بهینه=2 | E196: ='طراحی همه الگوها'!E326 -> 2 | F196: پهنای بلیطی جیب (سانتیمتر) | G196: 1 | H196: 1 | I196: 0 | J196: 0 | K196: =(J196-H196)/(I196-G196) -> 1 | L196: =H196-G196*K196 -> 0 | M196: 0 | N196: =(M196-L196)/K196 -> 0 | O196: 4 | P196: =(O196-L196)/K196 -> 4 | Q196: 2 | R196: =(Q196-L196)/K196 -> 2 | AK196: 45 | AN196: 12.5 | AP196: 22.5
A197: ضریب طول پاکت جیب | B197: (از 0.01 الی 1.5) | C197: =K197*E197+L197 -> 1 | D197: بهینه=1 | E197: ='طراحی همه الگوها'!E327 -> 20 | F197: ضریب طول بلیطی جیب | G197: 19 | H197: 0.95 | I197: 20 | J197: 1 | K197: =(J197-H197)/(I197-G197) -> 0.05 | L197: =H197-G197*K197 -> -8.881784197e-16 | M197: 0.01 | N197: =(M197-L197)/K197 -> 0.2 | O197: 1.5 | P197: =(O197-L197)/K197 -> 30 | Q197: 1 | R197: =(Q197-L197)/K197 -> 20 | AK197: 46 | AN197: 13 | AP197: 23
A198: زاویه جیب با عمود به درجه | B198: (از 0 الی 90) | C198: =K198*E198+L198 -> 20 | D198: بهینه=20 | E198: ='طراحی همه الگوها'!E328 -> 4 | F198: زاویه جیب با عمود | G198: 1 | H198: 5 | I198: 0 | J198: 0 | K198: =(J198-H198)/(I198-G198) -> 5 | L198: =H198-G198*K198 -> 0 | M198: 0 | N198: =(M198-L198)/K198 -> 0 | O198: 90 | P198: =(O198-L198)/K198 -> 18 | Q198: 20 | R198: =(Q198-L198)/K198 -> 4 | AK198: 47 | AN198: 13.5 | AP198: 23.5
A199: زاویه چرخش پاکت جیب از مستطیل به متوازی الاضلاع (به درجه) | B199: (از -90 الی 90) | C199: =K199*E199+L199 -> 0 | D199: پاکت مستطیل=0 | E199: ='طراحی همه الگوها'!E329 -> 20 | F199: زاویه چرخش بلیطی جیب از مستطیل به متوازی الاضلاع | G199: 21 | H199: 5 | I199: 20 | J199: 0 | K199: =(J199-H199)/(I199-G199) -> 5 | L199: =H199-G199*K199 -> -100 | M199: -90 | N199: =(M199-L199)/K199 -> 2 | O199: 90 | P199: =(O199-L199)/K199 -> 38 | Q199: 0 | R199: =(Q199-L199)/K199 -> 20 | AK199: 48 | AN199: 14 | AP199: 24
AK200: 49 | AN200: 14.5 | AP200: 24.5
A201: متغیرهای ورودی - جیب اول درمکان دلخواه | F201: متغیرهای ورودی - جیب اول سبز با بلیطی (جلو) | G201: x1 | H201: y1 | I201: x2 | J201: y2(بهینه) | K201: a | L201: b | N201: کمترین | P201: بیشترین | AK201: 50 | AN201: 15 | AP201: 25
A202: ضریب فاصله افقی وسط جیب از خط مرکزی جلو | B202: (از 0 الی 1) | C202: =K202*E202+L202 -> 0.55 | D202: خط مرکزی جلو=0 خط پهلو=1 | E202: ='طراحی همه الگوها'!E338 -> 11 | F202: ضریب فاصله افقی وسط جیب از خط مرکزی جلو | G202: 20 | H202: 1 | I202: 0 | J202: 0 | K202: =(J202-H202)/(I202-G202) -> 0.05 | L202: =H202-G202*K202 -> 0 | M202: 0 | N202: =(M202-L202)/K202 -> 0 | O202: 1 | P202: =(O202-L202)/K202 -> 20 | Q202: 0.5 | R202: =(Q202-L202)/K202 -> 10 | AK202: 51 | AP202: 25.5
A203: ضریب فاصله عمودی بالای جیب از زمین | B203: (از0 الی 5) | C203: 2.5 | D203: خط زمین=0 خط زانو=1 خط باسن=2 خط کمر=3 خط سینه=4 | E203: ='طراحی همه الگوها'!E339 -> 60 | F203: ضریب فاصله عمودی بالای جیب از زمین | G203: 10 | H203: 0 | I203: 30 | J203: 1 | K203: 0.05 | L203: -0.5 | M203: 0 | N203: 10 | O203: 5 | P203: 110 | Q203: 2 | R203: 50 | AK203: 52 | AP203: 26
A204: عرض پاکت جیب به سانتیمتر | B204: (از 0 الی 4) | C204: 2 | D204: بهینه=2 | E204: ='طراحی همه الگوها'!E332 -> 2 | F204: پهنای بلیطی جیب (سانتیمتر) | G204: 1 | H204: 1 | I204: 0 | J204: 0 | K204: 1 | L204: 0 | M204: 0 | N204: 0 | O204: 4 | P204: 4 | Q204: 2 | R204: 2 | AK204: 53 | AN204: متغیر ورودی بافت یقه شکاری | AP204: 26.5
A205: ضریب طول پاکت جیب | B205: (از 0.01 الی 2) | C205: 1 | D205: بهینه=1 | E205: ='طراحی همه الگوها'!E333 -> 20 | F205: ضریب طول بلیطی جیب | G205: 19 | H205: 0.95 | I205: 20 | J205: 1 | K205: 0.05 | L205: -8.881784197e-16 | M205: 0.01 | N205: 0.2 | O205: 2 | P205: 40 | Q205: 1 | R205: 20 | AK205: 54 | AN205: 0 | AP205: 27
A206: زاویه جیب با عمود به درجه | B206: (از 0 الی 180) | C206: 90 | D206: بهینه=دلخواه | E206: ='طراحی همه الگوها'!E334 -> 18 | F206: زاویه جیب با عمود | G206: 1 | H206: 5 | I206: 0 | J206: 0 | K206: 5 | L206: 0 | M206: 0 | N206: 0 | O206: 180 | P206: 36 | Q206: 20 | R206: 4 | AK206: 55 | AN206: 5 | AP206: 27.5
A207: زاویه چرخش پاکت جیب از مستطیل به متوازی الاضلاع (به درجه) | B207: (از -90 الی 90) | C207: 0 | D207: پاکت مستطیل=0 | E207: ='طراحی همه الگوها'!E335 -> 20 | F207: زاویه چرخش بلیطی جیب از مستطیل به متوازی الاضلاع | G207: 21 | H207: 5 | I207: 20 | J207: 0 | K207: 5 | L207: -100 | M207: -90 | N207: 2 | O207: 90 | P207: 38 | Q207: 0 | R207: 20 | AK207: 56 | AN207: 8 | AP207: 28
... 569 more rows

Sheet انتخاب بافت (hidden)

Sheet اندازه های شخصی
E5: عنوان مورد نظر خود را در قسمت سبز رنگ وارد کنید | G5: عنوان 1 | I5: عنوان 2 | K5: عنوان 3 | M5: عنوان 4 | O5: عنوان 5 | Q5: عنوان 6 | S5: عنوان 7 | U5: عنوان 8 | W5: عنوان 9 | Y5: عنوان 10 | AA5: عنوان 11 | AC5: عنوان 12 | AE5: عنوان 13 | AG5: عنوان 14 | AI5: عنوان 15 | AK5: عنوان 16 | AM5: عنوان 17 | AO5: عنوان 18 | AQ5: عنوان 19 | AS5: عنوان 20 | AU5: عنوان 21 | AW5: عنوان 22 | AY5: عنوان 23 | BA5: عنوان 24 | BC5: عنوان 25 | BE5: عنوان 26 | BG5: عنوان 27 | BI5: عنوان 28 | BK5: عنوان 29 | BM5: عنوان 30 | BO5: عنوان 31 | BQ5: عنوان 32 | BS5: عنوان 33 | BU5: عنوان 34 | BW5: عنوان 35 | BY5: عنوان 36 | CA5: عنوان 37 | CC5: عنوان 38 | CE5: عنوان 39 | CG5: عنوان 40
G7: اندازه شخصی 1 | I7: اندازه شخصی 2 | K7: اندازه شخصی 3 | M7: اندازه شخصی 3 | O7: اندازه شخصی 5 | Q7: اندازه شخصی 6 | S7: اندازه شخصی 7 | U7: اندازه شخصی 8 | W7: اندازه شخصی 9 | Y7: اندازه شخصی 10 | AA7: اندازه شخصی 11 | AC7: اندازه شخصی 12 | AE7: اندازه شخصی 13 | AG7: اندازه شخصی 14 | AI7: اندازه شخصی 15 | AK7: اندازه شخصی 16 | AM7: اندازه شخصی 17 | AO7: اندازه شخصی 18 | AQ7: اندازه شخصی 19 | AS7: اندازه شخصی 20 | AU7: اندازه شخصی 21 | AW7: اندازه شخصی 22 | AY7: اندازه شخصی 23 | BA7: اندازه شخصی 24 | BC7: اندازه شخصی 25 | BE7: اندازه شخصی 26 | BG7: اندازه شخصی 27 | BI7: اندازه شخصی 28 | BK7: اندازه شخصی 29 | BM7: اندازه شخصی 30 | BO7: اندازه شخصی 31 | BQ7: اندازه شخصی 32 | BS7: اندازه شخصی 33 | BU7: اندازه شخصی 34 | BW7: اندازه شخصی 35 | BY7: اندازه شخصی 36 | CA7: اندازه شخصی 37 | CC7: اندازه شخصی 38 | CE7: اندازه شخصی 39 | CG7: اندازه شخصی 40
E8: دور کمر | F8: a
E9: نوار کمر از پشت بین دو خط پهلو | F9: b
E10: دور باسن | F10: c
E11: نوار باسن از پشت بین دو خط پهلو | F11: d
E12: فاصله نوار کمر تا زمین، از قسمت جلو | F12: e
E13: فاصله نوار کمر تا زمین، از قسمت پهلو | F13: f
E14: فاصله نوار کمر تا زمین، از قسمت پشت | F14: g
E15: فاصله نوار زانو تا زمین | F15: h
E16: فاصله نوار باسن تا زمین | F16: j
E17: دور زانو | F17: L
E18: بلندی فاق | F18: m
E19: آنفورشور | F19: q
E20: دور مچ پا | F20: r
E21: شلوار زنانه و بچگانه = 0 مردانه=1 بچه با پوشک=2
E22: دور سینه : از برجسته ترین قسمت سینه | F22: s1
E23: پشت نوار سینه، بین دو خط پهلو | F23: s2
E24: فاصله عمودی از خط سینه جلو تا خط سینه پشت که از کنار حلقه آستین بگذرد | F24: t1
E25: فاصله عمودی از خط سینه جلو تا خط سینه پشت که از کنارگردن بگذرد | F25: t2
E26: فاصله عمودی از خط کمر جلو تا خط کمر پشت که از کنار گردن بگذرد | F26: t3
E27: فاصله عمودی بین خط سینه پشت و سرشانه، نزدیک دست | F27: t4
E28: فاصله عمودی بین خط سینه پشت و سرشانه، نزدیک گردن | F28: t5
E29: فاصله عمودی بین خط کمرپشت و سرشانه، نزدیک گردن | F29: t6
E30: دور گردن (متر به طور عمودی دور گردن قرار می گیرد و از روی استخوان ترقوه می گذرد) | F30: v
E31: کارور پشت (بین دو خط امتداد زیر بغل) | F31: v3
E32: دور بازو از ناحیه زیر بغل | F32: w2
E33: قد آستین (دست به طور خمیده، قد از سرشانه تا مچ) | F33: w10
E34: دور مچ دست | F34: w11
E35: دور سر | F35: w12

Sheet اندازه گیری و تحلیل
F4: 0 الی 30 | G4: خیلی کم
D5: برای اندام شما : | F5: 30 الی 50 | G5: کم | K5: قد سرشانه تا زمین | L5: =L419 -> 160
D6: برجستگی سینه جلو | F6: 50 الی 70 | G6: متوسط | K6: تمام قد (تقریبی) | L6: =L420 -> 180
D7: =L479 -> 73 | F7: 70 الی 90 | G7: زیاد
F8: 90 الی 200 | G8: خیلی زیاد
F12: 0 الی 20 | G12: خیلی کم
D13: برای اندام شما : | F13: 20 الی 40 | G13: کم
D14: برجستگی باسن | F14: 40 الی 60 | G14: متوسط
D15: =L476 -> 57 | F15: 60 الی 80 | G15: زیاد
F16: 80 الی 200 | G16: خیلی زیاد
F20: 3 الی - 20 | G20: شکم تخت
D21: برای اندام شما : | F21: 3 الی 6
D22: برجستگی شکم نسبت به سینه | F22: 6 الی 10
D23: =L484 -> 5 | F23: 10 الی 20 | G23: شکم در امتداد سینه
F24: 20 الی 30 | G24: شکم برجسته تراز سینه
F25: 30 الی 40 | G25: شکم حاملگی
F26: 40 الی 150 | G26: شکم حاملگی بزرگ
F30: 0الی 10 | G30: خیلی کم
D31: برای اندام شما : | F31: 10 الی 15 | G31: کم
D32: افتادگی سرشانه | F32: 15 الی 20 | G32: متوسط
D33: =L474 -> 20 | F33: 20 الی 25 | G33: زیاد
F34: 25 الی 50 | G34: خیلی زیاد
D53: خطای درجه 1
D54: =IF(AND(V404>20,V404<200)," "," اندازه a تکرار شود.") -> 
D55: =IF(AND(V405>10,V405<100)," "," اندازه b تکرار شود.") -> 
D56: =IF(AND(V406>20,V406<200)," "," اندازه c تکرار شود.") -> 
D57: =IF(AND(V407>10,V407<100)," "," اندازه d تکرار شود.") -> 
D58: =IF(AND(V408>15,V408<140)," "," اندازه e تکرار شود.") -> 
D60: =IF(AND(V410>15,V410<140)," "," اندازه g تکرار شود.") -> 
D61: =IF(AND(V411>5,V411<70)," "," اندازه h تکرار شود.") -> 
D62: =IF(AND(V412>10,V412<120)," "," اندازه j تکرار شود.") -> 
D63: =IF(AND(V413>15,V413<70)," "," اندازه L تکرار شود.") -> 
D64: =IF(AND(W414>10,W414<50)," "," اندازه m تکرار شود.") -> 
D65: =IF(AND(V415>25,V415<140)," "," اندازه q تکرار شود.") -> 
D66: =IF(AND(V416>10,V416<80)," "," اندازه r تکرار شود.") -> 
D67: =IF(AND(V424>20,V424<200)," "," اندازه s1 تکرار شود.") -> 
D68: =IF(AND(V425>10,V425<100)," "," اندازه s2 تکرار شود.") -> 
D69: =IF(AND(V426>12,V426<75)," "," اندازه t1 تکرار شود.") -> 
D70: =IF(AND(V427>13,V427<80)," "," اندازه t2 تکرار شود.") -> 
D71: =IF(AND(V428>20,V428<120)," "," اندازه t3 تکرار شود.") -> 
D72: =IF(AND(V429>6,V429<40)," "," اندازه t4 تکرار شود.") -> 
D73: =IF(AND(V430>7,V430<50)," "," اندازه t5 تکرار شود.") -> 
D74: =IF(AND(V431>10,V431<70)," "," اندازه t6 تکرار شود.") -> 
D75: =IF(AND(V432>15,V432<55)," "," اندازه v تکرار شود.") -> 
D76: =IF(AND(V433>10,V433<80)," "," اندازه v3 تکرار شود.") -> 
D77: =IF(AND(V434>10,V434<70)," "," اندازه w2 تکرار شود.") -> 
D78: =IF(AND(V435>10,V435<80)," "," اندازه w10 تکرار شود.") -> 
D79: =IF(AND(V436>8,V436<30)," "," اندازه w11 تکرار شود.") -> 
D80: =IF(AND(V437>20,V437<70)," "," اندازه w12 تکرار شود.") -> 
D82: خطای درجه 2
D83: =IF(W412>0.9*W410,"اندازه j را دوباره تکرار کنید - j کم شود."," ") -> 
D84: =IF(W411>0.65*W412,"اندازه گیری h را دوباره تکرار کنید - h کم شود."," ") -> 
D85: =IF(W414>0.45*W415,"یا m کم شود یا q زیاد شود."," ") -> 
D86: =IF(V413>0.47*V406,"اندازه گیری L را دوباره تکرار کنید - L کم شود."," ") -> 
D87: =IF(V416>1.7*V436,"دور مچ پا (r) کم شود"," ") -> 
D88: =IF(V416<1.2*V436,"دور مچ پا (r) زیاد شود"," ") -> 
D89: =IF(V413<0.3*V406,"اندازه گیری L را دوباره تکرار کنید - زیاد شود."," ") -> 
D90: =IF(W412<0.65*W410,"اندازه j را دوباره تکرار کنید - j زیاد شود."," ") -> 
D91: =IF(W415<0.5*V406,"اندازه گیری q را دوباره تکرار کنید - q زیاد شود."," ") -> 
D92: =IF(W414<0.3*W415,"یا m زیاد شود یا q کم شود."," ") -> 
D93: =IF(V407>0.7*V406,"نوار پهلو در قسمت باسن به سمت پشت متمایل شود و اندازه های d و c تکرار شود"," ") -> 
D94: =IF(V405>0.7*V404,"نوار پهلو در قسمت کمر به سمت پشت متمایل شود و اندازه های a و b تکرار شود"," ") -> 
